Workbook

Sheet 1. Info
R1: 1
B22: Name: | E22: Toronto Hydro-Electric System Limited
B24: Title: | C24: Title:
B26: Phone Number:
B28: Email Address:

Sheet Incremental Capital Summary
B10: Year of IRM Cycle
B11: 4th Year of IRM Cycle
B13: Name or General Description of Project | K13: ISA Year
B14: B21 Externally-Initiated Plant Relocations and Expansions | K14: 2014
B16: Details of Project | K16: Number of Asset Components
B17: =VLOOKUP(PROJECT_SELECTION,APP_A!$B$3:$B$24,1,FALSE) -> B21 Externally-Initiated Plant Relocations and Expansions | K17: =IFERROR(SUMPRODUCT((C21:C50<>"")*1),1) -> 30
I19: Capital Cost (1/2 year rule applied) | K19: Depreciation Rate
B20: Asset Component (Click on the Number to View the Component Details) | G20: ="Capital Cost" -> Capital Cost | M20: CCA Class | O20: CCA Rate
B21: 1 | C21: =IFERROR(INDEX(ASSETS_LIST_SELECTED_YEAR,MATCH('Incremental Capital Summary'!$B$14,PROJECTS_LIST_SELECTED_YEAR,0)),"") -> 1830_Poles Towers and Fixtures | G21: =IFERROR(INDEX(ASSET_AMOUNT_SELECTED_YEAR,MATCH('Incremental Capital Summary'!$B$14,PROJECTS_LIST_SELECTED_YEAR,0)),0) -> 128845.8932 | I21: =IF(IRM_CYCLE_YEAR="4th year of IRM cycle", G21/2, 0) -> 64422.94659 | K21: =IFERROR(IF(C21="",0,1/INDEX(APP_D!B:B,MATCH('Incremental Capital Summary'!C21,APP_D!P:P,0))),0) -> 0.025 | M21: =IFERROR(IF(C21="",0,INDEX(APP_C!E:E,MATCH('Incremental Capital Summary'!C21,APP_C!K:K,0))),0) -> 47 | O21: =IFERROR(IF(C21="",0,INDEX(APP_C!I:I,MATCH(C21,APP_C!K:K,0))),0) -> 0.08
B22: 2 | C22: =IF(C21="","",IF(INDEX(ASSETS_LIST_SELECTED_YEAR,MATCH('Incremental Capital Summary'!$B$14,PROJECTS_LIST_SELECTED_YEAR,0)+B21)=0,"",INDEX(ASSETS_LIST_SELECTED_YEAR,MATCH('Incremental Capital Summary'!$B$14,PROJECTS_LIST_SELECTED_YEAR,0)+B21))) -> 1835_Overhead Conductors and Devices | G22: =IF(C22="",0,IF(INDEX(ASSET_AMOUNT_SELECTED_YEAR,MATCH('Incremental Capital Summary'!$B$14,PROJECTS_LIST_SELECTED_YEAR,0)+B21)=0,0,INDEX(ASSET_AMOUNT_SELECTED_YEAR,MATCH('Incremental Capital Summary'!$B$14,PROJECTS_LIST_SELECTED_YEAR,0)+B21))) -> 154213.4804 | I22: 77106.74019 | K22: =IF(C22="",0,1/INDEX(APP_D!B:B,MATCH('Incremental Capital Summary'!C22,APP_D!P:P,0))) -> 0.02 | M22: =IF(C22="",0,INDEX(APP_C!E:E,MATCH('Incremental Capital Summary'!C22,APP_C!K:K,0))) -> 47 | O22: =IF(C22="",0,INDEX(APP_C!I:I,MATCH(C22,APP_C!K:K,0))) -> 0.08
B23: 3 | C23: =IF(C22="","",IF(INDEX(ASSETS_LIST_SELECTED_YEAR,MATCH('Incremental Capital Summary'!$B$14,PROJECTS_LIST_SELECTED_YEAR,0)+B22)=0,"",INDEX(ASSETS_LIST_SELECTED_YEAR,MATCH('Incremental Capital Summary'!$B$14,PROJECTS_LIST_SELECTED_YEAR,0)+B22))) -> 1835_Overhead Conductors and Devices - Switches | G23: =IF(C23="",0,IF(INDEX(ASSET_AMOUNT_SELECTED_YEAR,MATCH('Incremental Capital Summary'!$B$14,PROJECTS_LIST_SELECTED_YEAR,0)+B22)=0,0,INDEX(ASSET_AMOUNT_SELECTED_YEAR,MATCH('Incremental Capital Summary'!$B$14,PROJECTS_LIST_SELECTED_YEAR,0)+B22))) -> 75003.85911 | I23: 37501.92956 | K23: =IF(C23="",0,1/INDEX(APP_D!B:B,MATCH('Incremental Capital Summary'!C23,APP_D!P:P,0))) -> 0.03333333333 | M23: =IF(C23="",0,INDEX(APP_C!E:E,MATCH('Incremental Capital Summary'!C23,APP_C!K:K,0))) -> 47 | O23: =IF(C23="",0,INDEX(APP_C!I:I,MATCH(C23,APP_C!K:K,0))) -> 0.08
B24: 4 | C24: =IF(C23="","",IF(INDEX(ASSETS_LIST_SELECTED_YEAR,MATCH('Incremental Capital Summary'!$B$14,PROJECTS_LIST_SELECTED_YEAR,0)+B23)=0,"",INDEX(ASSETS_LIST_SELECTED_YEAR,MATCH('Incremental Capital Summary'!$B$14,PROJECTS_LIST_SELECTED_YEAR,0)+B23))) -> 1840_Underground Conduit - Cable Chamber | G24: =IF(C24="",0,IF(INDEX(ASSET_AMOUNT_SELECTED_YEAR,MATCH('Incremental Capital Summary'!$B$14,PROJECTS_LIST_SELECTED_YEAR,0)+B23)=0,0,INDEX(ASSET_AMOUNT_SELECTED_YEAR,MATCH('Incremental Capital Summary'!$B$14,PROJECTS_LIST_SELECTED_YEAR,0)+B23))) -> 167609.963 | I24: 83804.98149 | K24: =IF(C24="",0,1/INDEX(APP_D!B:B,MATCH('Incremental Capital Summary'!C24,APP_D!P:P,0))) -> 0.02 | M24: =IF(C24="",0,INDEX(APP_C!E:E,MATCH('Incremental Capital Summary'!C24,APP_C!K:K,0))) -> 47 | O24: =IF(C24="",0,INDEX(APP_C!I:I,MATCH(C24,APP_C!K:K,0))) -> 0.08
B25: 5 | C25: =IF(C24="","",IF(INDEX(ASSETS_LIST_SELECTED_YEAR,MATCH('Incremental Capital Summary'!$B$14,PROJECTS_LIST_SELECTED_YEAR,0)+B24)=0,"",INDEX(ASSETS_LIST_SELECTED_YEAR,MATCH('Incremental Capital Summary'!$B$14,PROJECTS_LIST_SELECTED_YEAR,0)+B24))) -> 1840_Underground Conduit - Duct Bank | G25: =IF(C25="",0,IF(INDEX(ASSET_AMOUNT_SELECTED_YEAR,MATCH('Incremental Capital Summary'!$B$14,PROJECTS_LIST_SELECTED_YEAR,0)+B24)=0,0,INDEX(ASSET_AMOUNT_SELECTED_YEAR,MATCH('Incremental Capital Summary'!$B$14,PROJECTS_LIST_SELECTED_YEAR,0)+B24))) -> 1554321.981 | I25: 777160.9904 | K25: =IF(C25="",0,1/INDEX(APP_D!B:B,MATCH('Incremental Capital Summary'!C25,APP_D!P:P,0))) -> 0.03333333333 | M25: =IF(C25="",0,INDEX(APP_C!E:E,MATCH('Incremental Capital Summary'!C25,APP_C!K:K,0))) -> 47 | O25: =IF(C25="",0,INDEX(APP_C!I:I,MATCH(C25,APP_C!K:K,0))) -> 0.08
B26: 6 | C26: =IF(C25="","",IF(INDEX(ASSETS_LIST_SELECTED_YEAR,MATCH('Incremental Capital Summary'!$B$14,PROJECTS_LIST_SELECTED_YEAR,0)+B25)=0,"",INDEX(ASSETS_LIST_SELECTED_YEAR,MATCH('Incremental Capital Summary'!$B$14,PROJECTS_LIST_SELECTED_YEAR,0)+B25))) -> 1840_Underground Conduit - Vault | G26: =IF(C26="",0,IF(INDEX(ASSET_AMOUNT_SELECTED_YEAR,MATCH('Incremental Capital Summary'!$B$14,PROJECTS_LIST_SELECTED_YEAR,0)+B25)=0,0,INDEX(ASSET_AMOUNT_SELECTED_YEAR,MATCH('Incremental Capital Summary'!$B$14,PROJECTS_LIST_SELECTED_YEAR,0)+B25))) -> 16641.52194 | I26: 8320.760971 | K26: =IF(C26="",0,1/INDEX(APP_D!B:B,MATCH('Incremental Capital Summary'!C26,APP_D!P:P,0))) -> 0.025 | M26: =IF(C26="",0,INDEX(APP_C!E:E,MATCH('Incremental Capital Summary'!C26,APP_C!K:K,0))) -> 47 | O26: =IF(C26="",0,INDEX(APP_C!I:I,MATCH(C26,APP_C!K:K,0))) -> 0.08
B27: 7 | C27: =IF(C26="","",IF(INDEX(ASSETS_LIST_SELECTED_YEAR,MATCH('Incremental Capital Summary'!$B$14,PROJECTS_LIST_SELECTED_YEAR,0)+B26)=0,"",INDEX(ASSETS_LIST_SELECTED_YEAR,MATCH('Incremental Capital Summary'!$B$14,PROJECTS_LIST_SELECTED_YEAR,0)+B26))) -> 1840_Underground Conduit - Vault Roof | G27: =IF(C27="",0,IF(INDEX(ASSET_AMOUNT_SELECTED_YEAR,MATCH('Incremental Capital Summary'!$B$14,PROJECTS_LIST_SELECTED_YEAR,0)+B26)=0,0,INDEX(ASSET_AMOUNT_SELECTED_YEAR,MATCH('Incremental Capital Summary'!$B$14,PROJECTS_LIST_SELECTED_YEAR,0)+B26))) -> 1474.397923 | I27: 737.1989617 | K27: =IF(C27="",0,1/INDEX(APP_D!B:B,MATCH('Incremental Capital Summary'!C27,APP_D!P:P,0))) -> 0.05 | M27: =IF(C27="",0,INDEX(APP_C!E:E,MATCH('Incremental Capital Summary'!C27,APP_C!K:K,0))) -> 47 | O27: =IF(C27="",0,INDEX(APP_C!I:I,MATCH(C27,APP_C!K:K,0))) -> 0.08
B28: 8 | C28: =IF(C27="","",IF(INDEX(ASSETS_LIST_SELECTED_YEAR,MATCH('Incremental Capital Summary'!$B$14,PROJECTS_LIST_SELECTED_YEAR,0)+B27)=0,"",INDEX(ASSETS_LIST_SELECTED_YEAR,MATCH('Incremental Capital Summary'!$B$14,PROJECTS_LIST_SELECTED_YEAR,0)+B27))) -> 1845_Underground Conductors and Devices | G28: =IF(C28="",0,IF(INDEX(ASSET_AMOUNT_SELECTED_YEAR,MATCH('Incremental Capital Summary'!$B$14,PROJECTS_LIST_SELECTED_YEAR,0)+B27)=0,0,INDEX(ASSET_AMOUNT_SELECTED_YEAR,MATCH('Incremental Capital Summary'!$B$14,PROJECTS_LIST_SELECTED_YEAR,0)+B27))) -> 15991.84063 | I28: 7995.920314 | K28: =IF(C28="",0,1/INDEX(APP_D!B:B,MATCH('Incremental Capital Summary'!C28,APP_D!P:P,0))) -> 0.025 | M28: =IF(C28="",0,INDEX(APP_C!E:E,MATCH('Incremental Capital Summary'!C28,APP_C!K:K,0))) -> 47 | O28: =IF(C28="",0,INDEX(APP_C!I:I,MATCH(C28,APP_C!K:K,0))) -> 0.08
B29: 9 | C29: =IF(C28="","",IF(INDEX(ASSETS_LIST_SELECTED_YEAR,MATCH('Incremental Capital Summary'!$B$14,PROJECTS_LIST_SELECTED_YEAR,0)+B28)=0,"",INDEX(ASSETS_LIST_SELECTED_YEAR,MATCH('Incremental Capital Summary'!$B$14,PROJECTS_LIST_SELECTED_YEAR,0)+B28))) -> 1845_Underground Conductors and Devices - Switch | G29: =IF(C29="",0,IF(INDEX(ASSET_AMOUNT_SELECTED_YEAR,MATCH('Incremental Capital Summary'!$B$14,PROJECTS_LIST_SELECTED_YEAR,0)+B28)=0,0,INDEX(ASSET_AMOUNT_SELECTED_YEAR,MATCH('Incremental Capital Summary'!$B$14,PROJECTS_LIST_SELECTED_YEAR,0)+B28))) -> 116.0217925 | I29: 58.01089623 | K29: =IF(C29="",0,1/INDEX(APP_D!B:B,MATCH('Incremental Capital Summary'!C29,APP_D!P:P,0))) -> 0.05 | M29: =IF(C29="",0,INDEX(APP_C!E:E,MATCH('Incremental Capital Summary'!C29,APP_C!K:K,0))) -> 47 | O29: =IF(C29="",0,INDEX(APP_C!I:I,MATCH(C29,APP_C!K:K,0))) -> 0.08
B30: 10 | C30: =IF(C29="","",IF(INDEX(ASSETS_LIST_SELECTED_YEAR,MATCH('Incremental Capital Summary'!$B$14,PROJECTS_LIST_SELECTED_YEAR,0)+B29)=0,"",INDEX(ASSETS_LIST_SELECTED_YEAR,MATCH('Incremental Capital Summary'!$B$14,PROJECTS_LIST_SELECTED_YEAR,0)+B29))) -> 1850_Line Transformers - OH | G30: =IF(C30="",0,IF(INDEX(ASSET_AMOUNT_SELECTED_YEAR,MATCH('Incremental Capital Summary'!$B$14,PROJECTS_LIST_SELECTED_YEAR,0)+B29)=0,0,INDEX(ASSET_AMOUNT_SELECTED_YEAR,MATCH('Incremental Capital Summary'!$B$14,PROJECTS_LIST_SELECTED_YEAR,0)+B29))) -> 24727.85559 | I30: 12363.92779 | K30: =IF(C30="",0,1/INDEX(APP_D!B:B,MATCH('Incremental Capital Summary'!C30,APP_D!P:P,0))) -> 0.03333333333 | M30: =IF(C30="",0,INDEX(APP_C!E:E,MATCH('Incremental Capital Summary'!C30,APP_C!K:K,0))) -> 47 | O30: =IF(C30="",0,INDEX(APP_C!I:I,MATCH(C30,APP_C!K:K,0))) -> 0.08
B31: 11 | C31: =IF(C30="","",IF(INDEX(ASSETS_LIST_SELECTED_YEAR,MATCH('Incremental Capital Summary'!$B$14,PROJECTS_LIST_SELECTED_YEAR,0)+B30)=0,"",INDEX(ASSETS_LIST_SELECTED_YEAR,MATCH('Incremental Capital Summary'!$B$14,PROJECTS_LIST_SELECTED_YEAR,0)+B30))) -> 1850_Line Transformers - UG | G31: =IF(C31="",0,IF(INDEX(ASSET_AMOUNT_SELECTED_YEAR,MATCH('Incremental Capital Summary'!$B$14,PROJECTS_LIST_SELECTED_YEAR,0)+B30)=0,0,INDEX(ASSET_AMOUNT_SELECTED_YEAR,MATCH('Incremental Capital Summary'!$B$14,PROJECTS_LIST_SELECTED_YEAR,0)+B30))) -> 5086.020471 | I31: 2543.010236 | K31: =IF(C31="",0,1/INDEX(APP_D!B:B,MATCH('Incremental Capital Summary'!C31,APP_D!P:P,0))) -> 0.03333333333 | M31: =IF(C31="",0,INDEX(APP_C!E:E,MATCH('Incremental Capital Summary'!C31,APP_C!K:K,0))) -> 47 | O31: =IF(C31="",0,INDEX(APP_C!I:I,MATCH(C31,APP_C!K:K,0))) -> 0.08
B32: 12 | C32: =IF(C31="","",IF(INDEX(ASSETS_LIST_SELECTED_YEAR,MATCH('Incremental Capital Summary'!$B$14,PROJECTS_LIST_SELECTED_YEAR,0)+B31)=0,"",INDEX(ASSETS_LIST_SELECTED_YEAR,MATCH('Incremental Capital Summary'!$B$14,PROJECTS_LIST_SELECTED_YEAR,0)+B31))) -> 1850_Line Transformers - UG Network w/protector | G32: =IF(C32="",0,IF(INDEX(ASSET_AMOUNT_SELECTED_YEAR,MATCH('Incremental Capital Summary'!$B$14,PROJECTS_LIST_SELECTED_YEAR,0)+B31)=0,0,INDEX(ASSET_AMOUNT_SELECTED_YEAR,MATCH('Incremental Capital Summary'!$B$14,PROJECTS_LIST_SELECTED_YEAR,0)+B31))) -> 274.1781729 | I32: 137.0890865 | K32: =IF(C32="",0,1/INDEX(APP_D!B:B,MATCH('Incremental Capital Summary'!C32,APP_D!P:P,0))) -> 0.05 | M32: =IF(C32="",0,INDEX(APP_C!E:E,MATCH('Incremental Capital Summary'!C32,APP_C!K:K,0))) -> 47 | O32: =IF(C32="",0,INDEX(APP_C!I:I,MATCH(C32,APP_C!K:K,0))) -> 0.08
B33: 13 | C33: =IF(C32="","",IF(INDEX(ASSETS_LIST_SELECTED_YEAR,MATCH('Incremental Capital Summary'!$B$14,PROJECTS_LIST_SELECTED_YEAR,0)+B32)=0,"",INDEX(ASSETS_LIST_SELECTED_YEAR,MATCH('Incremental Capital Summary'!$B$14,PROJECTS_LIST_SELECTED_YEAR,0)+B32))) -> 1855_Services - UG | G33: =IF(C33="",0,IF(INDEX(ASSET_AMOUNT_SELECTED_YEAR,MATCH('Incremental Capital Summary'!$B$14,PROJECTS_LIST_SELECTED_YEAR,0)+B32)=0,0,INDEX(ASSET_AMOUNT_SELECTED_YEAR,MATCH('Incremental Capital Summary'!$B$14,PROJECTS_LIST_SELECTED_YEAR,0)+B32))) -> 730.9453726 | I33: 365.4726863 | K33: =IF(C33="",0,1/INDEX(APP_D!B:B,MATCH('Incremental Capital Summary'!C33,APP_D!P:P,0))) -> 0.025 | M33: =IF(C33="",0,INDEX(APP_C!E:E,MATCH('Incremental Capital Summary'!C33,APP_C!K:K,0))) -> 47 | O33: =IF(C33="",0,INDEX(APP_C!I:I,MATCH(C33,APP_C!K:K,0))) -> 0.08
B34: 14 | C34: =IF(C33="","",IF(INDEX(ASSETS_LIST_SELECTED_YEAR,MATCH('Incremental Capital Summary'!$B$14,PROJECTS_LIST_SELECTED_YEAR,0)+B33)=0,"",INDEX(ASSETS_LIST_SELECTED_YEAR,MATCH('Incremental Capital Summary'!$B$14,PROJECTS_LIST_SELECTED_YEAR,0)+B33))) -> 1855_Services - OH | G34: =IF(C34="",0,IF(INDEX(ASSET_AMOUNT_SELECTED_YEAR,MATCH('Incremental Capital Summary'!$B$14,PROJECTS_LIST_SELECTED_YEAR,0)+B33)=0,0,INDEX(ASSET_AMOUNT_SELECTED_YEAR,MATCH('Incremental Capital Summary'!$B$14,PROJECTS_LIST_SELECTED_YEAR,0)+B33))) -> 3630.162901 | I34: 1815.08145 | K34: =IF(C34="",0,1/INDEX(APP_D!B:B,MATCH('Incremental Capital Summary'!C34,APP_D!P:P,0))) -> 0.02 | M34: =IF(C34="",0,INDEX(APP_C!E:E,MATCH('Incremental Capital Summary'!C34,APP_C!K:K,0))) -> 47 | O34: =IF(C34="",0,INDEX(APP_C!I:I,MATCH(C34,APP_C!K:K,0))) -> 0.08
B35: 15 | C35: =IF(C34="","",IF(INDEX(ASSETS_LIST_SELECTED_YEAR,MATCH('Incremental Capital Summary'!$B$14,PROJECTS_LIST_SELECTED_YEAR,0)+B34)=0,"",INDEX(ASSETS_LIST_SELECTED_YEAR,MATCH('Incremental Capital Summary'!$B$14,PROJECTS_LIST_SELECTED_YEAR,0)+B34))) -> 1845_Underground Conductors and Devices - Prim Cable burried (xLPE) | G35: =IF(C35="",0,IF(INDEX(ASSET_AMOUNT_SELECTED_YEAR,MATCH('Incremental Capital Summary'!$B$14,PROJECTS_LIST_SELECTED_YEAR,0)+B34)=0,0,INDEX(ASSET_AMOUNT_SELECTED_YEAR,MATCH('Incremental Capital Summary'!$B$14,PROJECTS_LIST_SELECTED_YEAR,0)+B34))) -> 22841.77297 | I35: 11420.88649 | K35: =IF(C35="",0,1/INDEX(APP_D!B:B,MATCH('Incremental Capital Summary'!C35,APP_D!P:P,0))) -> 0.05 | M35: =IF(C35="",0,INDEX(APP_C!E:E,MATCH('Incremental Capital Summary'!C35,APP_C!K:K,0))) -> 47 | O35: =IF(C35="",0,INDEX(APP_C!I:I,MATCH(C35,APP_C!K:K,0))) -> 0.08
B36: 16 | C36: =IF(C35="","",IF(INDEX(ASSETS_LIST_SELECTED_YEAR,MATCH('Incremental Capital Summary'!$B$14,PROJECTS_LIST_SELECTED_YEAR,0)+B35)=0,"",INDEX(ASSETS_LIST_SELECTED_YEAR,MATCH('Incremental Capital Summary'!$B$14,PROJECTS_LIST_SELECTED_YEAR,0)+B35))) -> 1840_Underground Conduit - Cable Chamber Roof | G36: =IF(C36="",0,IF(INDEX(ASSET_AMOUNT_SELECTED_YEAR,MATCH('Incremental Capital Summary'!$B$14,PROJECTS_LIST_SELECTED_YEAR,0)+B35)=0,0,INDEX(ASSET_AMOUNT_SELECTED_YEAR,MATCH('Incremental Capital Summary'!$B$14,PROJECTS_LIST_SELECTED_YEAR,0)+B35))) -> 5782.965351 | I36: 2891.482676 | K36: =IF(C36="",0,1/INDEX(APP_D!B:B,MATCH('Incremental Capital Summary'!C36,APP_D!P:P,0))) -> 0.05 | M36: =IF(C36="",0,INDEX(APP_C!E:E,MATCH('Incremental Capital Summary'!C36,APP_C!K:K,0))) -> 47 | O36: =IF(C36="",0,INDEX(APP_C!I:I,MATCH(C36,APP_C!K:K,0))) -> 0.08
B37: 17 | C37: =IF(C36="","",IF(INDEX(ASSETS_LIST_SELECTED_YEAR,MATCH('Incremental Capital Summary'!$B$14,PROJECTS_LIST_SELECTED_YEAR,0)+B36)=0,"",INDEX(ASSETS_LIST_SELECTED_YEAR,MATCH('Incremental Capital Summary'!$B$14,PROJECTS_LIST_SELECTED_YEAR,0)+B36))) -> 1845_Underground Conductors and Devices - ATS Switches | G37: =IF(C37="",0,IF(INDEX(ASSET_AMOUNT_SELECTED_YEAR,MATCH('Incremental Capital Summary'!$B$14,PROJECTS_LIST_SELECTED_YEAR,0)+B36)=0,0,INDEX(ASSET_AMOUNT_SELECTED_YEAR,MATCH('Incremental Capital Summary'!$B$14,PROJECTS_LIST_SELECTED_YEAR,0)+B36))) -> 3.447426929 | I37: 1.723713464 | K37: =IF(C37="",0,1/INDEX(APP_D!B:B,MATCH('Incremental Capital Summary'!C37,APP_D!P:P,0))) -> 0.03333333333 | M37: =IF(C37="",0,INDEX(APP_C!E:E,MATCH('Incremental Capital Summary'!C37,APP_C!K:K,0))) -> 47 | O37: =IF(C37="",0,INDEX(APP_C!I:I,MATCH(C37,APP_C!K:K,0))) -> 0.08
B38: 18 | C38: =IF(C37="","",IF(INDEX(ASSETS_LIST_SELECTED_YEAR,MATCH('Incremental Capital Summary'!$B$14,PROJECTS_LIST_SELECTED_YEAR,0)+B37)=0,"",INDEX(ASSETS_LIST_SELECTED_YEAR,MATCH('Incremental Capital Summary'!$B$14,PROJECTS_LIST_SELECTED_YEAR,0)+B37))) -> 1995_Contributions and Grants - OH Switches Contribute Cap | G38: =IF(C38="",0,IF(INDEX(ASSET_AMOUNT_SELECTED_YEAR,MATCH('Incremental Capital Summary'!$B$14,PROJECTS_LIST_SELECTED_YEAR,0)+B37)=0,0,INDEX(ASSET_AMOUNT_SELECTED_YEAR,MATCH('Incremental Capital Summary'!$B$14,PROJECTS_LIST_SELECTED_YEAR,0)+B37))) -> -8055.3584 | I38: -4027.6792 | K38: =IF(C38="",0,1/INDEX(APP_D!B:B,MATCH('Incremental Capital Summary'!C38,APP_D!P:P,0))) -> 0.03333333333 | M38: =IF(C38="",0,INDEX(APP_C!E:E,MATCH('Incremental Capital Summary'!C38,APP_C!K:K,0))) -> 47 | O38: =IF(C38="",0,INDEX(APP_C!I:I,MATCH(C38,APP_C!K:K,0))) -> 0.08
B39: 19 | C39: =IF(C38="","",IF(INDEX(ASSETS_LIST_SELECTED_YEAR,MATCH('Incremental Capital Summary'!$B$14,PROJECTS_LIST_SELECTED_YEAR,0)+B38)=0,"",INDEX(ASSETS_LIST_SELECTED_YEAR,MATCH('Incremental Capital Summary'!$B$14,PROJECTS_LIST_SELECTED_YEAR,0)+B38))) -> 1995_Contributions and Grants - UG Duct Bank Contributed Cap | G39: =IF(C39="",0,IF(INDEX(ASSET_AMOUNT_SELECTED_YEAR,MATCH('Incremental Capital Summary'!$B$14,PROJECTS_LIST_SELECTED_YEAR,0)+B38)=0,0,INDEX(ASSET_AMOUNT_SELECTED_YEAR,MATCH('Incremental Capital Summary'!$B$14,PROJECTS_LIST_SELECTED_YEAR,0)+B38))) -> -209611.5291 | I39: -104805.7645 | K39: =IF(C39="",0,1/INDEX(APP_D!B:B,MATCH('Incremental Capital Summary'!C39,APP_D!P:P,0))) -> 0.03333333333 | M39: =IF(C39="",0,INDEX(APP_C!E:E,MATCH('Incremental Capital Summary'!C39,APP_C!K:K,0))) -> 47 | O39: =IF(C39="",0,INDEX(APP_C!I:I,MATCH(C39,APP_C!K:K,0))) -> 0.08
B40: 20 | C40: =IF(C39="","",IF(INDEX(ASSETS_LIST_SELECTED_YEAR,MATCH('Incremental Capital Summary'!$B$14,PROJECTS_LIST_SELECTED_YEAR,0)+B39)=0,"",INDEX(ASSETS_LIST_SELECTED_YEAR,MATCH('Incremental Capital Summary'!$B$14,PROJECTS_LIST_SELECTED_YEAR,0)+B39))) -> 1995_Contributions and Grants - UG Cable Chamber Contributed Cap | G40: =IF(C40="",0,IF(INDEX(ASSET_AMOUNT_SELECTED_YEAR,MATCH('Incremental Capital Summary'!$B$14,PROJECTS_LIST_SELECTED_YEAR,0)+B39)=0,0,INDEX(ASSET_AMOUNT_SELECTED_YEAR,MATCH('Incremental Capital Summary'!$B$14,PROJECTS_LIST_SELECTED_YEAR,0)+B39))) -> -5100.278598 | I40: -2550.139299 | K40: =IF(C40="",0,1/INDEX(APP_D!B:B,MATCH('Incremental Capital Summary'!C40,APP_D!P:P,0))) -> 0.02 | M40: =IF(C40="",0,INDEX(APP_C!E:E,MATCH('Incremental Capital Summary'!C40,APP_C!K:K,0))) -> 47 | O40: =IF(C40="",0,INDEX(APP_C!I:I,MATCH(C40,APP_C!K:K,0))) -> 0.08
B41: 21 | C41: =IF(C40="","",IF(INDEX(ASSETS_LIST_SELECTED_YEAR,MATCH('Incremental Capital Summary'!$B$14,PROJECTS_LIST_SELECTED_YEAR,0)+B40)=0,"",INDEX(ASSETS_LIST_SELECTED_YEAR,MATCH('Incremental Capital Summary'!$B$14,PROJECTS_LIST_SELECTED_YEAR,0)+B40))) -> 1995_Contributions and Grants - UG Primary PILC Contributed Cap | G41: =IF(C41="",0,IF(INDEX(ASSET_AMOUNT_SELECTED_YEAR,MATCH('Incremental Capital Summary'!$B$14,PROJECTS_LIST_SELECTED_YEAR,0)+B40)=0,0,INDEX(ASSET_AMOUNT_SELECTED_YEAR,MATCH('Incremental Capital Summary'!$B$14,PROJECTS_LIST_SELECTED_YEAR,0)+B40))) -> -5100.278598 | I41: -2550.139299 | K41: =IF(C41="",0,1/INDEX(APP_D!B:B,MATCH('Incremental Capital Summary'!C41,APP_D!P:P,0))) -> 0.02222222222 | M41: =IF(C41="",0,INDEX(APP_C!E:E,MATCH('Incremental Capital Summary'!C41,APP_C!K:K,0))) -> 47 | O41: =IF(C41="",0,INDEX(APP_C!I:I,MATCH(C41,APP_C!K:K,0))) -> 0.08
B42: 22 | C42: =IF(C41="","",IF(INDEX(ASSETS_LIST_SELECTED_YEAR,MATCH('Incremental Capital Summary'!$B$14,PROJECTS_LIST_SELECTED_YEAR,0)+B41)=0,"",INDEX(ASSETS_LIST_SELECTED_YEAR,MATCH('Incremental Capital Summary'!$B$14,PROJECTS_LIST_SELECTED_YEAR,0)+B41))) -> 1995_Contributions and Grants - OH Services Contrib Cap | G42: =IF(C42="",0,IF(INDEX(ASSET_AMOUNT_SELECTED_YEAR,MATCH('Incremental Capital Summary'!$B$14,PROJECTS_LIST_SELECTED_YEAR,0)+B41)=0,0,INDEX(ASSET_AMOUNT_SELECTED_YEAR,MATCH('Incremental Capital Summary'!$B$14,PROJECTS_LIST_SELECTED_YEAR,0)+B41))) -> -3186.217888 | I42: -1593.108944 | K42: =IF(C42="",0,1/INDEX(APP_D!B:B,MATCH('Incremental Capital Summary'!C42,APP_D!P:P,0))) -> 0.02 | M42: =IF(C42="",0,INDEX(APP_C!E:E,MATCH('Incremental Capital Summary'!C42,APP_C!K:K,0))) -> 47 | O42: =IF(C42="",0,INDEX(APP_C!I:I,MATCH(C42,APP_C!K:K,0))) -> 0.08
B43: 23 | C43: =IF(C42="","",IF(INDEX(ASSETS_LIST_SELECTED_YEAR,MATCH('Incremental Capital Summary'!$B$14,PROJECTS_LIST_SELECTED_YEAR,0)+B42)=0,"",INDEX(ASSETS_LIST_SELECTED_YEAR,MATCH('Incremental Capital Summary'!$B$14,PROJECTS_LIST_SELECTED_YEAR,0)+B42))) -> 1995_Contributions and Grants - UG Services duct Contrib Cap | G43: =IF(C43="",0,IF(INDEX(ASSET_AMOUNT_SELECTED_YEAR,MATCH('Incremental Capital Summary'!$B$14,PROJECTS_LIST_SELECTED_YEAR,0)+B42)=0,0,INDEX(ASSET_AMOUNT_SELECTED_YEAR,MATCH('Incremental Capital Summary'!$B$14,PROJECTS_LIST_SELECTED_YEAR,0)+B42))) -> -181.4078223 | I43: -90.70391113 | K43: =IF(C43="",0,1/INDEX(APP_D!B:B,MATCH('Incremental Capital Summary'!C43,APP_D!P:P,0))) -> 0.025 | M43: =IF(C43="",0,INDEX(APP_C!E:E,MATCH('Incremental Capital Summary'!C43,APP_C!K:K,0))) -> 47 | O43: =IF(C43="",0,INDEX(APP_C!I:I,MATCH(C43,APP_C!K:K,0))) -> 0.08
B44: 24 | C44: =IF(C43="","",IF(INDEX(ASSETS_LIST_SELECTED_YEAR,MATCH('Incremental Capital Summary'!$B$14,PROJECTS_LIST_SELECTED_YEAR,0)+B43)=0,"",INDEX(ASSETS_LIST_SELECTED_YEAR,MATCH('Incremental Capital Summary'!$B$14,PROJECTS_LIST_SELECTED_YEAR,0)+B43))) -> 1995_Contributions and Grants - UG Services DB Contrib Cap | G44: =IF(C44="",0,IF(INDEX(ASSET_AMOUNT_SELECTED_YEAR,MATCH('Incremental Capital Summary'!$B$14,PROJECTS_LIST_SELECTED_YEAR,0)+B43)=0,0,INDEX(ASSET_AMOUNT_SELECTED_YEAR,MATCH('Incremental Capital Summary'!$B$14,PROJECTS_LIST_SELECTED_YEAR,0)+B43))) -> -181.4078223 | I44: -90.70391113 | K44: =IF(C44="",0,1/INDEX(APP_D!B:B,MATCH('Incremental Capital Summary'!C44,APP_D!P:P,0))) -> 0.05 | M44: =IF(C44="",0,INDEX(APP_C!E:E,MATCH('Incremental Capital Summary'!C44,APP_C!K:K,0))) -> 47 | O44: =IF(C44="",0,INDEX(APP_C!I:I,MATCH(C44,APP_C!K:K,0))) -> 0.08
B45: 25 | C45: =IF(C44="","",IF(INDEX(ASSETS_LIST_SELECTED_YEAR,MATCH('Incremental Capital Summary'!$B$14,PROJECTS_LIST_SELECTED_YEAR,0)+B44)=0,"",INDEX(ASSETS_LIST_SELECTED_YEAR,MATCH('Incremental Capital Summary'!$B$14,PROJECTS_LIST_SELECTED_YEAR,0)+B44))) -> 1995_Contributions and Grants - Wood Poles Contributed Cap | G45: =IF(C45="",0,IF(INDEX(ASSET_AMOUNT_SELECTED_YEAR,MATCH('Incremental Capital Summary'!$B$14,PROJECTS_LIST_SELECTED_YEAR,0)+B44)=0,0,INDEX(ASSET_AMOUNT_SELECTED_YEAR,MATCH('Incremental Capital Summary'!$B$14,PROJECTS_LIST_SELECTED_YEAR,0)+B44))) -> -17563.87345 | I45: -8781.936725 | K45: =IF(C45="",0,1/INDEX(APP_D!B:B,MATCH('Incremental Capital Summary'!C45,APP_D!P:P,0))) -> 0.025 | M45: =IF(C45="",0,INDEX(APP_C!E:E,MATCH('Incremental Capital Summary'!C45,APP_C!K:K,0))) -> 47 | O45: =IF(C45="",0,INDEX(APP_C!I:I,MATCH(C45,APP_C!K:K,0))) -> 0.08
B46: 26 | C46: =IF(C45="","",IF(INDEX(ASSETS_LIST_SELECTED_YEAR,MATCH('Incremental Capital Summary'!$B$14,PROJECTS_LIST_SELECTED_YEAR,0)+B45)=0,"",INDEX(ASSETS_LIST_SELECTED_YEAR,MATCH('Incremental Capital Summary'!$B$14,PROJECTS_LIST_SELECTED_YEAR,0)+B45))) -> 1995_Contributions and Grants - Concrete Poles Contributed Cap | G46: =IF(C46="",0,IF(INDEX(ASSET_AMOUNT_SELECTED_YEAR,MATCH('Incremental Capital Summary'!$B$14,PROJECTS_LIST_SELECTED_YEAR,0)+B45)=0,0,INDEX(ASSET_AMOUNT_SELECTED_YEAR,MATCH('Incremental Capital Summary'!$B$14,PROJECTS_LIST_SELECTED_YEAR,0)+B45))) -> -17563.87345 | I46: =IF(IRM_CYCLE_YEAR="4th year of IRM cycle", G46/2, 0) -> -8781.936725 | K46: =IF(C46="",0,1/INDEX(APP_D!B:B,MATCH('Incremental Capital Summary'!C46,APP_D!P:P,0))) -> 0.02 | M46: =IF(C46="",0,INDEX(APP_C!E:E,MATCH('Incremental Capital Summary'!C46,APP_C!K:K,0))) -> 47 | O46: =IF(C46="",0,INDEX(APP_C!I:I,MATCH(C46,APP_C!K:K,0))) -> 0.08
B47: 27 | C47: =IF(C46="","",IF(INDEX(ASSETS_LIST_SELECTED_YEAR,MATCH('Incremental Capital Summary'!$B$14,PROJECTS_LIST_SELECTED_YEAR,0)+B46)=0,"",INDEX(ASSETS_LIST_SELECTED_YEAR,MATCH('Incremental Capital Summary'!$B$14,PROJECTS_LIST_SELECTED_YEAR,0)+B46))) -> 1995_Contributions and Grants - UG Primary & Secondary buried Contributed Cap | G47: =IF(C47="",0,IF(INDEX(ASSET_AMOUNT_SELECTED_YEAR,MATCH('Incremental Capital Summary'!$B$14,PROJECTS_LIST_SELECTED_YEAR,0)+B46)=0,0,INDEX(ASSET_AMOUNT_SELECTED_YEAR,MATCH('Incremental Capital Summary'!$B$14,PROJECTS_LIST_SELECTED_YEAR,0)+B46))) -> -7073.962993 | I47: -3536.981496 | K47: =IF(C47="",0,1/INDEX(APP_D!B:B,MATCH('Incremental Capital Summary'!C47,APP_D!P:P,0))) -> 0.05 | M47: =IF(C47="",0,INDEX(APP_C!E:E,MATCH('Incremental Capital Summary'!C47,APP_C!K:K,0))) -> 47 | O47: =IF(C47="",0,INDEX(APP_C!I:I,MATCH(C47,APP_C!K:K,0))) -> 0.08
B48: 28 | C48: =IF(C47="","",IF(INDEX(ASSETS_LIST_SELECTED_YEAR,MATCH('Incremental Capital Summary'!$B$14,PROJECTS_LIST_SELECTED_YEAR,0)+B47)=0,"",INDEX(ASSETS_LIST_SELECTED_YEAR,MATCH('Incremental Capital Summary'!$B$14,PROJECTS_LIST_SELECTED_YEAR,0)+B47))) -> 1995_Contributions and Grants - Transformer Contributed Cap | G48: =IF(C48="",0,IF(INDEX(ASSET_AMOUNT_SELECTED_YEAR,MATCH('Incremental Capital Summary'!$B$14,PROJECTS_LIST_SELECTED_YEAR,0)+B47)=0,0,INDEX(ASSET_AMOUNT_SELECTED_YEAR,MATCH('Incremental Capital Summary'!$B$14,PROJECTS_LIST_SELECTED_YEAR,0)+B47))) -> -18103.79765 | I48: -9051.898823 | K48: =IF(C48="",0,1/INDEX(APP_D!B:B,MATCH('Incremental Capital Summary'!C48,APP_D!P:P,0))) -> 0.03333333333 | M48: =IF(C48="",0,INDEX(APP_C!E:E,MATCH('Incremental Capital Summary'!C48,APP_C!K:K,0))) -> 47 | O48: =IF(C48="",0,INDEX(APP_C!I:I,MATCH(C48,APP_C!K:K,0))) -> 0.08
B49: 29 | C49: =IF(C48="","",IF(INDEX(ASSETS_LIST_SELECTED_YEAR,MATCH('Incremental Capital Summary'!$B$14,PROJECTS_LIST_SELECTED_YEAR,0)+B48)=0,"",INDEX(ASSETS_LIST_SELECTED_YEAR,MATCH('Incremental Capital Summary'!$B$14,PROJECTS_LIST_SELECTED_YEAR,0)+B48))) -> 1995_Contributions and Grants - OH Lines & Secondary Contributed Cap | G49: =IF(C49="",0,IF(INDEX(ASSET_AMOUNT_SELECTED_YEAR,MATCH('Incremental Capital Summary'!$B$14,PROJECTS_LIST_SELECTED_YEAR,0)+B48)=0,0,INDEX(ASSET_AMOUNT_SELECTED_YEAR,MATCH('Incremental Capital Summary'!$B$14,PROJECTS_LIST_SELECTED_YEAR,0)+B48))) -> -9383.3192 | I49: -4691.6596 | K49: =IF(C49="",0,1/INDEX(APP_D!B:B,MATCH('Incremental Capital Summary'!C49,APP_D!P:P,0))) -> 0.02 | M49: =IF(C49="",0,INDEX(APP_C!E:E,MATCH('Incremental Capital Summary'!C49,APP_C!K:K,0))) -> 47 | O49: =IF(C49="",0,INDEX(APP_C!I:I,MATCH(C49,APP_C!K:K,0))) -> 0.08
B50: 30 | C50: =IF(C49="","",IF(INDEX(ASSETS_LIST_SELECTED_YEAR,MATCH('Incremental Capital Summary'!$B$14,PROJECTS_LIST_SELECTED_YEAR,0)+B49)=0,"",INDEX(ASSETS_LIST_SELECTED_YEAR,MATCH('Incremental Capital Summary'!$B$14,PROJECTS_LIST_SELECTED_YEAR,0)+B49))) -> 1995_Contributions and Grants - UG Primary & Secondary duct Contributed Cap | G50: =IF(C50="",0,IF(INDEX(ASSET_AMOUNT_SELECTED_YEAR,MATCH('Incremental Capital Summary'!$B$14,PROJECTS_LIST_SELECTED_YEAR,0)+B49)=0,0,INDEX(ASSET_AMOUNT_SELECTED_YEAR,MATCH('Incremental Capital Summary'!$B$14,PROJECTS_LIST_SELECTED_YEAR,0)+B49))) -> -10200.5572 | I50: -5100.278598 | K50: =IF(C50="",0,1/INDEX(APP_D!B:B,MATCH('Incremental Capital Summary'!C50,APP_D!P:P,0))) -> 0.025 | M50: =IF(C50="",0,INDEX(APP_C!E:E,MATCH('Incremental Capital Summary'!C50,APP_C!K:K,0))) -> 47 | O50: =IF(C50="",0,INDEX(APP_C!I:I,MATCH(C50,APP_C!K:K,0))) -> 0.08
G52: =YEAR_SELECTED -> 2014 | K52: =IF((G52+1)<=2014,G52+1,"") -> 
B53: Closing Net Fixed Asset | G53: =SUM('Fixed Asset Amort and UCC 1'!D32,'Fixed Asset Amort and UCC 2'!D32, 'Fixed Asset Amort and UCC 3'!D32, 'Fixed Asset Amort and UCC 4'!D32, 'Fixed Asset Amort and UCC 5'!D32,'Fixed Asset Amort and UCC 6'!D32,'Fixed Asset Amort and UCC 7'!D32,'Fixed Asset Amort and UCC 8'!D32,'Fixed Asset Amort and UCC 9'!D32,'Fixed Asset Amort and UCC 10'!D32,'Fixed Asset Amort and UCC 11'!D32,'Fixed Asset Amort and UCC 12'!D32,'Fixed Asset Amort and UCC 13'!D32,'Fixed Asset Amort and UCC 14'!D32,'Fixed Asset Amort and UCC 15'!D32,'Fixed Asset Amort and UCC 16'!D32,'Fixed Asset Amort and UCC 17'!D32,'Fixed Asset Amort and UCC 18'!D32, 'Fixed Asset Amort and UCC 19'!D32,'Fixed Asset Amort and UCC 20'!D32,'Fixed Asset Amort and UCC 21'!D32,'Fixed Asset Amort and UCC 22'!D32,'Fixed Asset Amort and UCC 23'!D32,'Fixed Asset Amort and UCC 24'!D32,'Fixed Asset Amort and UCC 25'!D32,'Fixed Asset Amort and UCC 26'!D32,,'Fixed Asset Amort and UCC 27'!D32,,'Fixed Asset Amort and UCC 28'!D32,'Fixed Asset Amort and UCC 29'!D32,'Fixed Asset Amort and UCC 30'!D32) -> 904167.6648 | K53: =SUM('Fixed Asset Amort and UCC 1'!E32,'Fixed Asset Amort and UCC 2'!E32, 'Fixed Asset Amort and UCC 3'!E32, 'Fixed Asset Amort and UCC 4'!E32, 'Fixed Asset Amort and UCC 5'!E32,'Fixed Asset Amort and UCC 6'!E32,'Fixed Asset Amort and UCC 7'!E32,'Fixed Asset Amort and UCC 8'!E32,'Fixed Asset Amort and UCC 9'!E32,'Fixed Asset Amort and UCC 10'!E32,'Fixed Asset Amort and UCC 11'!E32,'Fixed Asset Amort and UCC 12'!E32,'Fixed Asset Amort and UCC 13'!E32,'Fixed Asset Amort and UCC 14'!E32,'Fixed Asset Amort and UCC 15'!E32,'Fixed Asset Amort and UCC 16'!E32,'Fixed Asset Amort and UCC 17'!E32,'Fixed Asset Amort and UCC 18'!E32, 'Fixed Asset Amort and UCC 19'!E32,'Fixed Asset Amort and UCC 20'!E32,'Fixed Asset Amort and UCC 21'!E32,'Fixed Asset Amort and UCC 22'!E32,'Fixed Asset Amort and UCC 23'!E32,'Fixed Asset Amort and UCC 24'!E32,'Fixed Asset Amort and UCC 25'!E32,'Fixed Asset Amort and UCC 26'!E32,'Fixed Asset Amort and UCC 27'!E32,'Fixed Asset Amort and UCC 28'!E32,'Fixed Asset Amort and UCC 29'!E32,'Fixed Asset Amort and UCC 30'!E32) -> 875340.107
B55: Amortization Expense | G55: =SUM('Fixed Asset Amort and UCC 1'!D28,'Fixed Asset Amort and UCC 2'!D28, 'Fixed Asset Amort and UCC 3'!D28, 'Fixed Asset Amort and UCC 4'!D28, 'Fixed Asset Amort and UCC 5'!D28,'Fixed Asset Amort and UCC 6'!D28,'Fixed Asset Amort and UCC 7'!D28,'Fixed Asset Amort and UCC 8'!D28,'Fixed Asset Amort and UCC 9'!D28,'Fixed Asset Amort and UCC 10'!D28,'Fixed Asset Amort and UCC 11'!D28,'Fixed Asset Amort and UCC 12'!D28,'Fixed Asset Amort and UCC 13'!D28,'Fixed Asset Amort and UCC 14'!D28,'Fixed Asset Amort and UCC 15'!D28,'Fixed Asset Amort and UCC 16'!D28,'Fixed Asset Amort and UCC 17'!D28,'Fixed Asset Amort and UCC 18'!D28, 'Fixed Asset Amort and UCC 19'!D28,'Fixed Asset Amort and UCC 20'!D28,'Fixed Asset Amort and UCC 21'!D28,'Fixed Asset Amort and UCC 22'!D28,'Fixed Asset Amort and UCC 23'!D28,'Fixed Asset Amort and UCC 24'!D28,'Fixed Asset Amort and UCC 25'!D28,,'Fixed Asset Amort and UCC 26'!D28,'Fixed Asset Amort and UCC 27'!D28,'Fixed Asset Amort and UCC 28'!D28,,'Fixed Asset Amort and UCC 29'!D28,'Fixed Asset Amort and UCC 30'!D28) -> 28827.55772 | K55: =SUM('Fixed Asset Amort and UCC 1'!E28,'Fixed Asset Amort and UCC 2'!E28, 'Fixed Asset Amort and UCC 3'!E28, 'Fixed Asset Amort and UCC 4'!E28, 'Fixed Asset Amort and UCC 5'!E28,'Fixed Asset Amort and UCC 6'!E28,'Fixed Asset Amort and UCC 7'!E28,'Fixed Asset Amort and UCC 8'!E28,'Fixed Asset Amort and UCC 9'!E28,'Fixed Asset Amort and UCC 10'!E28,'Fixed Asset Amort and UCC 11'!E28,'Fixed Asset Amort and UCC 12'!E28,'Fixed Asset Amort and UCC 13'!E28,'Fixed Asset Amort and UCC 14'!E28,'Fixed Asset Amort and UCC 15'!E28,'Fixed Asset Amort and UCC 16'!E28,'Fixed Asset Amort and UCC 17'!E28,'Fixed Asset Amort and UCC 18'!E28, 'Fixed Asset Amort and UCC 19'!E28,'Fixed Asset Amort and UCC 20'!E28,'Fixed Asset Amort and UCC 21'!E28,'Fixed Asset Amort and UCC 22'!E28,'Fixed Asset Amort and UCC 23'!E28,'Fixed Asset Amort and UCC 24'!E28,'Fixed Asset Amort and UCC 25'!E28,'Fixed Asset Amort and UCC 26'!E28,'Fixed Asset Amort and UCC 27'!E28,'Fixed Asset Amort and UCC 28'!E28,'Fixed Asset Amort and UCC 29'!E29,'Fixed Asset Amort and UCC 30'!E28) -> 28733.72452
B57: CCA | G57: =SUM('Fixed Asset Amort and UCC 1'!D50,'Fixed Asset Amort and UCC 2'!D50, 'Fixed Asset Amort and UCC 3'!D50, 'Fixed Asset Amort and UCC 4'!D50, 'Fixed Asset Amort and UCC 5'!D50,'Fixed Asset Amort and UCC 6'!D50,'Fixed Asset Amort and UCC 7'!D50,'Fixed Asset Amort and UCC 8'!D50,'Fixed Asset Amort and UCC 9'!D50,'Fixed Asset Amort and UCC 10'!D50,'Fixed Asset Amort and UCC 11'!D50,'Fixed Asset Amort and UCC 12'!D50,'Fixed Asset Amort and UCC 13'!D50,'Fixed Asset Amort and UCC 14'!D50,'Fixed Asset Amort and UCC 15'!D50,'Fixed Asset Amort and UCC 16'!D50,'Fixed Asset Amort and UCC 17'!D50,'Fixed Asset Amort and UCC 18'!D50, 'Fixed Asset Amort and UCC 19'!D50,'Fixed Asset Amort and UCC 20'!D50,'Fixed Asset Amort and UCC 21'!D50,'Fixed Asset Amort and UCC 22'!D50,'Fixed Asset Amort and UCC 23'!D50,'Fixed Asset Amort and UCC 24'!D50,'Fixed Asset Amort and UCC 25'!D50,'Fixed Asset Amort and UCC 26'!D50,'Fixed Asset Amort and UCC 27'!D50,'Fixed Asset Amort and UCC 28'!D50,'Fixed Asset Amort and UCC 29'!D50,'Fixed Asset Amort and UCC 30'!D50) -> 74639.6178 | K57: =SUM('Fixed Asset Amort and UCC 1'!E50,'Fixed Asset Amort and UCC 2'!E50, 'Fixed Asset Amort and UCC 3'!E50, 'Fixed Asset Amort and UCC 4'!E50, 'Fixed Asset Amort and UCC 5'!E50,'Fixed Asset Amort and UCC 6'!E50,'Fixed Asset Amort and UCC 7'!E50,'Fixed Asset Amort and UCC 8'!E50,'Fixed Asset Amort and UCC 9'!E50,'Fixed Asset Amort and UCC 10'!E50,'Fixed Asset Amort and UCC 11'!E50,'Fixed Asset Amort and UCC 12'!E50,'Fixed Asset Amort and UCC 13'!E50,'Fixed Asset Amort and UCC 14'!E50,'Fixed Asset Amort and UCC 15'!E50,'Fixed Asset Amort and UCC 16'!E50,'Fixed Asset Amort and UCC 17'!E50,'Fixed Asset Amort and UCC 18'!E50, 'Fixed Asset Amort and UCC 19'!E50,'Fixed Asset Amort and UCC 20'!E50,'Fixed Asset Amort and UCC 21'!E50,'Fixed Asset Amort and UCC 22'!E50,'Fixed Asset Amort and UCC 23'!E50,'Fixed Asset Amort and UCC 24'!E50,'Fixed Asset Amort and UCC 25'!E50,'Fixed Asset Amort and UCC 26'!E50,'Fixed Asset Amort and UCC 27'!E50,'Fixed Asset Amort and UCC 28'!E50,'Fixed Asset Amort and UCC 29'!E50,'Fixed Asset Amort and UCC 30'!E50) -> 68668.44837

Sheet Fixed Asset Amort and UCC 1
B10: Fixed Asset Amortization and UCC 1
B12: Name or General Description of Project
B13: =IF(ISBLANK('Incremental Capital Summary'!B14), "", 'Incremental Capital Summary'!B14) -> B21 Externally-Initiated Plant Relocations and Expansions
B15: Asset Component
B16: =IF(ISBLANK('Incremental Capital Summary'!C21),"",'Incremental Capital Summary'!C21) -> 1830_Poles Towers and Fixtures
B19: Average Net Fixed Assets
D20: =YEAR_SELECTED -> 2014 | E20: =IF((D20+1)<=2014,D20+1,"") -> 
B21: Net Fixed Assets | D21: Forecasted | E21: Forecasted
B23: Opening Capital Investment | D23: 0 | E23: =D25 -> 64422.94659
B24: Capital Investment | D24: =IF(IRM_CYCLE_YEAR="4th Year of IRM Cycle", 'Incremental Capital Summary'!G21/2, 'Incremental Capital Summary'!G21) -> 64422.94659 | E24: 0
B25: Closing Capital Investment | D25: =SUM(D23:D24) -> 64422.94659 | E25: =SUM(E23:E24) -> 64422.94659
B27: Opening Accumulated Amortization | D27: 0 | E27: =D29 -> 1610.573665
B28: Amortization | C28: ='Incremental Capital Summary'!K21 -> 0.025 | D28: =D24*$C$28 -> 1610.573665 | E28: =E25*$C$28 -> 1610.573665
B29: Closing Accumulated Amortization | D29: =SUM(D27:D28) -> 1610.573665 | E29: =SUM(E27:E28) -> 3221.147329
B31: Opening Net Fixed Assets | D31: 0 | E31: =E23-E27 -> 62812.37292
B32: Closing Net Fixed Assets | D32: =D25-D29 -> 62812.37292 | E32: =E25-E29 -> 61201.79926
B33: Average Net Fixed Assets | D33: =SUM(D31:D32)/2 -> 31406.18646 | E33: =SUM(E31:E32)/2 -> 62007.08609
B38: For PILs Calculation
B40: UCC | D40: =YEAR_SELECTED -> 2014 | E40: =IF((D40+1)<=2014,D40+1,"") -> 
D41: Forecasted | E41: Forecasted
B43: Opening UCC | D43: 0 | E43: =D51 -> 59269.11086
B44: Capital Additions | D44: =D24 -> 64422.94659 | E44: =E24 -> 0
B45: UCC Before Half Year Rule | D45: =SUM(D43:D44) -> 64422.94659 | E45: =SUM(E43:E44) -> 59269.11086
B46: Half Year Rule (1/2 Additions - Disposals) | D46: 0 | E46: =E44/2 -> 0
B47: Reduced UCC | D47: =D45-D46 -> 64422.94659 | E47: =E45-E46 -> 59269.11086
B48: CCA Rate Class | C48: ='Incremental Capital Summary'!M21 -> 47
B49: CCA Rate | C49: ='Incremental Capital Summary'!O21 -> 0.08
B50: CCA | D50: =D47*$C$49 -> 5153.835727 | E50: =E47*$C$49 -> 4741.528869
B51: Closing UCC | D51: =D45-D50 -> 59269.11086 | E51: =E45-E50 -> 54527.58199

Sheet Fixed Asset Amort and UCC 2
B10: Fixed Asset Amortization and UCC 2
B12: Name or General Description of Project
B13: =IF(ISBLANK('Incremental Capital Summary'!B14), "", 'Incremental Capital Summary'!B14) -> B21 Externally-Initiated Plant Relocations and Expansions
B15: Asset Component
B16: =IF(ISBLANK('Incremental Capital Summary'!C22),"",'Incremental Capital Summary'!C22) -> 1835_Overhead Conductors and Devices
B19: Average Net Fixed Assets
D20: =YEAR_SELECTED -> 2014 | E20: =IF((D20+1)<=2014,D20+1,"") -> 
B21: Net Fixed Assets | D21: Forecasted | E21: Forecasted
B23: Opening Capital Investment | D23: 0 | E23: =D25 -> 77106.74019
B24: Capital Investment | D24: =IF(IRM_CYCLE_YEAR="4th Year of IRM Cycle", 'Incremental Capital Summary'!G22/2, 'Incremental Capital Summary'!G22) -> 77106.74019 | E24: 0
B25: Closing Capital Investment | D25: =SUM(D23:D24) -> 77106.74019 | E25: =SUM(E23:E24) -> 77106.74019
B27: Opening Accumulated Amortization | D27: 0 | E27: =D29 -> 1542.134804
B28: Amortization | C28: ='Incremental Capital Summary'!K22 -> 0.02 | D28: =D24*$C$28 -> 1542.134804 | E28: =E25*$C$28 -> 1542.134804
B29: Closing Accumulated Amortization | D29: =SUM(D27:D28) -> 1542.134804 | E29: =SUM(E27:E28) -> 3084.269607
B31: Opening Net Fixed Assets | D31: 0 | E31: =E23-E27 -> 75564.60538
B32: Closing Net Fixed Assets | D32: =D25-D29 -> 75564.60538 | E32: =E25-E29 -> 74022.47058
B33: Average Net Fixed Assets | D33: =SUM(D31:D32)/2 -> 37782.30269 | E33: =SUM(E31:E32)/2 -> 74793.53798
B38: For PILs Calculation
B40: UCC | D40: =YEAR_SELECTED -> 2014 | E40: =IF((D40+1)<=2014,D40+1,"") -> 
D41: Forecasted | E41: Forecasted
B43: Opening UCC | D43: 0 | E43: =D51 -> 70938.20097
B44: Capital Additions | D44: =D24 -> 77106.74019 | E44: =E24 -> 0
B45: UCC Before Half Year Rule | D45: =SUM(D43:D44) -> 77106.74019 | E45: =SUM(E43:E44) -> 70938.20097
B46: Half Year Rule (1/2 Additions - Disposals) | D46: 0 | E46: =E44/2 -> 0
B47: Reduced UCC | D47: =D45-D46 -> 77106.74019 | E47: =E45-E46 -> 70938.20097
B48: CCA Rate Class | C48: ='Incremental Capital Summary'!M22 -> 47
B49: CCA Rate | C49: ='Incremental Capital Summary'!O22 -> 0.08
B50: CCA | D50: =D47*$C$49 -> 6168.539215 | E50: =E47*$C$49 -> 5675.056078
B51: Closing UCC | D51: =D45-D50 -> 70938.20097 | E51: =E45-E50 -> 65263.14489

Sheet Fixed Asset Amort and UCC 3
B10: Fixed Asset Amortization and UCC 3
B12: Name or General Description of Project
B13: =IF(ISBLANK('Incremental Capital Summary'!B14), "", 'Incremental Capital Summary'!B14) -> B21 Externally-Initiated Plant Relocations and Expansions
B15: Asset Component
B16: =IF(ISBLANK('Incremental Capital Summary'!C23),"",'Incremental Capital Summary'!C23) -> 1835_Overhead Conductors and Devices - Switches
B19: Average Net Fixed Assets
D20: =YEAR_SELECTED -> 2014 | E20: =IF((D20+1)<=2014,D20+1,"") -> 
B21: Net Fixed Assets | D21: Forecasted | E21: Forecasted
B23: Opening Capital Investment | D23: 0 | E23: =D25 -> 37501.92956
B24: Capital Investment | D24: =IF(IRM_CYCLE_YEAR="4th Year of IRM Cycle", 'Incremental Capital Summary'!G23/2, 'Incremental Capital Summary'!G23) -> 37501.92956 | E24: 0
B25: Closing Capital Investment | D25: =SUM(D23:D24) -> 37501.92956 | E25: =SUM(E23:E24) -> 37501.92956
B27: Opening Accumulated Amortization | D27: 0 | E27: =D29 -> 1250.064319
B28: Amortization | C28: ='Incremental Capital Summary'!K23 -> 0.03333333333 | D28: =D24*$C$28 -> 1250.064319 | E28: =E25*$C$28 -> 1250.064319
B29: Closing Accumulated Amortization | D29: =SUM(D27:D28) -> 1250.064319 | E29: =SUM(E27:E28) -> 2500.128637
B31: Opening Net Fixed Assets | D31: 0 | E31: =E23-E27 -> 36251.86524
B32: Closing Net Fixed Assets | D32: =D25-D29 -> 36251.86524 | E32: =E25-E29 -> 35001.80092
B33: Average Net Fixed Assets | D33: =SUM(D31:D32)/2 -> 18125.93262 | E33: =SUM(E31:E32)/2 -> 35626.83308
B38: For PILs Calculation
B40: UCC | D40: =YEAR_SELECTED -> 2014 | E40: =IF((D40+1)<=2014,D40+1,"") -> 
D41: Forecasted | E41: Forecasted
B43: Opening UCC | D43: 0 | E43: =D51 -> 34501.77519
B44: Capital Additions | D44: =D24 -> 37501.92956 | E44: =E24 -> 0
B45: UCC Before Half Year Rule | D45: =SUM(D43:D44) -> 37501.92956 | E45: =SUM(E43:E44) -> 34501.77519
B46: Half Year Rule (1/2 Additions - Disposals) | D46: 0 | E46: =E44/2 -> 0
B47: Reduced UCC | D47: =D45-D46 -> 37501.92956 | E47: =E45-E46 -> 34501.77519
B48: CCA Rate Class | C48: ='Incremental Capital Summary'!M23 -> 47
B49: CCA Rate | C49: ='Incremental Capital Summary'!O23 -> 0.08
B50: CCA | D50: =D47*$C$49 -> 3000.154365 | E50: =E47*$C$49 -> 2760.142015
B51: Closing UCC | D51: =D45-D50 -> 34501.77519 | E51: =E45-E50 -> 31741.63318

Sheet Fixed Asset Amort and UCC 4
B10: Fixed Asset Amortization and UCC 4
B12: Name or General Description of Project
B13: =IF(ISBLANK('Incremental Capital Summary'!B14), "", 'Incremental Capital Summary'!B14) -> B21 Externally-Initiated Plant Relocations and Expansions
B15: Asset Component
B16: =IF(ISBLANK('Incremental Capital Summary'!C24),"",'Incremental Capital Summary'!C24) -> 1840_Underground Conduit - Cable Chamber
B19: Average Net Fixed Assets
D20: =YEAR_SELECTED -> 2014 | E20: =IF((D20+1)<=2014,D20+1,"") -> 
B21: Net Fixed Assets | D21: Forecasted | E21: Forecasted
B23: Opening Capital Investment | D23: 0 | E23: =D25 -> 83804.98149
B24: Capital Investment | D24: =IF(IRM_CYCLE_YEAR="4th Year of IRM Cycle", 'Incremental Capital Summary'!G24/2, 'Incremental Capital Summary'!G24) -> 83804.98149 | E24: 0
B25: Closing Capital Investment | D25: =SUM(D23:D24) -> 83804.98149 | E25: =SUM(E23:E24) -> 83804.98149
B27: Opening Accumulated Amortization | D27: 0 | E27: =D29 -> 1676.09963
B28: Amortization | C28: ='Incremental Capital Summary'!K24 -> 0.02 | D28: =D24*$C$28 -> 1676.09963 | E28: =E25*$C$28 -> 1676.09963
B29: Closing Accumulated Amortization | D29: =SUM(D27:D28) -> 1676.09963 | E29: =SUM(E27:E28) -> 3352.19926
B31: Opening Net Fixed Assets | D31: 0 | E31: =E23-E27 -> 82128.88186
B32: Closing Net Fixed Assets | D32: =D25-D29 -> 82128.88186 | E32: =E25-E29 -> 80452.78223
B33: Average Net Fixed Assets | D33: =SUM(D31:D32)/2 -> 41064.44093 | E33: =SUM(E31:E32)/2 -> 81290.83205
B38: For PILs Calculation
B40: UCC | D40: =YEAR_SELECTED -> 2014 | E40: =IF((D40+1)<=2014,D40+1,"") -> 
D41: Forecasted | E41: Forecasted
B43: Opening UCC | D43: 0 | E43: =D51 -> 77100.58297
B44: Capital Additions | D44: =D24 -> 83804.98149 | E44: =E24 -> 0
B45: UCC Before Half Year Rule | D45: =SUM(D43:D44) -> 83804.98149 | E45: =SUM(E43:E44) -> 77100.58297
B46: Half Year Rule (1/2 Additions - Disposals) | D46: 0 | E46: =E44/2 -> 0
B47: Reduced UCC | D47: =D45-D46 -> 83804.98149 | E47: =E45-E46 -> 77100.58297
B48: CCA Rate Class | C48: ='Incremental Capital Summary'!M24 -> 47
B49: CCA Rate | C49: ='Incremental Capital Summary'!O24 -> 0.08
B50: CCA | D50: =D47*$C$49 -> 6704.39852 | E50: =E47*$C$49 -> 6168.046638
B51: Closing UCC | D51: =D45-D50 -> 77100.58297 | E51: =E45-E50 -> 70932.53634

Sheet Fixed Asset Amort and UCC 5
B10: Fixed Asset Amortization and UCC 5
B12: Name or General Description of Project
B13: =IF(ISBLANK('Incremental Capital Summary'!B14), "", 'Incremental Capital Summary'!B14) -> B21 Externally-Initiated Plant Relocations and Expansions
B15: Asset Component
B16: =IF(ISBLANK('Incremental Capital Summary'!C25),"",'Incremental Capital Summary'!C25) -> 1840_Underground Conduit - Duct Bank
B19: Average Net Fixed Assets
D20: =YEAR_SELECTED -> 2014 | E20: =IF((D20+1)<=2014,D20+1,"") -> 
B21: Net Fixed Assets | D21: Forecasted | E21: Forecasted
B23: Opening Capital Investment | D23: 0 | E23: =D25 -> 777160.9904
B24: Capital Investment | D24: =IF(IRM_CYCLE_YEAR="4th Year of IRM Cycle", 'Incremental Capital Summary'!G25/2, 'Incremental Capital Summary'!G25) -> 777160.9904 | E24: 0
B25: Closing Capital Investment | D25: =SUM(D23:D24) -> 777160.9904 | E25: =SUM(E23:E24) -> 777160.9904
B27: Opening Accumulated Amortization | D27: 0 | E27: =D29 -> 25905.36635
B28: Amortization | C28: ='Incremental Capital Summary'!K25 -> 0.03333333333 | D28: =D24*$C$28 -> 25905.36635 | E28: =E25*$C$28 -> 25905.36635
B29: Closing Accumulated Amortization | D29: =SUM(D27:D28) -> 25905.36635 | E29: =SUM(E27:E28) -> 51810.7327
B31: Opening Net Fixed Assets | D31: 0 | E31: =E23-E27 -> 751255.6241
B32: Closing Net Fixed Assets | D32: =D25-D29 -> 751255.6241 | E32: =E25-E29 -> 725350.2577
B33: Average Net Fixed Assets | D33: =SUM(D31:D32)/2 -> 375627.812 | E33: =SUM(E31:E32)/2 -> 738302.9409
B38: For PILs Calculation
B40: UCC | D40: =YEAR_SELECTED -> 2014 | E40: =IF((D40+1)<=2014,D40+1,"") -> 
D41: Forecasted | E41: Forecasted
B43: Opening UCC | D43: 0 | E43: =D51 -> 714988.1112
B44: Capital Additions | D44: =D24 -> 777160.9904 | E44: =E24 -> 0
B45: UCC Before Half Year Rule | D45: =SUM(D43:D44) -> 777160.9904 | E45: =SUM(E43:E44) -> 714988.1112
B46: Half Year Rule (1/2 Additions - Disposals) | D46: 0 | E46: =E44/2 -> 0
B47: Reduced UCC | D47: =D45-D46 -> 777160.9904 | E47: =E45-E46 -> 714988.1112
B48: CCA Rate Class | C48: ='Incremental Capital Summary'!M25 -> 47
B49: CCA Rate | C49: ='Incremental Capital Summary'!O25 -> 0.08
B50: CCA | D50: =D47*$C$49 -> 62172.87923 | E50: =E47*$C$49 -> 57199.0489
B51: Closing UCC | D51: =D45-D50 -> 714988.1112 | E51: =E45-E50 -> 657789.0623

Sheet Fixed Asset Amort and UCC 6
B10: Fixed Asset Amortization and UCC 6
B12: Name or General Description of Project
B13: =IF(ISBLANK('Incremental Capital Summary'!B14), "", 'Incremental Capital Summary'!B14) -> B21 Externally-Initiated Plant Relocations and Expansions
B15: Asset Component
B16: =IF(ISBLANK('Incremental Capital Summary'!C26),"",'Incremental Capital Summary'!C26) -> 1840_Underground Conduit - Vault
B19: Average Net Fixed Assets
D20: =YEAR_SELECTED -> 2014 | E20: =IF((D20+1)<=2014,D20+1,"") -> 
B21: Net Fixed Assets | D21: Forecasted | E21: Forecasted
B23: Opening Capital Investment | D23: 0 | E23: =D25 -> 8320.760971
B24: Capital Investment | D24: =IF(IRM_CYCLE_YEAR="4th Year of IRM Cycle", 'Incremental Capital Summary'!G26/2, 'Incremental Capital Summary'!G26) -> 8320.760971 | E24: 0
B25: Closing Capital Investment | D25: =SUM(D23:D24) -> 8320.760971 | E25: =SUM(E23:E24) -> 8320.760971
B27: Opening Accumulated Amortization | D27: 0 | E27: =D29 -> 208.0190243
B28: Amortization | C28: ='Incremental Capital Summary'!K26 -> 0.025 | D28: =D24*$C$28 -> 208.0190243 | E28: =E25*$C$28 -> 208.0190243
B29: Closing Accumulated Amortization | D29: =SUM(D27:D28) -> 208.0190243 | E29: =SUM(E27:E28) -> 416.0380485
B31: Opening Net Fixed Assets | D31: 0 | E31: =E23-E27 -> 8112.741946
B32: Closing Net Fixed Assets | D32: =D25-D29 -> 8112.741946 | E32: =E25-E29 -> 7904.722922
B33: Average Net Fixed Assets | D33: =SUM(D31:D32)/2 -> 4056.370973 | E33: =SUM(E31:E32)/2 -> 8008.732434
B38: For PILs Calculation
B40: UCC | D40: =YEAR_SELECTED -> 2014 | E40: =IF((D40+1)<=2014,D40+1,"") -> 
D41: Forecasted | E41: Forecasted
B43: Opening UCC | D43: 0 | E43: =D51 -> 7655.100093
B44: Capital Additions | D44: =D24 -> 8320.760971 | E44: =E24 -> 0
B45: UCC Before Half Year Rule | D45: =SUM(D43:D44) -> 8320.760971 | E45: =SUM(E43:E44) -> 7655.100093
B46: Half Year Rule (1/2 Additions - Disposals) | D46: 0 | E46: =E44/2 -> 0
B47: Reduced UCC | D47: =D45-D46 -> 8320.760971 | E47: =E45-E46 -> 7655.100093
B48: CCA Rate Class | C48: ='Incremental Capital Summary'!M26 -> 47
B49: CCA Rate | C49: ='Incremental Capital Summary'!O26 -> 0.08
B50: CCA | D50: =D47*$C$49 -> 665.6608776 | E50: =E47*$C$49 -> 612.4080074
B51: Closing UCC | D51: =D45-D50 -> 7655.100093 | E51: =E45-E50 -> 7042.692086

Sheet Fixed Asset Amort and UCC 7
B10: Fixed Asset Amortization and UCC 7
B12: Name or General Description of Project
B13: =IF(ISBLANK('Incremental Capital Summary'!B14), "", 'Incremental Capital Summary'!B14) -> B21 Externally-Initiated Plant Relocations and Expansions
B15: Asset Component
B16: =IF(ISBLANK('Incremental Capital Summary'!C27),"",'Incremental Capital Summary'!C27) -> 1840_Underground Conduit - Vault Roof
B19: Average Net Fixed Assets
D20: =YEAR_SELECTED -> 2014 | E20: =IF((D20+1)<=2014,D20+1,"") -> 
B21: Net Fixed Assets | D21: Forecasted | E21: Forecasted
B23: Opening Capital Investment | D23: 0 | E23: =D25 -> 737.1989617
B24: Capital Investment | D24: =IF(IRM_CYCLE_YEAR="4th Year of IRM Cycle", 'Incremental Capital Summary'!G27/2, 'Incremental Capital Summary'!G27) -> 737.1989617 | E24: 0
B25: Closing Capital Investment | D25: =SUM(D23:D24) -> 737.1989617 | E25: =SUM(E23:E24) -> 737.1989617
B27: Opening Accumulated Amortization | D27: 0 | E27: =D29 -> 36.85994809
B28: Amortization | C28: ='Incremental Capital Summary'!K27 -> 0.05 | D28: =D24*$C$28 -> 36.85994809 | E28: =E25*$C$28 -> 36.85994809
B29: Closing Accumulated Amortization | D29: =SUM(D27:D28) -> 36.85994809 | E29: =SUM(E27:E28) -> 73.71989617
B31: Opening Net Fixed Assets | D31: 0 | E31: =E23-E27 -> 700.3390136
B32: Closing Net Fixed Assets | D32: =D25-D29 -> 700.3390136 | E32: =E25-E29 -> 663.4790655
B33: Average Net Fixed Assets | D33: =SUM(D31:D32)/2 -> 350.1695068 | E33: =SUM(E31:E32)/2 -> 681.9090396
B38: For PILs Calculation
B40: UCC | D40: =YEAR_SELECTED -> 2014 | E40: =IF((D40+1)<=2014,D40+1,"") -> 
D41: Forecasted | E41: Forecasted
B43: Opening UCC | D43: 0 | E43: =D51 -> 678.2230448
B44: Capital Additions | D44: =D24 -> 737.1989617 | E44: =E24 -> 0
B45: UCC Before Half Year Rule | D45: =SUM(D43:D44) -> 737.1989617 | E45: =SUM(E43:E44) -> 678.2230448
B46: Half Year Rule (1/2 Additions - Disposals) | D46: 0 | E46: =E44/2 -> 0
B47: Reduced UCC | D47: =D45-D46 -> 737.1989617 | E47: =E45-E46 -> 678.2230448
B48: CCA Rate Class | C48: ='Incremental Capital Summary'!M27 -> 47
B49: CCA Rate | C49: ='Incremental Capital Summary'!O27 -> 0.08
B50: CCA | D50: =D47*$C$49 -> 58.97591694 | E50: =E47*$C$49 -> 54.25784358
B51: Closing UCC | D51: =D45-D50 -> 678.2230448 | E51: =E45-E50 -> 623.9652012

Sheet Fixed Asset Amort and UCC 8
B10: Fixed Asset Amortization and UCC 8
B12: Name or General Description of Project
B13: =IF(ISBLANK('Incremental Capital Summary'!B14), "", 'Incremental Capital Summary'!B14) -> B21 Externally-Initiated Plant Relocations and Expansions
B15: Asset Component
B16: =IF(ISBLANK('Incremental Capital Summary'!C28),"",'Incremental Capital Summary'!C28) -> 1845_Underground Conductors and Devices
B19: Average Net Fixed Assets
D20: =YEAR_SELECTED -> 2014 | E20: =IF((D20+1)<=2014,D20+1,"") -> 
B21: Net Fixed Assets | D21: Forecasted | E21: Forecasted
B23: Opening Capital Investment | D23: 0 | E23: =D25 -> 7995.920314
B24: Capital Investment | D24: =IF(IRM_CYCLE_YEAR="4th Year of IRM Cycle", 'Incremental Capital Summary'!G28/2, 'Incremental Capital Summary'!G28) -> 7995.920314 | E24: 0
B25: Closing Capital Investment | D25: =SUM(D23:D24) -> 7995.920314 | E25: =SUM(E23:E24) -> 7995.920314
B27: Opening Accumulated Amortization | D27: 0 | E27: =D29 -> 199.8980078
B28: Amortization | C28: ='Incremental Capital Summary'!K28 -> 0.025 | D28: =D24*$C$28 -> 199.8980078 | E28: =E25*$C$28 -> 199.8980078
B29: Closing Accumulated Amortization | D29: =SUM(D27:D28) -> 199.8980078 | E29: =SUM(E27:E28) -> 399.7960157
B31: Opening Net Fixed Assets | D31: 0 | E31: =E23-E27 -> 7796.022306
B32: Closing Net Fixed Assets | D32: =D25-D29 -> 7796.022306 | E32: =E25-E29 -> 7596.124298
B33: Average Net Fixed Assets | D33: =SUM(D31:D32)/2 -> 3898.011153 | E33: =SUM(E31:E32)/2 -> 7696.073302
B38: For PILs Calculation
B40: UCC | D40: =YEAR_SELECTED -> 2014 | E40: =IF((D40+1)<=2014,D40+1,"") -> 
D41: Forecasted | E41: Forecasted
B43: Opening UCC | D43: 0 | E43: =D51 -> 7356.246689
B44: Capital Additions | D44: =D24 -> 7995.920314 | E44: =E24 -> 0
B45: UCC Before Half Year Rule | D45: =SUM(D43:D44) -> 7995.920314 | E45: =SUM(E43:E44) -> 7356.246689
B46: Half Year Rule (1/2 Additions - Disposals) | D46: 0 | E46: =E44/2 -> 0
B47: Reduced UCC | D47: =D45-D46 -> 7995.920314 | E47: =E45-E46 -> 7356.246689
B48: CCA Rate Class | C48: ='Incremental Capital Summary'!M28 -> 47
B49: CCA Rate | C49: ='Incremental Capital Summary'!O28 -> 0.08
B50: CCA | D50: =D47*$C$49 -> 639.6736251 | E50: =E47*$C$49 -> 588.4997351
B51: Closing UCC | D51: =D45-D50 -> 7356.246689 | E51: =E45-E50 -> 6767.746954

Sheet Fixed Asset Amort and UCC 9
B10: Fixed Asset Amortization and UCC 9
B12: Name or General Description of Project
B13: =IF(ISBLANK('Incremental Capital Summary'!B14), "", 'Incremental Capital Summary'!B14) -> B21 Externally-Initiated Plant Relocations and Expansions
B15: Asset Component
B16: =IF(ISBLANK('Incremental Capital Summary'!C29),"",'Incremental Capital Summary'!C29) -> 1845_Underground Conductors and Devices - Switch
B19: Average Net Fixed Assets
D20: =YEAR_SELECTED -> 2014 | E20: =IF((D20+1)<=2014,D20+1,"") -> 
B21: Net Fixed Assets | D21: Forecasted | E21: Forecasted
B23: Opening Capital Investment | D23: 0 | E23: =D25 -> 58.01089623
B24: Capital Investment | D24: =IF(IRM_CYCLE_YEAR="4th Year of IRM Cycle", 'Incremental Capital Summary'!G29/2, 'Incremental Capital Summary'!G29) -> 58.01089623 | E24: 0
B25: Closing Capital Investment | D25: =SUM(D23:D24) -> 58.01089623 | E25: =SUM(E23:E24) -> 58.01089623
B27: Opening Accumulated Amortization | D27: 0 | E27: =D29 -> 2.900544812
B28: Amortization | C28: ='Incremental Capital Summary'!K29 -> 0.05 | D28: =D24*$C$28 -> 2.900544812 | E28: =E25*$C$28 -> 2.900544812
B29: Closing Accumulated Amortization | D29: =SUM(D27:D28) -> 2.900544812 | E29: =SUM(E27:E28) -> 5.801089623
B31: Opening Net Fixed Assets | D31: 0 | E31: =E23-E27 -> 55.11035142
B32: Closing Net Fixed Assets | D32: =D25-D29 -> 55.11035142 | E32: =E25-E29 -> 52.20980661
B33: Average Net Fixed Assets | D33: =SUM(D31:D32)/2 -> 27.55517571 | E33: =SUM(E31:E32)/2 -> 53.66007902
B38: For PILs Calculation
B40: UCC | D40: =YEAR_SELECTED -> 2014 | E40: =IF((D40+1)<=2014,D40+1,"") -> 
D41: Forecasted | E41: Forecasted
B43: Opening UCC | D43: 0 | E43: =D51 -> 53.37002453
B44: Capital Additions | D44: =D24 -> 58.01089623 | E44: =E24 -> 0
B45: UCC Before Half Year Rule | D45: =SUM(D43:D44) -> 58.01089623 | E45: =SUM(E43:E44) -> 53.37002453
B46: Half Year Rule (1/2 Additions - Disposals) | D46: 0 | E46: =E44/2 -> 0
B47: Reduced UCC | D47: =D45-D46 -> 58.01089623 | E47: =E45-E46 -> 53.37002453
B48: CCA Rate Class | C48: ='Incremental Capital Summary'!M29 -> 47
B49: CCA Rate | C49: ='Incremental Capital Summary'!O29 -> 0.08
B50: CCA | D50: =D47*$C$49 -> 4.640871699 | E50: =E47*$C$49 -> 4.269601963
B51: Closing UCC | D51: =D45-D50 -> 53.37002453 | E51: =E45-E50 -> 49.10042257

Sheet Fixed Asset Amort and UCC 10
B10: Fixed Asset Amortization and UCC 10
B12: Name or General Description of Project
B13: =IF(ISBLANK('Incremental Capital Summary'!B14), "", 'Incremental Capital Summary'!B14) -> B21 Externally-Initiated Plant Relocations and Expansions
B15: Asset Component
B16: =IF(ISBLANK('Incremental Capital Summary'!C30),"",'Incremental Capital Summary'!C30) -> 1850_Line Transformers - OH
B19: Average Net Fixed Assets
D20: =YEAR_SELECTED -> 2014 | E20: =IF((D20+1)<=2014,D20+1,"") -> 
B21: Net Fixed Assets | D21: Forecasted | E21: Forecasted
B23: Opening Capital Investment | D23: 0 | E23: =D25 -> 12363.92779
B24: Capital Investment | D24: =IF(IRM_CYCLE_YEAR="4th Year of IRM Cycle", 'Incremental Capital Summary'!G30/2, 'Incremental Capital Summary'!G30) -> 12363.92779 | E24: 0
B25: Closing Capital Investment | D25: =SUM(D23:D24) -> 12363.92779 | E25: =SUM(E23:E24) -> 12363.92779
B27: Opening Accumulated Amortization | D27: 0 | E27: =D29 -> 412.1309265
B28: Amortization | C28: ='Incremental Capital Summary'!K30 -> 0.03333333333 | D28: =D24*$C$28 -> 412.1309265 | E28: =E25*$C$28 -> 412.1309265
B29: Closing Accumulated Amortization | D29: =SUM(D27:D28) -> 412.1309265 | E29: =SUM(E27:E28) -> 824.261853
B31: Opening Net Fixed Assets | D31: 0 | E31: =E23-E27 -> 11951.79687
B32: Closing Net Fixed Assets | D32: =D25-D29 -> 11951.79687 | E32: =E25-E29 -> 11539.66594
B33: Average Net Fixed Assets | D33: =SUM(D31:D32)/2 -> 5975.898434 | E33: =SUM(E31:E32)/2 -> 11745.7314
B38: For PILs Calculation
B40: UCC | D40: =YEAR_SELECTED -> 2014 | E40: =IF((D40+1)<=2014,D40+1,"") -> 
D41: Forecasted | E41: Forecasted
B43: Opening UCC | D43: 0 | E43: =D51 -> 11374.81357
B44: Capital Additions | D44: =D24 -> 12363.92779 | E44: =E24 -> 0
B45: UCC Before Half Year Rule | D45: =SUM(D43:D44) -> 12363.92779 | E45: =SUM(E43:E44) -> 11374.81357
B46: Half Year Rule (1/2 Additions - Disposals) | D46: 0 | E46: =E44/2 -> 0
B47: Reduced UCC | D47: =D45-D46 -> 12363.92779 | E47: =E45-E46 -> 11374.81357
B48: CCA Rate Class | C48: ='Incremental Capital Summary'!M30 -> 47
B49: CCA Rate | C49: ='Incremental Capital Summary'!O30 -> 0.08
B50: CCA | D50: =D47*$C$49 -> 989.1142236 | E50: =E47*$C$49 -> 909.9850857
B51: Closing UCC | D51: =D45-D50 -> 11374.81357 | E51: =E45-E50 -> 10464.82849

Sheet Fixed Asset Amort and UCC 11
B10: Fixed Asset Amortization and UCC 11
B12: Name or General Description of Project
B13: =IF(ISBLANK('Incremental Capital Summary'!B14), "", 'Incremental Capital Summary'!B14) -> B21 Externally-Initiated Plant Relocations and Expansions
B15: Asset Component
B16: =IF(ISBLANK('Incremental Capital Summary'!C31),"",'Incremental Capital Summary'!C31) -> 1850_Line Transformers - UG
B19: Average Net Fixed Assets
D20: =YEAR_SELECTED -> 2014 | E20: =IF((D20+1)<=2014,D20+1,"") -> 
B21: Net Fixed Assets | D21: Forecasted | E21: Forecasted
B23: Opening Capital Investment | D23: 0 | E23: =D25 -> 2543.010236
B24: Capital Investment | D24: =IF(IRM_CYCLE_YEAR="4th Year of IRM Cycle", 'Incremental Capital Summary'!G31/2, 'Incremental Capital Summary'!G31) -> 2543.010236 | E24: 0
B25: Closing Capital Investment | D25: =SUM(D23:D24) -> 2543.010236 | E25: =SUM(E23:E24) -> 2543.010236
B27: Opening Accumulated Amortization | D27: 0 | E27: =D29 -> 84.76700785
B28: Amortization | C28: ='Incremental Capital Summary'!K31 -> 0.03333333333 | D28: =D24*$C$28 -> 84.76700785 | E28: =E25*$C$28 -> 84.76700785
B29: Closing Accumulated Amortization | D29: =SUM(D27:D28) -> 84.76700785 | E29: =SUM(E27:E28) -> 169.5340157
B31: Opening Net Fixed Assets | D31: 0 | E31: =E23-E27 -> 2458.243228
B32: Closing Net Fixed Assets | D32: =D25-D29 -> 2458.243228 | E32: =E25-E29 -> 2373.47622
B33: Average Net Fixed Assets | D33: =SUM(D31:D32)/2 -> 1229.121614 | E33: =SUM(E31:E32)/2 -> 2415.859724
B38: For PILs Calculation
B40: UCC | D40: =YEAR_SELECTED -> 2014 | E40: =IF((D40+1)<=2014,D40+1,"") -> 
D41: Forecasted | E41: Forecasted
B43: Opening UCC | D43: 0 | E43: =D51 -> 2339.569417
B44: Capital Additions | D44: =D24 -> 2543.010236 | E44: =E24 -> 0
B45: UCC Before Half Year Rule | D45: =SUM(D43:D44) -> 2543.010236 | E45: =SUM(E43:E44) -> 2339.569417
B46: Half Year Rule (1/2 Additions - Disposals) | D46: 0 | E46: =E44/2 -> 0
B47: Reduced UCC | D47: =D45-D46 -> 2543.010236 | E47: =E45-E46 -> 2339.569417
B48: CCA Rate Class | C48: ='Incremental Capital Summary'!M31 -> 47
B49: CCA Rate | C49: ='Incremental Capital Summary'!O31 -> 0.08
B50: CCA | D50: =D47*$C$49 -> 203.4408188 | E50: =E47*$C$49 -> 187.1655533
B51: Closing UCC | D51: =D45-D50 -> 2339.569417 | E51: =E45-E50 -> 2152.403863

Sheet Fixed Asset Amort and UCC 12
B10: Fixed Asset Amortization and UCC 12
B12: Name or General Description of Project
B13: =IF(ISBLANK('Incremental Capital Summary'!B14), "", 'Incremental Capital Summary'!B14) -> B21 Externally-Initiated Plant Relocations and Expansions
B15: Asset Component
B16: =IF(ISBLANK('Incremental Capital Summary'!C32),"",'Incremental Capital Summary'!C32) -> 1850_Line Transformers - UG Network w/protector
B19: Average Net Fixed Assets
D20: =YEAR_SELECTED -> 2014 | E20: =IF((D20+1)<=2014,D20+1,"") -> 
B21: Net Fixed Assets | D21: Forecasted | E21: Forecasted
B23: Opening Capital Investment | D23: 0 | E23: =D25 -> 137.0890865
B24: Capital Investment | D24: =IF(IRM_CYCLE_YEAR="4th Year of IRM Cycle", 'Incremental Capital Summary'!G32/2, 'Incremental Capital Summary'!G32) -> 137.0890865 | E24: 0
B25: Closing Capital Investment | D25: =SUM(D23:D24) -> 137.0890865 | E25: =SUM(E23:E24) -> 137.0890865
B27: Opening Accumulated Amortization | D27: 0 | E27: =D29 -> 6.854454324
B28: Amortization | C28: ='Incremental Capital Summary'!K32 -> 0.05 | D28: =D24*$C$28 -> 6.854454324 | E28: =E25*$C$28 -> 6.854454324
B29: Closing Accumulated Amortization | D29: =SUM(D27:D28) -> 6.854454324 | E29: =SUM(E27:E28) -> 13.70890865
B31: Opening Net Fixed Assets | D31: 0 | E31: =E23-E27 -> 130.2346321
B32: Closing Net Fixed Assets | D32: =D25-D29 -> 130.2346321 | E32: =E25-E29 -> 123.3801778
B33: Average Net Fixed Assets | D33: =SUM(D31:D32)/2 -> 65.11731607 | E33: =SUM(E31:E32)/2 -> 126.807405
B38: For PILs Calculation
B40: UCC | D40: =YEAR_SELECTED -> 2014 | E40: =IF((D40+1)<=2014,D40+1,"") -> 
D41: Forecasted | E41: Forecasted
B43: Opening UCC | D43: 0 | E43: =D51 -> 126.1219596
B44: Capital Additions | D44: =D24 -> 137.0890865 | E44: =E24 -> 0
B45: UCC Before Half Year Rule | D45: =SUM(D43:D44) -> 137.0890865 | E45: =SUM(E43:E44) -> 126.1219596
B46: Half Year Rule (1/2 Additions - Disposals) | D46: 0 | E46: =E44/2 -> 0
B47: Reduced UCC | D47: =D45-D46 -> 137.0890865 | E47: =E45-E46 -> 126.1219596
B48: CCA Rate Class | C48: ='Incremental Capital Summary'!M32 -> 47
B49: CCA Rate | C49: ='Incremental Capital Summary'!O32 -> 0.08
B50: CCA | D50: =D47*$C$49 -> 10.96712692 | E50: =E47*$C$49 -> 10.08975676
B51: Closing UCC | D51: =D45-D50 -> 126.1219596 | E51: =E45-E50 -> 116.0322028

Sheet Fixed Asset Amort and UCC 13
B10: Fixed Asset Amortization and UCC 13
B12: Name or General Description of Project
B13: =IF(ISBLANK('Incremental Capital Summary'!B14), "", 'Incremental Capital Summary'!B14) -> B21 Externally-Initiated Plant Relocations and Expansions
B15: Asset Component
B16: =IF(ISBLANK('Incremental Capital Summary'!C33),"",'Incremental Capital Summary'!C33) -> 1855_Services - UG
B19: Average Net Fixed Assets
D20: =YEAR_SELECTED -> 2014 | E20: =IF((D20+1)<=2014,D20+1,"") -> 
B21: Net Fixed Assets | D21: Forecasted | E21: Forecasted
B23: Opening Capital Investment | D23: 0 | E23: =D25 -> 365.4726863
B24: Capital Investment | D24: =IF(IRM_CYCLE_YEAR="4th Year of IRM Cycle", 'Incremental Capital Summary'!G33/2, 'Incremental Capital Summary'!G33) -> 365.4726863 | E24: 0
B25: Closing Capital Investment | D25: =SUM(D23:D24) -> 365.4726863 | E25: =SUM(E23:E24) -> 365.4726863
B27: Opening Accumulated Amortization | D27: 0 | E27: =D29 -> 9.136817157
B28: Amortization | C28: ='Incremental Capital Summary'!K33 -> 0.025 | D28: =D24*$C$28 -> 9.136817157 | E28: =E25*$C$28 -> 9.136817157
B29: Closing Accumulated Amortization | D29: =SUM(D27:D28) -> 9.136817157 | E29: =SUM(E27:E28) -> 18.27363431
B31: Opening Net Fixed Assets | D31: 0 | E31: =E23-E27 -> 356.3358691
B32: Closing Net Fixed Assets | D32: =D25-D29 -> 356.3358691 | E32: =E25-E29 -> 347.199052
B33: Average Net Fixed Assets | D33: =SUM(D31:D32)/2 -> 178.1679346 | E33: =SUM(E31:E32)/2 -> 351.7674606
B38: For PILs Calculation
B40: UCC | D40: =YEAR_SELECTED -> 2014 | E40: =IF((D40+1)<=2014,D40+1,"") -> 
D41: Forecasted | E41: Forecasted
B43: Opening UCC | D43: 0 | E43: =D51 -> 336.2348714
B44: Capital Additions | D44: =D24 -> 365.4726863 | E44: =E24 -> 0
B45: UCC Before Half Year Rule | D45: =SUM(D43:D44) -> 365.4726863 | E45: =SUM(E43:E44) -> 336.2348714
B46: Half Year Rule (1/2 Additions - Disposals) | D46: 0 | E46: =E44/2 -> 0
B47: Reduced UCC | D47: =D45-D46 -> 365.4726863 | E47: =E45-E46 -> 336.2348714
B48: CCA Rate Class | C48: ='Incremental Capital Summary'!M33 -> 47
B49: CCA Rate | C49: ='Incremental Capital Summary'!O33 -> 0.08
B50: CCA | D50: =D47*$C$49 -> 29.2378149 | E50: =E47*$C$49 -> 26.89878971
B51: Closing UCC | D51: =D45-D50 -> 336.2348714 | E51: =E45-E50 -> 309.3360817

Sheet Fixed Asset Amort and UCC 14
B10: Fixed Asset Amortization and UCC 14
B12: Name or General Description of Project
B13: =IF(ISBLANK('Incremental Capital Summary'!B14), "", 'Incremental Capital Summary'!B14) -> B21 Externally-Initiated Plant Relocations and Expansions
B15: Asset Component
B16: =IF(ISBLANK('Incremental Capital Summary'!C34),"",'Incremental Capital Summary'!C34) -> 1855_Services - OH
B19: Average Net Fixed Assets
D20: =YEAR_SELECTED -> 2014 | E20: =IF((D20+1)<=2014,D20+1,"") -> 
B21: Net Fixed Assets | D21: Forecasted | E21: Forecasted
B23: Opening Capital Investment | D23: 0 | E23: =D25 -> 1815.08145
B24: Capital Investment | D24: =IF(IRM_CYCLE_YEAR="4th Year of IRM Cycle", 'Incremental Capital Summary'!G34/2, 'Incremental Capital Summary'!G34) -> 1815.08145 | E24: 0
B25: Closing Capital Investment | D25: =SUM(D23:D24) -> 1815.08145 | E25: =SUM(E23:E24) -> 1815.08145
B27: Opening Accumulated Amortization | D27: 0 | E27: =D29 -> 36.30162901
B28: Amortization | C28: ='Incremental Capital Summary'!K34 -> 0.02 | D28: =D24*$C$28 -> 36.30162901 | E28: =E25*$C$28 -> 36.30162901
B29: Closing Accumulated Amortization | D29: =SUM(D27:D28) -> 36.30162901 | E29: =SUM(E27:E28) -> 72.60325801
B31: Opening Net Fixed Assets | D31: 0 | E31: =E23-E27 -> 1778.779821
B32: Closing Net Fixed Assets | D32: =D25-D29 -> 1778.779821 | E32: =E25-E29 -> 1742.478192
B33: Average Net Fixed Assets | D33: =SUM(D31:D32)/2 -> 889.3899107 | E33: =SUM(E31:E32)/2 -> 1760.629007
B38: For PILs Calculation
B40: UCC | D40: =YEAR_SELECTED -> 2014 | E40: =IF((D40+1)<=2014,D40+1,"") -> 
D41: Forecasted | E41: Forecasted
B43: Opening UCC | D43: 0 | E43: =D51 -> 1669.874934
B44: Capital Additions | D44: =D24 -> 1815.08145 | E44: =E24 -> 0
B45: UCC Before Half Year Rule | D45: =SUM(D43:D44) -> 1815.08145 | E45: =SUM(E43:E44) -> 1669.874934
B46: Half Year Rule (1/2 Additions - Disposals) | D46: 0 | E46: =E44/2 -> 0
B47: Reduced UCC | D47: =D45-D46 -> 1815.08145 | E47: =E45-E46 -> 1669.874934
B48: CCA Rate Class | C48: ='Incremental Capital Summary'!M34 -> 47
B49: CCA Rate | C49: ='Incremental Capital Summary'!O34 -> 0.08
B50: CCA | D50: =D47*$C$49 -> 145.206516 | E50: =E47*$C$49 -> 133.5899947
B51: Closing UCC | D51: =D45-D50 -> 1669.874934 | E51: =E45-E50 -> 1536.28494

Sheet Fixed Asset Amort and UCC 15
B10: Fixed Asset Amortization and UCC 15
B12: Name or General Description of Project
B13: =IF(ISBLANK('Incremental Capital Summary'!B14), "", 'Incremental Capital Summary'!B14) -> B21 Externally-Initiated Plant Relocations and Expansions
B15: Asset Component
B16: =IF(ISBLANK('Incremental Capital Summary'!C35),"",'Incremental Capital Summary'!C35) -> 1845_Underground Conductors and Devices - Prim Cable burried (xLPE)
B19: Average Net Fixed Assets
D20: =YEAR_SELECTED -> 2014 | E20: =IF((D20+1)<=2014,D20+1,"") -> 
B21: Net Fixed Assets | D21: Forecasted | E21: Forecasted
B23: Opening Capital Investment | D23: 0 | E23: =D25 -> 11420.88649
B24: Capital Investment | D24: =IF(IRM_CYCLE_YEAR="4th Year of IRM Cycle", 'Incremental Capital Summary'!G35/2, 'Incremental Capital Summary'!G35) -> 11420.88649 | E24: 0
B25: Closing Capital Investment | D25: =SUM(D23:D24) -> 11420.88649 | E25: =SUM(E23:E24) -> 11420.88649
B27: Opening Accumulated Amortization | D27: 0 | E27: =D29 -> 571.0443243
B28: Amortization | C28: ='Incremental Capital Summary'!K35 -> 0.05 | D28: =D24*$C$28 -> 571.0443243 | E28: =E25*$C$28 -> 571.0443243
B29: Closing Accumulated Amortization | D29: =SUM(D27:D28) -> 571.0443243 | E29: =SUM(E27:E28) -> 1142.088649
B31: Opening Net Fixed Assets | D31: 0 | E31: =E23-E27 -> 10849.84216
B32: Closing Net Fixed Assets | D32: =D25-D29 -> 10849.84216 | E32: =E25-E29 -> 10278.79784
B33: Average Net Fixed Assets | D33: =SUM(D31:D32)/2 -> 5424.921081 | E33: =SUM(E31:E32)/2 -> 10564.32
B38: For PILs Calculation
B40: UCC | D40: =YEAR_SELECTED -> 2014 | E40: =IF((D40+1)<=2014,D40+1,"") -> 
D41: Forecasted | E41: Forecasted
B43: Opening UCC | D43: 0 | E43: =D51 -> 10507.21557
B44: Capital Additions | D44: =D24 -> 11420.88649 | E44: =E24 -> 0
B45: UCC Before Half Year Rule | D45: =SUM(D43:D44) -> 11420.88649 | E45: =SUM(E43:E44) -> 10507.21557
B46: Half Year Rule (1/2 Additions - Disposals) | D46: 0 | E46: =E44/2 -> 0
B47: Reduced UCC | D47: =D45-D46 -> 11420.88649 | E47: =E45-E46 -> 10507.21557
B48: CCA Rate Class | C48: ='Incremental Capital Summary'!M35 -> 47
B49: CCA Rate | C49: ='Incremental Capital Summary'!O35 -> 0.08
B50: CCA | D50: =D47*$C$49 -> 913.6709189 | E50: =E47*$C$49 -> 840.5772454
B51: Closing UCC | D51: =D45-D50 -> 10507.21557 | E51: =E45-E50 -> 9666.638322

Sheet Fixed Asset Amort and UCC 16
B10: Fixed Asset Amortization and UCC 16
B12: Name or General Description of Project
B13: =IF(ISBLANK('Incremental Capital Summary'!B14), "", 'Incremental Capital Summary'!B14) -> B21 Externally-Initiated Plant Relocations and Expansions
B15: Asset Component
B16: =IF(ISBLANK('Incremental Capital Summary'!C36),"",'Incremental Capital Summary'!C36) -> 1840_Underground Conduit - Cable Chamber Roof
B19: Average Net Fixed Assets
D20: =YEAR_SELECTED -> 2014 | E20: =IF((D20+1)<=2014,D20+1,"") -> 
B21: Net Fixed Assets | D21: Forecasted | E21: Forecasted
B23: Opening Capital Investment | D23: 0 | E23: =D25 -> 2891.482676
B24: Capital Investment | D24: =IF(IRM_CYCLE_YEAR="4th Year of IRM Cycle", 'Incremental Capital Summary'!G36/2, 'Incremental Capital Summary'!G36) -> 2891.482676 | E24: 0
B25: Closing Capital Investment | D25: =SUM(D23:D24) -> 2891.482676 | E25: =SUM(E23:E24) -> 2891.482676
B27: Opening Accumulated Amortization | D27: 0 | E27: =D29 -> 144.5741338
B28: Amortization | C28: ='Incremental Capital Summary'!K36 -> 0.05 | D28: =D24*$C$28 -> 144.5741338 | E28: =E25*$C$28 -> 144.5741338
B29: Closing Accumulated Amortization | D29: =SUM(D27:D28) -> 144.5741338 | E29: =SUM(E27:E28) -> 289.1482676
B31: Opening Net Fixed Assets | D31: 0 | E31: =E23-E27 -> 2746.908542
B32: Closing Net Fixed Assets | D32: =D25-D29 -> 2746.908542 | E32: =E25-E29 -> 2602.334408
B33: Average Net Fixed Assets | D33: =SUM(D31:D32)/2 -> 1373.454271 | E33: =SUM(E31:E32)/2 -> 2674.621475
B38: For PILs Calculation
B40: UCC | D40: =YEAR_SELECTED -> 2014 | E40: =IF((D40+1)<=2014,D40+1,"") -> 
D41: Forecasted | E41: Forecasted
B43: Opening UCC | D43: 0 | E43: =D51 -> 2660.164062
B44: Capital Additions | D44: =D24 -> 2891.482676 | E44: =E24 -> 0
B45: UCC Before Half Year Rule | D45: =SUM(D43:D44) -> 2891.482676 | E45: =SUM(E43:E44) -> 2660.164062
B46: Half Year Rule (1/2 Additions - Disposals) | D46: 0 | E46: =E44/2 -> 0
B47: Reduced UCC | D47: =D45-D46 -> 2891.482676 | E47: =E45-E46 -> 2660.164062
B48: CCA Rate Class | C48: ='Incremental Capital Summary'!M36 -> 47
B49: CCA Rate | C49: ='Incremental Capital Summary'!O36 -> 0.08
B50: CCA | D50: =D47*$C$49 -> 231.3186141 | E50: =E47*$C$49 -> 212.8131249
B51: Closing UCC | D51: =D45-D50 -> 2660.164062 | E51: =E45-E50 -> 2447.350937

Sheet Fixed Asset Amort and UCC 17
B10: Fixed Asset Amortization and UCC 17
B12: Name or General Description of Project
B13: =IF(ISBLANK('Incremental Capital Summary'!B14), "", 'Incremental Capital Summary'!B14) -> B21 Externally-Initiated Plant Relocations and Expansions
B15: Asset Component
B16: =IF(ISBLANK('Incremental Capital Summary'!C37),"",'Incremental Capital Summary'!C37) -> 1845_Underground Conductors and Devices - ATS Switches
B19: Average Net Fixed Assets
D20: =YEAR_SELECTED -> 2014 | E20: =IF((D20+1)<=2014,D20+1,"") -> 
B21: Net Fixed Assets | D21: Forecasted | E21: Forecasted
B23: Opening Capital Investment | D23: 0 | E23: =D25 -> 1.723713464
B24: Capital Investment | D24: =IF(IRM_CYCLE_YEAR="4th Year of IRM Cycle", 'Incremental Capital Summary'!G37/2, 'Incremental Capital Summary'!G37) -> 1.723713464 | E24: 0
B25: Closing Capital Investment | D25: =SUM(D23:D24) -> 1.723713464 | E25: =SUM(E23:E24) -> 1.723713464
B27: Opening Accumulated Amortization | D27: 0 | E27: =D29 -> 0.05745711548
B28: Amortization | C28: ='Incremental Capital Summary'!K37 -> 0.03333333333 | D28: =D24*$C$28 -> 0.05745711548 | E28: =E25*$C$28 -> 0.05745711548
B29: Closing Accumulated Amortization | D29: =SUM(D27:D28) -> 0.05745711548 | E29: =SUM(E27:E28) -> 0.114914231
B31: Opening Net Fixed Assets | D31: 0 | E31: =E23-E27 -> 1.666256349
B32: Closing Net Fixed Assets | D32: =D25-D29 -> 1.666256349 | E32: =E25-E29 -> 1.608799233
B33: Average Net Fixed Assets | D33: =SUM(D31:D32)/2 -> 0.8331281745 | E33: =SUM(E31:E32)/2 -> 1.637527791
B38: For PILs Calculation
B40: UCC | D40: =YEAR_SELECTED -> 2014 | E40: =IF((D40+1)<=2014,D40+1,"") -> 
D41: Forecasted | E41: Forecasted
B43: Opening UCC | D43: 0 | E43: =D51 -> 1.585816387
B44: Capital Additions | D44: =D24 -> 1.723713464 | E44: =E24 -> 0
B45: UCC Before Half Year Rule | D45: =SUM(D43:D44) -> 1.723713464 | E45: =SUM(E43:E44) -> 1.585816387
B46: Half Year Rule (1/2 Additions - Disposals) | D46: 0 | E46: =E44/2 -> 0
B47: Reduced UCC | D47: =D45-D46 -> 1.723713464 | E47: =E45-E46 -> 1.585816387
B48: CCA Rate Class | C48: ='Incremental Capital Summary'!M37 -> 47
B49: CCA Rate | C49: ='Incremental Capital Summary'!O37 -> 0.08
B50: CCA | D50: =D47*$C$49 -> 0.1378970772 | E50: =E47*$C$49 -> 0.126865311
B51: Closing UCC | D51: =D45-D50 -> 1.585816387 | E51: =E45-E50 -> 1.458951076

Sheet Fixed Asset Amort and UCC 18
B10: Fixed Asset Amortization and UCC 18
B12: Name or General Description of Project
B13: =IF(ISBLANK('Incremental Capital Summary'!B14), "", 'Incremental Capital Summary'!B14) -> B21 Externally-Initiated Plant Relocations and Expansions
B15: Asset Component
B16: =IF(ISBLANK('Incremental Capital Summary'!C38),"",'Incremental Capital Summary'!C38) -> 1995_Contributions and Grants - OH Switches Contribute Cap
B19: Average Net Fixed Assets
D20: =YEAR_SELECTED -> 2014 | E20: =IF((D20+1)<=2014,D20+1,"") -> 
B21: Net Fixed Assets | D21: Forecasted | E21: Forecasted
B23: Opening Capital Investment | D23: 0 | E23: =D25 -> -4027.6792
B24: Capital Investment | D24: =IF(IRM_CYCLE_YEAR="4th Year of IRM Cycle", 'Incremental Capital Summary'!G38/2, 'Incremental Capital Summary'!G38) -> -4027.6792 | E24: 0
B25: Closing Capital Investment | D25: =SUM(D23:D24) -> -4027.6792 | E25: =SUM(E23:E24) -> -4027.6792
B27: Opening Accumulated Amortization | D27: 0 | E27: =D29 -> -134.2559733
B28: Amortization | C28: ='Incremental Capital Summary'!K38 -> 0.03333333333 | D28: =D24*$C$28 -> -134.2559733 | E28: =E25*$C$28 -> -134.2559733
B29: Closing Accumulated Amortization | D29: =SUM(D27:D28) -> -134.2559733 | E29: =SUM(E27:E28) -> -268.5119467
B31: Opening Net Fixed Assets | D31: 0 | E31: =E23-E27 -> -3893.423227
B32: Closing Net Fixed Assets | D32: =D25-D29 -> -3893.423227 | E32: =E25-E29 -> -3759.167253
B33: Average Net Fixed Assets | D33: =SUM(D31:D32)/2 -> -1946.711613 | E33: =SUM(E31:E32)/2 -> -3826.29524
B38: For PILs Calculation
B40: UCC | D40: =YEAR_SELECTED -> 2014 | E40: =IF((D40+1)<=2014,D40+1,"") -> 
D41: Forecasted | E41: Forecasted
B43: Opening UCC | D43: 0 | E43: =D51 -> -3705.464864
B44: Capital Additions | D44: =D24 -> -4027.6792 | E44: =E24 -> 0
B45: UCC Before Half Year Rule | D45: =SUM(D43:D44) -> -4027.6792 | E45: =SUM(E43:E44) -> -3705.464864
B46: Half Year Rule (1/2 Additions - Disposals) | D46: 0 | E46: =E44/2 -> 0
B47: Reduced UCC | D47: =D45-D46 -> -4027.6792 | E47: =E45-E46 -> -3705.464864
B48: CCA Rate Class | C48: ='Incremental Capital Summary'!M38 -> 47
B49: CCA Rate | C49: ='Incremental Capital Summary'!O38 -> 0.08
B50: CCA | D50: =D47*$C$49 -> -322.214336 | E50: =E47*$C$49 -> -296.4371891
B51: Closing UCC | D51: =D45-D50 -> -3705.464864 | E51: =E45-E50 -> -3409.027675

Sheet Fixed Asset Amort and UCC 19
B10: Fixed Asset Amortization and UCC 19
B12: Name or General Description of Project
B13: =IF(ISBLANK('Incremental Capital Summary'!B14), "", 'Incremental Capital Summary'!B14) -> B21 Externally-Initiated Plant Relocations and Expansions
B15: Asset Component
B16: =IF(ISBLANK('Incremental Capital Summary'!C39),"",'Incremental Capital Summary'!C39) -> 1995_Contributions and Grants - UG Duct Bank Contributed Cap
B19: Average Net Fixed Assets
D20: =YEAR_SELECTED -> 2014 | E20: =IF((D20+1)<=2014,D20+1,"") -> 
B21: Net Fixed Assets | D21: Forecasted | E21: Forecasted
B23: Opening Capital Investment | D23: 0 | E23: =D25 -> -104805.7645
B24: Capital Investment | D24: =IF(IRM_CYCLE_YEAR="4th Year of IRM Cycle", 'Incremental Capital Summary'!G39/2, 'Incremental Capital Summary'!G39) -> -104805.7645 | E24: 0
B25: Closing Capital Investment | D25: =SUM(D23:D24) -> -104805.7645 | E25: =SUM(E23:E24) -> -104805.7645
B27: Opening Accumulated Amortization | D27: 0 | E27: =D29 -> -3493.525484
B28: Amortization | C28: ='Incremental Capital Summary'!K39 -> 0.03333333333 | D28: =D24*$C$28 -> -3493.525484 | E28: =E25*$C$28 -> -3493.525484
B29: Closing Accumulated Amortization | D29: =SUM(D27:D28) -> -3493.525484 | E29: =SUM(E27:E28) -> -6987.050969
B31: Opening Net Fixed Assets | D31: 0 | E31: =E23-E27 -> -101312.239
B32: Closing Net Fixed Assets | D32: =D25-D29 -> -101312.239 | E32: =E25-E29 -> -97818.71356
B33: Average Net Fixed Assets | D33: =SUM(D31:D32)/2 -> -50656.11952 | E33: =SUM(E31:E32)/2 -> -99565.47631
B38: For PILs Calculation
B40: UCC | D40: =YEAR_SELECTED -> 2014 | E40: =IF((D40+1)<=2014,D40+1,"") -> 
D41: Forecasted | E41: Forecasted
B43: Opening UCC | D43: 0 | E43: =D51 -> -96421.30337
B44: Capital Additions | D44: =D24 -> -104805.7645 | E44: =E24 -> 0
B45: UCC Before Half Year Rule | D45: =SUM(D43:D44) -> -104805.7645 | E45: =SUM(E43:E44) -> -96421.30337
B46: Half Year Rule (1/2 Additions - Disposals) | D46: 0 | E46: =E44/2 -> 0
B47: Reduced UCC | D47: =D45-D46 -> -104805.7645 | E47: =E45-E46 -> -96421.30337
B48: CCA Rate Class | C48: ='Incremental Capital Summary'!M39 -> 47
B49: CCA Rate | C49: ='Incremental Capital Summary'!O39 -> 0.08
B50: CCA | D50: =D47*$C$49 -> -8384.461163 | E50: =E47*$C$49 -> -7713.70427
B51: Closing UCC | D51: =D45-D50 -> -96421.30337 | E51: =E45-E50 -> -88707.5991

Sheet Fixed Asset Amort and UCC 20
B10: Fixed Asset Amortization and UCC 20
B12: Name or General Description of Project
B13: =IF(ISBLANK('Incremental Capital Summary'!B14), "", 'Incremental Capital Summary'!B14) -> B21 Externally-Initiated Plant Relocations and Expansions
B15: Asset Component
B16: =IF(ISBLANK('Incremental Capital Summary'!C40),"",'Incremental Capital Summary'!C40) -> 1995_Contributions and Grants - UG Cable Chamber Contributed Cap
B19: Average Net Fixed Assets
D20: =YEAR_SELECTED -> 2014 | E20: =IF((D20+1)<=2014,D20+1,"") -> 
B21: Net Fixed Assets | D21: Forecasted | E21: Forecasted
B23: Opening Capital Investment | D23: 0 | E23: =D25 -> -2550.139299
B24: Capital Investment | D24: =IF(IRM_CYCLE_YEAR="4th Year of IRM Cycle", 'Incremental Capital Summary'!G40/2, 'Incremental Capital Summary'!G40) -> -2550.139299 | E24: 0
B25: Closing Capital Investment | D25: =SUM(D23:D24) -> -2550.139299 | E25: =SUM(E23:E24) -> -2550.139299
B27: Opening Accumulated Amortization | D27: 0 | E27: =D29 -> -51.00278598
B28: Amortization | C28: ='Incremental Capital Summary'!K40 -> 0.02 | D28: =D24*$C$28 -> -51.00278598 | E28: =E25*$C$28 -> -51.00278598
B29: Closing Accumulated Amortization | D29: =SUM(D27:D28) -> -51.00278598 | E29: =SUM(E27:E28) -> -102.005572
B31: Opening Net Fixed Assets | D31: 0 | E31: =E23-E27 -> -2499.136513
B32: Closing Net Fixed Assets | D32: =D25-D29 -> -2499.136513 | E32: =E25-E29 -> -2448.133727
B33: Average Net Fixed Assets | D33: =SUM(D31:D32)/2 -> -1249.568257 | E33: =SUM(E31:E32)/2 -> -2473.63512
B38: For PILs Calculation
B40: UCC | D40: =YEAR_SELECTED -> 2014 | E40: =IF((D40+1)<=2014,D40+1,"") -> 
D41: Forecasted | E41: Forecasted
B43: Opening UCC | D43: 0 | E43: =D51 -> -2346.128155
B44: Capital Additions | D44: =D24 -> -2550.139299 | E44: =E24 -> 0
B45: UCC Before Half Year Rule | D45: =SUM(D43:D44) -> -2550.139299 | E45: =SUM(E43:E44) -> -2346.128155
B46: Half Year Rule (1/2 Additions - Disposals) | D46: 0 | E46: =E44/2 -> 0
B47: Reduced UCC | D47: =D45-D46 -> -2550.139299 | E47: =E45-E46 -> -2346.128155
B48: CCA Rate Class | C48: ='Incremental Capital Summary'!M40 -> 47
B49: CCA Rate | C49: ='Incremental Capital Summary'!O40 -> 0.08
B50: CCA | D50: =D47*$C$49 -> -204.0111439 | E50: =E47*$C$49 -> -187.6902524
B51: Closing UCC | D51: =D45-D50 -> -2346.128155 | E51: =E45-E50 -> -2158.437903

Sheet Fixed Asset Amort and UCC 21
B10: Fixed Asset Amortization and UCC 21
B12: Name or General Description of Project
B13: =IF(ISBLANK('Incremental Capital Summary'!B14), "", 'Incremental Capital Summary'!B14) -> B21 Externally-Initiated Plant Relocations and Expansions
B15: Asset Component
B16: =IF(ISBLANK('Incremental Capital Summary'!C41),"",'Incremental Capital Summary'!C41) -> 1995_Contributions and Grants - UG Primary PILC Contributed Cap
B19: Average Net Fixed Assets
D20: =YEAR_SELECTED -> 2014 | E20: =IF((D20+1)<=2014,D20+1,"") -> 
B21: Net Fixed Assets | D21: Forecasted | E21: Forecasted
B23: Opening Capital Investment | D23: 0 | E23: =D25 -> -2550.139299
B24: Capital Investment | D24: =IF(IRM_CYCLE_YEAR="4th Year of IRM Cycle", 'Incremental Capital Summary'!G41/2, 'Incremental Capital Summary'!G41) -> -2550.139299 | E24: 0
B25: Closing Capital Investment | D25: =SUM(D23:D24) -> -2550.139299 | E25: =SUM(E23:E24) -> -2550.139299
B27: Opening Accumulated Amortization | D27: 0 | E27: =D29 -> -56.6697622
B28: Amortization | C28: ='Incremental Capital Summary'!K41 -> 0.02222222222 | D28: =D24*$C$28 -> -56.6697622 | E28: =E25*$C$28 -> -56.6697622
B29: Closing Accumulated Amortization | D29: =SUM(D27:D28) -> -56.6697622 | E29: =SUM(E27:E28) -> -113.3395244
B31: Opening Net Fixed Assets | D31: 0 | E31: =E23-E27 -> -2493.469537
B32: Closing Net Fixed Assets | D32: =D25-D29 -> -2493.469537 | E32: =E25-E29 -> -2436.799775
B33: Average Net Fixed Assets | D33: =SUM(D31:D32)/2 -> -1246.734768 | E33: =SUM(E31:E32)/2 -> -2465.134656
B38: For PILs Calculation
B40: UCC | D40: =YEAR_SELECTED -> 2014 | E40: =IF((D40+1)<=2014,D40+1,"") -> 
D41: Forecasted | E41: Forecasted
B43: Opening UCC | D43: 0 | E43: =D51 -> -2346.128155
B44: Capital Additions | D44: =D24 -> -2550.139299 | E44: =E24 -> 0
B45: UCC Before Half Year Rule | D45: =SUM(D43:D44) -> -2550.139299 | E45: =SUM(E43:E44) -> -2346.128155
B46: Half Year Rule (1/2 Additions - Disposals) | D46: 0 | E46: =E44/2 -> 0
B47: Reduced UCC | D47: =D45-D46 -> -2550.139299 | E47: =E45-E46 -> -2346.128155
B48: CCA Rate Class | C48: ='Incremental Capital Summary'!M41 -> 47
B49: CCA Rate | C49: ='Incremental Capital Summary'!O41 -> 0.08
B50: CCA | D50: =D47*$C$49 -> -204.0111439 | E50: =E47*$C$49 -> -187.6902524
B51: Closing UCC | D51: =D45-D50 -> -2346.128155 | E51: =E45-E50 -> -2158.437903

Sheet Fixed Asset Amort and UCC 22
B10: Fixed Asset Amortization and UCC 22
B12: Name or General Description of Project
B13: =IF(ISBLANK('Incremental Capital Summary'!B14), "", 'Incremental Capital Summary'!B14) -> B21 Externally-Initiated Plant Relocations and Expansions
B15: Asset Component
B16: =IF(ISBLANK('Incremental Capital Summary'!C42),"",'Incremental Capital Summary'!C42) -> 1995_Contributions and Grants - OH Services Contrib Cap
B19: Average Net Fixed Assets
D20: =YEAR_SELECTED -> 2014 | E20: =IF((D20+1)<=2014,D20+1,"") -> 
B21: Net Fixed Assets | D21: Forecasted | E21: Forecasted
B23: Opening Capital Investment | D23: 0 | E23: =D25 -> -1593.108944
B24: Capital Investment | D24: =IF(IRM_CYCLE_YEAR="4th Year of IRM Cycle", 'Incremental Capital Summary'!G42/2, 'Incremental Capital Summary'!G42) -> -1593.108944 | E24: 0
B25: Closing Capital Investment | D25: =SUM(D23:D24) -> -1593.108944 | E25: =SUM(E23:E24) -> -1593.108944
B27: Opening Accumulated Amortization | D27: 0 | E27: =D29 -> -31.86217888
B28: Amortization | C28: ='Incremental Capital Summary'!K42 -> 0.02 | D28: =D24*$C$28 -> -31.86217888 | E28: =E25*$C$28 -> -31.86217888
B29: Closing Accumulated Amortization | D29: =SUM(D27:D28) -> -31.86217888 | E29: =SUM(E27:E28) -> -63.72435776
B31: Opening Net Fixed Assets | D31: 0 | E31: =E23-E27 -> -1561.246765
B32: Closing Net Fixed Assets | D32: =D25-D29 -> -1561.246765 | E32: =E25-E29 -> -1529.384586
B33: Average Net Fixed Assets | D33: =SUM(D31:D32)/2 -> -780.6233825 | E33: =SUM(E31:E32)/2 -> -1545.315676
B38: For PILs Calculation
B40: UCC | D40: =YEAR_SELECTED -> 2014 | E40: =IF((D40+1)<=2014,D40+1,"") -> 
D41: Forecasted | E41: Forecasted
B43: Opening UCC | D43: 0 | E43: =D51 -> -1465.660228
B44: Capital Additions | D44: =D24 -> -1593.108944 | E44: =E24 -> 0
B45: UCC Before Half Year Rule | D45: =SUM(D43:D44) -> -1593.108944 | E45: =SUM(E43:E44) -> -1465.660228
B46: Half Year Rule (1/2 Additions - Disposals) | D46: 0 | E46: =E44/2 -> 0
B47: Reduced UCC | D47: =D45-D46 -> -1593.108944 | E47: =E45-E46 -> -1465.660228
B48: CCA Rate Class | C48: ='Incremental Capital Summary'!M42 -> 47
B49: CCA Rate | C49: ='Incremental Capital Summary'!O42 -> 0.08
B50: CCA | D50: =D47*$C$49 -> -127.4487155 | E50: =E47*$C$49 -> -117.2528183
B51: Closing UCC | D51: =D45-D50 -> -1465.660228 | E51: =E45-E50 -> -1348.40741

Sheet Fixed Asset Amort and UCC 23
B10: Fixed Asset Amortization and UCC 23
B12: Name or General Description of Project
B13: =IF(ISBLANK('Incremental Capital Summary'!B14), "", 'Incremental Capital Summary'!B14) -> B21 Externally-Initiated Plant Relocations and Expansions
B15: Asset Component
B16: =IF(ISBLANK('Incremental Capital Summary'!C43),"",'Incremental Capital Summary'!C43) -> 1995_Contributions and Grants - UG Services duct Contrib Cap
B19: Average Net Fixed Assets
D20: =YEAR_SELECTED -> 2014 | E20: =IF((D20+1)<=2014,D20+1,"") -> 
B21: Net Fixed Assets | D21: Forecasted | E21: Forecasted
B23: Opening Capital Investment | D23: 0 | E23: =D25 -> -90.70391113
B24: Capital Investment | D24: =IF(IRM_CYCLE_YEAR="4th Year of IRM Cycle", 'Incremental Capital Summary'!G43/2, 'Incremental Capital Summary'!G43) -> -90.70391113 | E24: 0
B25: Closing Capital Investment | D25: =SUM(D23:D24) -> -90.70391113 | E25: =SUM(E23:E24) -> -90.70391113
B27: Opening Accumulated Amortization | D27: 0 | E27: =D29 -> -2.267597778
B28: Amortization | C28: ='Incremental Capital Summary'!K43 -> 0.025 | D28: =D24*$C$28 -> -2.267597778 | E28: =E25*$C$28 -> -2.267597778
B29: Closing Accumulated Amortization | D29: =SUM(D27:D28) -> -2.267597778 | E29: =SUM(E27:E28) -> -4.535195556
B31: Opening Net Fixed Assets | D31: 0 | E31: =E23-E27 -> -88.43631335
B32: Closing Net Fixed Assets | D32: =D25-D29 -> -88.43631335 | E32: =E25-E29 -> -86.16871557
B33: Average Net Fixed Assets | D33: =SUM(D31:D32)/2 -> -44.21815667 | E33: =SUM(E31:E32)/2 -> -87.30251446
B38: For PILs Calculation
B40: UCC | D40: =YEAR_SELECTED -> 2014 | E40: =IF((D40+1)<=2014,D40+1,"") -> 
D41: Forecasted | E41: Forecasted
B43: Opening UCC | D43: 0 | E43: =D51 -> -83.44759824
B44: Capital Additions | D44: =D24 -> -90.70391113 | E44: =E24 -> 0
B45: UCC Before Half Year Rule | D45: =SUM(D43:D44) -> -90.70391113 | E45: =SUM(E43:E44) -> -83.44759824
B46: Half Year Rule (1/2 Additions - Disposals) | D46: 0 | E46: =E44/2 -> 0
B47: Reduced UCC | D47: =D45-D46 -> -90.70391113 | E47: =E45-E46 -> -83.44759824
B48: CCA Rate Class | C48: ='Incremental Capital Summary'!M43 -> 47
B49: CCA Rate | C49: ='Incremental Capital Summary'!O43 -> 0.08
B50: CCA | D50: =D47*$C$49 -> -7.25631289 | E50: =E47*$C$49 -> -6.675807859
B51: Closing UCC | D51: =D45-D50 -> -83.44759824 | E51: =E45-E50 -> -76.77179038

Sheet Fixed Asset Amort and UCC 24
B10: Fixed Asset Amortization and UCC 24
B12: Name or General Description of Project
B13: =IF(ISBLANK('Incremental Capital Summary'!B14), "", 'Incremental Capital Summary'!B14) -> B21 Externally-Initiated Plant Relocations and Expansions
B15: Asset Component
B16: =IF(ISBLANK('Incremental Capital Summary'!C44),"",'Incremental Capital Summary'!C44) -> 1995_Contributions and Grants - UG Services DB Contrib Cap
B19: Average Net Fixed Assets
D20: =YEAR_SELECTED -> 2014 | E20: =IF((D20+1)<=2014,D20+1,"") -> 
B21: Net Fixed Assets | D21: Forecasted | E21: Forecasted
B23: Opening Capital Investment | D23: 0 | E23: =D25 -> -90.70391113
B24: Capital Investment | D24: =IF(IRM_CYCLE_YEAR="4th Year of IRM Cycle", 'Incremental Capital Summary'!G44/2, 'Incremental Capital Summary'!G44) -> -90.70391113 | E24: 0
B25: Closing Capital Investment | D25: =SUM(D23:D24) -> -90.70391113 | E25: =SUM(E23:E24) -> -90.70391113
B27: Opening Accumulated Amortization | D27: 0 | E27: =D29 -> -4.535195556
B28: Amortization | C28: ='Incremental Capital Summary'!K44 -> 0.05 | D28: =D24*$C$28 -> -4.535195556 | E28: =E25*$C$28 -> -4.535195556
B29: Closing Accumulated Amortization | D29: =SUM(D27:D28) -> -4.535195556 | E29: =SUM(E27:E28) -> -9.070391113
B31: Opening Net Fixed Assets | D31: 0 | E31: =E23-E27 -> -86.16871557
B32: Closing Net Fixed Assets | D32: =D25-D29 -> -86.16871557 | E32: =E25-E29 -> -81.63352001
B33: Average Net Fixed Assets | D33: =SUM(D31:D32)/2 -> -43.08435779 | E33: =SUM(E31:E32)/2 -> -83.90111779
B38: For PILs Calculation
B40: UCC | D40: =YEAR_SELECTED -> 2014 | E40: =IF((D40+1)<=2014,D40+1,"") -> 
D41: Forecasted | E41: Forecasted
B43: Opening UCC | D43: 0 | E43: =D51 -> -83.44759824
B44: Capital Additions | D44: =D24 -> -90.70391113 | E44: =E24 -> 0
B45: UCC Before Half Year Rule | D45: =SUM(D43:D44) -> -90.70391113 | E45: =SUM(E43:E44) -> -83.44759824
B46: Half Year Rule (1/2 Additions - Disposals) | D46: 0 | E46: =E44/2 -> 0
B47: Reduced UCC | D47: =D45-D46 -> -90.70391113 | E47: =E45-E46 -> -83.44759824
B48: CCA Rate Class | C48: ='Incremental Capital Summary'!M44 -> 47
B49: CCA Rate | C49: ='Incremental Capital Summary'!O44 -> 0.08
B50: CCA | D50: =D47*$C$49 -> -7.25631289 | E50: =E47*$C$49 -> -6.675807859
B51: Closing UCC | D51: =D45-D50 -> -83.44759824 | E51: =E45-E50 -> -76.77179038

Sheet Fixed Asset Amort and UCC 25
B10: Fixed Asset Amortization and UCC 25
B12: Name or General Description of Project
B13: =IF(ISBLANK('Incremental Capital Summary'!B14), "", 'Incremental Capital Summary'!B14) -> B21 Externally-Initiated Plant Relocations and Expansions
B15: Asset Component
B16: =IF(ISBLANK('Incremental Capital Summary'!C45),"",'Incremental Capital Summary'!C45) -> 1995_Contributions and Grants - Wood Poles Contributed Cap
B19: Average Net Fixed Assets
D20: =YEAR_SELECTED -> 2014 | E20: =IF((D20+1)<=2014,D20+1,"") -> 
B21: Net Fixed Assets | D21: Forecasted | E21: Forecasted
B23: Opening Capital Investment | D23: 0 | E23: =D25 -> -8781.936725
B24: Capital Investment | D24: =IF(IRM_CYCLE_YEAR="4th Year of IRM Cycle", 'Incremental Capital Summary'!G45/2, 'Incremental Capital Summary'!G45) -> -8781.936725 | E24: 0
B25: Closing Capital Investment | D25: =SUM(D23:D24) -> -8781.936725 | E25: =SUM(E23:E24) -> -8781.936725
B27: Opening Accumulated Amortization | D27: 0 | E27: =D29 -> -219.5484181
B28: Amortization | C28: ='Incremental Capital Summary'!K45 -> 0.025 | D28: =D24*$C$28 -> -219.5484181 | E28: =E25*$C$28 -> -219.5484181
B29: Closing Accumulated Amortization | D29: =SUM(D27:D28) -> -219.5484181 | E29: =SUM(E27:E28) -> -439.0968362
B31: Opening Net Fixed Assets | D31: 0 | E31: =E23-E27 -> -8562.388306
B32: Closing Net Fixed Assets | D32: =D25-D29 -> -8562.388306 | E32: =E25-E29 -> -8342.839888
B33: Average Net Fixed Assets | D33: =SUM(D31:D32)/2 -> -4281.194153 | E33: =SUM(E31:E32)/2 -> -8452.614097
B38: For PILs Calculation
B40: UCC | D40: =YEAR_SELECTED -> 2014 | E40: =IF((D40+1)<=2014,D40+1,"") -> 
D41: Forecasted | E41: Forecasted
B43: Opening UCC | D43: 0 | E43: =D51 -> -8079.381787
B44: Capital Additions | D44: =D24 -> -8781.936725 | E44: =E24 -> 0
B45: UCC Before Half Year Rule | D45: =SUM(D43:D44) -> -8781.936725 | E45: =SUM(E43:E44) -> -8079.381787
B46: Half Year Rule (1/2 Additions - Disposals) | D46: 0 | E46: =E44/2 -> 0
B47: Reduced UCC | D47: =D45-D46 -> -8781.936725 | E47: =E45-E46 -> -8079.381787
B48: CCA Rate Class | C48: ='Incremental Capital Summary'!M45 -> 47
B49: CCA Rate | C49: ='Incremental Capital Summary'!O45 -> 0.08
B50: CCA | D50: =D47*$C$49 -> -702.554938 | E50: =E47*$C$49 -> -646.3505429
B51: Closing UCC | D51: =D45-D50 -> -8079.381787 | E51: =E45-E50 -> -7433.031244

Sheet Fixed Asset Amort and UCC 26
B10: Fixed Asset Amortization and UCC 26
B12: Name or General Description of Project
B13: =IF(ISBLANK('Incremental Capital Summary'!B14), "", 'Incremental Capital Summary'!B14) -> B21 Externally-Initiated Plant Relocations and Expansions
B15: Asset Component
B16: =IF(ISBLANK('Incremental Capital Summary'!C46),"",'Incremental Capital Summary'!C46) -> 1995_Contributions and Grants - Concrete Poles Contributed Cap
B19: Average Net Fixed Assets
D20: =YEAR_SELECTED -> 2014 | E20: =IF((D20+1)<=2014,D20+1,"") -> 
B21: Net Fixed Assets | D21: Forecasted | E21: Forecasted
B23: Opening Capital Investment | D23: 0 | E23: =D25 -> -8781.936725
B24: Capital Investment | D24: =IF(IRM_CYCLE_YEAR="4th Year of IRM Cycle", 'Incremental Capital Summary'!G46/2, 'Incremental Capital Summary'!G46) -> -8781.936725 | E24: 0
B25: Closing Capital Investment | D25: =SUM(D23:D24) -> -8781.936725 | E25: =SUM(E23:E24) -> -8781.936725
B27: Opening Accumulated Amortization | D27: 0 | E27: =D29 -> -175.6387345
B28: Amortization | C28: ='Incremental Capital Summary'!K46 -> 0.02 | D28: =D24*$C$28 -> -175.6387345 | E28: =E25*$C$28 -> -175.6387345
B29: Closing Accumulated Amortization | D29: =SUM(D27:D28) -> -175.6387345 | E29: =SUM(E27:E28) -> -351.277469
B31: Opening Net Fixed Assets | D31: 0 | E31: =E23-E27 -> -8606.29799
B32: Closing Net Fixed Assets | D32: =D25-D29 -> -8606.29799 | E32: =E25-E29 -> -8430.659256
B33: Average Net Fixed Assets | D33: =SUM(D31:D32)/2 -> -4303.148995 | E33: =SUM(E31:E32)/2 -> -8518.478623
B38: For PILs Calculation
B40: UCC | D40: =YEAR_SELECTED -> 2014 | E40: =IF((D40+1)<=2014,D40+1,"") -> 
D41: Forecasted | E41: Forecasted
B43: Opening UCC | D43: 0 | E43: =D51 -> -8079.381787
B44: Capital Additions | D44: =D24 -> -8781.936725 | E44: =E24 -> 0
B45: UCC Before Half Year Rule | D45: =SUM(D43:D44) -> -8781.936725 | E45: =SUM(E43:E44) -> -8079.381787
B46: Half Year Rule (1/2 Additions - Disposals) | D46: 0 | E46: =E44/2 -> 0
B47: Reduced UCC | D47: =D45-D46 -> -8781.936725 | E47: =E45-E46 -> -8079.381787
B48: CCA Rate Class | C48: ='Incremental Capital Summary'!M46 -> 47
B49: CCA Rate | C49: ='Incremental Capital Summary'!O46 -> 0.08
B50: CCA | D50: =D47*$C$49 -> -702.554938 | E50: =E47*$C$49 -> -646.3505429
B51: Closing UCC | D51: =D45-D50 -> -8079.381787 | E51: =E45-E50 -> -7433.031244

Sheet Fixed Asset Amort and UCC 27
B10: Fixed Asset Amortization and UCC 27
B12: Name or General Description of Project
B13: =IF(ISBLANK('Incremental Capital Summary'!B14), "", 'Incremental Capital Summary'!B14) -> B21 Externally-Initiated Plant Relocations and Expansions
B15: Asset Component
B16: =IF(ISBLANK('Incremental Capital Summary'!C47),"",'Incremental Capital Summary'!C47) -> 1995_Contributions and Grants - UG Primary & Secondary buried Contributed Cap
B19: Average Net Fixed Assets
D20: =YEAR_SELECTED -> 2014 | E20: =IF((D20+1)<=2014,D20+1,"") -> 
B21: Net Fixed Assets | D21: Forecasted | E21: Forecasted
B23: Opening Capital Investment | D23: 0 | E23: =D25 -> -3536.981496
B24: Capital Investment | D24: =IF(IRM_CYCLE_YEAR="4th Year of IRM Cycle", 'Incremental Capital Summary'!G47/2, 'Incremental Capital Summary'!G47) -> -3536.981496 | E24: 0
B25: Closing Capital Investment | D25: =SUM(D23:D24) -> -3536.981496 | E25: =SUM(E23:E24) -> -3536.981496
B27: Opening Accumulated Amortization | D27: 0 | E27: =D29 -> -176.8490748
B28: Amortization | C28: ='Incremental Capital Summary'!K47 -> 0.05 | D28: =D24*$C$28 -> -176.8490748 | E28: =E25*$C$28 -> -176.8490748
B29: Closing Accumulated Amortization | D29: =SUM(D27:D28) -> -176.8490748 | E29: =SUM(E27:E28) -> -353.6981496
B31: Opening Net Fixed Assets | D31: 0 | E31: =E23-E27 -> -3360.132422
B32: Closing Net Fixed Assets | D32: =D25-D29 -> -3360.132422 | E32: =E25-E29 -> -3183.283347
B33: Average Net Fixed Assets | D33: =SUM(D31:D32)/2 -> -1680.066211 | E33: =SUM(E31:E32)/2 -> -3271.707884
B38: For PILs Calculation
B40: UCC | D40: =YEAR_SELECTED -> 2014 | E40: =IF((D40+1)<=2014,D40+1,"") -> 
D41: Forecasted | E41: Forecasted
B43: Opening UCC | D43: 0 | E43: =D51 -> -3254.022977
B44: Capital Additions | D44: =D24 -> -3536.981496 | E44: =E24 -> 0
B45: UCC Before Half Year Rule | D45: =SUM(D43:D44) -> -3536.981496 | E45: =SUM(E43:E44) -> -3254.022977
B46: Half Year Rule (1/2 Additions - Disposals) | D46: 0 | E46: =E44/2 -> 0
B47: Reduced UCC | D47: =D45-D46 -> -3536.981496 | E47: =E45-E46 -> -3254.022977
B48: CCA Rate Class | C48: ='Incremental Capital Summary'!M47 -> 47
B49: CCA Rate | C49: ='Incremental Capital Summary'!O47 -> 0.08
B50: CCA | D50: =D47*$C$49 -> -282.9585197 | E50: =E47*$C$49 -> -260.3218381
B51: Closing UCC | D51: =D45-D50 -> -3254.022977 | E51: =E45-E50 -> -2993.701139

Sheet Fixed Asset Amort and UCC 28
B10: Fixed Asset Amortization and UCC 28
B12: Name or General Description of Project
B13: =IF(ISBLANK('Incremental Capital Summary'!B14), "", 'Incremental Capital Summary'!B14) -> B21 Externally-Initiated Plant Relocations and Expansions
B15: Asset Component
B16: =IF(ISBLANK('Incremental Capital Summary'!C48),"",'Incremental Capital Summary'!C48) -> 1995_Contributions and Grants - Transformer Contributed Cap
B19: Average Net Fixed Assets
D20: =YEAR_SELECTED -> 2014 | E20: =IF((D20+1)<=2014,D20+1,"") -> 
B21: Net Fixed Assets | D21: Forecasted | E21: Forecasted
B23: Opening Capital Investment | D23: 0 | E23: =D25 -> -9051.898823
B24: Capital Investment | D24: =IF(IRM_CYCLE_YEAR="4th Year of IRM Cycle", 'Incremental Capital Summary'!G48/2, 'Incremental Capital Summary'!G48) -> -9051.898823 | E24: 0
B25: Closing Capital Investment | D25: =SUM(D23:D24) -> -9051.898823 | E25: =SUM(E23:E24) -> -9051.898823
B27: Opening Accumulated Amortization | D27: 0 | E27: =D29 -> -301.7299608
B28: Amortization | C28: ='Incremental Capital Summary'!K48 -> 0.03333333333 | D28: =D24*$C$28 -> -301.7299608 | E28: =E25*$C$28 -> -301.7299608
B29: Closing Accumulated Amortization | D29: =SUM(D27:D28) -> -301.7299608 | E29: =SUM(E27:E28) -> -603.4599215
B31: Opening Net Fixed Assets | D31: 0 | E31: =E23-E27 -> -8750.168862
B32: Closing Net Fixed Assets | D32: =D25-D29 -> -8750.168862 | E32: =E25-E29 -> -8448.438901
B33: Average Net Fixed Assets | D33: =SUM(D31:D32)/2 -> -4375.084431 | E33: =SUM(E31:E32)/2 -> -8599.303882
B38: For PILs Calculation
B40: UCC | D40: =YEAR_SELECTED -> 2014 | E40: =IF((D40+1)<=2014,D40+1,"") -> 
D41: Forecasted | E41: Forecasted
B43: Opening UCC | D43: 0 | E43: =D51 -> -8327.746917
B44: Capital Additions | D44: =D24 -> -9051.898823 | E44: =E24 -> 0
B45: UCC Before Half Year Rule | D45: =SUM(D43:D44) -> -9051.898823 | E45: =SUM(E43:E44) -> -8327.746917
B46: Half Year Rule (1/2 Additions - Disposals) | D46: 0 | E46: =E44/2 -> 0
B47: Reduced UCC | D47: =D45-D46 -> -9051.898823 | E47: =E45-E46 -> -8327.746917
B48: CCA Rate Class | C48: ='Incremental Capital Summary'!M48 -> 47
B49: CCA Rate | C49: ='Incremental Capital Summary'!O48 -> 0.08
B50: CCA | D50: =D47*$C$49 -> -724.1519058 | E50: =E47*$C$49 -> -666.2197534
B51: Closing UCC | D51: =D45-D50 -> -8327.746917 | E51: =E45-E50 -> -7661.527164

Sheet Fixed Asset Amort and UCC 29
B10: Fixed Asset Amortization and UCC 29
B12: Name or General Description of Project
B13: =IF(ISBLANK('Incremental Capital Summary'!B14), "", 'Incremental Capital Summary'!B14) -> B21 Externally-Initiated Plant Relocations and Expansions
B15: Asset Component
B16: =IF(ISBLANK('Incremental Capital Summary'!C49),"",'Incremental Capital Summary'!C49) -> 1995_Contributions and Grants - OH Lines & Secondary Contributed Cap
B19: Average Net Fixed Assets
D20: =YEAR_SELECTED -> 2014 | E20: =IF((D20+1)<=2014,D20+1,"") -> 
B21: Net Fixed Assets | D21: Forecasted | E21: Forecasted
B23: Opening Capital Investment | D23: 0 | E23: =D25 -> -4691.6596
B24: Capital Investment | D24: =IF(IRM_CYCLE_YEAR="4th Year of IRM Cycle", 'Incremental Capital Summary'!G49/2, 'Incremental Capital Summary'!G49) -> -4691.6596 | E24: 0
B25: Closing Capital Investment | D25: =SUM(D23:D24) -> -4691.6596 | E25: =SUM(E23:E24) -> -4691.6596
B27: Opening Accumulated Amortization | D27: 0 | E27: =D29 -> -93.833192
B28: Amortization | C28: ='Incremental Capital Summary'!K49 -> 0.02 | D28: =D24*$C$28 -> -93.833192 | E28: =E25*$C$28 -> -93.833192
B29: Closing Accumulated Amortization | D29: =SUM(D27:D28) -> -93.833192 | E29: =SUM(E27:E28) -> -187.666384
B31: Opening Net Fixed Assets | D31: 0 | E31: =E23-E27 -> -4597.826408
B32: Closing Net Fixed Assets | D32: =D25-D29 -> -4597.826408 | E32: =E25-E29 -> -4503.993216
B33: Average Net Fixed Assets | D33: =SUM(D31:D32)/2 -> -2298.913204 | E33: =SUM(E31:E32)/2 -> -4550.909812
B38: For PILs Calculation
B40: UCC | D40: =YEAR_SELECTED -> 2014 | E40: =IF((D40+1)<=2014,D40+1,"") -> 
D41: Forecasted | E41: Forecasted
B43: Opening UCC | D43: 0 | E43: =D51 -> -4316.326832
B44: Capital Additions | D44: =D24 -> -4691.6596 | E44: =E24 -> 0
B45: UCC Before Half Year Rule | D45: =SUM(D43:D44) -> -4691.6596 | E45: =SUM(E43:E44) -> -4316.326832
B46: Half Year Rule (1/2 Additions - Disposals) | D46: 0 | E46: =E44/2 -> 0
B47: Reduced UCC | D47: =D45-D46 -> -4691.6596 | E47: =E45-E46 -> -4316.326832
B48: CCA Rate Class | C48: ='Incremental Capital Summary'!M49 -> 47
B49: CCA Rate | C49: ='Incremental Capital Summary'!O49 -> 0.08
B50: CCA | D50: =D47*$C$49 -> -375.332768 | E50: =E47*$C$49 -> -345.3061466
B51: Closing UCC | D51: =D45-D50 -> -4316.326832 | E51: =E45-E50 -> -3971.020685

Sheet Fixed Asset Amort and UCC 30
B10: Fixed Asset Amortization and UCC 30
B12: Name or General Description of Project
B13: =IF(ISBLANK('Incremental Capital Summary'!B14), "", 'Incremental Capital Summary'!B14) -> B21 Externally-Initiated Plant Relocations and Expansions
B15: Asset Component
B16: =IF(ISBLANK('Incremental Capital Summary'!C50),"",'Incremental Capital Summary'!C50) -> 1995_Contributions and Grants - UG Primary & Secondary duct Contributed Cap
B19: Average Net Fixed Assets
D20: =YEAR_SELECTED -> 2014 | E20: =IF((D20+1)<=2014,D20+1,"") -> 
B21: Net Fixed Assets | D21: Forecasted | E21: Forecasted
B23: Opening Capital Investment | D23: 0 | E23: =D25 -> -5100.278598
B24: Capital Investment | D24: =IF(IRM_CYCLE_YEAR="4th Year of IRM Cycle", 'Incremental Capital Summary'!G50/2, 'Incremental Capital Summary'!G50) -> -5100.278598 | E24: 0
B25: Closing Capital Investment | D25: =SUM(D23:D24) -> -5100.278598 | E25: =SUM(E23:E24) -> -5100.278598
B27: Opening Accumulated Amortization | D27: 0 | E27: =D29 -> -127.506965
B28: Amortization | C28: ='Incremental Capital Summary'!K50 -> 0.025 | D28: =D24*$C$28 -> -127.506965 | E28: =E25*$C$28 -> -127.506965
B29: Closing Accumulated Amortization | D29: =SUM(D27:D28) -> -127.506965 | E29: =SUM(E27:E28) -> -255.0139299
B31: Opening Net Fixed Assets | D31: 0 | E31: =E23-E27 -> -4972.771633
B32: Closing Net Fixed Assets | D32: =D25-D29 -> -4972.771633 | E32: =E25-E29 -> -4845.264668
B33: Average Net Fixed Assets | D33: =SUM(D31:D32)/2 -> -2486.385817 | E33: =SUM(E31:E32)/2 -> -4909.018151
B38: For PILs Calculation
B40: UCC | D40: =YEAR_SELECTED -> 2014 | E40: =IF((D40+1)<=2014,D40+1,"") -> 
D41: Forecasted | E41: Forecasted
B43: Opening UCC | D43: 0 | E43: =D51 -> -4692.25631
B44: Capital Additions | D44: =D24 -> -5100.278598 | E44: =E24 -> 0
B45: UCC Before Half Year Rule | D45: =SUM(D43:D44) -> -5100.278598 | E45: =SUM(E43:E44) -> -4692.25631
B46: Half Year Rule (1/2 Additions - Disposals) | D46: 0 | E46: =E44/2 -> 0
B47: Reduced UCC | D47: =D45-D46 -> -5100.278598 | E47: =E45-E46 -> -4692.25631
B48: CCA Rate Class | C48: ='Incremental Capital Summary'!M50 -> 47
B49: CCA Rate | C49: ='Incremental Capital Summary'!O50 -> 0.08
B50: CCA | D50: =D47*$C$49 -> -408.0222878 | E50: =E47*$C$49 -> -375.3805048
B51: Closing UCC | D51: =D45-D50 -> -4692.25631 | E51: =E45-E50 -> -4316.875805

Sheet LOOKUPS_&_DATA==>> (hidden)

Sheet DATA_PIVOT (hidden)
K1: Funding Source | L1: ICM
K3: Sum of Total FY14 ISA
K4: ICM FILING SEGMENT | L4: ASSET TITLE | M4: Total
K5: B1 Underground Infrastructure | L5: 1830_Poles Towers and Fixtures | M5: 717149.268
L6: 1835_Overhead Conductors and Devices | M6: 504807.1075
L7: 1835_Overhead Conductors and Devices - Switches | M7: 682286.194
L8: 1840_Underground Conduit - Cable Chamber | M8: 753246.6381
L9: 1840_Underground Conduit - Duct Bank | M9: 18690679.99
L10: 1840_Underground Conduit - Vault | M10: 355690.3731
L11: 1840_Underground Conduit - Vault Roof | M11: 3985.410248
L12: 1845_Underground Conductors and Devices | M12: 2503100.107
L13: 1845_Underground Conductors and Devices - Switch | M13: 2682503.615
L14: 1850_Line Transformers - OH | M14: 179664.8546
L15: 1850_Line Transformers - UG | M15: 4904065.555
L16: 1850_Line Transformers - UG Network w/protector | M16: 4904.07217
L17: 1860_Meters - Smart Meters | M17: 466321.6759
L18: 1855_Services - UG | M18: 612425.9789
L19: 1855_Services - OH | M19: 45984.04734
L20: 1845_Underground Conductors and Devices - Prim Cable burried (xLPE) | M20: 3575276.729
L21: 1840_Underground Conduit - Cable Chamber Roof | M21: 15631.77598
L22: 1845_Underground Conductors and Devices - ATS Switches | M22: 61.70385713
K23: B17 Copeland (Formerly Bremner) (Formerly Bremner) Transformer Station Total | M23: 36697785.09
K24: B10 Fibertop Network Units | L24: 1840_Underground Conduit - Vault | M24: 19383.95741
L25: 1845_Underground Conductors and Devices | M25: 98115.38308
L26: 1850_Line Transformers - UG Network w/protector | M26: 2514026.554
L27: 1855_Services - UG | M27: 32810.62521
L28: 1845_Underground Conductors and Devices - Prim Cable burried (xLPE) | M28: 140142.0587
L29: 1845_Underground Conductors and Devices - ATS Switches | M29: 31630.97593
K30: B17 Copeland (Formerly Bremner) (Formerly Bremner) Transformer Station Total | M30: 2836109.554
K31: B11 Automatic Transfer Switches (ATS) & Reverse Power Breakers (RPB) | L31: 1845_Underground Conductors and Devices | M31: 8043.17158
L32: 1845_Underground Conductors and Devices - Switch | M32: 27272.53422
L33: 1850_Line Transformers - UG | M33: 52238.65437
L34: 1855_Services - UG | M34: 947.5353001
L35: 1845_Underground Conductors and Devices - Prim Cable burried (xLPE) | M35: 11488.37875
K36: B17 Copeland (Formerly Bremner) (Formerly Bremner) Transformer Station Total | M36: 99990.27422
K37: B13.1 & 13.2 Stations Switchgear - Muncipal and Transformer Stations | L37: 1820_DS Equip - Normally Primary below 50 kV - Stn Service Batteries | M37: 1950.769538
L38: 1820_DS Equip - Normally Primary below 50 kV - Switchgear Air | M38: 1220540.997
L39: 1830_Poles Towers and Fixtures | M39: 4724.437924
L40: 1835_Overhead Conductors and Devices | M40: 19514.12395
L41: 1835_Overhead Conductors and Devices - Switches | M41: 46047.75056
L42: 1840_Underground Conduit - Duct Bank | M42: 69881.46901
L43: 1845_Underground Conductors and Devices | M43: 14393.93767
L44: 1980_System Supervisory Equipment | M44: 7371.541044
L45: 1855_Services - OH | M45: 533.3418078
L46: 1845_Underground Conductors and Devices - Prim Cable burried (xLPE) | M46: 20559.42967
L47: 1808_Buildings and Fixtures - Srv Ctr shell site | M47: 8704.314447
K48: B17 Copeland (Formerly Bremner) (Formerly Bremner) Transformer Station Total | M48: 1414222.112
K49: B14 Stations Circuit Breakers | L49: 1820_DS Equip - Normally Primary below 50 kV - Outdoor Breaker | M49: 1030867.018
L50: 1845_Underground Conductors and Devices | M50: 4356.500714
L51: 1850_Line Transformers - UG | M51: 489.6231206
L52: 1855_Services - UG | M52: 59.84986112
L53: 1845_Underground Conductors and Devices - Prim Cable burried (xLPE) | M53: 6222.563302
L54: 1808_Buildings and Fixtures - Srv Ctr shell site | M54: 9425.098197
K55: B17 Copeland (Formerly Bremner) (Formerly Bremner) Transformer Station Total | M55: 1051420.653
K56: B2 Paper Insulated Lead Covered Cable - Piece Outs and Leakers | L56: 1840_Underground Conduit - Cable Chamber | M56: 1069402.659
L57: 1840_Underground Conduit - Duct Bank | M57: 1254.951497
L58: 1840_Underground Conduit - Vault | M58: 1203.660261
L59: 1840_Underground Conduit - Vault Roof | M59: 109.335868
L60: 1845_Underground Conductors and Devices | M60: 142486.1599
L61: 1845_Underground Conductors and Devices - Prim Cable burried (xLPE) | M61: 203518.6096
L62: 1840_Underground Conduit - Cable Chamber Roof | M62: 428.8335479
K63: B17 Copeland (Formerly Bremner) (Formerly Bremner) Transformer Station Total | M63: 1418404.209
K64: B20 Metering | L64: 1820_DS Equip - Normally Primary below 50 kV - Grid Point Meters | M64: 2450802.729
L65: 1860_Meters - Smart Meters | M65: 1365112.842
K66: B17 Copeland (Formerly Bremner) (Formerly Bremner) Transformer Station Total | M66: 3815915.571
K67: B21 Externally-Initiated Plant Relocations and Expansions | L67: 1830_Poles Towers and Fixtures | M67: 128845.8932
L68: 1835_Overhead Conductors and Devices | M68: 154213.4804
L69: 1835_Overhead Conductors and Devices - Switches | M69: 75003.85911
L70: 1840_Underground Conduit - Cable Chamber | M70: 167609.963
L71: 1840_Underground Conduit - Duct Bank | M71: 1554321.981
L72: 1840_Underground Conduit - Vault | M72: 16641.52194
L73: 1840_Underground Conduit - Vault Roof | M73: 1474.397923
L74: 1845_Underground Conductors and Devices | M74: 15991.84063
L75: 1845_Underground Conductors and Devices - Switch | M75: 116.0217925
L76: 1850_Line Transformers - OH | M76: 24727.85559
L77: 1850_Line Transformers - UG | M77: 5086.020471
L78: 1850_Line Transformers - UG Network w/protector | M78: 274.1781729
L79: 1855_Services - UG | M79: 730.9453726
L80: 1855_Services - OH | M80: 3630.162901
L81: 1845_Underground Conductors and Devices - Prim Cable burried (xLPE) | M81: 22841.77297
L82: 1840_Underground Conduit - Cable Chamber Roof | M82: 5782.965351
L83: 1845_Underground Conductors and Devices - ATS Switches | M83: 3.447426929
L84: 1995_Contributions and Grants - OH Switches Contribute Cap | M84: -8055.3584
L85: 1995_Contributions and Grants - UG Duct Bank Contributed Cap | M85: -209611.5291
L86: 1995_Contributions and Grants - UG Cable Chamber Contributed Cap | M86: -5100.278598
L87: 1995_Contributions and Grants - UG Primary PILC Contributed Cap | M87: -5100.278598
L88: 1995_Contributions and Grants - OH Services Contrib Cap | M88: -3186.217888
L89: 1995_Contributions and Grants - UG Services duct Contrib Cap | M89: -181.4078223
L90: 1995_Contributions and Grants - UG Services DB Contrib Cap | M90: -181.4078223
L91: 1995_Contributions and Grants - Wood Poles Contributed Cap | M91: -17563.87345
L92: 1995_Contributions and Grants - Concrete Poles Contributed Cap | M92: -17563.87345
L93: 1995_Contributions and Grants - UG Primary & Secondary buried Contributed Cap | M93: -7073.962993
L94: 1995_Contributions and Grants - Transformer Contributed Cap | M94: -18103.79765
L95: 1995_Contributions and Grants - OH Lines & Secondary Contributed Cap | M95: -9383.3192
L96: 1995_Contributions and Grants - UG Primary & Secondary duct Contributed Cap | M96: -10200.5572
K97: B17 Copeland (Formerly Bremner) (Formerly Bremner) Transformer Station Total | M97: 1865990.445
K98: B3 Handwell Replacement | L98: 1830_Poles Towers and Fixtures | M98: 7223420.035
K99: B17 Copeland (Formerly Bremner) (Formerly Bremner) Transformer Station Total | M99: 7223420.035
K100: B4 Overhead Infrastructure | L100: 1830_Poles Towers and Fixtures | M100: 4353817.917
L101: 1835_Overhead Conductors and Devices | M101: 4180518.016
L102: 1835_Overhead Conductors and Devices - Switches | M102: 1442172.85
L103: 1840_Underground Conduit - Cable Chamber | M103: 54125.24949
L104: 1840_Underground Conduit - Duct Bank | M104: 943919.7138
L105: 1840_Underground Conduit - Vault | M105: 55475.3992
L106: 1840_Underground Conduit - Vault Roof | M106: 1.992669248
L107: 1845_Underground Conductors and Devices | M107: 185449.3524
L108: 1845_Underground Conductors and Devices - Switch | M108: 186173.0177
L109: 1850_Line Transformers - OH | M109: 2652066.88
L110: 1850_Line Transformers - UG | M110: 162980.3051
L111: 1860_Meters - Smart Meters | M111: 33126.43449
L112: 1855_Services - UG | M112: 37358.79361
L113: 1855_Services - OH | M113: 226532.2709
L114: 1845_Underground Conductors and Devices - Prim Cable burried (xLPE) | M114: 264884.639
L115: 1840_Underground Conduit - Cable Chamber Roof | M115: 7.811263453
K116: B17 Copeland (Formerly Bremner) (Formerly Bremner) Transformer Station Total | M116: 14778610.64
K117: B5 Box Construction | L117: 1820_DS Equip - Normally Primary below 50 kV - Indoor Breaker | M117: 22266.92825
L118: 1830_Poles Towers and Fixtures | M118: 1299442.609
L119: 1835_Overhead Conductors and Devices | M119: 1430940.775
L120: 1835_Overhead Conductors and Devices - Switches | M120: 416422.0394
L121: 1840_Underground Conduit - Cable Chamber | M121: 603.9724876
L122: 1840_Underground Conduit - Duct Bank | M122: 19509.9262
L123: 1840_Underground Conduit - Vault | M123: 1207.949957
L124: 1840_Underground Conduit - Vault Roof | M124: 122.7019603
L125: 1845_Underground Conductors and Devices | M125: 162539.0991
L126: 1845_Underground Conductors and Devices - Switch | M126: 57406.14354
L127: 1850_Line Transformers - OH | M127: 1031150.421
L128: 1850_Line Transformers - UG | M128: 177347.8005
L129: 1850_Line Transformers - UG Network w/protector | M129: 8645.047012
L130: 1860_Meters - Smart Meters | M130: 3129.518547
L131: 1855_Services - UG | M131: 24620.32298
L132: 1855_Services - OH | M132: 831901.6372
L133: 1845_Underground Conductors and Devices - Prim Cable burried (xLPE) | M133: 232161.0211
L134: 1840_Underground Conduit - Cable Chamber Roof | M134: 481.2705272
L135: 1845_Underground Conductors and Devices - ATS Switches | M135: 108.7718199
K136: B17 Copeland (Formerly Bremner) (Formerly Bremner) Transformer Station Total | M136: 5720007.957
K137: B6 Rear Lot Construction | L137: 1830_Poles Towers and Fixtures | M137: 68890.70723
L138: 1835_Overhead Conductors and Devices | M138: 79142.89792
L139: 1835_Overhead Conductors and Devices - Switches | M139: 23310.95109
L140: 1840_Underground Conduit - Cable Chamber | M140: 57055.60717
L141: 1840_Underground Conduit - Duct Bank | M141: 3415274.472
L142: 1840_Underground Conduit - Vault | M142: 82651.0452
L143: 1845_Underground Conductors and Devices | M143: 282975.3044
L144: 1845_Underground Conductors and Devices - Switch | M144: 75783.97087
L145: 1850_Line Transformers - OH | M145: 21386.37512
L146: 1850_Line Transformers - UG | M146: 137116.4959
L147: 1860_Meters - Smart Meters | M147: 190733.8745
L148: 1855_Services - UG | M148: 162975.9722
L149: 1855_Services - OH | M149: 3143.379824
L150: 1845_Underground Conductors and Devices - Prim Cable burried (xLPE) | M150: 404184.8078
K151: B17 Copeland (Formerly Bremner) (Formerly Bremner) Transformer Station Total | M151: 5004625.861
K152: B7 Polymer SMD-20 Switches | L152: 1835_Overhead Conductors and Devices | M152: 299199.7679
L153: 1835_Overhead Conductors and Devices - Switches | M153: 1290574.301
K154: B17 Copeland (Formerly Bremner) (Formerly Bremner) Transformer Station Total | M154: 1589774.068
K155: B8 SCADA-Mate R1 Switches | L155: 1830_Poles Towers and Fixtures | M155: 199519.3092
L156: 1835_Overhead Conductors and Devices | M156: 34163.23299
L157: 1835_Overhead Conductors and Devices - Switches | M157: 1659055.102
K158: B17 Copeland (Formerly Bremner) (Formerly Bremner) Transformer Station Total | M158: 1892737.644
K159: B9 Network Vault & Roofs | L159: 1840_Underground Conduit - Duct Bank | M159: 59531.05141
L160: 1840_Underground Conduit - Vault | M160: 453911.8156
L161: 1840_Underground Conduit - Vault Roof | M161: 36505.36286
L162: 1845_Underground Conductors and Devices | M162: 36422.81091
L163: 1850_Line Transformers - UG Network w/protector | M163: 89648.70234
L164: 1855_Services - UG | M164: 28795.94085
L165: 1845_Underground Conductors and Devices - Prim Cable burried (xLPE) | M165: 52024.14442
L166: 1840_Underground Conduit - Cable Chamber Roof | M166: 143182.6962
L167: 1845_Underground Conductors and Devices - ATS Switches | M167: 1127.939455
K168: B17 Copeland (Formerly Bremner) (Formerly Bremner) Transformer Station Total | M168: 901150.4641
K169: B18.1 Hydro One Capital Contributions | L169: 1815_TS Equip - Normally Primary above 50 kV - Contribution to HONI | M169: 2637024
K170: B17 Copeland (Formerly Bremner) (Formerly Bremner) Transformer Station Total | M170: 2637024
K171: Grand Total | M171: 88947188.59

Sheet DATA_PIVOT (EST) (hidden)
M1: Funding Source | N1: ICM
M3: Sum of Total FY14 ISA
M4: ICM FILING SEGMENT | N4: Estimate | O4: ESTIMATE DESCRIPTION | P4: Total
M5: B1 Underground Infrastructure | N5: EST19623_001 | O5: 19623_001 E11628 Morningview 47M3 UG Ph 1 - Elec Electrical portion of Phase 1 | P5: 138733.9111
N6: EST19627_001 | O6: 19627_001 E11629 Morningview 47M3 UG Ph 2 - Elec Electrical portion of Phase 2 | P6: 171641.7683
N7: EST20051_009 | O7: 20051_009 E12213 MORNINGSIDE ELECTRICAL DO NOT PACKAGE for budget | P7: 427644.9397
N8: EST20059_009 | O8: 20059_009 E12210 VENTURE DR UG SCNT47M1 - Civ/Elec DO NOT PACKAGE for budget Civ | P8: 397368.1968
N9: EST20169_001 | O9: 20169_001 E12234 Rebuild 3-Phase Neilson Civil portion of project | P9: 294523.4918
N10: EST20170_001 | O10: 20170_001 E12235 Rebuild 3-Ph Neilson Industrial Electrical portion of project | P10: 121849.8411
N11: EST20179_001 | O11: 20179_001 E12237 Cassandra UG Cable Replace (Elec) UG Cble replacement of 53M25 | P11: 452699.1002
N12: EST20206_001 | O12: 20206_001 E12243 Durnford/Rylander/Tideswell 47M17 3-Ph loop -Electrical | P12: 119566.5321
N13: EST20207_001 | O13: 20207_001 E12239 Royal Rouge Trail - Civil Civil | P13: 443889.4172
N14: EST20208_001 | O14: 20208_001 E12242 Royal Rouge Trail - Electrical Electrical | P14: 84934.55019
N15: EST20209_001 | O15: 20209_001 E12241 Tideswell/Rylander/Durness -Civil Civil | P15: 590057.4157
N16: EST20210_001 | O16: 20210_001 E12244 Tideswell/Rylander/Durness -Cable Electrical | P16: 141897.8818
N17: EST20313_001 | O17: 20313_001 E12281 Meadowvale/Heatherbank 47M17 Cabl Electrical portion of project | P17: 204640.4947
N18: EST20345_001 | O18: 20345_001 E11616 Meadowvale/Heatherbank 47M17 Civi | P18: 167325.5477
N19: EST20383_001 | O19: 20383_001 E12288 NT47M1 UG Rebuild - Electrical Hutcherson Sq. and Hatchet Pl | P19: 87780.41811
N20: EST20388_001 | O20: 20388_001 E12300 47M1 Hutcherson and Berner Trail Civil Works for Cable Replacem | P20: 72350.46446
N21: EST20424_001 | O21: 20424_001 E12316 Mammoth Hall 47M1 UG Rebuild Ph1 Electrical | P21: 156534.5554
N22: EST20477_001 | O22: 20477_001 E12335 Blue Anchor UG Rebuild Elec | P22: 56182.60971
N23: EST20478_001 | O23: 20478_001 E12336 Blue Anchor UG Rebuild Civil | P23: 154444.6911
N24: EST20525_001 | O24: 20525_001 E13011 H9M30 Muir Dr-Golf Club UG Rebuild - ELectrical | P24: 152952.2306
N25: EST20638_001 | O25: 20638_001 ICM E13015 Holmcrest Rebuild-Elec WBS/IFRS Compliant | P25: 187693.43
N26: EST20645_001 | O26: 20645_001 E12377 Goldenwood Road UG Rehab NY51M3 | P26: 134370.4066
N27: EST20648_001 | O27: 20648_001 E12379 Pineway Craigmont UG Rehab NY51M3 Electrical | P27: 55611.99156
N28: EST20697_001 | O28: 20697_001 E12408 Thimble Berryway Aspenwood UGRbld Civil NY51M3 NY51M27 | P28: 204397.8085
N29: EST21110_001 | O29: 21110_001 E13058 NY51M24 UG Rebuild North of Finch E13058 Off Don Mills Road - E | P29: 70991.69982
N30: EST21202_001 | O30: 21202_001 E13069 NY51M24 UG Rebuild North of Finch Off Don Mills Road - Civil | P30: 211592.8878
N31: EST21288_009 | O31: 21288_009 E13079 FESI Conlins Milner NT47M1 - Elec DO NOT PACKAGE | P31: 417620.8745
N32: EST21290_001 | O32: 21290_001 E13074 UG Rehab of NY51M7 - Electrical btn Leslie and Bayview | P32: 114273.5398
N33: EST21297_001 | O33: 21297_001 E13077 UG Rehab of NY51M8 - Elec E13077 btn Leslie and Bayview | P33: 136560.2196
N34: EST21356_009 | O34: 21356_009 E13042 FESI UG Rebuild NT63M8 Revlis sub DO NOT PACKAGE for budget | P34: 220830.9341
N35: EST21357_009 | O35: 21357_009 ICM E13043 Revlis 2 U/G Rebuild - Elec Updated: Feb 7, 2012 | P35: 171608.3126
N36: EST21446_001 | O36: 21446_001 NY51M24 UG Rebuild-Sheppard & Don Mills E13103 Buchan Crt by Sheppard- | P36: 129475.3983
N37: EST21565_001 | O37: 21565_001 E13121 McGriskin UG Rebuild SCNAH9M23 Civil | P37: 113951.2024
N38: EST21585_001 | O38: 21585_001 E13123 Rebuild Trunk 502M1M22 Birchmount Civil | P38: 365603.0034
N39: EST21663_001 | O39: 21663_001 E13147 Nugget Avenue UG Rebuild SCNAH9M23 Civil | P39: 356070.4492
N40: EST21865_001 | O40: 21865_001 E14010 Rebuild UG Trunk NT63M8 M11 McCow an - Electrical | P40: 157969.3044
N41: EST21868_001 | O41: 21868_001 E13152 Rebuild UG Trunk NT63M12 M8 Briml y -Civil | P41: 687989.7725
N42: EST21933_001 | O42: 21933_001 E13184 Rebuild UG Trunk 502M21M28 Warden -Civil | P42: 518247.6018
N43: EST22716_001 | O43: 22716_001 W13239 - Northview Heights Elec Rebuild | P43: 665764.7726
N44: EST22984_001 | O44: 22984_001 W14134 85M7 UG DB PH#1 rebuild Hidden Tr | P44: 1580628.858
N45: EST23043_001 | O45: 23043_001 W14133 85M7 UG DBFestival & Carnival | P45: 759470.3214
N46: EST23297_001 | O46: 23297_001 E14190 UG Rebuild H9M30 Kingston Mason - CivilCreated Aug 2011 | P46: 614296.6836
N47: EST23947_001 | O47: 23947_001 W14284 Pellatt Ave UG BD Rebuild | P47: 451704.4603
N48: EST24149_001 | O48: 24149_001 E14321 Establish Neilson Tapscott R26M34 Feeder Main -Civil | P48: 549189.7155
N49: EST24224_001 | O49: 24224_001 E14327-P01 Port Royal N UG Reconfigure NT63M4 - Civil | P49: 760507.8767
N50: EST24386_001 | O50: 24386_001 W14350 P01 - Gordon Mackay UG Re. OH Reh HIGH LEVEL FROM Amar/ Christi | P50: 501504.9028
N51: EST24578_009 | O51: 24578_009 Bluffwood Saddletree UG Rebuild Civil for 2012 Budget | P51: 556517.7613
N52: EST24636_009 | O52: 24636_009 ICM E12276 MUIRBANK 47M13 UG REB PHASE 1 MUIRBANK PHASE 1 - ELECTRICAL | P52: 92641.72184
N53: EST20260_001 | O53: 20260_001 E12217Rebuild Windfield MS Area with VC OH 51M21 | P53: 227460.5446
N54: EST19788_003 | O54: 19788_003 E11582 NY51M24 SCADA Installation Don Mills Road at Van Horne Avenue | P54: 167624.4845
N55: EST20233_001 | O55: 20233_001 E12250 Scenic Millway UG Rebuild 51M21 53M24 -Civil | P55: 500097.5222
N56: EST27221_001 | O56: 27221_001 E15023 P01 Sheppard Underground DB Cable Civ Ellesmere TS SCNAH9M23, S | P56: 384282.7327
N57: EST27941_001 | O57: 27941_001 W14540 Robert Hicks_Torresdale Civil Ph1 80M8 | P57: 1125239.848
N58: EST11197_001 | O58: 11197_001 Leeward 53M9 UG Cable & Tx repl. | P58: 292733.3085
N59: EST20737_001 | O59: 20737_001 E12425 Spire Hillway UG Rebuild NY51M27 Civil | P59: 93701.58182
N60: EST20067_010 | O60: 20067_010 ICM E12228 DALMATION-CHOICELAND-ELEC DUPLICATION OF VERSION 2 FOR ICM | P60: 274047.5067
N61: EST28318_001 | O61: 28318_001 ICM-W13278 - Northview Heights Civil P4 Broadoaks | P61: 324556.9203
N62: EST20447_002 | O62: 20447_002 E12323 Dynamic Drive SCNAR25M32-Civil Markham,Dynamic,Passmore,McNicol | P62: 431496.6235
N63: EST20738_001 | O63: 20738_001 E12426 Spire Hillway UG Rebuild NY51M27 Electrical | P63: 59900.81221
N64: EST22137_001 | O64: 22137_001 E14031 UG Rebuild Scenic Hill SD XJF1 - Electrical | P64: 33729.80687
N65: EST22049_001 | O65: 22049_001 E13194 UG Rehab of NY51M29 Don Mills and Duncan Mills area | P65: 1000716.536
N66: EST27565_001 | O66: 27565_001 E12225 Mammoth Hall 47M1 UG Rebuild Ph2 -Electrical | P66: 568404.8197
N67: EST18628_010 | O67: 18628_010 PCI-E11401 Finchdene UG Rbld - Elect. DUPLICATION OF VERSION 3 FOR ICM | P67: 4990978.289
N68: EST21731_001 | O68: 21731_001 W13162 Starview - Rockbank UG Rehab 55M21 | P68: 646614.4538
N69: EST20725_001 | O69: 20725_001 E12419 Artisan Place UG Rebuild NY51M27 Electrical | P69: 41389.66458
N70: EST20722_001 | O70: 20722_001 E12418 Artisan Place UG Rebuild NY51M27 Civil | P70: 50991.15266
N71: EST20298_001 | O71: 20298_001 E12266 Country Lane NY51M21 Civil Portion of Project | P71: 188109.5288
N72: EST28590_001 | O72: 28590_001 W12077 Hoggs Hollow Phase 4 | P72: 2151357.577
N73: EST27943_001 | O73: 27943_001 W14542 Robert Hicks_Torresdale Civil Ph3 80M8 | P73: 969117.909
N74: EST22135_001 | O74: 22135_001 E13203 UG Rebuild Scenic Hill SD XJF1 - Civil | P74: 33439.08084
N75: EST20664_001 | O75: 20664_001 E12385 Don Mills/Egltn UG Rebuild (Civ) NY53M1 | P75: 324258.9048
N76: EST18319_001 | O76: 18319_001 E12267 Clappison 47M17 UG Rebuild (Elec) Centennial Park III Subdivisi | P76: 164419.9232
N77: EST18320_001 | O77: 18320_001 E11223 Clappison 47M17 UG Rebuild- Civil | P77: 559576.8067
N78: EST28591_001 | O78: 28591_001 W12077 Hoggs Hollow Phase 5 | P78: 1767968.604
N79: EST20746_001 | O79: 20746_001 E12430 Cherrystone Aspenwood NY51M27 UG Rebuild Electrical | P79: 87048.28805
N80: EST20239_001 | O80: 20239_001 E12251 Scenic Millway UG Rebuild 51M21 Electrical | P80: 163409.4137
N81: EST27210_001 | O81: 27210_001 E13605 P02 50 Aurora Crt Civ Rebld Canavagh TS | P81: 142411.899
N82: EST28599_001 | O82: 28599_001 W14667 - P01 Jane/Gosford UG Rebuild IFRS compliant | P82: 113382.4647
N83: EST20674_002 | O83: 20674_002 E12394 James Gray Dr U/G Rebuild -Civil Leslie St, James Gray Dr, Mall | P83: 161342.6357
N84: EST27358_001 | O84: 27358_001 E13616-P27 1090 Don Mills Load Balancing NY53M27 | P84: 149191.6715
N85: EST20335_001 | O85: 20335_001 E12277 Nashdene Tiffield UG Rebuild Civil Portion of Project SCNAR26M2 | P85: 488810.3527
N86: EST27942_001 | O86: 27942_001 W14541 Robert Hicks_Torresdale Civil Ph2 80M8 | P86: 870643.7637
N87: EST20300_001 | O87: 20300_001 E12268 Country Lane UG Rebuild NY51M21 - Electrical portion of project | P87: 60280.79106
N88: EST20744_001 | O88: 20744_001 E12429 Cherrystone Aspenwood NY51M27 UG Rebuild Civil | P88: 222782.7002
N89: EST20333_001 | O89: 20333_001 E11116 Cougar Crt - Civil Created November 2009 | P89: 100564.8707
N90: EST20665_001 | O90: 20665_001 ICM E12386 Don Mills/Eglinton - ELEC NY53M1 UG Rebuild | P90: 191851.1521
N91: EST21188_001 | O91: 21188_001 UG Rebuild of SCNAE5-1M25 for E13066 by Brimley Rd and Skagway Avenue | P91: 261128.71
N92: EST20672_002 | O92: 20672_002 E12393 James Gray Dr. DB UG Cable Rebuid Leslie St, James Gray Dr, Mal | P92: 74851.78121
N93: EST21334_001 | O93: 21334_001 NY51M30 UG Rehab along Leslie north Bond E13093 - Electrical Project | P93: 487027.0886
N94: EST21262_001 | O94: 21262_001 W12464 Antibes/Torresdale UG Rebuild Creation Date: October 1, 2010 | P94: 526738.602
M95: B17 Copeland (Formerly Bremner) (Formerly Bremner) Transformer Station Total | P95: 36697785.09
M96: B10 Fibertop Network Units | N96: EST28432_001 | O96: 28432_001 X14484 - Fibertop Changeout A5K LOC 4176 | P96: 76363.73137
N97: EST28221_001 | O97: 28221_001 X14485 Fibertop Changeout Loc 4696 NV | P97: 86219.0055
N98: EST28422_001 | O98: 28422_001 X14494 Fibertop C/O Loc 4254WV, 4752 2 units | P98: 118424.254
N99: EST28239_001 | O99: 28239_001 X14478 Fibertop Changeout - A49H LOC4753 (1 unit) | P99: 86218.89754
N100: EST28291_001 | O100: 28291_001 X14476 FibertopChangeout A40GD LOC4230EV 2014 | P100: 86218.57968
N101: EST28205_001 | O101: 28205_001 X14466 Fibertop Changeout A11E-LOC4885 | P101: 56212.36149
N102: EST28366_001 | O102: 28366_001 X14470 Fibertop Change Out Loc 4210 Creation Date: October 1, 2010 | P102: 110552.1425
N103: EST28194_001 | O103: 28194_001 X14450 fibertop changeout A16L - Loc4476 | P103: 65349.07295
N104: EST28426_001 | O104: 28426_001 X14501 2 units | P104: 107933.6793
N105: EST28272_001 | O105: 28272_001 X14468 Fibertop Changeout - A18T LOC4564 | P105: 54748.6323
N106: EST28351_001 | O106: 28351_001 X14462 - Fibertop Changeout - A69WR LOC4917 & N1114 | P106: 116933.4594
N107: EST28222_001 | O107: 28222_001 X14487 Fibertop Changeout - A65H LOC4499EV (1 unit) | P107: 65239.12827
N108: EST28419_001 | O108: 28419_001 X14479 - Fibertop Changeout A4K LOC 4542 | P108: 56212.53815
N109: EST28233_001 | O109: 28233_001 X14474 Fibertop Changeout A38MN LOCN1196 Not for projects | P109: 65349.30361
N110: EST28220_001 | O110: 28220_001 X14486 Fibertop Changeout - A63H LOC4774 (1 unit) | P110: 65349.07295
N111: EST28238_001 | O111: 28238_001 X14477 Fibertop Changeout - A48H LOC4753 (1 unit) | P111: 86218.89754
N112: EST28399_001 | O112: 28399_001 X14475 - Fibertop Changeout A3K LOC 4826 | P112: 56212.53815
N113: EST28200_001 | O113: 28200_001 X14460 Fibertop Changeout Loc N1115 Not for projects | P113: 65349.07295
N114: EST28201_001 | O114: 28201_001 X14465 Fibertop Changeout A10MN-LOC4760 | P114: 56212.36149
N115: EST28359_001 | O115: 28359_001 X14488 - N1114 | P115: 54748.75138
N116: EST28208_001 | O116: 28208_001 X14461 Fibertop Changeout 4654WV, N1109 | P116: 139074.7335
N117: EST28420_001 | O117: 28420_001 X14464 Fibertop Change Out Loc 4035 1 unit | P117: 54858.86676
N118: EST28501_001 | O118: 28501_001 Fibertop Changeout - A5GL LOC4851 (1 unit) | P118: 54748.84161
N119: EST28207_001 | O119: 28207_001 X14467 Fibertop Changeout A12E-LOC4885 | P119: 56212.36149
N120: EST28277_001 | O120: 28277_001 X14498 Fibertop Changeout - A92B LOC4769 (1 unit) | P120: 76253.58454
N121: EST28195_001 | O121: 28195_001 X14459 Fibertop Changeout Loc 4317 | P121: 54858.83655
N122: EST28204_001 | O122: 28204_001 X14457 Fibertop C/O 4653, 4654, 4696 | P122: 233669.8076
N123: EST28363_001 | O123: 28363_001 X14492 - N1102 | P123: 54748.75138
N124: EST28280_001 | O124: 28280_001 X14473 Fibertop Changeout A37X LOC N1090 2014 | P124: 65348.95041
N125: EST28289_001 | O125: 28289_001 X14452 Fibertop Changeout A30DN LOC4667 2014 | P125: 86108.00942
N126: EST28505_001 | O126: 28505_001 X14495 Fibertop Changeout - A7GL LOC4543EV (1 units) | P126: 125181.91
N127: EST28275_001 | O127: 28275_001 X14493 Fibertop Changeout - A72CS LOC4400NV (1 units) | P127: 65348.95041
N128: EST28219_001 | O128: 28219_001 X14481 Fibertop Changeout Loc 4539 Not for projects | P128: 54858.83655
N129: EST28217_001 | O129: 28217_001 X14482 Fibertop Changeout - A56H LOC4553, LOC4770 (2 units) | P129: 113422.33
N130: EST28232_001 | O130: 28232_001 X14472 Fibertop Changeout A36MN LOCN1196 Not for projects | P130: 65349.30361
M131: B17 Copeland (Formerly Bremner) (Formerly Bremner) Transformer Station Total | P131: 2836109.554
M132: B11 Automatic Transfer Switches (ATS) & Reverse Power Breakers (RPB) | N132: EST28499_001 | O132: 28499_001 X14523 - Loc D3028 ATS Replacement | P132: 24043.619
N133: EST28500_001 | O133: 28500_001 X14522 - Loc D3008 ATS Replacement | P133: 75946.65522
M134: B17 Copeland (Formerly Bremner) (Formerly Bremner) Transformer Station Total | P134: 99990.27422
M135: B13.1 & 13.2 Stations Switchgear - Muncipal and Transformer Stations | N135: EST21581_001 | O135: 21581_001 S13126 Neilson Dr MS Replace 4kV SWGR 2014 | P135: 424430.0235
N136: EST22805_001 | O136: 22805_001 S14070 Thornton MS Replace Switchgear 2014 | P136: 359209.5491
N137: EST22804_001 | O137: 22804_001 S14068 Islington MS Replace Switchgear 2014 | P137: 454928.0492
N138: EST24976_001 | O138: 24976_001 Islington MS: Replace PILC cables Co-ordinate with swgr replacement | P138: 175654.4906
M139: B17 Copeland (Formerly Bremner) (Formerly Bremner) Transformer Station Total | P139: 1414222.112
M140: B14 Stations Circuit Breakers | N140: EST21656_001 | O140: 21656_001 S13146 Bermondsey TS Replace 3 KSO CBs (53M1, 53M9 & 53M11) 2014 | P140: 285743.2718
N141: EST21657_001 | O141: 21657_001 S13125 Leslie TS Replace KSO CB M7 & M8 2014 | P141: 186456.9
N142: EST22693_001 | O142: 22693_001 S14052 Finch TS Replace 55M24 KSO CB 2014 | P142: 79279.42812
N143: EST22694_001 | O143: 22694_001 S14054 Finch TS Replace 2 KSO CBs (55M25 & 55M8) 2014 | P143: 169844.2537
N144: EST22695_001 | O144: 22695_001 S14055 Bathurst TS Replace 85M1 KSO CB 2014 | P144: 82430.87487
N145: EST22698_001 | O145: 22698_001 S14056 Bathurst TS Replace 85M4 KSO CB 2014 | P145: 82436.12958
N146: EST22699_001 | O146: 22699_001 S14057 Bathurst TS Replace 85M2 KSO CB 2014 | P146: 82862.7818
N147: EST22700_001 | O147: 22700_001 S14059 Bathurst TS Replace 85M25 KSO CB 2014 | P147: 82367.01338
M148: B17 Copeland (Formerly Bremner) (Formerly Bremner) Transformer Station Total | P148: 1051420.653
M149: B2 Paper Insulated Lead Covered Cable - Piece Outs and Leakers | N149: EST24682_001 | O149: 24682_001 X13396 Downtown Piece Out and Leakers 2013 budget estimate | P149: 146268.1027
N150: EST24703_001 | O150: 24703_001 X14364 Gerrard & Basin South PO & Leaker 2014 budget estimate | P150: 42658.72862
N151: EST28037_001 | O151: 28037_001 X14362 Bridgman TS Piece Outs & Leakers 2013 budget estimate | P151: 157077.9381
N152: EST28460_001 | O152: 28460_001 X14532 PILC Rep BH CIVIL Phase 2 | P152: 536199.7199
N153: EST28461_001 | O153: 28461_001 X14533 PILC Rep- BH CIVIL Phase 3 | P153: 536199.7199
M154: B17 Copeland (Formerly Bremner) (Formerly Bremner) Transformer Station Total | P154: 1418404.209
M155: B20 Metering | N155: EST24985_001 | O155: 24985_001 ICM 2014 Reverific. Meter Rep'nt New Cap CAPEX | P155: 199242.9744
N156: EST28956_001 | O156: 28956_001 ICM 2014 Collector Upgrades to GPRS CAPEX | P156: 1165869.867
N157: EST28449_001 | O157: 28449_001 ICM 2014 RC4250 Grid Supply Point CAPEX | P157: 2450802.729
M158: B17 Copeland (Formerly Bremner) (Formerly Bremner) Transformer Station Total | P158: 3815915.571
M159: B21 Externally-Initiated Plant Relocations and Expansions | N159: EST28187_003 | O159: 28187_003 PCI E13705 P23 Chine Dr. Pole Relocation Created Oct 2010 | P159: 6784.394414
N160: EST28007_001 | O160: 28007_001 E13677 P07 Redlea Road Expansion Civ/Ele SCNA502M23 Cavanagh TS | P160: 268180.0267
N161: EST28962_001 | O161: 28962_001 X14695 New civil infrastructure Queen St | P161: 890859.4615
N162: EST27624_001 | O162: 27624_001 X13630 TTC Leslie St. U/G Civil Install Created Oct 2010 | P162: 0.4985151159
N163: EST27374_001 | O163: 27374_001 X11632 YongeWanless Reloc for Vent ph2 2013 construction | P163: 8453.786806
N164: EST28665_001 | O164: 28665_001 X12580 Eglinton Crosstown LRT - Part 5 Duplex & Edith (2014 Resource H | P164: 14415.63684
N165: EST27876_001 | O165: 27876_001 GO Metrolinx -Renforth Gateway -Pole Rel Creation Date: October 1, 201 | P165: 20283.27509
N166: EST25927_003 | O166: 25927_003 X13620 Sherbourne realign & streetscape HIGH-LEVEL ESTIMATE FOR CITY | P166: 138919.7902
N167: EST28882_001 | O167: 28882_001 X14694 Strachan PH2 Grade Seperation Civil Works | P167: 518093.5749
M168: B17 Copeland (Formerly Bremner) (Formerly Bremner) Transformer Station Total | P168: 1865990.445
M169: B3 Handwell Replacement | N169: EST25011_001 | O169: 25011_001 ICM 2014 Handwell Replacement (Parent) BULK ESTIMATE | P169: 7223420.035
M170: B17 Copeland (Formerly Bremner) (Formerly Bremner) Transformer Station Total | P170: 7223420.035
M171: B4 Overhead Infrastructure | N171: EST18523_001 | O171: 18523_001 W11289 FESI NY55M22 - Rowntree Conting Phase 6 of 6 | P171: 266063.9156
N172: EST19886_001 | O172: 19886_001 X12179 Replacement of CSP TX 2012 budget estimate | P172: 654728.4359
N173: EST22211_001 | O173: 22211_001 W13206 Refurbish 85M10 Laterals Ph2 of 2 | P173: 295693.2748
N174: EST23089_001 | O174: 23089_001 W14150 - OH Feeder Rehab 55M9 Milvan / Penn | P174: 215250.189
N175: EST23093_001 | O175: 23093_001 W14149 - OH Feeder Rehab 55M9 Finch / Weston / Toryork | P175: 318164.0012
N176: EST23323_001 | O176: 23323_001 W14181 Kingsway MS VC | P176: 292309.1654
N177: EST23354_002 | O177: 23354_002 W12253 Repl OSL3310 with Scada sw YK11M7 W12253 Repl OSL3310 with Scad | P177: 54360.94485
N178: EST23878_001 | O178: 23878_001 W14276 - OH Feeder Rehab - Signet/Weston 55M1 | P178: 1004572.272
N179: EST23978_001 | O179: 23978_001 E14286 OH Rebuild 64F2 Ruddington MS VC Created 3 Nov 2011 | P179: 484552.3051
N180: EST23979_001 | O180: 23979_001 W14285 OH & UG lateral Rebuild | P180: 119508.3425
N181: EST24007_001 | O181: 24007_001 W14289 OH Rebuild off Gary Ave | P181: 411599.6459
N182: EST24052_001 | O182: 24052_001 W14306 - 85M5 Mcallister Rd. OH rebuild W14306 - 85M5-Mcallister Rd. O | P182: 132009.6629
N183: EST24089_001 | O183: 24089_001 W14315 Carmichael OH rebuild & Upgrade | P183: 353118.2527
N184: EST24139_001 | O184: 24139_001 E14318 New SCADA Switches on NY51M3 | P184: 97177.938
N185: EST24169_001 | O185: 24169_001 ICM E14319 New SCADA Switches NAR43M24 | P185: 103302.9919
N186: EST24320_001 | O186: 24320_001 W14343 Voltage Conversion PH-2 2014 | P186: 194459.0714
N187: EST24333_001 | O187: 24333_001 ICM W14345 Voltage Conversion RBF2 Ph#1 2014 | P187: 206101.9495
N188: EST22205_001 | O188: 22205_001 E11765Pole Replacement Deanvar Ave CE-F1 | P188: 156135.9886
N189: EST26151_001 | O189: 26151_001 W13482 Install/Redegn Guying Var Loc Ph3 | P189: 627622.7946
N190: EST27810_001 | O190: 27810_001 W13364 Kingsway voltage conversion rev 2 2013 | P190: 334237.5094
N191: EST28570_001 | O191: 28570_001 W14661 VC of West Islington feeder AF6 IFRS compliant | P191: 204808.0952
N192: EST25898_003 | O192: 25898_003 W13454 VC Hollywood MS The Queensway/Kipling | P192: 174226.5987
N193: EST28603_001 | O193: 28603_001 W14605 Manby-Richview Load Cascades | P193: 116100.8888
N194: EST25263_009 | O194: 25263_009 E11333-BRIMLEY/ANSON VC PHASE 2 2012 | P194: 655303.3195
N195: EST28571_001 | O195: 28571_001 W14659 VC of West Islington feeder AF2 Electrical Project | P195: 273555.4463
N196: EST27813_010 | O196: 27813_010 PCI W10487 NY85M3 Downsview Airport Ph 2 DUPLICATION OF VERSION 2 FOR | P196: 1659016.618
N197: EST24698_009 | O197: 24698_009 E11333 Brimley Anson VC PEF1 DO NOT PACKAGE for budget purposes | P197: 990767.7957
N198: EST28560_001 | O198: 28560_001 W14658 VC of West Islington feeder AF1 IFRS compliant | P198: 299998.2338
N199: EST23928_001 | O199: 23928_001 E13359 Remove YH feeder loads after VC Created in 27 Oct 2011 | P199: 345114.7564
N200: EST28605_001 | O200: 28605_001 W14677 P05-Manby Richview Load Cascades IFRS compliant | P200: 253676.6267
N201: EST21025_010 | O201: 21025_010 ICM-X12501 OH Rebuild NY35M12 DUPLICATION OF VERSION 3 FOR ICM FILING | P201: 501589.3188
... 49 more rows

Sheet DATA (hidden)
A1: Input for ICM Worksheets (ISA Asset Detail by Estimate
D5: 0001_THESL | J5: THESL2012
D6: CWIP_Before_AFUDUC
D7: Budget
D8: Input
D9: FY14
D10: Dec
D11: CWIP_Cum_Net_Additions
D12: FY14 ISA
A13: Work Program ID | B13: Estimate | C13: Asset Class | D13: FY14 Hyperion Spend | E13: Hyperion Amt % | F13: Total FY14 ISA | G13: Funding Source | H13: Segment Number | I13: PCI/ICM Segment | J13: OEB Asset Class | K13: ESTIMATE DESCRIPTION | L13: ASSET TITLE | M13: ICM FILING SEGMENT
A14: 1310 | B14: EST23567_001 | C14: AC2120 | D14: 46499.38497 | E14: 0 | F14: =D14*E14 -> 0 | G14: ICM | H14: B4 | I14: O/H Grid System - O/H Infrastructure | J14: =IF(F14=0,"",VLOOKUP(C14,APP_E!A:C,3,FALSE)) ->  | K14: =IF(F14=0,"",INDEX(APP_F!B:B,MATCH(DATA!B14,APP_F!A:A,0))) ->  | L14: =IF(F14=0,"",VLOOKUP(C14,APP_E!A:D,4,FALSE)) ->  | M14: =IF(F14=0,"",INDEX(APP_A!$B$27:$B$61,MATCH(DATA!H14&" "&DATA!I14,APP_A!$A$27:$A$61,0))) -> 
A15: 1310 | B15: EST23567_001 | C15: AC2121 | D15: 530491.765 | E15: 0 | F15: =D15*E15 -> 0 | G15: ICM | H15: B4 | I15: O/H Grid System - O/H Infrastructure | J15: =IF(F15=0,"",VLOOKUP(C15,APP_E!A:C,3,FALSE)) ->  | K15: =IF(F15=0,"",INDEX(APP_F!B:B,MATCH(DATA!B15,APP_F!A:A,0))) ->  | L15: =IF(F15=0,"",VLOOKUP(C15,APP_E!A:D,4,FALSE)) ->  | M15: =IF(F15=0,"",INDEX(APP_A!$B$27:$B$61,MATCH(DATA!H15&" "&DATA!I15,APP_A!$A$27:$A$61,0))) -> 
A16: 1310 | B16: EST23567_001 | C16: AC5023 | D16: 1206.460055 | E16: 0 | F16: 0 | G16: ICM | H16: B4 | I16: O/H Grid System - O/H Infrastructure | J16: =IF(F16=0,"",VLOOKUP(C16,APP_E!A:C,3,FALSE)) ->  | K16: =IF(F16=0,"",INDEX(APP_F!B:B,MATCH(DATA!B16,APP_F!A:A,0))) ->  | L16: =IF(F16=0,"",VLOOKUP(C16,APP_E!A:D,4,FALSE)) ->  | M16: =IF(F16=0,"",INDEX(APP_A!$B$27:$B$61,MATCH(DATA!H16&" "&DATA!I16,APP_A!$A$27:$A$61,0))) -> 
A17: 1310 | B17: EST23567_001 | C17: AC5020 | D17: 16183.11995 | E17: 0 | F17: 0 | G17: ICM | H17: B4 | I17: O/H Grid System - O/H Infrastructure | J17: =IF(F17=0,"",VLOOKUP(C17,APP_E!A:C,3,FALSE)) ->  | K17: =IF(F17=0,"",INDEX(APP_F!B:B,MATCH(DATA!B17,APP_F!A:A,0))) ->  | L17: =IF(F17=0,"",VLOOKUP(C17,APP_E!A:D,4,FALSE)) ->  | M17: =IF(F17=0,"",INDEX(APP_A!$B$27:$B$61,MATCH(DATA!H17&" "&DATA!I17,APP_A!$A$27:$A$61,0))) -> 
A18: 1310 | B18: EST23567_001 | C18: AC2160 | D18: 140070.7816 | E18: 0 | F18: 0 | G18: ICM | H18: B4 | I18: O/H Grid System - O/H Infrastructure | J18: =IF(F18=0,"",VLOOKUP(C18,APP_E!A:C,3,FALSE)) ->  | K18: =IF(F18=0,"",INDEX(APP_F!B:B,MATCH(DATA!B18,APP_F!A:A,0))) ->  | L18: =IF(F18=0,"",VLOOKUP(C18,APP_E!A:D,4,FALSE)) ->  | M18: =IF(F18=0,"",INDEX(APP_A!$B$27:$B$61,MATCH(DATA!H18&" "&DATA!I18,APP_A!$A$27:$A$61,0))) -> 
A19: 1310 | B19: EST23567_001 | C19: AC2165 | D19: 238511.9284 | E19: 0 | F19: 0 | G19: ICM | H19: B4 | I19: O/H Grid System - O/H Infrastructure | J19: =IF(F19=0,"",VLOOKUP(C19,APP_E!A:C,3,FALSE)) ->  | K19: =IF(F19=0,"",INDEX(APP_F!B:B,MATCH(DATA!B19,APP_F!A:A,0))) ->  | L19: =IF(F19=0,"",VLOOKUP(C19,APP_E!A:D,4,FALSE)) ->  | M19: =IF(F19=0,"",INDEX(APP_A!$B$27:$B$61,MATCH(DATA!H19&" "&DATA!I19,APP_A!$A$27:$A$61,0))) -> 
A20: 1310 | B20: EST23567_001 | C20: AC2180 | D20: 20914.94 | E20: 0 | F20: 0 | G20: ICM | H20: B4 | I20: O/H Grid System - O/H Infrastructure | J20: =IF(F20=0,"",VLOOKUP(C20,APP_E!A:C,3,FALSE)) ->  | K20: =IF(F20=0,"",INDEX(APP_F!B:B,MATCH(DATA!B20,APP_F!A:A,0))) ->  | L20: =IF(F20=0,"",VLOOKUP(C20,APP_E!A:D,4,FALSE)) ->  | M20: =IF(F20=0,"",INDEX(APP_A!$B$27:$B$61,MATCH(DATA!H20&" "&DATA!I20,APP_A!$A$27:$A$61,0))) -> 
A21: 1310 | B21: EST23567_001 | C21: AC2360 | D21: 731230.73 | E21: 0 | F21: 0 | G21: ICM | H21: B4 | I21: O/H Grid System - O/H Infrastructure | J21: =IF(F21=0,"",VLOOKUP(C21,APP_E!A:C,3,FALSE)) ->  | K21: =IF(F21=0,"",INDEX(APP_F!B:B,MATCH(DATA!B21,APP_F!A:A,0))) ->  | L21: =IF(F21=0,"",VLOOKUP(C21,APP_E!A:D,4,FALSE)) ->  | M21: =IF(F21=0,"",INDEX(APP_A!$B$27:$B$61,MATCH(DATA!H21&" "&DATA!I21,APP_A!$A$27:$A$61,0))) -> 
A22: 1310 | B22: EST23567_001 | C22: AC2500 | D22: 20856.53 | E22: 0 | F22: 0 | G22: ICM | H22: B4 | I22: O/H Grid System - O/H Infrastructure | J22: =IF(F22=0,"",VLOOKUP(C22,APP_E!A:C,3,FALSE)) ->  | K22: =IF(F22=0,"",INDEX(APP_F!B:B,MATCH(DATA!B22,APP_F!A:A,0))) ->  | L22: =IF(F22=0,"",VLOOKUP(C22,APP_E!A:D,4,FALSE)) ->  | M22: =IF(F22=0,"",INDEX(APP_A!$B$27:$B$61,MATCH(DATA!H22&" "&DATA!I22,APP_A!$A$27:$A$61,0))) -> 
A23: 1248 | B23: EST19984_001 | C23: AC2120 | D23: 39734.30936 | E23: 0 | F23: 0 | G23: ICM | H23: B5 | I23: O/H Grid System - Box Construction | J23: =IF(F23=0,"",VLOOKUP(C23,APP_E!A:C,3,FALSE)) ->  | K23: =IF(F23=0,"",INDEX(APP_F!B:B,MATCH(DATA!B23,APP_F!A:A,0))) ->  | L23: =IF(F23=0,"",VLOOKUP(C23,APP_E!A:D,4,FALSE)) ->  | M23: =IF(F23=0,"",INDEX(APP_A!$B$27:$B$61,MATCH(DATA!H23&" "&DATA!I23,APP_A!$A$27:$A$61,0))) -> 
A24: 1248 | B24: EST19984_001 | C24: AC2121 | D24: 453311.9206 | E24: 0 | F24: 0 | G24: ICM | H24: B5 | I24: O/H Grid System - Box Construction | J24: =IF(F24=0,"",VLOOKUP(C24,APP_E!A:C,3,FALSE)) ->  | K24: =IF(F24=0,"",INDEX(APP_F!B:B,MATCH(DATA!B24,APP_F!A:A,0))) ->  | L24: =IF(F24=0,"",VLOOKUP(C24,APP_E!A:D,4,FALSE)) ->  | M24: =IF(F24=0,"",INDEX(APP_A!$B$27:$B$61,MATCH(DATA!H24&" "&DATA!I24,APP_A!$A$27:$A$61,0))) -> 
A25: 1248 | B25: EST19984_001 | C25: AC5023 | D25: 202.9732481 | E25: 0 | F25: 0 | G25: ICM | H25: B5 | I25: O/H Grid System - Box Construction | J25: =IF(F25=0,"",VLOOKUP(C25,APP_E!A:C,3,FALSE)) ->  | K25: =IF(F25=0,"",INDEX(APP_F!B:B,MATCH(DATA!B25,APP_F!A:A,0))) ->  | L25: =IF(F25=0,"",VLOOKUP(C25,APP_E!A:D,4,FALSE)) ->  | M25: =IF(F25=0,"",INDEX(APP_A!$B$27:$B$61,MATCH(DATA!H25&" "&DATA!I25,APP_A!$A$27:$A$61,0))) -> 
A26: 1248 | B26: EST19984_001 | C26: AC5020 | D26: 2722.626752 | E26: 0 | F26: 0 | G26: ICM | H26: B5 | I26: O/H Grid System - Box Construction | J26: =IF(F26=0,"",VLOOKUP(C26,APP_E!A:C,3,FALSE)) ->  | K26: =IF(F26=0,"",INDEX(APP_F!B:B,MATCH(DATA!B26,APP_F!A:A,0))) ->  | L26: =IF(F26=0,"",VLOOKUP(C26,APP_E!A:D,4,FALSE)) ->  | M26: =IF(F26=0,"",INDEX(APP_A!$B$27:$B$61,MATCH(DATA!H26&" "&DATA!I26,APP_A!$A$27:$A$61,0))) -> 
A27: 1248 | B27: EST19984_001 | C27: AC2160 | D27: 287578.3352 | E27: 0 | F27: 0 | G27: ICM | H27: B5 | I27: O/H Grid System - Box Construction | J27: =IF(F27=0,"",VLOOKUP(C27,APP_E!A:C,3,FALSE)) ->  | K27: =IF(F27=0,"",INDEX(APP_F!B:B,MATCH(DATA!B27,APP_F!A:A,0))) ->  | L27: =IF(F27=0,"",VLOOKUP(C27,APP_E!A:D,4,FALSE)) ->  | M27: =IF(F27=0,"",INDEX(APP_A!$B$27:$B$61,MATCH(DATA!H27&" "&DATA!I27,APP_A!$A$27:$A$61,0))) -> 
A28: 1248 | B28: EST19984_001 | C28: AC2165 | D28: 489687.1248 | E28: 0 | F28: 0 | G28: ICM | H28: B5 | I28: O/H Grid System - Box Construction | J28: =IF(F28=0,"",VLOOKUP(C28,APP_E!A:C,3,FALSE)) ->  | K28: =IF(F28=0,"",INDEX(APP_F!B:B,MATCH(DATA!B28,APP_F!A:A,0))) ->  | L28: =IF(F28=0,"",VLOOKUP(C28,APP_E!A:D,4,FALSE)) ->  | M28: =IF(F28=0,"",INDEX(APP_A!$B$27:$B$61,MATCH(DATA!H28&" "&DATA!I28,APP_A!$A$27:$A$61,0))) -> 
A29: 1248 | B29: EST19984_001 | C29: AC2180 | D29: 309311.92 | E29: 0 | F29: 0 | G29: ICM | H29: B5 | I29: O/H Grid System - Box Construction | J29: =IF(F29=0,"",VLOOKUP(C29,APP_E!A:C,3,FALSE)) ->  | K29: =IF(F29=0,"",INDEX(APP_F!B:B,MATCH(DATA!B29,APP_F!A:A,0))) ->  | L29: =IF(F29=0,"",VLOOKUP(C29,APP_E!A:D,4,FALSE)) ->  | M29: =IF(F29=0,"",INDEX(APP_A!$B$27:$B$61,MATCH(DATA!H29&" "&DATA!I29,APP_A!$A$27:$A$61,0))) -> 
A30: 1248 | B30: EST19984_001 | C30: AC2240 | D30: 5215.56 | E30: 0 | F30: 0 | G30: ICM | H30: B5 | I30: O/H Grid System - Box Construction | J30: =IF(F30=0,"",VLOOKUP(C30,APP_E!A:C,3,FALSE)) ->  | K30: =IF(F30=0,"",INDEX(APP_F!B:B,MATCH(DATA!B30,APP_F!A:A,0))) ->  | L30: =IF(F30=0,"",VLOOKUP(C30,APP_E!A:D,4,FALSE)) ->  | M30: =IF(F30=0,"",INDEX(APP_A!$B$27:$B$61,MATCH(DATA!H30&" "&DATA!I30,APP_A!$A$27:$A$61,0))) -> 
A31: 1248 | B31: EST19984_001 | C31: AC2243 | D31: 2235.25 | E31: 0 | F31: 0 | G31: ICM | H31: B5 | I31: O/H Grid System - Box Construction | J31: =IF(F31=0,"",VLOOKUP(C31,APP_E!A:C,3,FALSE)) ->  | K31: =IF(F31=0,"",INDEX(APP_F!B:B,MATCH(DATA!B31,APP_F!A:A,0))) ->  | L31: =IF(F31=0,"",VLOOKUP(C31,APP_E!A:D,4,FALSE)) ->  | M31: =IF(F31=0,"",INDEX(APP_A!$B$27:$B$61,MATCH(DATA!H31&" "&DATA!I31,APP_A!$A$27:$A$61,0))) -> 
A32: 1248 | B32: EST19984_001 | C32: AC2261 | D32: 70389.37565 | E32: 0 | F32: 0 | G32: ICM | H32: B5 | I32: O/H Grid System - Box Construction | J32: =IF(F32=0,"",VLOOKUP(C32,APP_E!A:C,3,FALSE)) ->  | K32: =IF(F32=0,"",INDEX(APP_F!B:B,MATCH(DATA!B32,APP_F!A:A,0))) ->  | L32: =IF(F32=0,"",VLOOKUP(C32,APP_E!A:D,4,FALSE)) ->  | M32: =IF(F32=0,"",INDEX(APP_A!$B$27:$B$61,MATCH(DATA!H32&" "&DATA!I32,APP_A!$A$27:$A$61,0))) -> 
A33: 1248 | B33: EST19984_001 | C33: AC2262 | D33: 13701.30616 | E33: 0 | F33: 0 | G33: ICM | H33: B5 | I33: O/H Grid System - Box Construction | J33: =IF(F33=0,"",VLOOKUP(C33,APP_E!A:C,3,FALSE)) ->  | K33: =IF(F33=0,"",INDEX(APP_F!B:B,MATCH(DATA!B33,APP_F!A:A,0))) ->  | L33: =IF(F33=0,"",VLOOKUP(C33,APP_E!A:D,4,FALSE)) ->  | M33: =IF(F33=0,"",INDEX(APP_A!$B$27:$B$61,MATCH(DATA!H33&" "&DATA!I33,APP_A!$A$27:$A$61,0))) -> 
A34: 1248 | B34: EST19984_001 | C34: AC2263 | D34: 35579.2682 | E34: 0 | F34: 0 | G34: ICM | H34: B5 | I34: O/H Grid System - Box Construction | J34: =IF(F34=0,"",VLOOKUP(C34,APP_E!A:C,3,FALSE)) ->  | K34: =IF(F34=0,"",INDEX(APP_F!B:B,MATCH(DATA!B34,APP_F!A:A,0))) ->  | L34: =IF(F34=0,"",VLOOKUP(C34,APP_E!A:D,4,FALSE)) ->  | M34: =IF(F34=0,"",INDEX(APP_A!$B$27:$B$61,MATCH(DATA!H34&" "&DATA!I34,APP_A!$A$27:$A$61,0))) -> 
A35: 1248 | B35: EST19984_001 | C35: AC2281 | D35: 47248.74 | E35: 0 | F35: 0 | G35: ICM | H35: B5 | I35: O/H Grid System - Box Construction | J35: =IF(F35=0,"",VLOOKUP(C35,APP_E!A:C,3,FALSE)) ->  | K35: =IF(F35=0,"",INDEX(APP_F!B:B,MATCH(DATA!B35,APP_F!A:A,0))) ->  | L35: =IF(F35=0,"",VLOOKUP(C35,APP_E!A:D,4,FALSE)) ->  | M35: =IF(F35=0,"",INDEX(APP_A!$B$27:$B$61,MATCH(DATA!H35&" "&DATA!I35,APP_A!$A$27:$A$61,0))) -> 
A36: 1248 | B36: EST19984_001 | C36: AC2360 | D36: 397942.98 | E36: 0 | F36: 0 | G36: ICM | H36: B5 | I36: O/H Grid System - Box Construction | J36: =IF(F36=0,"",VLOOKUP(C36,APP_E!A:C,3,FALSE)) ->  | K36: =IF(F36=0,"",INDEX(APP_F!B:B,MATCH(DATA!B36,APP_F!A:A,0))) ->  | L36: =IF(F36=0,"",VLOOKUP(C36,APP_E!A:D,4,FALSE)) ->  | M36: =IF(F36=0,"",INDEX(APP_A!$B$27:$B$61,MATCH(DATA!H36&" "&DATA!I36,APP_A!$A$27:$A$61,0))) -> 
A37: 1248 | B37: EST19984_001 | C37: AC2400 | D37: 142618.04 | E37: 0 | F37: 0 | G37: ICM | H37: B5 | I37: O/H Grid System - Box Construction | J37: =IF(F37=0,"",VLOOKUP(C37,APP_E!A:C,3,FALSE)) ->  | K37: =IF(F37=0,"",INDEX(APP_F!B:B,MATCH(DATA!B37,APP_F!A:A,0))) ->  | L37: =IF(F37=0,"",VLOOKUP(C37,APP_E!A:D,4,FALSE)) ->  | M37: =IF(F37=0,"",INDEX(APP_A!$B$27:$B$61,MATCH(DATA!H37&" "&DATA!I37,APP_A!$A$27:$A$61,0))) -> 
A38: 1248 | B38: EST19984_001 | C38: AC2500 | D38: 247656.45 | E38: 0 | F38: 0 | G38: ICM | H38: B5 | I38: O/H Grid System - Box Construction | J38: =IF(F38=0,"",VLOOKUP(C38,APP_E!A:C,3,FALSE)) ->  | K38: =IF(F38=0,"",INDEX(APP_F!B:B,MATCH(DATA!B38,APP_F!A:A,0))) ->  | L38: =IF(F38=0,"",VLOOKUP(C38,APP_E!A:D,4,FALSE)) ->  | M38: =IF(F38=0,"",INDEX(APP_A!$B$27:$B$61,MATCH(DATA!H38&" "&DATA!I38,APP_A!$A$27:$A$61,0))) -> 
A39: 1248 | B39: EST19984_001 | C39: AC2520 | D39: 4580.8 | E39: 0 | F39: 0 | G39: ICM | H39: B5 | I39: O/H Grid System - Box Construction | J39: =IF(F39=0,"",VLOOKUP(C39,APP_E!A:C,3,FALSE)) ->  | K39: =IF(F39=0,"",INDEX(APP_F!B:B,MATCH(DATA!B39,APP_F!A:A,0))) ->  | L39: =IF(F39=0,"",VLOOKUP(C39,APP_E!A:D,4,FALSE)) ->  | M39: =IF(F39=0,"",INDEX(APP_A!$B$27:$B$61,MATCH(DATA!H39&" "&DATA!I39,APP_A!$A$27:$A$61,0))) -> 
A40: 1248 | B40: EST19984_001 | C40: AC2620 | D40: 3174.601175 | E40: 0 | F40: 0 | G40: ICM | H40: B5 | I40: O/H Grid System - Box Construction | J40: =IF(F40=0,"",VLOOKUP(C40,APP_E!A:C,3,FALSE)) ->  | K40: =IF(F40=0,"",INDEX(APP_F!B:B,MATCH(DATA!B40,APP_F!A:A,0))) ->  | L40: =IF(F40=0,"",VLOOKUP(C40,APP_E!A:D,4,FALSE)) ->  | M40: =IF(F40=0,"",INDEX(APP_A!$B$27:$B$61,MATCH(DATA!H40&" "&DATA!I40,APP_A!$A$27:$A$61,0))) -> 
A41: 1248 | B41: EST19984_001 | C41: AC2640 | D41: 4074.408825 | E41: 0 | F41: 0 | G41: ICM | H41: B5 | I41: O/H Grid System - Box Construction | J41: =IF(F41=0,"",VLOOKUP(C41,APP_E!A:C,3,FALSE)) ->  | K41: =IF(F41=0,"",INDEX(APP_F!B:B,MATCH(DATA!B41,APP_F!A:A,0))) ->  | L41: =IF(F41=0,"",VLOOKUP(C41,APP_E!A:D,4,FALSE)) ->  | M41: =IF(F41=0,"",INDEX(APP_A!$B$27:$B$61,MATCH(DATA!H41&" "&DATA!I41,APP_A!$A$27:$A$61,0))) -> 
A42: 1259 | B42: EST20296_001 | C42: AC2120 | D42: 14403.82522 | E42: 0 | F42: 0 | G42: ICM | H42: B4 | I42: O/H Grid System - O/H Infrastructure | J42: =IF(F42=0,"",VLOOKUP(C42,APP_E!A:C,3,FALSE)) ->  | K42: =IF(F42=0,"",INDEX(APP_F!B:B,MATCH(DATA!B42,APP_F!A:A,0))) ->  | L42: =IF(F42=0,"",VLOOKUP(C42,APP_E!A:D,4,FALSE)) ->  | M42: =IF(F42=0,"",INDEX(APP_A!$B$27:$B$61,MATCH(DATA!H42&" "&DATA!I42,APP_A!$A$27:$A$61,0))) -> 
A43: 1259 | B43: EST20296_001 | C43: AC2121 | D43: 164327.1048 | E43: 0 | F43: 0 | G43: ICM | H43: B4 | I43: O/H Grid System - O/H Infrastructure | J43: =IF(F43=0,"",VLOOKUP(C43,APP_E!A:C,3,FALSE)) ->  | K43: =IF(F43=0,"",INDEX(APP_F!B:B,MATCH(DATA!B43,APP_F!A:A,0))) ->  | L43: =IF(F43=0,"",VLOOKUP(C43,APP_E!A:D,4,FALSE)) ->  | M43: =IF(F43=0,"",INDEX(APP_A!$B$27:$B$61,MATCH(DATA!H43&" "&DATA!I43,APP_A!$A$27:$A$61,0))) -> 
A44: 1259 | B44: EST20296_001 | C44: AC5023 | D44: 638.714269 | E44: 0 | F44: 0 | G44: ICM | H44: B4 | I44: O/H Grid System - O/H Infrastructure | J44: =IF(F44=0,"",VLOOKUP(C44,APP_E!A:C,3,FALSE)) ->  | K44: =IF(F44=0,"",INDEX(APP_F!B:B,MATCH(DATA!B44,APP_F!A:A,0))) ->  | L44: =IF(F44=0,"",VLOOKUP(C44,APP_E!A:D,4,FALSE)) ->  | M44: =IF(F44=0,"",INDEX(APP_A!$B$27:$B$61,MATCH(DATA!H44&" "&DATA!I44,APP_A!$A$27:$A$61,0))) -> 
A45: 1259 | B45: EST20296_001 | C45: AC5020 | D45: 8567.535731 | E45: 0 | F45: 0 | G45: ICM | H45: B4 | I45: O/H Grid System - O/H Infrastructure | J45: =IF(F45=0,"",VLOOKUP(C45,APP_E!A:C,3,FALSE)) ->  | K45: =IF(F45=0,"",INDEX(APP_F!B:B,MATCH(DATA!B45,APP_F!A:A,0))) ->  | L45: =IF(F45=0,"",VLOOKUP(C45,APP_E!A:D,4,FALSE)) ->  | M45: =IF(F45=0,"",INDEX(APP_A!$B$27:$B$61,MATCH(DATA!H45&" "&DATA!I45,APP_A!$A$27:$A$61,0))) -> 
A46: 1259 | B46: EST20296_001 | C46: AC2160 | D46: 72724.46981 | E46: 0 | F46: 0 | G46: ICM | H46: B4 | I46: O/H Grid System - O/H Infrastructure | J46: =IF(F46=0,"",VLOOKUP(C46,APP_E!A:C,3,FALSE)) ->  | K46: =IF(F46=0,"",INDEX(APP_F!B:B,MATCH(DATA!B46,APP_F!A:A,0))) ->  | L46: =IF(F46=0,"",VLOOKUP(C46,APP_E!A:D,4,FALSE)) ->  | M46: =IF(F46=0,"",INDEX(APP_A!$B$27:$B$61,MATCH(DATA!H46&" "&DATA!I46,APP_A!$A$27:$A$61,0))) -> 
A47: 1259 | B47: EST20296_001 | C47: AC2165 | D47: 123834.9002 | E47: 0 | F47: 0 | G47: ICM | H47: B4 | I47: O/H Grid System - O/H Infrastructure | J47: =IF(F47=0,"",VLOOKUP(C47,APP_E!A:C,3,FALSE)) ->  | K47: =IF(F47=0,"",INDEX(APP_F!B:B,MATCH(DATA!B47,APP_F!A:A,0))) ->  | L47: =IF(F47=0,"",VLOOKUP(C47,APP_E!A:D,4,FALSE)) ->  | M47: =IF(F47=0,"",INDEX(APP_A!$B$27:$B$61,MATCH(DATA!H47&" "&DATA!I47,APP_A!$A$27:$A$61,0))) -> 
A48: 1259 | B48: EST20296_001 | C48: AC2180 | D48: 21364.42 | E48: 0 | F48: 0 | G48: ICM | H48: B4 | I48: O/H Grid System - O/H Infrastructure | J48: =IF(F48=0,"",VLOOKUP(C48,APP_E!A:C,3,FALSE)) ->  | K48: =IF(F48=0,"",INDEX(APP_F!B:B,MATCH(DATA!B48,APP_F!A:A,0))) ->  | L48: =IF(F48=0,"",VLOOKUP(C48,APP_E!A:D,4,FALSE)) ->  | M48: =IF(F48=0,"",INDEX(APP_A!$B$27:$B$61,MATCH(DATA!H48&" "&DATA!I48,APP_A!$A$27:$A$61,0))) -> 
A49: 1259 | B49: EST20296_001 | C49: AC2360 | D49: 187612.35 | E49: 0 | F49: 0 | G49: ICM | H49: B4 | I49: O/H Grid System - O/H Infrastructure | J49: =IF(F49=0,"",VLOOKUP(C49,APP_E!A:C,3,FALSE)) ->  | K49: =IF(F49=0,"",INDEX(APP_F!B:B,MATCH(DATA!B49,APP_F!A:A,0))) ->  | L49: =IF(F49=0,"",VLOOKUP(C49,APP_E!A:D,4,FALSE)) ->  | M49: =IF(F49=0,"",INDEX(APP_A!$B$27:$B$61,MATCH(DATA!H49&" "&DATA!I49,APP_A!$A$27:$A$61,0))) -> 
A50: 1259 | B50: EST20296_001 | C50: AC2500 | D50: 8796.2 | E50: 0 | F50: 0 | G50: ICM | H50: B4 | I50: O/H Grid System - O/H Infrastructure | J50: =IF(F50=0,"",VLOOKUP(C50,APP_E!A:C,3,FALSE)) ->  | K50: =IF(F50=0,"",INDEX(APP_F!B:B,MATCH(DATA!B50,APP_F!A:A,0))) ->  | L50: =IF(F50=0,"",VLOOKUP(C50,APP_E!A:D,4,FALSE)) ->  | M50: =IF(F50=0,"",INDEX(APP_A!$B$27:$B$61,MATCH(DATA!H50&" "&DATA!I50,APP_A!$A$27:$A$61,0))) -> 
A51: 1260 | B51: EST20412_003 | C51: AC2120 | D51: 20377.33611 | E51: 0 | F51: 0 | G51: ICM | H51: B4 | I51: O/H Grid System - O/H Infrastructure | J51: =IF(F51=0,"",VLOOKUP(C51,APP_E!A:C,3,FALSE)) ->  | K51: =IF(F51=0,"",INDEX(APP_F!B:B,MATCH(DATA!B51,APP_F!A:A,0))) ->  | L51: =IF(F51=0,"",VLOOKUP(C51,APP_E!A:D,4,FALSE)) ->  | M51: =IF(F51=0,"",INDEX(APP_A!$B$27:$B$61,MATCH(DATA!H51&" "&DATA!I51,APP_A!$A$27:$A$61,0))) -> 
A52: 1260 | B52: EST20412_003 | C52: AC2121 | D52: 232476.3639 | E52: 0 | F52: 0 | G52: ICM | H52: B4 | I52: O/H Grid System - O/H Infrastructure | J52: =IF(F52=0,"",VLOOKUP(C52,APP_E!A:C,3,FALSE)) ->  | K52: =IF(F52=0,"",INDEX(APP_F!B:B,MATCH(DATA!B52,APP_F!A:A,0))) ->  | L52: =IF(F52=0,"",VLOOKUP(C52,APP_E!A:D,4,FALSE)) ->  | M52: =IF(F52=0,"",INDEX(APP_A!$B$27:$B$61,MATCH(DATA!H52&" "&DATA!I52,APP_A!$A$27:$A$61,0))) -> 
A53: 1260 | B53: EST20412_003 | C53: AC5023 | D53: 482.5845769 | E53: 0 | F53: 0 | G53: ICM | H53: B4 | I53: O/H Grid System - O/H Infrastructure | J53: =IF(F53=0,"",VLOOKUP(C53,APP_E!A:C,3,FALSE)) ->  | K53: =IF(F53=0,"",INDEX(APP_F!B:B,MATCH(DATA!B53,APP_F!A:A,0))) ->  | L53: =IF(F53=0,"",VLOOKUP(C53,APP_E!A:D,4,FALSE)) ->  | M53: =IF(F53=0,"",INDEX(APP_A!$B$27:$B$61,MATCH(DATA!H53&" "&DATA!I53,APP_A!$A$27:$A$61,0))) -> 
A54: 1260 | B54: EST20412_003 | C54: AC5020 | D54: 6473.255423 | E54: 0 | F54: 0 | G54: ICM | H54: B4 | I54: O/H Grid System - O/H Infrastructure | J54: =IF(F54=0,"",VLOOKUP(C54,APP_E!A:C,3,FALSE)) ->  | K54: =IF(F54=0,"",INDEX(APP_F!B:B,MATCH(DATA!B54,APP_F!A:A,0))) ->  | L54: =IF(F54=0,"",VLOOKUP(C54,APP_E!A:D,4,FALSE)) ->  | M54: =IF(F54=0,"",INDEX(APP_A!$B$27:$B$61,MATCH(DATA!H54&" "&DATA!I54,APP_A!$A$27:$A$61,0))) -> 
A55: 1260 | B55: EST20412_003 | C55: AC2160 | D55: 33142.23778 | E55: 0 | F55: 0 | G55: ICM | H55: B4 | I55: O/H Grid System - O/H Infrastructure | J55: =IF(F55=0,"",VLOOKUP(C55,APP_E!A:C,3,FALSE)) ->  | K55: =IF(F55=0,"",INDEX(APP_F!B:B,MATCH(DATA!B55,APP_F!A:A,0))) ->  | L55: =IF(F55=0,"",VLOOKUP(C55,APP_E!A:D,4,FALSE)) ->  | M55: =IF(F55=0,"",INDEX(APP_A!$B$27:$B$61,MATCH(DATA!H55&" "&DATA!I55,APP_A!$A$27:$A$61,0))) -> 
A56: 1260 | B56: EST20412_003 | C56: AC2165 | D56: 56434.46222 | E56: 0 | F56: 0 | G56: ICM | H56: B4 | I56: O/H Grid System - O/H Infrastructure | J56: =IF(F56=0,"",VLOOKUP(C56,APP_E!A:C,3,FALSE)) ->  | K56: =IF(F56=0,"",INDEX(APP_F!B:B,MATCH(DATA!B56,APP_F!A:A,0))) ->  | L56: =IF(F56=0,"",VLOOKUP(C56,APP_E!A:D,4,FALSE)) ->  | M56: =IF(F56=0,"",INDEX(APP_A!$B$27:$B$61,MATCH(DATA!H56&" "&DATA!I56,APP_A!$A$27:$A$61,0))) -> 
A57: 1260 | B57: EST20412_003 | C57: AC2180 | D57: 2868.42 | E57: 0 | F57: 0 | G57: ICM | H57: B4 | I57: O/H Grid System - O/H Infrastructure | J57: =IF(F57=0,"",VLOOKUP(C57,APP_E!A:C,3,FALSE)) ->  | K57: =IF(F57=0,"",INDEX(APP_F!B:B,MATCH(DATA!B57,APP_F!A:A,0))) ->  | L57: =IF(F57=0,"",VLOOKUP(C57,APP_E!A:D,4,FALSE)) ->  | M57: =IF(F57=0,"",INDEX(APP_A!$B$27:$B$61,MATCH(DATA!H57&" "&DATA!I57,APP_A!$A$27:$A$61,0))) -> 
A58: 1260 | B58: EST20412_003 | C58: AC2360 | D58: 426039.32 | E58: 0 | F58: 0 | G58: ICM | H58: B4 | I58: O/H Grid System - O/H Infrastructure | J58: =IF(F58=0,"",VLOOKUP(C58,APP_E!A:C,3,FALSE)) ->  | K58: =IF(F58=0,"",INDEX(APP_F!B:B,MATCH(DATA!B58,APP_F!A:A,0))) ->  | L58: =IF(F58=0,"",VLOOKUP(C58,APP_E!A:D,4,FALSE)) ->  | M58: =IF(F58=0,"",INDEX(APP_A!$B$27:$B$61,MATCH(DATA!H58&" "&DATA!I58,APP_A!$A$27:$A$61,0))) -> 
A59: 1253 | B59: EST20476_001 | C59: AC2120 | D59: 17614.22056 | E59: 0 | F59: 0 | G59: ICM | H59: B5 | I59: O/H Grid System - Box Construction | J59: =IF(F59=0,"",VLOOKUP(C59,APP_E!A:C,3,FALSE)) ->  | K59: =IF(F59=0,"",INDEX(APP_F!B:B,MATCH(DATA!B59,APP_F!A:A,0))) ->  | L59: =IF(F59=0,"",VLOOKUP(C59,APP_E!A:D,4,FALSE)) ->  | M59: =IF(F59=0,"",INDEX(APP_A!$B$27:$B$61,MATCH(DATA!H59&" "&DATA!I59,APP_A!$A$27:$A$61,0))) -> 
A60: 1253 | B60: EST20476_001 | C60: AC2121 | D60: 200953.1994 | E60: 0 | F60: 0 | G60: ICM | H60: B5 | I60: O/H Grid System - Box Construction | J60: =IF(F60=0,"",VLOOKUP(C60,APP_E!A:C,3,FALSE)) ->  | K60: =IF(F60=0,"",INDEX(APP_F!B:B,MATCH(DATA!B60,APP_F!A:A,0))) ->  | L60: =IF(F60=0,"",VLOOKUP(C60,APP_E!A:D,4,FALSE)) ->  | M60: =IF(F60=0,"",INDEX(APP_A!$B$27:$B$61,MATCH(DATA!H60&" "&DATA!I60,APP_A!$A$27:$A$61,0))) -> 
A61: 1253 | B61: EST20476_001 | C61: AC2160 | D61: 36662.10843 | E61: 0 | F61: 0 | G61: ICM | H61: B5 | I61: O/H Grid System - Box Construction | J61: =IF(F61=0,"",VLOOKUP(C61,APP_E!A:C,3,FALSE)) ->  | K61: =IF(F61=0,"",INDEX(APP_F!B:B,MATCH(DATA!B61,APP_F!A:A,0))) ->  | L61: =IF(F61=0,"",VLOOKUP(C61,APP_E!A:D,4,FALSE)) ->  | M61: =IF(F61=0,"",INDEX(APP_A!$B$27:$B$61,MATCH(DATA!H61&" "&DATA!I61,APP_A!$A$27:$A$61,0))) -> 
A62: 1253 | B62: EST20476_001 | C62: AC2165 | D62: 62428.08157 | E62: 0 | F62: 0 | G62: ICM | H62: B5 | I62: O/H Grid System - Box Construction | J62: =IF(F62=0,"",VLOOKUP(C62,APP_E!A:C,3,FALSE)) ->  | K62: =IF(F62=0,"",INDEX(APP_F!B:B,MATCH(DATA!B62,APP_F!A:A,0))) ->  | L62: =IF(F62=0,"",VLOOKUP(C62,APP_E!A:D,4,FALSE)) ->  | M62: =IF(F62=0,"",INDEX(APP_A!$B$27:$B$61,MATCH(DATA!H62&" "&DATA!I62,APP_A!$A$27:$A$61,0))) -> 
A63: 1253 | B63: EST20476_001 | C63: AC2180 | D63: 77407.82 | E63: 0 | F63: 0 | G63: ICM | H63: B5 | I63: O/H Grid System - Box Construction | J63: =IF(F63=0,"",VLOOKUP(C63,APP_E!A:C,3,FALSE)) ->  | K63: =IF(F63=0,"",INDEX(APP_F!B:B,MATCH(DATA!B63,APP_F!A:A,0))) ->  | L63: =IF(F63=0,"",VLOOKUP(C63,APP_E!A:D,4,FALSE)) ->  | M63: =IF(F63=0,"",INDEX(APP_A!$B$27:$B$61,MATCH(DATA!H63&" "&DATA!I63,APP_A!$A$27:$A$61,0))) -> 
A64: 1253 | B64: EST20476_001 | C64: AC2261 | D64: 25859.00907 | E64: 0 | F64: 0 | G64: ICM | H64: B5 | I64: O/H Grid System - Box Construction | J64: =IF(F64=0,"",VLOOKUP(C64,APP_E!A:C,3,FALSE)) ->  | K64: =IF(F64=0,"",INDEX(APP_F!B:B,MATCH(DATA!B64,APP_F!A:A,0))) ->  | L64: =IF(F64=0,"",VLOOKUP(C64,APP_E!A:D,4,FALSE)) ->  | M64: =IF(F64=0,"",INDEX(APP_A!$B$27:$B$61,MATCH(DATA!H64&" "&DATA!I64,APP_A!$A$27:$A$61,0))) -> 
A65: 1253 | B65: EST20476_001 | C65: AC2262 | D65: 5033.45532 | E65: 0 | F65: 0 | G65: ICM | H65: B5 | I65: O/H Grid System - Box Construction | J65: =IF(F65=0,"",VLOOKUP(C65,APP_E!A:C,3,FALSE)) ->  | K65: =IF(F65=0,"",INDEX(APP_F!B:B,MATCH(DATA!B65,APP_F!A:A,0))) ->  | L65: =IF(F65=0,"",VLOOKUP(C65,APP_E!A:D,4,FALSE)) ->  | M65: =IF(F65=0,"",INDEX(APP_A!$B$27:$B$61,MATCH(DATA!H65&" "&DATA!I65,APP_A!$A$27:$A$61,0))) -> 
A66: 1253 | B66: EST20476_001 | C66: AC2263 | D66: 13070.78561 | E66: 0 | F66: 0 | G66: ICM | H66: B5 | I66: O/H Grid System - Box Construction | J66: =IF(F66=0,"",VLOOKUP(C66,APP_E!A:C,3,FALSE)) ->  | K66: =IF(F66=0,"",INDEX(APP_F!B:B,MATCH(DATA!B66,APP_F!A:A,0))) ->  | L66: =IF(F66=0,"",VLOOKUP(C66,APP_E!A:D,4,FALSE)) ->  | M66: =IF(F66=0,"",INDEX(APP_A!$B$27:$B$61,MATCH(DATA!H66&" "&DATA!I66,APP_A!$A$27:$A$61,0))) -> 
A67: 1253 | B67: EST20476_001 | C67: AC2360 | D67: 111770.18 | E67: 0 | F67: 0 | G67: ICM | H67: B5 | I67: O/H Grid System - Box Construction | J67: =IF(F67=0,"",VLOOKUP(C67,APP_E!A:C,3,FALSE)) ->  | K67: =IF(F67=0,"",INDEX(APP_F!B:B,MATCH(DATA!B67,APP_F!A:A,0))) ->  | L67: =IF(F67=0,"",VLOOKUP(C67,APP_E!A:D,4,FALSE)) ->  | M67: =IF(F67=0,"",INDEX(APP_A!$B$27:$B$61,MATCH(DATA!H67&" "&DATA!I67,APP_A!$A$27:$A$61,0))) -> 
A68: 1253 | B68: EST20476_001 | C68: AC2500 | D68: 91846.48 | E68: 0 | F68: 0 | G68: ICM | H68: B5 | I68: O/H Grid System - Box Construction | J68: =IF(F68=0,"",VLOOKUP(C68,APP_E!A:C,3,FALSE)) ->  | K68: =IF(F68=0,"",INDEX(APP_F!B:B,MATCH(DATA!B68,APP_F!A:A,0))) ->  | L68: =IF(F68=0,"",VLOOKUP(C68,APP_E!A:D,4,FALSE)) ->  | M68: =IF(F68=0,"",INDEX(APP_A!$B$27:$B$61,MATCH(DATA!H68&" "&DATA!I68,APP_A!$A$27:$A$61,0))) -> 
A69: 1253 | B69: EST20476_001 | C69: AC2620 | D69: 793.6535782 | E69: 0 | F69: 0 | G69: ICM | H69: B5 | I69: O/H Grid System - Box Construction | J69: =IF(F69=0,"",VLOOKUP(C69,APP_E!A:C,3,FALSE)) ->  | K69: =IF(F69=0,"",INDEX(APP_F!B:B,MATCH(DATA!B69,APP_F!A:A,0))) ->  | L69: =IF(F69=0,"",VLOOKUP(C69,APP_E!A:D,4,FALSE)) ->  | M69: =IF(F69=0,"",INDEX(APP_A!$B$27:$B$61,MATCH(DATA!H69&" "&DATA!I69,APP_A!$A$27:$A$61,0))) -> 
A70: 1253 | B70: EST20476_001 | C70: AC2640 | D70: 1018.606422 | E70: 0 | F70: 0 | G70: ICM | H70: B5 | I70: O/H Grid System - Box Construction | J70: =IF(F70=0,"",VLOOKUP(C70,APP_E!A:C,3,FALSE)) ->  | K70: =IF(F70=0,"",INDEX(APP_F!B:B,MATCH(DATA!B70,APP_F!A:A,0))) ->  | L70: =IF(F70=0,"",VLOOKUP(C70,APP_E!A:D,4,FALSE)) ->  | M70: =IF(F70=0,"",INDEX(APP_A!$B$27:$B$61,MATCH(DATA!H70&" "&DATA!I70,APP_A!$A$27:$A$61,0))) -> 
A71: 1233 | B71: EST20567_003 | C71: AC2120 | D71: 28948.9868 | E71: 0 | F71: 0 | G71: ICM | H71: B5 | I71: O/H Grid System - Box Construction | J71: =IF(F71=0,"",VLOOKUP(C71,APP_E!A:C,3,FALSE)) ->  | K71: =IF(F71=0,"",INDEX(APP_F!B:B,MATCH(DATA!B71,APP_F!A:A,0))) ->  | L71: =IF(F71=0,"",VLOOKUP(C71,APP_E!A:D,4,FALSE)) ->  | M71: =IF(F71=0,"",INDEX(APP_A!$B$27:$B$61,MATCH(DATA!H71&" "&DATA!I71,APP_A!$A$27:$A$61,0))) -> 
A72: 1233 | B72: EST20567_003 | C72: AC2121 | D72: 330266.7032 | E72: 0 | F72: 0 | G72: ICM | H72: B5 | I72: O/H Grid System - Box Construction | J72: =IF(F72=0,"",VLOOKUP(C72,APP_E!A:C,3,FALSE)) ->  | K72: =IF(F72=0,"",INDEX(APP_F!B:B,MATCH(DATA!B72,APP_F!A:A,0))) ->  | L72: =IF(F72=0,"",VLOOKUP(C72,APP_E!A:D,4,FALSE)) ->  | M72: =IF(F72=0,"",INDEX(APP_A!$B$27:$B$61,MATCH(DATA!H72&" "&DATA!I72,APP_A!$A$27:$A$61,0))) -> 
A73: 1233 | B73: EST20567_003 | C73: AC5023 | D73: 689.406241 | E73: 0 | F73: 0 | G73: ICM | H73: B5 | I73: O/H Grid System - Box Construction | J73: =IF(F73=0,"",VLOOKUP(C73,APP_E!A:C,3,FALSE)) ->  | K73: =IF(F73=0,"",INDEX(APP_F!B:B,MATCH(DATA!B73,APP_F!A:A,0))) ->  | L73: =IF(F73=0,"",VLOOKUP(C73,APP_E!A:D,4,FALSE)) ->  | M73: =IF(F73=0,"",INDEX(APP_A!$B$27:$B$61,MATCH(DATA!H73&" "&DATA!I73,APP_A!$A$27:$A$61,0))) -> 
A74: 1233 | B74: EST20567_003 | C74: AC5020 | D74: 9247.503759 | E74: 0 | F74: 0 | G74: ICM | H74: B5 | I74: O/H Grid System - Box Construction | J74: =IF(F74=0,"",VLOOKUP(C74,APP_E!A:C,3,FALSE)) ->  | K74: =IF(F74=0,"",INDEX(APP_F!B:B,MATCH(DATA!B74,APP_F!A:A,0))) ->  | L74: =IF(F74=0,"",VLOOKUP(C74,APP_E!A:D,4,FALSE)) ->  | M74: =IF(F74=0,"",INDEX(APP_A!$B$27:$B$61,MATCH(DATA!H74&" "&DATA!I74,APP_A!$A$27:$A$61,0))) -> 
A75: 1233 | B75: EST20567_003 | C75: AC2160 | D75: 104142.5736 | E75: 0 | F75: 0 | G75: ICM | H75: B5 | I75: O/H Grid System - Box Construction | J75: =IF(F75=0,"",VLOOKUP(C75,APP_E!A:C,3,FALSE)) ->  | K75: =IF(F75=0,"",INDEX(APP_F!B:B,MATCH(DATA!B75,APP_F!A:A,0))) ->  | L75: =IF(F75=0,"",VLOOKUP(C75,APP_E!A:D,4,FALSE)) ->  | M75: =IF(F75=0,"",INDEX(APP_A!$B$27:$B$61,MATCH(DATA!H75&" "&DATA!I75,APP_A!$A$27:$A$61,0))) -> 
A76: 1233 | B76: EST20567_003 | C76: AC2165 | D76: 177333.5164 | E76: 0 | F76: 0 | G76: ICM | H76: B5 | I76: O/H Grid System - Box Construction | J76: =IF(F76=0,"",VLOOKUP(C76,APP_E!A:C,3,FALSE)) ->  | K76: =IF(F76=0,"",INDEX(APP_F!B:B,MATCH(DATA!B76,APP_F!A:A,0))) ->  | L76: =IF(F76=0,"",VLOOKUP(C76,APP_E!A:D,4,FALSE)) ->  | M76: =IF(F76=0,"",INDEX(APP_A!$B$27:$B$61,MATCH(DATA!H76&" "&DATA!I76,APP_A!$A$27:$A$61,0))) -> 
A77: 1233 | B77: EST20567_003 | C77: AC2180 | D77: 68497.57 | E77: 0 | F77: 0 | G77: ICM | H77: B5 | I77: O/H Grid System - Box Construction | J77: =IF(F77=0,"",VLOOKUP(C77,APP_E!A:C,3,FALSE)) ->  | K77: =IF(F77=0,"",INDEX(APP_F!B:B,MATCH(DATA!B77,APP_F!A:A,0))) ->  | L77: =IF(F77=0,"",VLOOKUP(C77,APP_E!A:D,4,FALSE)) ->  | M77: =IF(F77=0,"",INDEX(APP_A!$B$27:$B$61,MATCH(DATA!H77&" "&DATA!I77,APP_A!$A$27:$A$61,0))) -> 
A78: 1233 | B78: EST20567_003 | C78: AC2240 | D78: 12192.58 | E78: 0 | F78: 0 | G78: ICM | H78: B5 | I78: O/H Grid System - Box Construction | J78: =IF(F78=0,"",VLOOKUP(C78,APP_E!A:C,3,FALSE)) ->  | K78: =IF(F78=0,"",INDEX(APP_F!B:B,MATCH(DATA!B78,APP_F!A:A,0))) ->  | L78: =IF(F78=0,"",VLOOKUP(C78,APP_E!A:D,4,FALSE)) ->  | M78: =IF(F78=0,"",INDEX(APP_A!$B$27:$B$61,MATCH(DATA!H78&" "&DATA!I78,APP_A!$A$27:$A$61,0))) -> 
A79: 1233 | B79: EST20567_003 | C79: AC2261 | D79: 22616.06583 | E79: 0 | F79: =D79*E79 -> 0 | G79: ICM | H79: B5 | I79: O/H Grid System - Box Construction | J79: =IF(F79=0,"",VLOOKUP(C79,APP_E!A:C,3,FALSE)) ->  | K79: =IF(F79=0,"",INDEX(APP_F!B:B,MATCH(DATA!B79,APP_F!A:A,0))) ->  | L79: =IF(F79=0,"",VLOOKUP(C79,APP_E!A:D,4,FALSE)) ->  | M79: =IF(F79=0,"",INDEX(APP_A!$B$27:$B$61,MATCH(DATA!H79&" "&DATA!I79,APP_A!$A$27:$A$61,0))) -> 
A80: 1233 | B80: EST20567_003 | C80: AC2262 | D80: 4402.217353 | E80: 0 | F80: 0 | G80: ICM | H80: B5 | I80: O/H Grid System - Box Construction | J80: =IF(F80=0,"",VLOOKUP(C80,APP_E!A:C,3,FALSE)) ->  | K80: =IF(F80=0,"",INDEX(APP_F!B:B,MATCH(DATA!B80,APP_F!A:A,0))) ->  | L80: =IF(F80=0,"",VLOOKUP(C80,APP_E!A:D,4,FALSE)) ->  | M80: =IF(F80=0,"",INDEX(APP_A!$B$27:$B$61,MATCH(DATA!H80&" "&DATA!I80,APP_A!$A$27:$A$61,0))) -> 
A81: 1233 | B81: EST20567_003 | C81: AC2263 | D81: 11431.59682 | E81: 0 | F81: 0 | G81: ICM | H81: B5 | I81: O/H Grid System - Box Construction | J81: =IF(F81=0,"",VLOOKUP(C81,APP_E!A:C,3,FALSE)) ->  | K81: =IF(F81=0,"",INDEX(APP_F!B:B,MATCH(DATA!B81,APP_F!A:A,0))) ->  | L81: =IF(F81=0,"",VLOOKUP(C81,APP_E!A:D,4,FALSE)) ->  | M81: =IF(F81=0,"",INDEX(APP_A!$B$27:$B$61,MATCH(DATA!H81&" "&DATA!I81,APP_A!$A$27:$A$61,0))) -> 
A82: 1233 | B82: EST20567_003 | C82: AC2360 | D82: 308056.51 | E82: 0 | F82: 0 | G82: ICM | H82: B5 | I82: O/H Grid System - Box Construction | J82: =IF(F82=0,"",VLOOKUP(C82,APP_E!A:C,3,FALSE)) ->  | K82: =IF(F82=0,"",INDEX(APP_F!B:B,MATCH(DATA!B82,APP_F!A:A,0))) ->  | L82: =IF(F82=0,"",VLOOKUP(C82,APP_E!A:D,4,FALSE)) ->  | M82: =IF(F82=0,"",INDEX(APP_A!$B$27:$B$61,MATCH(DATA!H82&" "&DATA!I82,APP_A!$A$27:$A$61,0))) -> 
A83: 1233 | B83: EST20567_003 | C83: AC2400 | D83: 53258.57 | E83: 0 | F83: 0 | G83: ICM | H83: B5 | I83: O/H Grid System - Box Construction | J83: =IF(F83=0,"",VLOOKUP(C83,APP_E!A:C,3,FALSE)) ->  | K83: =IF(F83=0,"",INDEX(APP_F!B:B,MATCH(DATA!B83,APP_F!A:A,0))) ->  | L83: =IF(F83=0,"",VLOOKUP(C83,APP_E!A:D,4,FALSE)) ->  | M83: =IF(F83=0,"",INDEX(APP_A!$B$27:$B$61,MATCH(DATA!H83&" "&DATA!I83,APP_A!$A$27:$A$61,0))) -> 
A84: 1233 | B84: EST20567_003 | C84: AC2500 | D84: 158703.24 | E84: 0 | F84: 0 | G84: ICM | H84: B5 | I84: O/H Grid System - Box Construction | J84: =IF(F84=0,"",VLOOKUP(C84,APP_E!A:C,3,FALSE)) ->  | K84: =IF(F84=0,"",INDEX(APP_F!B:B,MATCH(DATA!B84,APP_F!A:A,0))) ->  | L84: =IF(F84=0,"",VLOOKUP(C84,APP_E!A:D,4,FALSE)) ->  | M84: =IF(F84=0,"",INDEX(APP_A!$B$27:$B$61,MATCH(DATA!H84&" "&DATA!I84,APP_A!$A$27:$A$61,0))) -> 
A85: 1233 | B85: EST20567_003 | C85: AC2520 | D85: 96656.66 | E85: 0 | F85: 0 | G85: ICM | H85: B5 | I85: O/H Grid System - Box Construction | J85: =IF(F85=0,"",VLOOKUP(C85,APP_E!A:C,3,FALSE)) ->  | K85: =IF(F85=0,"",INDEX(APP_F!B:B,MATCH(DATA!B85,APP_F!A:A,0))) ->  | L85: =IF(F85=0,"",VLOOKUP(C85,APP_E!A:D,4,FALSE)) ->  | M85: =IF(F85=0,"",INDEX(APP_A!$B$27:$B$61,MATCH(DATA!H85&" "&DATA!I85,APP_A!$A$27:$A$61,0))) -> 
A86: 1233 | B86: EST20567_003 | C86: AC2620 | D86: 3813.356852 | E86: 0 | F86: 0 | G86: ICM | H86: B5 | I86: O/H Grid System - Box Construction | J86: =IF(F86=0,"",VLOOKUP(C86,APP_E!A:C,3,FALSE)) ->  | K86: =IF(F86=0,"",INDEX(APP_F!B:B,MATCH(DATA!B86,APP_F!A:A,0))) ->  | L86: =IF(F86=0,"",VLOOKUP(C86,APP_E!A:D,4,FALSE)) ->  | M86: =IF(F86=0,"",INDEX(APP_A!$B$27:$B$61,MATCH(DATA!H86&" "&DATA!I86,APP_A!$A$27:$A$61,0))) -> 
A87: 1233 | B87: EST20567_003 | C87: AC2640 | D87: 4894.213148 | E87: 0 | F87: 0 | G87: ICM | H87: B5 | I87: O/H Grid System - Box Construction | J87: =IF(F87=0,"",VLOOKUP(C87,APP_E!A:C,3,FALSE)) ->  | K87: =IF(F87=0,"",INDEX(APP_F!B:B,MATCH(DATA!B87,APP_F!A:A,0))) ->  | L87: =IF(F87=0,"",VLOOKUP(C87,APP_E!A:D,4,FALSE)) ->  | M87: =IF(F87=0,"",INDEX(APP_A!$B$27:$B$61,MATCH(DATA!H87&" "&DATA!I87,APP_A!$A$27:$A$61,0))) -> 
A88: 1274 | B88: EST20939_001 | C88: AC2120 | D88: 28471.03629 | E88: 0 | F88: 0 | G88: ICM | H88: B4 | I88: O/H Grid System - O/H Infrastructure | J88: =IF(F88=0,"",VLOOKUP(C88,APP_E!A:C,3,FALSE)) ->  | K88: =IF(F88=0,"",INDEX(APP_F!B:B,MATCH(DATA!B88,APP_F!A:A,0))) ->  | L88: =IF(F88=0,"",VLOOKUP(C88,APP_E!A:D,4,FALSE)) ->  | M88: =IF(F88=0,"",INDEX(APP_A!$B$27:$B$61,MATCH(DATA!H88&" "&DATA!I88,APP_A!$A$27:$A$61,0))) -> 
A89: 1274 | B89: EST20939_001 | C89: AC2121 | D89: 324813.9837 | E89: 0 | F89: 0 | G89: ICM | H89: B4 | I89: O/H Grid System - O/H Infrastructure | J89: =IF(F89=0,"",VLOOKUP(C89,APP_E!A:C,3,FALSE)) ->  | K89: =IF(F89=0,"",INDEX(APP_F!B:B,MATCH(DATA!B89,APP_F!A:A,0))) ->  | L89: =IF(F89=0,"",VLOOKUP(C89,APP_E!A:D,4,FALSE)) ->  | M89: =IF(F89=0,"",INDEX(APP_A!$B$27:$B$61,MATCH(DATA!H89&" "&DATA!I89,APP_A!$A$27:$A$61,0))) -> 
A90: 1274 | B90: EST20939_001 | C90: AC5023 | D90: 922.5868149 | E90: 0 | F90: 0 | G90: ICM | H90: B4 | I90: O/H Grid System - O/H Infrastructure | J90: =IF(F90=0,"",VLOOKUP(C90,APP_E!A:C,3,FALSE)) ->  | K90: =IF(F90=0,"",INDEX(APP_F!B:B,MATCH(DATA!B90,APP_F!A:A,0))) ->  | L90: =IF(F90=0,"",VLOOKUP(C90,APP_E!A:D,4,FALSE)) ->  | M90: =IF(F90=0,"",INDEX(APP_A!$B$27:$B$61,MATCH(DATA!H90&" "&DATA!I90,APP_A!$A$27:$A$61,0))) -> 
A91: 1274 | B91: EST20939_001 | C91: AC5020 | D91: 12375.32319 | E91: 0 | F91: 0 | G91: ICM | H91: B4 | I91: O/H Grid System - O/H Infrastructure | J91: =IF(F91=0,"",VLOOKUP(C91,APP_E!A:C,3,FALSE)) ->  | K91: =IF(F91=0,"",INDEX(APP_F!B:B,MATCH(DATA!B91,APP_F!A:A,0))) ->  | L91: =IF(F91=0,"",VLOOKUP(C91,APP_E!A:D,4,FALSE)) ->  | M91: =IF(F91=0,"",INDEX(APP_A!$B$27:$B$61,MATCH(DATA!H91&" "&DATA!I91,APP_A!$A$27:$A$61,0))) -> 
A92: 1274 | B92: EST20939_001 | C92: AC2160 | D92: 70533.65103 | E92: 0 | F92: 0 | G92: ICM | H92: B4 | I92: O/H Grid System - O/H Infrastructure | J92: =IF(F92=0,"",VLOOKUP(C92,APP_E!A:C,3,FALSE)) ->  | K92: =IF(F92=0,"",INDEX(APP_F!B:B,MATCH(DATA!B92,APP_F!A:A,0))) ->  | L92: =IF(F92=0,"",VLOOKUP(C92,APP_E!A:D,4,FALSE)) ->  | M92: =IF(F92=0,"",INDEX(APP_A!$B$27:$B$61,MATCH(DATA!H92&" "&DATA!I92,APP_A!$A$27:$A$61,0))) -> 
A93: 1274 | B93: EST20939_001 | C93: AC2165 | D93: 120104.389 | E93: 0 | F93: 0 | G93: ICM | H93: B4 | I93: O/H Grid System - O/H Infrastructure | J93: =IF(F93=0,"",VLOOKUP(C93,APP_E!A:C,3,FALSE)) ->  | K93: =IF(F93=0,"",INDEX(APP_F!B:B,MATCH(DATA!B93,APP_F!A:A,0))) ->  | L93: =IF(F93=0,"",VLOOKUP(C93,APP_E!A:D,4,FALSE)) ->  | M93: =IF(F93=0,"",INDEX(APP_A!$B$27:$B$61,MATCH(DATA!H93&" "&DATA!I93,APP_A!$A$27:$A$61,0))) -> 
A94: 1274 | B94: EST20939_001 | C94: AC2180 | D94: 16878.19 | E94: 0 | F94: 0 | G94: ICM | H94: B4 | I94: O/H Grid System - O/H Infrastructure | J94: =IF(F94=0,"",VLOOKUP(C94,APP_E!A:C,3,FALSE)) ->  | K94: =IF(F94=0,"",INDEX(APP_F!B:B,MATCH(DATA!B94,APP_F!A:A,0))) ->  | L94: =IF(F94=0,"",VLOOKUP(C94,APP_E!A:D,4,FALSE)) ->  | M94: =IF(F94=0,"",INDEX(APP_A!$B$27:$B$61,MATCH(DATA!H94&" "&DATA!I94,APP_A!$A$27:$A$61,0))) -> 
A95: 1274 | B95: EST20939_001 | C95: AC2360 | D95: 618952.53 | E95: 0 | F95: 0 | G95: ICM | H95: B4 | I95: O/H Grid System - O/H Infrastructure | J95: =IF(F95=0,"",VLOOKUP(C95,APP_E!A:C,3,FALSE)) ->  | K95: =IF(F95=0,"",INDEX(APP_F!B:B,MATCH(DATA!B95,APP_F!A:A,0))) ->  | L95: =IF(F95=0,"",VLOOKUP(C95,APP_E!A:D,4,FALSE)) ->  | M95: =IF(F95=0,"",INDEX(APP_A!$B$27:$B$61,MATCH(DATA!H95&" "&DATA!I95,APP_A!$A$27:$A$61,0))) -> 
A96: 1274 | B96: EST20939_001 | C96: AC2500 | D96: 16449.22 | E96: 0 | F96: 0 | G96: ICM | H96: B4 | I96: O/H Grid System - O/H Infrastructure | J96: =IF(F96=0,"",VLOOKUP(C96,APP_E!A:C,3,FALSE)) ->  | K96: =IF(F96=0,"",INDEX(APP_F!B:B,MATCH(DATA!B96,APP_F!A:A,0))) ->  | L96: =IF(F96=0,"",VLOOKUP(C96,APP_E!A:D,4,FALSE)) ->  | M96: =IF(F96=0,"",INDEX(APP_A!$B$27:$B$61,MATCH(DATA!H96&" "&DATA!I96,APP_A!$A$27:$A$61,0))) -> 
A97: 1249 | B97: EST21101_001 | C97: AC2261 | D97: 48482.49626 | E97: 0 | F97: 0 | G97: ICM | H97: B5 | I97: O/H Grid System - Box Construction | J97: =IF(F97=0,"",VLOOKUP(C97,APP_E!A:C,3,FALSE)) ->  | K97: =IF(F97=0,"",INDEX(APP_F!B:B,MATCH(DATA!B97,APP_F!A:A,0))) ->  | L97: =IF(F97=0,"",VLOOKUP(C97,APP_E!A:D,4,FALSE)) ->  | M97: =IF(F97=0,"",INDEX(APP_A!$B$27:$B$61,MATCH(DATA!H97&" "&DATA!I97,APP_A!$A$27:$A$61,0))) -> 
A98: 1249 | B98: EST21101_001 | C98: AC2262 | D98: 9437.121993 | E98: 0 | F98: 0 | G98: ICM | H98: B5 | I98: O/H Grid System - Box Construction | J98: =IF(F98=0,"",VLOOKUP(C98,APP_E!A:C,3,FALSE)) ->  | K98: =IF(F98=0,"",INDEX(APP_F!B:B,MATCH(DATA!B98,APP_F!A:A,0))) ->  | L98: =IF(F98=0,"",VLOOKUP(C98,APP_E!A:D,4,FALSE)) ->  | M98: =IF(F98=0,"",INDEX(APP_A!$B$27:$B$61,MATCH(DATA!H98&" "&DATA!I98,APP_A!$A$27:$A$61,0))) -> 
A99: 1249 | B99: EST21101_001 | C99: AC2263 | D99: 24506.13175 | E99: 0 | F99: 0 | G99: ICM | H99: B5 | I99: O/H Grid System - Box Construction | J99: =IF(F99=0,"",VLOOKUP(C99,APP_E!A:C,3,FALSE)) ->  | K99: =IF(F99=0,"",INDEX(APP_F!B:B,MATCH(DATA!B99,APP_F!A:A,0))) ->  | L99: =IF(F99=0,"",VLOOKUP(C99,APP_E!A:D,4,FALSE)) ->  | M99: =IF(F99=0,"",INDEX(APP_A!$B$27:$B$61,MATCH(DATA!H99&" "&DATA!I99,APP_A!$A$27:$A$61,0))) -> 
A100: 1249 | B100: EST21101_001 | C100: AC2280 | D100: 1972.388081 | E100: 0 | F100: 0 | G100: ICM | H100: B5 | I100: O/H Grid System - Box Construction | J100: =IF(F100=0,"",VLOOKUP(C100,APP_E!A:C,3,FALSE)) ->  | K100: =IF(F100=0,"",INDEX(APP_F!B:B,MATCH(DATA!B100,APP_F!A:A,0))) ->  | L100: =IF(F100=0,"",VLOOKUP(C100,APP_E!A:D,4,FALSE)) ->  | M100: =IF(F100=0,"",INDEX(APP_A!$B$27:$B$61,MATCH(DATA!H100&" "&DATA!I100,APP_A!$A$27:$A$61,0))) -> 
A101: 1249 | B101: EST21101_001 | C101: AC2380 | D101: 156765.2319 | E101: 0 | F101: 0 | G101: ICM | H101: B5 | I101: O/H Grid System - Box Construction | J101: =IF(F101=0,"",VLOOKUP(C101,APP_E!A:C,3,FALSE)) ->  | K101: =IF(F101=0,"",INDEX(APP_F!B:B,MATCH(DATA!B101,APP_F!A:A,0))) ->  | L101: =IF(F101=0,"",VLOOKUP(C101,APP_E!A:D,4,FALSE)) ->  | M101: =IF(F101=0,"",INDEX(APP_A!$B$27:$B$61,MATCH(DATA!H101&" "&DATA!I101,APP_A!$A$27:$A$61,0))) -> 
A102: 1279 | B102: EST22229_001 | C102: AC2120 | D102: 36069.13536 | E102: 0 | F102: 0 | G102: ICM | H102: B4 | I102: O/H Grid System - O/H Infrastructure | J102: =IF(F102=0,"",VLOOKUP(C102,APP_E!A:C,3,FALSE)) ->  | K102: =IF(F102=0,"",INDEX(APP_F!B:B,MATCH(DATA!B102,APP_F!A:A,0))) ->  | L102: =IF(F102=0,"",VLOOKUP(C102,APP_E!A:D,4,FALSE)) ->  | M102: =IF(F102=0,"",INDEX(APP_A!$B$27:$B$61,MATCH(DATA!H102&" "&DATA!I102,APP_A!$A$27:$A$61,0))) -> 
A103: 1279 | B103: EST22229_001 | C103: AC2121 | D103: 411497.5046 | E103: 0 | F103: 0 | G103: ICM | H103: B4 | I103: O/H Grid System - O/H Infrastructure | J103: =IF(F103=0,"",VLOOKUP(C103,APP_E!A:C,3,FALSE)) ->  | K103: =IF(F103=0,"",INDEX(APP_F!B:B,MATCH(DATA!B103,APP_F!A:A,0))) ->  | L103: =IF(F103=0,"",VLOOKUP(C103,APP_E!A:D,4,FALSE)) ->  | M103: =IF(F103=0,"",INDEX(APP_A!$B$27:$B$61,MATCH(DATA!H103&" "&DATA!I103,APP_A!$A$27:$A$61,0))) -> 
A104: 1279 | B104: EST22229_001 | C104: AC2160 | D104: 67124.4433 | E104: 0 | F104: 0 | G104: ICM | H104: B4 | I104: O/H Grid System - O/H Infrastructure | J104: =IF(F104=0,"",VLOOKUP(C104,APP_E!A:C,3,FALSE)) ->  | K104: =IF(F104=0,"",INDEX(APP_F!B:B,MATCH(DATA!B104,APP_F!A:A,0))) ->  | L104: =IF(F104=0,"",VLOOKUP(C104,APP_E!A:D,4,FALSE)) ->  | M104: =IF(F104=0,"",INDEX(APP_A!$B$27:$B$61,MATCH(DATA!H104&" "&DATA!I104,APP_A!$A$27:$A$61,0))) -> 
A105: 1279 | B105: EST22229_001 | C105: AC2165 | D105: 114299.2167 | E105: 0 | F105: 0 | G105: ICM | H105: B4 | I105: O/H Grid System - O/H Infrastructure | J105: =IF(F105=0,"",VLOOKUP(C105,APP_E!A:C,3,FALSE)) ->  | K105: =IF(F105=0,"",INDEX(APP_F!B:B,MATCH(DATA!B105,APP_F!A:A,0))) ->  | L105: =IF(F105=0,"",VLOOKUP(C105,APP_E!A:D,4,FALSE)) ->  | M105: =IF(F105=0,"",INDEX(APP_A!$B$27:$B$61,MATCH(DATA!H105&" "&DATA!I105,APP_A!$A$27:$A$61,0))) -> 
A106: 1279 | B106: EST22229_001 | C106: AC2281 | D106: 87635.24 | E106: 0 | F106: 0 | G106: ICM | H106: B4 | I106: O/H Grid System - O/H Infrastructure | J106: =IF(F106=0,"",VLOOKUP(C106,APP_E!A:C,3,FALSE)) ->  | K106: =IF(F106=0,"",INDEX(APP_F!B:B,MATCH(DATA!B106,APP_F!A:A,0))) ->  | L106: =IF(F106=0,"",VLOOKUP(C106,APP_E!A:D,4,FALSE)) ->  | M106: =IF(F106=0,"",INDEX(APP_A!$B$27:$B$61,MATCH(DATA!H106&" "&DATA!I106,APP_A!$A$27:$A$61,0))) -> 
A107: 1011 | B107: EST26106_001 | C107: AC2243 | D107: 16251.9 | E107: 0.4465190316 | F107: 7256.782649 | G107: Threshold | H107: C1 | I107: Station to Station Load Transfers | J107: =IF(F107=0,"",VLOOKUP(C107,APP_E!A:C,3,FALSE)) -> 1840_Underground Conduit | K107: =IF(F107=0,"",INDEX(APP_F!B:B,MATCH(DATA!B107,APP_F!A:A,0))) -> 26106_001 X13470 Transfer A256DN to A5-6W 2013 | L107: =IF(F107=0,"",VLOOKUP(C107,APP_E!A:D,4,FALSE)) -> 1840_Underground Conduit - Cable Chamber | M107: =IF(F107=0,"",INDEX(APP_A!$B$27:$B$61,MATCH(DATA!H107&" "&DATA!I107,APP_A!$A$27:$A$61,0))) -> Threshold
A108: 1011 | B108: EST26106_001 | C108: AC2261 | D108: 266080.2101 | E108: 0.4465190316 | F108: 118809.8777 | G108: Threshold | H108: C1 | I108: Station to Station Load Transfers | J108: =IF(F108=0,"",VLOOKUP(C108,APP_E!A:C,3,FALSE)) -> 1845_Underground Conductors and Devices | K108: =IF(F108=0,"",INDEX(APP_F!B:B,MATCH(DATA!B108,APP_F!A:A,0))) -> 26106_001 X13470 Transfer A256DN to A5-6W 2013 | L108: =IF(F108=0,"",VLOOKUP(C108,APP_E!A:D,4,FALSE)) -> 1845_Underground Conductors and Devices - Prim Cable burried (xLPE) | M108: =IF(F108=0,"",INDEX(APP_A!$B$27:$B$61,MATCH(DATA!H108&" "&DATA!I108,APP_A!$A$27:$A$61,0))) -> Threshold
A109: 1011 | B109: EST26106_001 | C109: AC2262 | D109: 51792.55171 | E109: 0.4465190316 | F109: 23126.36003 | G109: Threshold | H109: C1 | I109: Station to Station Load Transfers | J109: =IF(F109=0,"",VLOOKUP(C109,APP_E!A:C,3,FALSE)) -> 1845_Underground Conductors and Devices | K109: =IF(F109=0,"",INDEX(APP_F!B:B,MATCH(DATA!B109,APP_F!A:A,0))) -> 26106_001 X13470 Transfer A256DN to A5-6W 2013 | L109: =IF(F109=0,"",VLOOKUP(C109,APP_E!A:D,4,FALSE)) -> 1845_Underground Conductors and Devices | M109: =IF(F109=0,"",INDEX(APP_A!$B$27:$B$61,MATCH(DATA!H109&" "&DATA!I109,APP_A!$A$27:$A$61,0))) -> Threshold
A110: 1011 | B110: EST26106_001 | C110: AC2263 | D110: 134493.8382 | E110: 0.4465190316 | F110: 60054.05837 | G110: Threshold | H110: C1 | I110: Station to Station Load Transfers | J110: =IF(F110=0,"",VLOOKUP(C110,APP_E!A:C,3,FALSE)) -> 1845_Underground Conductors and Devices | K110: =IF(F110=0,"",INDEX(APP_F!B:B,MATCH(DATA!B110,APP_F!A:A,0))) -> 26106_001 X13470 Transfer A256DN to A5-6W 2013 | L110: =IF(F110=0,"",VLOOKUP(C110,APP_E!A:D,4,FALSE)) -> 1845_Underground Conductors and Devices | M110: =IF(F110=0,"",INDEX(APP_A!$B$27:$B$61,MATCH(DATA!H110&" "&DATA!I110,APP_A!$A$27:$A$61,0))) -> Threshold
A111: 875 | B111: EST22205_001 | C111: AC2120 | D111: 11641.24685 | E111: 0.5467696081 | F111: 6365.079975 | G111: ICM | H111: B4 | I111: O/H Grid System - O/H Infrastructure | J111: =IF(F111=0,"",VLOOKUP(C111,APP_E!A:C,3,FALSE)) -> 1830_Poles Towers and Fixtures | K111: =IF(F111=0,"",INDEX(APP_F!B:B,MATCH(DATA!B111,APP_F!A:A,0))) -> 22205_001 E11765Pole Replacement Deanvar Ave CE-F1 | L111: =IF(F111=0,"",VLOOKUP(C111,APP_E!A:D,4,FALSE)) -> 1830_Poles Towers and Fixtures | M111: =IF(F111=0,"",INDEX(APP_A!$B$27:$B$61,MATCH(DATA!H111&" "&DATA!I111,APP_A!$A$27:$A$61,0))) -> B4 Overhead Infrastructure
A112: 875 | B112: EST22205_001 | C112: AC2121 | D112: 132810.0232 | E112: 0.5467696081 | F112: 72616.48431 | G112: ICM | H112: B4 | I112: O/H Grid System - O/H Infrastructure | J112: =IF(F112=0,"",VLOOKUP(C112,APP_E!A:C,3,FALSE)) -> 1830_Poles Towers and Fixtures | K112: =IF(F112=0,"",INDEX(APP_F!B:B,MATCH(DATA!B112,APP_F!A:A,0))) -> 22205_001 E11765Pole Replacement Deanvar Ave CE-F1 | L112: =IF(F112=0,"",VLOOKUP(C112,APP_E!A:D,4,FALSE)) -> 1830_Poles Towers and Fixtures | M112: =IF(F112=0,"",INDEX(APP_A!$B$27:$B$61,MATCH(DATA!H112&" "&DATA!I112,APP_A!$A$27:$A$61,0))) -> B4 Overhead Infrastructure
A113: 875 | B113: EST22205_001 | C113: AC2160 | D113: 33140.01288 | E113: 0.5467696081 | F113: 18119.95185 | G113: ICM | H113: B4 | I113: O/H Grid System - O/H Infrastructure | J113: =IF(F113=0,"",VLOOKUP(C113,APP_E!A:C,3,FALSE)) -> 1835_Overhead Conductors and Devices | K113: =IF(F113=0,"",INDEX(APP_F!B:B,MATCH(DATA!B113,APP_F!A:A,0))) -> 22205_001 E11765Pole Replacement Deanvar Ave CE-F1 | L113: =IF(F113=0,"",VLOOKUP(C113,APP_E!A:D,4,FALSE)) -> 1835_Overhead Conductors and Devices | M113: =IF(F113=0,"",INDEX(APP_A!$B$27:$B$61,MATCH(DATA!H113&" "&DATA!I113,APP_A!$A$27:$A$61,0))) -> B4 Overhead Infrastructure
A114: 875 | B114: EST22205_001 | C114: AC2165 | D114: 56430.66712 | E114: 0.5467696081 | F114: 30854.57374 | G114: ICM | H114: B4 | I114: O/H Grid System - O/H Infrastructure | J114: =IF(F114=0,"",VLOOKUP(C114,APP_E!A:C,3,FALSE)) -> 1835_Overhead Conductors and Devices | K114: =IF(F114=0,"",INDEX(APP_F!B:B,MATCH(DATA!B114,APP_F!A:A,0))) -> 22205_001 E11765Pole Replacement Deanvar Ave CE-F1 | L114: =IF(F114=0,"",VLOOKUP(C114,APP_E!A:D,4,FALSE)) -> 1835_Overhead Conductors and Devices | M114: =IF(F114=0,"",INDEX(APP_A!$B$27:$B$61,MATCH(DATA!H114&" "&DATA!I114,APP_A!$A$27:$A$61,0))) -> B4 Overhead Infrastructure
A115: 875 | B115: EST22205_001 | C115: AC2360 | D115: 51538.89 | E115: 0.5467696081 | F115: 28179.89869 | G115: ICM | H115: B4 | I115: O/H Grid System - O/H Infrastructure | J115: =IF(F115=0,"",VLOOKUP(C115,APP_E!A:C,3,FALSE)) -> 1850_Line Transformers | K115: =IF(F115=0,"",INDEX(APP_F!B:B,MATCH(DATA!B115,APP_F!A:A,0))) -> 22205_001 E11765Pole Replacement Deanvar Ave CE-F1 | L115: =IF(F115=0,"",VLOOKUP(C115,APP_E!A:D,4,FALSE)) -> 1850_Line Transformers - OH | M115: =IF(F115=0,"",INDEX(APP_A!$B$27:$B$61,MATCH(DATA!H115&" "&DATA!I115,APP_A!$A$27:$A$61,0))) -> B4 Overhead Infrastructure
A116: 661 | B116: EST20365_001 | C116: AC2120 | D116: 73291.16637 | E116: 0 | F116: 0 | G116: ICM | H116: B5 | I116: O/H Grid System - Box Construction | J116: =IF(F116=0,"",VLOOKUP(C116,APP_E!A:C,3,FALSE)) ->  | K116: =IF(F116=0,"",INDEX(APP_F!B:B,MATCH(DATA!B116,APP_F!A:A,0))) ->  | L116: =IF(F116=0,"",VLOOKUP(C116,APP_E!A:D,4,FALSE)) ->  | M116: =IF(F116=0,"",INDEX(APP_A!$B$27:$B$61,MATCH(DATA!H116&" "&DATA!I116,APP_A!$A$27:$A$61,0))) -> 
A117: 661 | B117: EST20365_001 | C117: AC2121 | D117: 836147.8536 | E117: 0 | F117: 0 | G117: ICM | H117: B5 | I117: O/H Grid System - Box Construction | J117: =IF(F117=0,"",VLOOKUP(C117,APP_E!A:C,3,FALSE)) ->  | K117: =IF(F117=0,"",INDEX(APP_F!B:B,MATCH(DATA!B117,APP_F!A:A,0))) ->  | L117: =IF(F117=0,"",VLOOKUP(C117,APP_E!A:D,4,FALSE)) ->  | M117: =IF(F117=0,"",INDEX(APP_A!$B$27:$B$61,MATCH(DATA!H117&" "&DATA!I117,APP_A!$A$27:$A$61,0))) -> 
A118: 661 | B118: EST20365_001 | C118: AC2160 | D118: 161658.0553 | E118: 0 | F118: 0 | G118: ICM | H118: B5 | I118: O/H Grid System - Box Construction | J118: =IF(F118=0,"",VLOOKUP(C118,APP_E!A:C,3,FALSE)) ->  | K118: =IF(F118=0,"",INDEX(APP_F!B:B,MATCH(DATA!B118,APP_F!A:A,0))) ->  | L118: =IF(F118=0,"",VLOOKUP(C118,APP_E!A:D,4,FALSE)) ->  | M118: =IF(F118=0,"",INDEX(APP_A!$B$27:$B$61,MATCH(DATA!H118&" "&DATA!I118,APP_A!$A$27:$A$61,0))) -> 
A119: 661 | B119: EST20365_001 | C119: AC2165 | D119: 275270.6347 | E119: 0 | F119: 0 | G119: ICM | H119: B5 | I119: O/H Grid System - Box Construction | J119: =IF(F119=0,"",VLOOKUP(C119,APP_E!A:C,3,FALSE)) ->  | K119: =IF(F119=0,"",INDEX(APP_F!B:B,MATCH(DATA!B119,APP_F!A:A,0))) ->  | L119: =IF(F119=0,"",VLOOKUP(C119,APP_E!A:D,4,FALSE)) ->  | M119: =IF(F119=0,"",INDEX(APP_A!$B$27:$B$61,MATCH(DATA!H119&" "&DATA!I119,APP_A!$A$27:$A$61,0))) -> 
A120: 661 | B120: EST20365_001 | C120: AC2180 | D120: 54282.08 | E120: 0 | F120: 0 | G120: ICM | H120: B5 | I120: O/H Grid System - Box Construction | J120: =IF(F120=0,"",VLOOKUP(C120,APP_E!A:C,3,FALSE)) ->  | K120: =IF(F120=0,"",INDEX(APP_F!B:B,MATCH(DATA!B120,APP_F!A:A,0))) ->  | L120: =IF(F120=0,"",VLOOKUP(C120,APP_E!A:D,4,FALSE)) ->  | M120: =IF(F120=0,"",INDEX(APP_A!$B$27:$B$61,MATCH(DATA!H120&" "&DATA!I120,APP_A!$A$27:$A$61,0))) -> 
A121: 661 | B121: EST20365_001 | C121: AC2261 | D121: 287894.2195 | E121: 0 | F121: 0 | G121: ICM | H121: B5 | I121: O/H Grid System - Box Construction | J121: =IF(F121=0,"",VLOOKUP(C121,APP_E!A:C,3,FALSE)) ->  | K121: =IF(F121=0,"",INDEX(APP_F!B:B,MATCH(DATA!B121,APP_F!A:A,0))) ->  | L121: =IF(F121=0,"",VLOOKUP(C121,APP_E!A:D,4,FALSE)) ->  | M121: =IF(F121=0,"",INDEX(APP_A!$B$27:$B$61,MATCH(DATA!H121&" "&DATA!I121,APP_A!$A$27:$A$61,0))) -> 
A122: 661 | B122: EST20365_001 | C122: AC2262 | D122: 56038.65084 | E122: 0 | F122: 0 | G122: ICM | H122: B5 | I122: O/H Grid System - Box Construction | J122: =IF(F122=0,"",VLOOKUP(C122,APP_E!A:C,3,FALSE)) ->  | K122: =IF(F122=0,"",INDEX(APP_F!B:B,MATCH(DATA!B122,APP_F!A:A,0))) ->  | L122: =IF(F122=0,"",VLOOKUP(C122,APP_E!A:D,4,FALSE)) ->  | M122: =IF(F122=0,"",INDEX(APP_A!$B$27:$B$61,MATCH(DATA!H122&" "&DATA!I122,APP_A!$A$27:$A$61,0))) -> 
A123: 661 | B123: EST20365_001 | C123: AC2263 | D123: 145520.0297 | E123: 0 | F123: 0 | G123: ICM | H123: B5 | I123: O/H Grid System - Box Construction | J123: =IF(F123=0,"",VLOOKUP(C123,APP_E!A:C,3,FALSE)) ->  | K123: =IF(F123=0,"",INDEX(APP_F!B:B,MATCH(DATA!B123,APP_F!A:A,0))) ->  | L123: =IF(F123=0,"",VLOOKUP(C123,APP_E!A:D,4,FALSE)) ->  | M123: =IF(F123=0,"",INDEX(APP_A!$B$27:$B$61,MATCH(DATA!H123&" "&DATA!I123,APP_A!$A$27:$A$61,0))) -> 
A124: 661 | B124: EST20365_001 | C124: AC2281 | D124: 116074.14 | E124: 0 | F124: 0 | G124: ICM | H124: B5 | I124: O/H Grid System - Box Construction | J124: =IF(F124=0,"",VLOOKUP(C124,APP_E!A:C,3,FALSE)) ->  | K124: =IF(F124=0,"",INDEX(APP_F!B:B,MATCH(DATA!B124,APP_F!A:A,0))) ->  | L124: =IF(F124=0,"",VLOOKUP(C124,APP_E!A:D,4,FALSE)) ->  | M124: =IF(F124=0,"",INDEX(APP_A!$B$27:$B$61,MATCH(DATA!H124&" "&DATA!I124,APP_A!$A$27:$A$61,0))) -> 
A125: 661 | B125: EST20365_001 | C125: AC2360 | D125: 608562.02 | E125: 0 | F125: 0 | G125: ICM | H125: B5 | I125: O/H Grid System - Box Construction | J125: =IF(F125=0,"",VLOOKUP(C125,APP_E!A:C,3,FALSE)) ->  | K125: =IF(F125=0,"",INDEX(APP_F!B:B,MATCH(DATA!B125,APP_F!A:A,0))) ->  | L125: =IF(F125=0,"",VLOOKUP(C125,APP_E!A:D,4,FALSE)) ->  | M125: =IF(F125=0,"",INDEX(APP_A!$B$27:$B$61,MATCH(DATA!H125&" "&DATA!I125,APP_A!$A$27:$A$61,0))) -> 
A126: 661 | B126: EST20365_001 | C126: AC2400 | D126: 84475.97 | E126: 0 | F126: 0 | G126: ICM | H126: B5 | I126: O/H Grid System - Box Construction | J126: =IF(F126=0,"",VLOOKUP(C126,APP_E!A:C,3,FALSE)) ->  | K126: =IF(F126=0,"",INDEX(APP_F!B:B,MATCH(DATA!B126,APP_F!A:A,0))) ->  | L126: =IF(F126=0,"",VLOOKUP(C126,APP_E!A:D,4,FALSE)) ->  | M126: =IF(F126=0,"",INDEX(APP_A!$B$27:$B$61,MATCH(DATA!H126&" "&DATA!I126,APP_A!$A$27:$A$61,0))) -> 
A127: 661 | B127: EST20365_001 | C127: AC2500 | D127: 391739.92 | E127: 0 | F127: 0 | G127: ICM | H127: B5 | I127: O/H Grid System - Box Construction | J127: =IF(F127=0,"",VLOOKUP(C127,APP_E!A:C,3,FALSE)) ->  | K127: =IF(F127=0,"",INDEX(APP_F!B:B,MATCH(DATA!B127,APP_F!A:A,0))) ->  | L127: =IF(F127=0,"",VLOOKUP(C127,APP_E!A:D,4,FALSE)) ->  | M127: =IF(F127=0,"",INDEX(APP_A!$B$27:$B$61,MATCH(DATA!H127&" "&DATA!I127,APP_A!$A$27:$A$61,0))) -> 
A128: 661 | B128: EST20365_001 | C128: AC2520 | D128: 868.77 | E128: 0 | F128: 0 | G128: ICM | H128: B5 | I128: O/H Grid System - Box Construction | J128: =IF(F128=0,"",VLOOKUP(C128,APP_E!A:C,3,FALSE)) ->  | K128: =IF(F128=0,"",INDEX(APP_F!B:B,MATCH(DATA!B128,APP_F!A:A,0))) ->  | L128: =IF(F128=0,"",VLOOKUP(C128,APP_E!A:D,4,FALSE)) ->  | M128: =IF(F128=0,"",INDEX(APP_A!$B$27:$B$61,MATCH(DATA!H128&" "&DATA!I128,APP_A!$A$27:$A$61,0))) -> 
A129: 661 | B129: EST20365_001 | C129: AC2620 | D129: 1587.298398 | E129: 0 | F129: 0 | G129: ICM | H129: B5 | I129: O/H Grid System - Box Construction | J129: =IF(F129=0,"",VLOOKUP(C129,APP_E!A:C,3,FALSE)) ->  | K129: =IF(F129=0,"",INDEX(APP_F!B:B,MATCH(DATA!B129,APP_F!A:A,0))) ->  | L129: =IF(F129=0,"",VLOOKUP(C129,APP_E!A:D,4,FALSE)) ->  | M129: =IF(F129=0,"",INDEX(APP_A!$B$27:$B$61,MATCH(DATA!H129&" "&DATA!I129,APP_A!$A$27:$A$61,0))) -> 
A130: 661 | B130: EST20365_001 | C130: AC2640 | D130: 2037.201602 | E130: 0 | F130: 0 | G130: ICM | H130: B5 | I130: O/H Grid System - Box Construction | J130: =IF(F130=0,"",VLOOKUP(C130,APP_E!A:C,3,FALSE)) ->  | K130: =IF(F130=0,"",INDEX(APP_F!B:B,MATCH(DATA!B130,APP_F!A:A,0))) ->  | L130: =IF(F130=0,"",VLOOKUP(C130,APP_E!A:D,4,FALSE)) ->  | M130: =IF(F130=0,"",INDEX(APP_A!$B$27:$B$61,MATCH(DATA!H130&" "&DATA!I130,APP_A!$A$27:$A$61,0))) -> 
A131: 2235 | B131: EST20368_002 | C131: AC2120 | D131: 26167.32048 | E131: 0 | F131: 0 | G131: ICM | H131: B5 | I131: O/H Grid System - Box Construction | J131: =IF(F131=0,"",VLOOKUP(C131,APP_E!A:C,3,FALSE)) ->  | K131: =IF(F131=0,"",INDEX(APP_F!B:B,MATCH(DATA!B131,APP_F!A:A,0))) ->  | L131: =IF(F131=0,"",VLOOKUP(C131,APP_E!A:D,4,FALSE)) ->  | M131: =IF(F131=0,"",INDEX(APP_A!$B$27:$B$61,MATCH(DATA!H131&" "&DATA!I131,APP_A!$A$27:$A$61,0))) -> 
A132: 2235 | B132: EST20368_002 | C132: AC2121 | D132: 298531.8495 | E132: 0 | F132: 0 | G132: ICM | H132: B5 | I132: O/H Grid System - Box Construction | J132: =IF(F132=0,"",VLOOKUP(C132,APP_E!A:C,3,FALSE)) ->  | K132: =IF(F132=0,"",INDEX(APP_F!B:B,MATCH(DATA!B132,APP_F!A:A,0))) ->  | L132: =IF(F132=0,"",VLOOKUP(C132,APP_E!A:D,4,FALSE)) ->  | M132: =IF(F132=0,"",INDEX(APP_A!$B$27:$B$61,MATCH(DATA!H132&" "&DATA!I132,APP_A!$A$27:$A$61,0))) -> 
A133: 2235 | B133: EST20368_002 | C133: AC5023 | D133: 709.6827523 | E133: 0 | F133: 0 | G133: ICM | H133: B5 | I133: O/H Grid System - Box Construction | J133: =IF(F133=0,"",VLOOKUP(C133,APP_E!A:C,3,FALSE)) ->  | K133: =IF(F133=0,"",INDEX(APP_F!B:B,MATCH(DATA!B133,APP_F!A:A,0))) ->  | L133: =IF(F133=0,"",VLOOKUP(C133,APP_E!A:D,4,FALSE)) ->  | M133: =IF(F133=0,"",INDEX(APP_A!$B$27:$B$61,MATCH(DATA!H133&" "&DATA!I133,APP_A!$A$27:$A$61,0))) -> 
A134: 2235 | B134: EST20368_002 | C134: AC5020 | D134: 9519.487248 | E134: 0 | F134: 0 | G134: ICM | H134: B5 | I134: O/H Grid System - Box Construction | J134: =IF(F134=0,"",VLOOKUP(C134,APP_E!A:C,3,FALSE)) ->  | K134: =IF(F134=0,"",INDEX(APP_F!B:B,MATCH(DATA!B134,APP_F!A:A,0))) ->  | L134: =IF(F134=0,"",VLOOKUP(C134,APP_E!A:D,4,FALSE)) ->  | M134: =IF(F134=0,"",INDEX(APP_A!$B$27:$B$61,MATCH(DATA!H134&" "&DATA!I134,APP_A!$A$27:$A$61,0))) -> 
A135: 2235 | B135: EST20368_002 | C135: AC2160 | D135: 130004.2351 | E135: 0 | F135: 0 | G135: ICM | H135: B5 | I135: O/H Grid System - Box Construction | J135: =IF(F135=0,"",VLOOKUP(C135,APP_E!A:C,3,FALSE)) ->  | K135: =IF(F135=0,"",INDEX(APP_F!B:B,MATCH(DATA!B135,APP_F!A:A,0))) ->  | L135: =IF(F135=0,"",VLOOKUP(C135,APP_E!A:D,4,FALSE)) ->  | M135: =IF(F135=0,"",INDEX(APP_A!$B$27:$B$61,MATCH(DATA!H135&" "&DATA!I135,APP_A!$A$27:$A$61,0))) -> 
A136: 2235 | B136: EST20368_002 | C136: AC2165 | D136: 221370.6349 | E136: 0 | F136: 0 | G136: ICM | H136: B5 | I136: O/H Grid System - Box Construction | J136: =IF(F136=0,"",VLOOKUP(C136,APP_E!A:C,3,FALSE)) ->  | K136: =IF(F136=0,"",INDEX(APP_F!B:B,MATCH(DATA!B136,APP_F!A:A,0))) ->  | L136: =IF(F136=0,"",VLOOKUP(C136,APP_E!A:D,4,FALSE)) ->  | M136: =IF(F136=0,"",INDEX(APP_A!$B$27:$B$61,MATCH(DATA!H136&" "&DATA!I136,APP_A!$A$27:$A$61,0))) -> 
A137: 2235 | B137: EST20368_002 | C137: AC2180 | D137: 98766.04 | E137: 0 | F137: 0 | G137: ICM | H137: B5 | I137: O/H Grid System - Box Construction | J137: =IF(F137=0,"",VLOOKUP(C137,APP_E!A:C,3,FALSE)) ->  | K137: =IF(F137=0,"",INDEX(APP_F!B:B,MATCH(DATA!B137,APP_F!A:A,0))) ->  | L137: =IF(F137=0,"",VLOOKUP(C137,APP_E!A:D,4,FALSE)) ->  | M137: =IF(F137=0,"",INDEX(APP_A!$B$27:$B$61,MATCH(DATA!H137&" "&DATA!I137,APP_A!$A$27:$A$61,0))) -> 
A138: 2235 | B138: EST20368_002 | C138: AC2240 | D138: 109236.33 | E138: 0 | F138: 0 | G138: ICM | H138: B5 | I138: O/H Grid System - Box Construction | J138: =IF(F138=0,"",VLOOKUP(C138,APP_E!A:C,3,FALSE)) ->  | K138: =IF(F138=0,"",INDEX(APP_F!B:B,MATCH(DATA!B138,APP_F!A:A,0))) ->  | L138: =IF(F138=0,"",VLOOKUP(C138,APP_E!A:D,4,FALSE)) ->  | M138: =IF(F138=0,"",INDEX(APP_A!$B$27:$B$61,MATCH(DATA!H138&" "&DATA!I138,APP_A!$A$27:$A$61,0))) -> 
A139: 2235 | B139: EST20368_002 | C139: AC2241 | D139: 43694.53 | E139: 0 | F139: 0 | G139: ICM | H139: B5 | I139: O/H Grid System - Box Construction | J139: =IF(F139=0,"",VLOOKUP(C139,APP_E!A:C,3,FALSE)) ->  | K139: =IF(F139=0,"",INDEX(APP_F!B:B,MATCH(DATA!B139,APP_F!A:A,0))) ->  | L139: =IF(F139=0,"",VLOOKUP(C139,APP_E!A:D,4,FALSE)) ->  | M139: =IF(F139=0,"",INDEX(APP_A!$B$27:$B$61,MATCH(DATA!H139&" "&DATA!I139,APP_A!$A$27:$A$61,0))) -> 
A140: 2235 | B140: EST20368_002 | C140: AC2261 | D140: 59015.89612 | E140: 0 | F140: 0 | G140: ICM | H140: B5 | I140: O/H Grid System - Box Construction | J140: =IF(F140=0,"",VLOOKUP(C140,APP_E!A:C,3,FALSE)) ->  | K140: =IF(F140=0,"",INDEX(APP_F!B:B,MATCH(DATA!B140,APP_F!A:A,0))) ->  | L140: =IF(F140=0,"",VLOOKUP(C140,APP_E!A:D,4,FALSE)) ->  | M140: =IF(F140=0,"",INDEX(APP_A!$B$27:$B$61,MATCH(DATA!H140&" "&DATA!I140,APP_A!$A$27:$A$61,0))) -> 
A141: 2235 | B141: EST20368_002 | C141: AC2262 | D141: 11487.45557 | E141: 0 | F141: 0 | G141: ICM | H141: B5 | I141: O/H Grid System - Box Construction | J141: =IF(F141=0,"",VLOOKUP(C141,APP_E!A:C,3,FALSE)) ->  | K141: =IF(F141=0,"",INDEX(APP_F!B:B,MATCH(DATA!B141,APP_F!A:A,0))) ->  | L141: =IF(F141=0,"",VLOOKUP(C141,APP_E!A:D,4,FALSE)) ->  | M141: =IF(F141=0,"",INDEX(APP_A!$B$27:$B$61,MATCH(DATA!H141&" "&DATA!I141,APP_A!$A$27:$A$61,0))) -> 
A142: 2235 | B142: EST20368_002 | C142: AC2263 | D142: 29830.38831 | E142: 0 | F142: 0 | G142: ICM | H142: B5 | I142: O/H Grid System - Box Construction | J142: =IF(F142=0,"",VLOOKUP(C142,APP_E!A:C,3,FALSE)) ->  | K142: =IF(F142=0,"",INDEX(APP_F!B:B,MATCH(DATA!B142,APP_F!A:A,0))) ->  | L142: =IF(F142=0,"",VLOOKUP(C142,APP_E!A:D,4,FALSE)) ->  | M142: =IF(F142=0,"",INDEX(APP_A!$B$27:$B$61,MATCH(DATA!H142&" "&DATA!I142,APP_A!$A$27:$A$61,0))) -> 
A143: 2235 | B143: EST20368_002 | C143: AC2360 | D143: 197476.81 | E143: 0 | F143: =D143*E143 -> 0 | G143: ICM | H143: B5 | I143: O/H Grid System - Box Construction | J143: =IF(F143=0,"",VLOOKUP(C143,APP_E!A:C,3,FALSE)) ->  | K143: =IF(F143=0,"",INDEX(APP_F!B:B,MATCH(DATA!B143,APP_F!A:A,0))) ->  | L143: =IF(F143=0,"",VLOOKUP(C143,APP_E!A:D,4,FALSE)) ->  | M143: =IF(F143=0,"",INDEX(APP_A!$B$27:$B$61,MATCH(DATA!H143&" "&DATA!I143,APP_A!$A$27:$A$61,0))) -> 
A144: 2235 | B144: EST20368_002 | C144: AC2400 | D144: 35235.59 | E144: 0 | F144: 0 | G144: ICM | H144: B5 | I144: O/H Grid System - Box Construction | J144: =IF(F144=0,"",VLOOKUP(C144,APP_E!A:C,3,FALSE)) ->  | K144: =IF(F144=0,"",INDEX(APP_F!B:B,MATCH(DATA!B144,APP_F!A:A,0))) ->  | L144: =IF(F144=0,"",VLOOKUP(C144,APP_E!A:D,4,FALSE)) ->  | M144: =IF(F144=0,"",INDEX(APP_A!$B$27:$B$61,MATCH(DATA!H144&" "&DATA!I144,APP_A!$A$27:$A$61,0))) -> 
A145: 2235 | B145: EST20368_002 | C145: AC2500 | D145: 109034.1 | E145: 0 | F145: 0 | G145: ICM | H145: B5 | I145: O/H Grid System - Box Construction | J145: =IF(F145=0,"",VLOOKUP(C145,APP_E!A:C,3,FALSE)) ->  | K145: =IF(F145=0,"",INDEX(APP_F!B:B,MATCH(DATA!B145,APP_F!A:A,0))) ->  | L145: =IF(F145=0,"",VLOOKUP(C145,APP_E!A:D,4,FALSE)) ->  | M145: =IF(F145=0,"",INDEX(APP_A!$B$27:$B$61,MATCH(DATA!H145&" "&DATA!I145,APP_A!$A$27:$A$61,0))) -> 
A146: 2235 | B146: EST20368_002 | C146: AC2520 | D146: 31586.16 | E146: 0 | F146: 0 | G146: ICM | H146: B5 | I146: O/H Grid System - Box Construction | J146: =IF(F146=0,"",VLOOKUP(C146,APP_E!A:C,3,FALSE)) ->  | K146: =IF(F146=0,"",INDEX(APP_F!B:B,MATCH(DATA!B146,APP_F!A:A,0))) ->  | L146: =IF(F146=0,"",VLOOKUP(C146,APP_E!A:D,4,FALSE)) ->  | M146: =IF(F146=0,"",INDEX(APP_A!$B$27:$B$61,MATCH(DATA!H146&" "&DATA!I146,APP_A!$A$27:$A$61,0))) -> 
A147: 1858 | B147: EST26935_001 | C147: AC2120 | D147: 27330.24274 | E147: 0 | F147: 0 | G147: ICM | H147: B5 | I147: O/H Grid System - Box Construction | J147: =IF(F147=0,"",VLOOKUP(C147,APP_E!A:C,3,FALSE)) ->  | K147: =IF(F147=0,"",INDEX(APP_F!B:B,MATCH(DATA!B147,APP_F!A:A,0))) ->  | L147: =IF(F147=0,"",VLOOKUP(C147,APP_E!A:D,4,FALSE)) ->  | M147: =IF(F147=0,"",INDEX(APP_A!$B$27:$B$61,MATCH(DATA!H147&" "&DATA!I147,APP_A!$A$27:$A$61,0))) -> 
A148: 1858 | B148: EST26935_001 | C148: AC2121 | D148: 311799.1873 | E148: 0 | F148: 0 | G148: ICM | H148: B5 | I148: O/H Grid System - Box Construction | J148: =IF(F148=0,"",VLOOKUP(C148,APP_E!A:C,3,FALSE)) ->  | K148: =IF(F148=0,"",INDEX(APP_F!B:B,MATCH(DATA!B148,APP_F!A:A,0))) ->  | L148: =IF(F148=0,"",VLOOKUP(C148,APP_E!A:D,4,FALSE)) ->  | M148: =IF(F148=0,"",INDEX(APP_A!$B$27:$B$61,MATCH(DATA!H148&" "&DATA!I148,APP_A!$A$27:$A$61,0))) -> 
A149: 1858 | B149: EST26935_001 | C149: AC5023 | D149: 765.5239842 | E149: 0 | F149: 0 | G149: ICM | H149: B5 | I149: O/H Grid System - Box Construction | J149: =IF(F149=0,"",VLOOKUP(C149,APP_E!A:C,3,FALSE)) ->  | K149: =IF(F149=0,"",INDEX(APP_F!B:B,MATCH(DATA!B149,APP_F!A:A,0))) ->  | L149: =IF(F149=0,"",VLOOKUP(C149,APP_E!A:D,4,FALSE)) ->  | M149: =IF(F149=0,"",INDEX(APP_A!$B$27:$B$61,MATCH(DATA!H149&" "&DATA!I149,APP_A!$A$27:$A$61,0))) -> 
A150: 1858 | B150: EST26935_001 | C150: AC5020 | D150: 10268.52602 | E150: 0 | F150: 0 | G150: ICM | H150: B5 | I150: O/H Grid System - Box Construction | J150: =IF(F150=0,"",VLOOKUP(C150,APP_E!A:C,3,FALSE)) ->  | K150: =IF(F150=0,"",INDEX(APP_F!B:B,MATCH(DATA!B150,APP_F!A:A,0))) ->  | L150: =IF(F150=0,"",VLOOKUP(C150,APP_E!A:D,4,FALSE)) ->  | M150: =IF(F150=0,"",INDEX(APP_A!$B$27:$B$61,MATCH(DATA!H150&" "&DATA!I150,APP_A!$A$27:$A$61,0))) -> 
A151: 1858 | B151: EST26935_001 | C151: AC2160 | D151: 93549.5844 | E151: 0 | F151: 0 | G151: ICM | H151: B5 | I151: O/H Grid System - Box Construction | J151: =IF(F151=0,"",VLOOKUP(C151,APP_E!A:C,3,FALSE)) ->  | K151: =IF(F151=0,"",INDEX(APP_F!B:B,MATCH(DATA!B151,APP_F!A:A,0))) ->  | L151: =IF(F151=0,"",VLOOKUP(C151,APP_E!A:D,4,FALSE)) ->  | M151: =IF(F151=0,"",INDEX(APP_A!$B$27:$B$61,MATCH(DATA!H151&" "&DATA!I151,APP_A!$A$27:$A$61,0))) -> 
A152: 1858 | B152: EST26935_001 | C152: AC2165 | D152: 159295.8156 | E152: 0 | F152: 0 | G152: ICM | H152: B5 | I152: O/H Grid System - Box Construction | J152: =IF(F152=0,"",VLOOKUP(C152,APP_E!A:C,3,FALSE)) ->  | K152: =IF(F152=0,"",INDEX(APP_F!B:B,MATCH(DATA!B152,APP_F!A:A,0))) ->  | L152: =IF(F152=0,"",VLOOKUP(C152,APP_E!A:D,4,FALSE)) ->  | M152: =IF(F152=0,"",INDEX(APP_A!$B$27:$B$61,MATCH(DATA!H152&" "&DATA!I152,APP_A!$A$27:$A$61,0))) -> 
A153: 1858 | B153: EST26935_001 | C153: AC2180 | D153: 32783.42 | E153: 0 | F153: 0 | G153: ICM | H153: B5 | I153: O/H Grid System - Box Construction | J153: =IF(F153=0,"",VLOOKUP(C153,APP_E!A:C,3,FALSE)) ->  | K153: =IF(F153=0,"",INDEX(APP_F!B:B,MATCH(DATA!B153,APP_F!A:A,0))) ->  | L153: =IF(F153=0,"",VLOOKUP(C153,APP_E!A:D,4,FALSE)) ->  | M153: =IF(F153=0,"",INDEX(APP_A!$B$27:$B$61,MATCH(DATA!H153&" "&DATA!I153,APP_A!$A$27:$A$61,0))) -> 
A154: 1858 | B154: EST26935_001 | C154: AC2240 | D154: 6692.58 | E154: 0 | F154: 0 | G154: ICM | H154: B5 | I154: O/H Grid System - Box Construction | J154: =IF(F154=0,"",VLOOKUP(C154,APP_E!A:C,3,FALSE)) ->  | K154: =IF(F154=0,"",INDEX(APP_F!B:B,MATCH(DATA!B154,APP_F!A:A,0))) ->  | L154: =IF(F154=0,"",VLOOKUP(C154,APP_E!A:D,4,FALSE)) ->  | M154: =IF(F154=0,"",INDEX(APP_A!$B$27:$B$61,MATCH(DATA!H154&" "&DATA!I154,APP_A!$A$27:$A$61,0))) -> 
A155: 1858 | B155: EST26935_001 | C155: AC2261 | D155: 86312.79807 | E155: 0 | F155: 0 | G155: ICM | H155: B5 | I155: O/H Grid System - Box Construction | J155: =IF(F155=0,"",VLOOKUP(C155,APP_E!A:C,3,FALSE)) ->  | K155: =IF(F155=0,"",INDEX(APP_F!B:B,MATCH(DATA!B155,APP_F!A:A,0))) ->  | L155: =IF(F155=0,"",VLOOKUP(C155,APP_E!A:D,4,FALSE)) ->  | M155: =IF(F155=0,"",INDEX(APP_A!$B$27:$B$61,MATCH(DATA!H155&" "&DATA!I155,APP_A!$A$27:$A$61,0))) -> 
A156: 1858 | B156: EST26935_001 | C156: AC2262 | D156: 16800.79906 | E156: 0 | F156: 0 | G156: ICM | H156: B5 | I156: O/H Grid System - Box Construction | J156: =IF(F156=0,"",VLOOKUP(C156,APP_E!A:C,3,FALSE)) ->  | K156: =IF(F156=0,"",INDEX(APP_F!B:B,MATCH(DATA!B156,APP_F!A:A,0))) ->  | L156: =IF(F156=0,"",VLOOKUP(C156,APP_E!A:D,4,FALSE)) ->  | M156: =IF(F156=0,"",INDEX(APP_A!$B$27:$B$61,MATCH(DATA!H156&" "&DATA!I156,APP_A!$A$27:$A$61,0))) -> 
A157: 1858 | B157: EST26935_001 | C157: AC2263 | D157: 43627.97286 | E157: 0 | F157: 0 | G157: ICM | H157: B5 | I157: O/H Grid System - Box Construction | J157: =IF(F157=0,"",VLOOKUP(C157,APP_E!A:C,3,FALSE)) ->  | K157: =IF(F157=0,"",INDEX(APP_F!B:B,MATCH(DATA!B157,APP_F!A:A,0))) ->  | L157: =IF(F157=0,"",VLOOKUP(C157,APP_E!A:D,4,FALSE)) ->  | M157: =IF(F157=0,"",INDEX(APP_A!$B$27:$B$61,MATCH(DATA!H157&" "&DATA!I157,APP_A!$A$27:$A$61,0))) -> 
A158: 1858 | B158: EST26935_001 | C158: AC2360 | D158: 303364.08 | E158: 0 | F158: 0 | G158: ICM | H158: B5 | I158: O/H Grid System - Box Construction | J158: =IF(F158=0,"",VLOOKUP(C158,APP_E!A:C,3,FALSE)) ->  | K158: =IF(F158=0,"",INDEX(APP_F!B:B,MATCH(DATA!B158,APP_F!A:A,0))) ->  | L158: =IF(F158=0,"",VLOOKUP(C158,APP_E!A:D,4,FALSE)) ->  | M158: =IF(F158=0,"",INDEX(APP_A!$B$27:$B$61,MATCH(DATA!H158&" "&DATA!I158,APP_A!$A$27:$A$61,0))) -> 
A159: 1858 | B159: EST26935_001 | C159: AC2400 | D159: 4147.96 | E159: 0 | F159: 0 | G159: ICM | H159: B5 | I159: O/H Grid System - Box Construction | J159: =IF(F159=0,"",VLOOKUP(C159,APP_E!A:C,3,FALSE)) ->  | K159: =IF(F159=0,"",INDEX(APP_F!B:B,MATCH(DATA!B159,APP_F!A:A,0))) ->  | L159: =IF(F159=0,"",VLOOKUP(C159,APP_E!A:D,4,FALSE)) ->  | M159: =IF(F159=0,"",INDEX(APP_A!$B$27:$B$61,MATCH(DATA!H159&" "&DATA!I159,APP_A!$A$27:$A$61,0))) -> 
A160: 1858 | B160: EST26935_001 | C160: AC2500 | D160: 6990.67 | E160: 0 | F160: 0 | G160: ICM | H160: B5 | I160: O/H Grid System - Box Construction | J160: =IF(F160=0,"",VLOOKUP(C160,APP_E!A:C,3,FALSE)) ->  | K160: =IF(F160=0,"",INDEX(APP_F!B:B,MATCH(DATA!B160,APP_F!A:A,0))) ->  | L160: =IF(F160=0,"",VLOOKUP(C160,APP_E!A:D,4,FALSE)) ->  | M160: =IF(F160=0,"",INDEX(APP_A!$B$27:$B$61,MATCH(DATA!H160&" "&DATA!I160,APP_A!$A$27:$A$61,0))) -> 
A161: 1858 | B161: EST26935_001 | C161: AC2520 | D161: 7019.72 | E161: 0 | F161: 0 | G161: ICM | H161: B5 | I161: O/H Grid System - Box Construction | J161: =IF(F161=0,"",VLOOKUP(C161,APP_E!A:C,3,FALSE)) ->  | K161: =IF(F161=0,"",INDEX(APP_F!B:B,MATCH(DATA!B161,APP_F!A:A,0))) ->  | L161: =IF(F161=0,"",VLOOKUP(C161,APP_E!A:D,4,FALSE)) ->  | M161: =IF(F161=0,"",INDEX(APP_A!$B$27:$B$61,MATCH(DATA!H161&" "&DATA!I161,APP_A!$A$27:$A$61,0))) -> 
A162: 1855 | B162: EST26953_001 | C162: AC2261 | D162: 578459.5464 | E162: 0 | F162: 0 | G162: ICM | H162: B5 | I162: O/H Grid System - Box Construction | J162: =IF(F162=0,"",VLOOKUP(C162,APP_E!A:C,3,FALSE)) ->  | K162: =IF(F162=0,"",INDEX(APP_F!B:B,MATCH(DATA!B162,APP_F!A:A,0))) ->  | L162: =IF(F162=0,"",VLOOKUP(C162,APP_E!A:D,4,FALSE)) ->  | M162: =IF(F162=0,"",INDEX(APP_A!$B$27:$B$61,MATCH(DATA!H162&" "&DATA!I162,APP_A!$A$27:$A$61,0))) -> 
A163: 1855 | B163: EST26953_001 | C163: AC2262 | D163: 112597.2296 | E163: 0 | F163: 0 | G163: ICM | H163: B5 | I163: O/H Grid System - Box Construction | J163: =IF(F163=0,"",VLOOKUP(C163,APP_E!A:C,3,FALSE)) ->  | K163: =IF(F163=0,"",INDEX(APP_F!B:B,MATCH(DATA!B163,APP_F!A:A,0))) ->  | L163: =IF(F163=0,"",VLOOKUP(C163,APP_E!A:D,4,FALSE)) ->  | M163: =IF(F163=0,"",INDEX(APP_A!$B$27:$B$61,MATCH(DATA!H163&" "&DATA!I163,APP_A!$A$27:$A$61,0))) -> 
A164: 1855 | B164: EST26953_001 | C164: AC2263 | D164: 292390.204 | E164: 0 | F164: 0 | G164: ICM | H164: B5 | I164: O/H Grid System - Box Construction | J164: =IF(F164=0,"",VLOOKUP(C164,APP_E!A:C,3,FALSE)) ->  | K164: =IF(F164=0,"",INDEX(APP_F!B:B,MATCH(DATA!B164,APP_F!A:A,0))) ->  | L164: =IF(F164=0,"",VLOOKUP(C164,APP_E!A:D,4,FALSE)) ->  | M164: =IF(F164=0,"",INDEX(APP_A!$B$27:$B$61,MATCH(DATA!H164&" "&DATA!I164,APP_A!$A$27:$A$61,0))) -> 
A165: 1275 | B165: EST27981_001 | C165: AC2120 | D165: 3275.158654 | E165: 0 | F165: 0 | G165: ICM | H165: B4 | I165: O/H Grid System - O/H Infrastructure | J165: =IF(F165=0,"",VLOOKUP(C165,APP_E!A:C,3,FALSE)) ->  | K165: =IF(F165=0,"",INDEX(APP_F!B:B,MATCH(DATA!B165,APP_F!A:A,0))) ->  | L165: =IF(F165=0,"",VLOOKUP(C165,APP_E!A:D,4,FALSE)) ->  | M165: =IF(F165=0,"",INDEX(APP_A!$B$27:$B$61,MATCH(DATA!H165&" "&DATA!I165,APP_A!$A$27:$A$61,0))) -> 
A166: 1275 | B166: EST27981_001 | C166: AC2121 | D166: 37364.86135 | E166: 0 | F166: 0 | G166: ICM | H166: B4 | I166: O/H Grid System - O/H Infrastructure | J166: =IF(F166=0,"",VLOOKUP(C166,APP_E!A:C,3,FALSE)) ->  | K166: =IF(F166=0,"",INDEX(APP_F!B:B,MATCH(DATA!B166,APP_F!A:A,0))) ->  | L166: =IF(F166=0,"",VLOOKUP(C166,APP_E!A:D,4,FALSE)) ->  | M166: =IF(F166=0,"",INDEX(APP_A!$B$27:$B$61,MATCH(DATA!H166&" "&DATA!I166,APP_A!$A$27:$A$61,0))) -> 
A167: 1275 | B167: EST27981_001 | C167: AC2160 | D167: 3770.102497 | E167: 0 | F167: 0 | G167: ICM | H167: B4 | I167: O/H Grid System - O/H Infrastructure | J167: =IF(F167=0,"",VLOOKUP(C167,APP_E!A:C,3,FALSE)) ->  | K167: =IF(F167=0,"",INDEX(APP_F!B:B,MATCH(DATA!B167,APP_F!A:A,0))) ->  | L167: =IF(F167=0,"",VLOOKUP(C167,APP_E!A:D,4,FALSE)) ->  | M167: =IF(F167=0,"",INDEX(APP_A!$B$27:$B$61,MATCH(DATA!H167&" "&DATA!I167,APP_A!$A$27:$A$61,0))) -> 
A168: 1275 | B168: EST27981_001 | C168: AC2165 | D168: 6419.707503 | E168: 0 | F168: 0 | G168: ICM | H168: B4 | I168: O/H Grid System - O/H Infrastructure | J168: =IF(F168=0,"",VLOOKUP(C168,APP_E!A:C,3,FALSE)) ->  | K168: =IF(F168=0,"",INDEX(APP_F!B:B,MATCH(DATA!B168,APP_F!A:A,0))) ->  | L168: =IF(F168=0,"",VLOOKUP(C168,APP_E!A:D,4,FALSE)) ->  | M168: =IF(F168=0,"",INDEX(APP_A!$B$27:$B$61,MATCH(DATA!H168&" "&DATA!I168,APP_A!$A$27:$A$61,0))) -> 
A169: 1275 | B169: EST27981_001 | C169: AC2180 | D169: 5193.48 | E169: 0 | F169: 0 | G169: ICM | H169: B4 | I169: O/H Grid System - O/H Infrastructure | J169: =IF(F169=0,"",VLOOKUP(C169,APP_E!A:C,3,FALSE)) ->  | K169: =IF(F169=0,"",INDEX(APP_F!B:B,MATCH(DATA!B169,APP_F!A:A,0))) ->  | L169: =IF(F169=0,"",VLOOKUP(C169,APP_E!A:D,4,FALSE)) ->  | M169: =IF(F169=0,"",INDEX(APP_A!$B$27:$B$61,MATCH(DATA!H169&" "&DATA!I169,APP_A!$A$27:$A$61,0))) -> 
A170: 1275 | B170: EST27981_001 | C170: AC2240 | D170: 752.41 | E170: 0 | F170: 0 | G170: ICM | H170: B4 | I170: O/H Grid System - O/H Infrastructure | J170: =IF(F170=0,"",VLOOKUP(C170,APP_E!A:C,3,FALSE)) ->  | K170: =IF(F170=0,"",INDEX(APP_F!B:B,MATCH(DATA!B170,APP_F!A:A,0))) ->  | L170: =IF(F170=0,"",VLOOKUP(C170,APP_E!A:D,4,FALSE)) ->  | M170: =IF(F170=0,"",INDEX(APP_A!$B$27:$B$61,MATCH(DATA!H170&" "&DATA!I170,APP_A!$A$27:$A$61,0))) -> 
A171: 1275 | B171: EST27981_001 | C171: AC2241 | D171: 27.38 | E171: 0 | F171: 0 | G171: ICM | H171: B4 | I171: O/H Grid System - O/H Infrastructure | J171: =IF(F171=0,"",VLOOKUP(C171,APP_E!A:C,3,FALSE)) ->  | K171: =IF(F171=0,"",INDEX(APP_F!B:B,MATCH(DATA!B171,APP_F!A:A,0))) ->  | L171: =IF(F171=0,"",VLOOKUP(C171,APP_E!A:D,4,FALSE)) ->  | M171: =IF(F171=0,"",INDEX(APP_A!$B$27:$B$61,MATCH(DATA!H171&" "&DATA!I171,APP_A!$A$27:$A$61,0))) -> 
A172: 1275 | B172: EST27981_001 | C172: AC2242 | D172: 0.06 | E172: 0 | F172: 0 | G172: ICM | H172: B4 | I172: O/H Grid System - O/H Infrastructure | J172: =IF(F172=0,"",VLOOKUP(C172,APP_E!A:C,3,FALSE)) ->  | K172: =IF(F172=0,"",INDEX(APP_F!B:B,MATCH(DATA!B172,APP_F!A:A,0))) ->  | L172: =IF(F172=0,"",VLOOKUP(C172,APP_E!A:D,4,FALSE)) ->  | M172: =IF(F172=0,"",INDEX(APP_A!$B$27:$B$61,MATCH(DATA!H172&" "&DATA!I172,APP_A!$A$27:$A$61,0))) -> 
A173: 1275 | B173: EST27981_001 | C173: AC2243 | D173: 42.14 | E173: 0 | F173: 0 | G173: ICM | H173: B4 | I173: O/H Grid System - O/H Infrastructure | J173: =IF(F173=0,"",VLOOKUP(C173,APP_E!A:C,3,FALSE)) ->  | K173: =IF(F173=0,"",INDEX(APP_F!B:B,MATCH(DATA!B173,APP_F!A:A,0))) ->  | L173: =IF(F173=0,"",VLOOKUP(C173,APP_E!A:D,4,FALSE)) ->  | M173: =IF(F173=0,"",INDEX(APP_A!$B$27:$B$61,MATCH(DATA!H173&" "&DATA!I173,APP_A!$A$27:$A$61,0))) -> 
A174: 1275 | B174: EST27981_001 | C174: AC2244 | D174: 0.23 | E174: 0 | F174: 0 | G174: ICM | H174: B4 | I174: O/H Grid System - O/H Infrastructure | J174: =IF(F174=0,"",VLOOKUP(C174,APP_E!A:C,3,FALSE)) ->  | K174: =IF(F174=0,"",INDEX(APP_F!B:B,MATCH(DATA!B174,APP_F!A:A,0))) ->  | L174: =IF(F174=0,"",VLOOKUP(C174,APP_E!A:D,4,FALSE)) ->  | M174: =IF(F174=0,"",INDEX(APP_A!$B$27:$B$61,MATCH(DATA!H174&" "&DATA!I174,APP_A!$A$27:$A$61,0))) -> 
A175: 1275 | B175: EST27981_001 | C175: AC2281 | D175: 6714.68 | E175: 0 | F175: 0 | G175: ICM | H175: B4 | I175: O/H Grid System - O/H Infrastructure | J175: =IF(F175=0,"",VLOOKUP(C175,APP_E!A:C,3,FALSE)) ->  | K175: =IF(F175=0,"",INDEX(APP_F!B:B,MATCH(DATA!B175,APP_F!A:A,0))) ->  | L175: =IF(F175=0,"",VLOOKUP(C175,APP_E!A:D,4,FALSE)) ->  | M175: =IF(F175=0,"",INDEX(APP_A!$B$27:$B$61,MATCH(DATA!H175&" "&DATA!I175,APP_A!$A$27:$A$61,0))) -> 
A176: 1275 | B176: EST27981_001 | C176: AC2360 | D176: 72265.97 | E176: 0 | F176: 0 | G176: ICM | H176: B4 | I176: O/H Grid System - O/H Infrastructure | J176: =IF(F176=0,"",VLOOKUP(C176,APP_E!A:C,3,FALSE)) ->  | K176: =IF(F176=0,"",INDEX(APP_F!B:B,MATCH(DATA!B176,APP_F!A:A,0))) ->  | L176: =IF(F176=0,"",VLOOKUP(C176,APP_E!A:D,4,FALSE)) ->  | M176: =IF(F176=0,"",INDEX(APP_A!$B$27:$B$61,MATCH(DATA!H176&" "&DATA!I176,APP_A!$A$27:$A$61,0))) -> 
A177: 1275 | B177: EST27981_001 | C177: AC2620 | D177: 1809.485139 | E177: 0 | F177: 0 | G177: ICM | H177: B4 | I177: O/H Grid System - O/H Infrastructure | J177: =IF(F177=0,"",VLOOKUP(C177,APP_E!A:C,3,FALSE)) ->  | K177: =IF(F177=0,"",INDEX(APP_F!B:B,MATCH(DATA!B177,APP_F!A:A,0))) ->  | L177: =IF(F177=0,"",VLOOKUP(C177,APP_E!A:D,4,FALSE)) ->  | M177: =IF(F177=0,"",INDEX(APP_A!$B$27:$B$61,MATCH(DATA!H177&" "&DATA!I177,APP_A!$A$27:$A$61,0))) -> 
A178: 1275 | B178: EST27981_001 | C178: AC2640 | D178: 2322.364861 | E178: 0 | F178: 0 | G178: ICM | H178: B4 | I178: O/H Grid System - O/H Infrastructure | J178: =IF(F178=0,"",VLOOKUP(C178,APP_E!A:C,3,FALSE)) ->  | K178: =IF(F178=0,"",INDEX(APP_F!B:B,MATCH(DATA!B178,APP_F!A:A,0))) ->  | L178: =IF(F178=0,"",VLOOKUP(C178,APP_E!A:D,4,FALSE)) ->  | M178: =IF(F178=0,"",INDEX(APP_A!$B$27:$B$61,MATCH(DATA!H178&" "&DATA!I178,APP_A!$A$27:$A$61,0))) -> 
A179: 208 | B179: EST24696_009 | C179: AC2120 | D179: 1660.242602 | E179: 0 | F179: 0 | G179: ICM | H179: B4 | I179: O/H Grid System - O/H Infrastructure | J179: =IF(F179=0,"",VLOOKUP(C179,APP_E!A:C,3,FALSE)) ->  | K179: =IF(F179=0,"",INDEX(APP_F!B:B,MATCH(DATA!B179,APP_F!A:A,0))) ->  | L179: =IF(F179=0,"",VLOOKUP(C179,APP_E!A:D,4,FALSE)) ->  | M179: =IF(F179=0,"",INDEX(APP_A!$B$27:$B$61,MATCH(DATA!H179&" "&DATA!I179,APP_A!$A$27:$A$61,0))) -> 
A180: 208 | B180: EST24696_009 | C180: AC2121 | D180: 18940.9674 | E180: 0 | F180: 0 | G180: ICM | H180: B4 | I180: O/H Grid System - O/H Infrastructure | J180: =IF(F180=0,"",VLOOKUP(C180,APP_E!A:C,3,FALSE)) ->  | K180: =IF(F180=0,"",INDEX(APP_F!B:B,MATCH(DATA!B180,APP_F!A:A,0))) ->  | L180: =IF(F180=0,"",VLOOKUP(C180,APP_E!A:D,4,FALSE)) ->  | M180: =IF(F180=0,"",INDEX(APP_A!$B$27:$B$61,MATCH(DATA!H180&" "&DATA!I180,APP_A!$A$27:$A$61,0))) -> 
A181: 208 | B181: EST24696_009 | C181: AC5023 | D181: 42.58095127 | E181: 0 | F181: 0 | G181: ICM | H181: B4 | I181: O/H Grid System - O/H Infrastructure | J181: =IF(F181=0,"",VLOOKUP(C181,APP_E!A:C,3,FALSE)) ->  | K181: =IF(F181=0,"",INDEX(APP_F!B:B,MATCH(DATA!B181,APP_F!A:A,0))) ->  | L181: =IF(F181=0,"",VLOOKUP(C181,APP_E!A:D,4,FALSE)) ->  | M181: =IF(F181=0,"",INDEX(APP_A!$B$27:$B$61,MATCH(DATA!H181&" "&DATA!I181,APP_A!$A$27:$A$61,0))) -> 
A182: 208 | B182: EST24696_009 | C182: AC5020 | D182: 571.1690487 | E182: 0 | F182: 0 | G182: ICM | H182: B4 | I182: O/H Grid System - O/H Infrastructure | J182: =IF(F182=0,"",VLOOKUP(C182,APP_E!A:C,3,FALSE)) ->  | K182: =IF(F182=0,"",INDEX(APP_F!B:B,MATCH(DATA!B182,APP_F!A:A,0))) ->  | L182: =IF(F182=0,"",VLOOKUP(C182,APP_E!A:D,4,FALSE)) ->  | M182: =IF(F182=0,"",INDEX(APP_A!$B$27:$B$61,MATCH(DATA!H182&" "&DATA!I182,APP_A!$A$27:$A$61,0))) -> 
A183: 208 | B183: EST24696_009 | C183: AC2160 | D183: 28619.38463 | E183: 0 | F183: 0 | G183: ICM | H183: B4 | I183: O/H Grid System - O/H Infrastructure | J183: =IF(F183=0,"",VLOOKUP(C183,APP_E!A:C,3,FALSE)) ->  | K183: =IF(F183=0,"",INDEX(APP_F!B:B,MATCH(DATA!B183,APP_F!A:A,0))) ->  | L183: =IF(F183=0,"",VLOOKUP(C183,APP_E!A:D,4,FALSE)) ->  | M183: =IF(F183=0,"",INDEX(APP_A!$B$27:$B$61,MATCH(DATA!H183&" "&DATA!I183,APP_A!$A$27:$A$61,0))) -> 
A184: 208 | B184: EST24696_009 | C184: AC2165 | D184: 48732.96537 | E184: 0 | F184: 0 | G184: ICM | H184: B4 | I184: O/H Grid System - O/H Infrastructure | J184: =IF(F184=0,"",VLOOKUP(C184,APP_E!A:C,3,FALSE)) ->  | K184: =IF(F184=0,"",INDEX(APP_F!B:B,MATCH(DATA!B184,APP_F!A:A,0))) ->  | L184: =IF(F184=0,"",VLOOKUP(C184,APP_E!A:D,4,FALSE)) ->  | M184: =IF(F184=0,"",INDEX(APP_A!$B$27:$B$61,MATCH(DATA!H184&" "&DATA!I184,APP_A!$A$27:$A$61,0))) -> 
A185: 208 | B185: EST24696_009 | C185: AC2180 | D185: 36456.81 | E185: 0 | F185: 0 | G185: ICM | H185: B4 | I185: O/H Grid System - O/H Infrastructure | J185: =IF(F185=0,"",VLOOKUP(C185,APP_E!A:C,3,FALSE)) ->  | K185: =IF(F185=0,"",INDEX(APP_F!B:B,MATCH(DATA!B185,APP_F!A:A,0))) ->  | L185: =IF(F185=0,"",VLOOKUP(C185,APP_E!A:D,4,FALSE)) ->  | M185: =IF(F185=0,"",INDEX(APP_A!$B$27:$B$61,MATCH(DATA!H185&" "&DATA!I185,APP_A!$A$27:$A$61,0))) -> 
A186: 1250 | B186: EST26681_002 | C186: AC2160 | D186: 2639.770883 | E186: 0 | F186: 0 | G186: ICM | H186: B5 | I186: O/H Grid System - Box Construction | J186: =IF(F186=0,"",VLOOKUP(C186,APP_E!A:C,3,FALSE)) ->  | K186: =IF(F186=0,"",INDEX(APP_F!B:B,MATCH(DATA!B186,APP_F!A:A,0))) ->  | L186: =IF(F186=0,"",VLOOKUP(C186,APP_E!A:D,4,FALSE)) ->  | M186: =IF(F186=0,"",INDEX(APP_A!$B$27:$B$61,MATCH(DATA!H186&" "&DATA!I186,APP_A!$A$27:$A$61,0))) -> 
A187: 1250 | B187: EST26681_002 | C187: AC2165 | D187: 4494.999117 | E187: 0 | F187: 0 | G187: ICM | H187: B5 | I187: O/H Grid System - Box Construction | J187: =IF(F187=0,"",VLOOKUP(C187,APP_E!A:C,3,FALSE)) ->  | K187: =IF(F187=0,"",INDEX(APP_F!B:B,MATCH(DATA!B187,APP_F!A:A,0))) ->  | L187: =IF(F187=0,"",VLOOKUP(C187,APP_E!A:D,4,FALSE)) ->  | M187: =IF(F187=0,"",INDEX(APP_A!$B$27:$B$61,MATCH(DATA!H187&" "&DATA!I187,APP_A!$A$27:$A$61,0))) -> 
A188: 1250 | B188: EST26681_002 | C188: AC2180 | D188: 77880.57 | E188: 0 | F188: 0 | G188: ICM | H188: B5 | I188: O/H Grid System - Box Construction | J188: =IF(F188=0,"",VLOOKUP(C188,APP_E!A:C,3,FALSE)) ->  | K188: =IF(F188=0,"",INDEX(APP_F!B:B,MATCH(DATA!B188,APP_F!A:A,0))) ->  | L188: =IF(F188=0,"",VLOOKUP(C188,APP_E!A:D,4,FALSE)) ->  | M188: =IF(F188=0,"",INDEX(APP_A!$B$27:$B$61,MATCH(DATA!H188&" "&DATA!I188,APP_A!$A$27:$A$61,0))) -> 
A189: 1250 | B189: EST26681_002 | C189: AC2261 | D189: 384747.8659 | E189: 0 | F189: 0 | G189: ICM | H189: B5 | I189: O/H Grid System - Box Construction | J189: =IF(F189=0,"",VLOOKUP(C189,APP_E!A:C,3,FALSE)) ->  | K189: =IF(F189=0,"",INDEX(APP_F!B:B,MATCH(DATA!B189,APP_F!A:A,0))) ->  | L189: =IF(F189=0,"",VLOOKUP(C189,APP_E!A:D,4,FALSE)) ->  | M189: =IF(F189=0,"",INDEX(APP_A!$B$27:$B$61,MATCH(DATA!H189&" "&DATA!I189,APP_A!$A$27:$A$61,0))) -> 
A190: 1250 | B190: EST26681_002 | C190: AC2262 | D190: 74891.22617 | E190: 0 | F190: 0 | G190: ICM | H190: B5 | I190: O/H Grid System - Box Construction | J190: =IF(F190=0,"",VLOOKUP(C190,APP_E!A:C,3,FALSE)) ->  | K190: =IF(F190=0,"",INDEX(APP_F!B:B,MATCH(DATA!B190,APP_F!A:A,0))) ->  | L190: =IF(F190=0,"",VLOOKUP(C190,APP_E!A:D,4,FALSE)) ->  | M190: =IF(F190=0,"",INDEX(APP_A!$B$27:$B$61,MATCH(DATA!H190&" "&DATA!I190,APP_A!$A$27:$A$61,0))) -> 
A191: 1250 | B191: EST26681_002 | C191: AC2263 | D191: 194476.0179 | E191: 0 | F191: 0 | G191: ICM | H191: B5 | I191: O/H Grid System - Box Construction | J191: =IF(F191=0,"",VLOOKUP(C191,APP_E!A:C,3,FALSE)) ->  | K191: =IF(F191=0,"",INDEX(APP_F!B:B,MATCH(DATA!B191,APP_F!A:A,0))) ->  | L191: =IF(F191=0,"",VLOOKUP(C191,APP_E!A:D,4,FALSE)) ->  | M191: =IF(F191=0,"",INDEX(APP_A!$B$27:$B$61,MATCH(DATA!H191&" "&DATA!I191,APP_A!$A$27:$A$61,0))) -> 
A192: 1856 | B192: EST26956_001 | C192: AC2120 | D192: 18171.39126 | E192: 0 | F192: 0 | G192: ICM | H192: B5 | I192: O/H Grid System - Box Construction | J192: =IF(F192=0,"",VLOOKUP(C192,APP_E!A:C,3,FALSE)) ->  | K192: =IF(F192=0,"",INDEX(APP_F!B:B,MATCH(DATA!B192,APP_F!A:A,0))) ->  | L192: =IF(F192=0,"",VLOOKUP(C192,APP_E!A:D,4,FALSE)) ->  | M192: =IF(F192=0,"",INDEX(APP_A!$B$27:$B$61,MATCH(DATA!H192&" "&DATA!I192,APP_A!$A$27:$A$61,0))) -> 
A193: 1856 | B193: EST26956_001 | C193: AC2121 | D193: 207309.6787 | E193: 0 | F193: 0 | G193: ICM | H193: B5 | I193: O/H Grid System - Box Construction | J193: =IF(F193=0,"",VLOOKUP(C193,APP_E!A:C,3,FALSE)) ->  | K193: =IF(F193=0,"",INDEX(APP_F!B:B,MATCH(DATA!B193,APP_F!A:A,0))) ->  | L193: =IF(F193=0,"",VLOOKUP(C193,APP_E!A:D,4,FALSE)) ->  | M193: =IF(F193=0,"",INDEX(APP_A!$B$27:$B$61,MATCH(DATA!H193&" "&DATA!I193,APP_A!$A$27:$A$61,0))) -> 
A194: 1856 | B194: EST26956_001 | C194: AC5023 | D194: 679.4289431 | E194: 0 | F194: 0 | G194: ICM | H194: B5 | I194: O/H Grid System - Box Construction | J194: =IF(F194=0,"",VLOOKUP(C194,APP_E!A:C,3,FALSE)) ->  | K194: =IF(F194=0,"",INDEX(APP_F!B:B,MATCH(DATA!B194,APP_F!A:A,0))) ->  | L194: =IF(F194=0,"",VLOOKUP(C194,APP_E!A:D,4,FALSE)) ->  | M194: =IF(F194=0,"",INDEX(APP_A!$B$27:$B$61,MATCH(DATA!H194&" "&DATA!I194,APP_A!$A$27:$A$61,0))) -> 
A195: 1856 | B195: EST26956_001 | C195: AC5020 | D195: 9113.671057 | E195: 0 | F195: 0 | G195: ICM | H195: B5 | I195: O/H Grid System - Box Construction | J195: =IF(F195=0,"",VLOOKUP(C195,APP_E!A:C,3,FALSE)) ->  | K195: =IF(F195=0,"",INDEX(APP_F!B:B,MATCH(DATA!B195,APP_F!A:A,0))) ->  | L195: =IF(F195=0,"",VLOOKUP(C195,APP_E!A:D,4,FALSE)) ->  | M195: =IF(F195=0,"",INDEX(APP_A!$B$27:$B$61,MATCH(DATA!H195&" "&DATA!I195,APP_A!$A$27:$A$61,0))) -> 
A196: 1856 | B196: EST26956_001 | C196: AC2160 | D196: 90657.14912 | E196: 0 | F196: 0 | G196: ICM | H196: B5 | I196: O/H Grid System - Box Construction | J196: =IF(F196=0,"",VLOOKUP(C196,APP_E!A:C,3,FALSE)) ->  | K196: =IF(F196=0,"",INDEX(APP_F!B:B,MATCH(DATA!B196,APP_F!A:A,0))) ->  | L196: =IF(F196=0,"",VLOOKUP(C196,APP_E!A:D,4,FALSE)) ->  | M196: =IF(F196=0,"",INDEX(APP_A!$B$27:$B$61,MATCH(DATA!H196&" "&DATA!I196,APP_A!$A$27:$A$61,0))) -> 
A197: 1856 | B197: EST26956_001 | C197: AC2165 | D197: 154370.5909 | E197: 0 | F197: 0 | G197: ICM | H197: B5 | I197: O/H Grid System - Box Construction | J197: =IF(F197=0,"",VLOOKUP(C197,APP_E!A:C,3,FALSE)) ->  | K197: =IF(F197=0,"",INDEX(APP_F!B:B,MATCH(DATA!B197,APP_F!A:A,0))) ->  | L197: =IF(F197=0,"",VLOOKUP(C197,APP_E!A:D,4,FALSE)) ->  | M197: =IF(F197=0,"",INDEX(APP_A!$B$27:$B$61,MATCH(DATA!H197&" "&DATA!I197,APP_A!$A$27:$A$61,0))) -> 
A198: 1856 | B198: EST26956_001 | C198: AC2180 | D198: 162997.62 | E198: 0 | F198: 0 | G198: ICM | H198: B5 | I198: O/H Grid System - Box Construction | J198: =IF(F198=0,"",VLOOKUP(C198,APP_E!A:C,3,FALSE)) ->  | K198: =IF(F198=0,"",INDEX(APP_F!B:B,MATCH(DATA!B198,APP_F!A:A,0))) ->  | L198: =IF(F198=0,"",VLOOKUP(C198,APP_E!A:D,4,FALSE)) ->  | M198: =IF(F198=0,"",INDEX(APP_A!$B$27:$B$61,MATCH(DATA!H198&" "&DATA!I198,APP_A!$A$27:$A$61,0))) -> 
A199: 1856 | B199: EST26956_001 | C199: AC2240 | D199: 29462.93 | E199: 0 | F199: 0 | G199: ICM | H199: B5 | I199: O/H Grid System - Box Construction | J199: =IF(F199=0,"",VLOOKUP(C199,APP_E!A:C,3,FALSE)) ->  | K199: =IF(F199=0,"",INDEX(APP_F!B:B,MATCH(DATA!B199,APP_F!A:A,0))) ->  | L199: =IF(F199=0,"",VLOOKUP(C199,APP_E!A:D,4,FALSE)) ->  | M199: =IF(F199=0,"",INDEX(APP_A!$B$27:$B$61,MATCH(DATA!H199&" "&DATA!I199,APP_A!$A$27:$A$61,0))) -> 
A200: 1856 | B200: EST26956_001 | C200: AC2261 | D200: 47800.00019 | E200: 0 | F200: 0 | G200: ICM | H200: B5 | I200: O/H Grid System - Box Construction | J200: =IF(F200=0,"",VLOOKUP(C200,APP_E!A:C,3,FALSE)) ->  | K200: =IF(F200=0,"",INDEX(APP_F!B:B,MATCH(DATA!B200,APP_F!A:A,0))) ->  | L200: =IF(F200=0,"",VLOOKUP(C200,APP_E!A:D,4,FALSE)) ->  | M200: =IF(F200=0,"",INDEX(APP_A!$B$27:$B$61,MATCH(DATA!H200&" "&DATA!I200,APP_A!$A$27:$A$61,0))) -> 
A201: 1856 | B201: EST26956_001 | C201: AC2262 | D201: 9304.276654 | E201: 0 | F201: 0 | G201: ICM | H201: B5 | I201: O/H Grid System - Box Construction | J201: =IF(F201=0,"",VLOOKUP(C201,APP_E!A:C,3,FALSE)) ->  | K201: =IF(F201=0,"",INDEX(APP_F!B:B,MATCH(DATA!B201,APP_F!A:A,0))) ->  | L201: =IF(F201=0,"",VLOOKUP(C201,APP_E!A:D,4,FALSE)) ->  | M201: =IF(F201=0,"",INDEX(APP_A!$B$27:$B$61,MATCH(DATA!H201&" "&DATA!I201,APP_A!$A$27:$A$61,0))) -> 
A202: 1856 | B202: EST26956_001 | C202: AC2263 | D202: 24161.15315 | E202: 0 | F202: 0 | G202: ICM | H202: B5 | I202: O/H Grid System - Box Construction | J202: =IF(F202=0,"",VLOOKUP(C202,APP_E!A:C,3,FALSE)) ->  | K202: =IF(F202=0,"",INDEX(APP_F!B:B,MATCH(DATA!B202,APP_F!A:A,0))) ->  | L202: =IF(F202=0,"",VLOOKUP(C202,APP_E!A:D,4,FALSE)) ->  | M202: =IF(F202=0,"",INDEX(APP_A!$B$27:$B$61,MATCH(DATA!H202&" "&DATA!I202,APP_A!$A$27:$A$61,0))) -> 
A203: 1856 | B203: EST26956_001 | C203: AC2281 | D203: 976.57 | E203: 0 | F203: 0 | G203: ICM | H203: B5 | I203: O/H Grid System - Box Construction | J203: =IF(F203=0,"",VLOOKUP(C203,APP_E!A:C,3,FALSE)) ->  | K203: =IF(F203=0,"",INDEX(APP_F!B:B,MATCH(DATA!B203,APP_F!A:A,0))) ->  | L203: =IF(F203=0,"",VLOOKUP(C203,APP_E!A:D,4,FALSE)) ->  | M203: =IF(F203=0,"",INDEX(APP_A!$B$27:$B$61,MATCH(DATA!H203&" "&DATA!I203,APP_A!$A$27:$A$61,0))) -> 
... 4408 more rows

Sheet APP_A (hidden)
B2: ICM Filing
B3: B1 Underground Infrastructure
B4: B2 Paper Insulated Lead Covered Cable - Piece Outs and Leakers
B5: B3 Handwell Replacement
B6: B4 Overhead Infrastructure
B7: B5 Box Construction
B8: B6 Rear Lot Construction
B9: B7 Polymer SMD-20 Switches
B10: B8 SCADA-Mate R1 Switches
B11: B9 Network Vault & Roofs
B12: B10 Fibertop Network Units
B13: B11 Automatic Transfer Switches (ATS) & Reverse Power Breakers (RPB)
B14: B12 Stations Power Transformers
B15: B13.1 & 13.2 Stations Switchgear - Muncipal and Transformer Stations
B16: B14 Stations Circuit Breakers
B17: B15 Stations Control & Communicaton Systems
B18: B16 Downtown Station Load Transfers
B19: B17 Copeland (Formerly Bremner) Transformer Station
B20: B18.1 Hydro One Capital Contributions
B21: B19 Feeder Automation
B22: B20 Metering
B23: B21 Externally-Initiated Plant Relocations and Expansions
B24: BXX ICM Understatement of Capitalized Labour
A27: AM Work Plan | B27: ICM Filing
A28: B1 U/G Grid System - U/G Infrastructure | B28: B1 Underground Infrastructure
A29: B2 U/G Grid System - PILC - Piece Outs & Leakers | B29: B2 Paper Insulated Lead Covered Cable - Piece Outs and Leakers
A30: B3 Secondary Upgrades | B30: B3 Handwell Replacement
A31: B4 O/H Grid System - O/H Infrastructure | B31: B4 Overhead Infrastructure
A32: B5 O/H Grid System - Box Construction | B32: B5 Box Construction
A33: B6 O/H Grid System - Rear Lot | B33: B6 Rear Lot Construction
A34: B7 Standardization - SMD - 20 Fuses | B34: B7 Polymer SMD-20 Switches
A35: B8 Standardization - Scadamate R1 | B35: B8 SCADA-Mate R1 Switches
A36: B9 Network System - Vault & Roofs | B36: B9 Network Vault & Roofs
A37: B10 Network System - Fibertops | B37: B10 Fibertop Network Units
A38: B11 Network System - ATS & RPB | B38: B11 Automatic Transfer Switches (ATS) & Reverse Power Breakers (RPB)
A39: B12 Stations - Power TX | B39: B12 Stations Power Transformers
A40: B13.1 Stations - Switchgear - MS | B40: B13.1 & 13.2 Stations Switchgear - Muncipal and Transformer Stations
A41: B13.2 Stations - Switchgear - TS | B41: B13.1 & 13.2 Stations Switchgear - Muncipal and Transformer Stations
A42: B14 Stations - Circuit Breakers | B42: B14 Stations Circuit Breakers
A43: B15 Stations - Control & Communications System | B43: B15 Stations Control & Communicaton Systems
A44: B16 Station to Station Load Transfers | B44: B16 Downtown Station Load Transfers
A45: B17 Stations Enhancements - Bremner TS | B45: B17 Copeland (Formerly Bremner) Transformer Station
A46: B18.1 Stations Enhancements - Honi Contrib | B46: B18.1 Hydro One Capital Contributions
A47: B19 O/H Grid System - Feeder Automation | B47: B19 Feeder Automation
A48: B20 Metering | B48: B20 Metering
A49: B21 Ext-Initiated Plant Expansion & Relocation | B49: B21 Externally-Initiated Plant Relocations and Expansions
B50: BXX ICM Understatement of Capitalized Labour
A51: C1 Station to Station Load Transfers | B51: Threshold
A52: C1 Customer Connections | B52: Threshold
A53: C1 Road Cuts | B53: Threshold
A54: C1 Station Civil Egress | B54: Threshold
A55: C1 WPF | B55: Threshold
A56: C1 Reactive Capital | B56: Threshold
A57: C1 Stations Infrastructure | B57: Threshold
A58: C1 DC Systems | B58: Threshold
A59: C1 Stations Critical Spares | B59: Threshold
A60: C1 Tools and Equipment | B60: Threshold
A61: C1 Major Tools | B61: Threshold

Sheet APP_C (hidden)
B1: Account Description | C1: Asset Class Description | D1: Class | E1: CCA Class | F1: Tax Class | G1: Tax Deprec. Key | H1: Description | I1: Rate | J1: Found on APP_E | K1: Alias_Table
A2: FA Asset PPE Categories | B2: 160011_Land - Admin & Service | C2: 1000_Land - Administration | D2: 1000 | G2: 0000 | J2: =IFERROR(MATCH(C2,APP_E!B:B,0)>0,FALSE) -> FALSE | K2: =IF(J2,VLOOKUP(C2,APP_E!B:D,3,FALSE),"") -> 
A3: FA Asset PPE Categories | B3: 160011_Land - Admin & Service | C3: 1020_Land - Service Centres | D3: 1020 | G3: 0000 | J3: =IFERROR(MATCH(C3,APP_E!B:B,0)>0,FALSE) -> FALSE | K3: =IF(J3,VLOOKUP(C3,APP_E!B:D,3,FALSE),"") -> 
A4: FA Asset PPE Categories | B4: 160015_Land- Substation | C4: 1040_Land - Substations | D4: 1040 | G4: 0000 | J4: =IFERROR(MATCH(C4,APP_E!B:B,0)>0,FALSE) -> FALSE | K4: =IF(J4,VLOOKUP(C4,APP_E!B:D,3,FALSE),"") -> 
A5: FA Asset PPE Categories | B5: 160016_Land - Transformer Station | C5: 1060_Land - Transformer Stations | D5: 1060 | G5: 0000 | J5: =IFERROR(MATCH(C5,APP_E!B:B,0)>0,FALSE) -> FALSE | K5: =IF(J5,VLOOKUP(C5,APP_E!B:D,3,FALSE),"") -> 
A6: FA Asset PPE Categories | B6: 160018_Land - Finance Lease | C6: 1065_Land Lease | D6: 1065 | G6: 0000 | J6: =IFERROR(MATCH(C6,APP_E!B:B,0)>0,FALSE) -> FALSE | K6: =IF(J6,VLOOKUP(C6,APP_E!B:D,3,FALSE),"") -> 
A7: FA Asset PPE Categories | B7: 160031_Buildings - Admin & Service | C7: 1100_Buildings-Admin-Existing Structures | D7: 1100 | E7: 01 | F7: Equip. & Buildings acquired after 1987 (4%) | G7: ZDB1 | H7: TH Tax Declining Balance - 4%, Half Year Rule | I7: 0.04 | J7: =IFERROR(MATCH(C7,APP_E!B:B,0)>0,FALSE) -> FALSE | K7: =IF(J7,VLOOKUP(C7,APP_E!B:D,3,FALSE),"") -> 
A8: FA Asset PPE Categories | B8: 160031_Buildings - Admin & Service | C8: 1101_Buildings Adm substructure | D8: 1101 | E8: 01 | F8: Equip. & Buildings acquired after 1987 (4%) | G8: ZDB1 | H8: TH Tax Declining Balance - 4%, Half Year Rule | I8: 0.04 | J8: =IFERROR(MATCH(C8,APP_E!B:B,0)>0,FALSE) -> FALSE | K8: =IF(J8,VLOOKUP(C8,APP_E!B:D,3,FALSE),"") -> 
A9: FA Asset PPE Categories | B9: 160031_Buildings - Admin & Service | C9: 1102_Buildings Adm shell site | D9: 1102 | E9: 01 | F9: Equip. & Buildings acquired after 1987 (4%) | G9: ZDB1 | H9: TH Tax Declining Balance - 4%, Half Year Rule | I9: 0.04 | J9: =IFERROR(MATCH(C9,APP_E!B:B,0)>0,FALSE) -> FALSE | K9: =IF(J9,VLOOKUP(C9,APP_E!B:D,3,FALSE),"") -> 
A10: FA Asset PPE Categories | B10: 160031_Buildings - Admin & Service | C10: 1103_Buildings Adm interior | D10: 1103 | E10: 01 | F10: Equip. & Buildings acquired after 1987 (4%) | G10: ZDB1 | H10: TH Tax Declining Balance - 4%, Half Year Rule | I10: 0.04 | J10: =IFERROR(MATCH(C10,APP_E!B:B,0)>0,FALSE) -> FALSE | K10: =IF(J10,VLOOKUP(C10,APP_E!B:D,3,FALSE),"") -> 
A11: FA Asset PPE Categories | B11: 160031_Buildings - Admin & Service | C11: 1110_Buildings-Service Centres-Existing Structures | D11: 1110 | E11: 01 | F11: Equip. & Buildings acquired after 1987 (4%) | G11: ZDB1 | H11: TH Tax Declining Balance - 4%, Half Year Rule | I11: 0.04 | J11: =IFERROR(MATCH(C11,APP_E!B:B,0)>0,FALSE) -> FALSE | K11: =IF(J11,VLOOKUP(C11,APP_E!B:D,3,FALSE),"") -> 
A12: FA Asset PPE Categories | B12: 160031_Buildings - Admin & Service | C12: 1111_Buildings Srv Ctr substructure | D12: 1111 | E12: 01 | F12: Equip. & Buildings acquired after 1987 (4%) | G12: ZDB1 | H12: TH Tax Declining Balance - 4%, Half Year Rule | I12: 0.04 | J12: =IFERROR(MATCH(C12,APP_E!B:B,0)>0,FALSE) -> FALSE | K12: =IF(J12,VLOOKUP(C12,APP_E!B:D,3,FALSE),"") -> 
A13: FA Asset PPE Categories | B13: 160031_Buildings - Admin & Service | C13: 1112_Buildings Srv Ctr shell site | D13: 1112 | E13: 01 | F13: Equip. & Buildings acquired after 1987 (4%) | G13: ZDB1 | H13: TH Tax Declining Balance - 4%, Half Year Rule | I13: 0.04 | J13: =IFERROR(MATCH(C13,APP_E!B:B,0)>0,FALSE) -> TRUE | K13: =IF(J13,VLOOKUP(C13,APP_E!B:D,3,FALSE),"") -> 1808_Buildings and Fixtures - Srv Ctr shell site
A14: FA Asset PPE Categories | B14: 160031_Buildings - Admin & Service | C14: 1113_Buildings Srv Ctr interior | D14: 1113 | E14: 01 | F14: Equip. & Buildings acquired after 1987 (4%) | G14: ZDB1 | H14: TH Tax Declining Balance - 4%, Half Year Rule | I14: 0.04 | J14: =IFERROR(MATCH(C14,APP_E!B:B,0)>0,FALSE) -> FALSE | K14: =IF(J14,VLOOKUP(C14,APP_E!B:D,3,FALSE),"") -> 
A15: FA Asset PPE Categories | B15: 160035_Buildings - Substation | C15: 1130_Buildings - Substations-Existing Structure | D15: 1130 | E15: 01 | F15: Equip. & Buildings acquired after 1987 (4%) | G15: ZDB1 | H15: TH Tax Declining Balance - 4%, Half Year Rule | I15: 0.04 | J15: =IFERROR(MATCH(C15,APP_E!B:B,0)>0,FALSE) -> FALSE | K15: =IF(J15,VLOOKUP(C15,APP_E!B:D,3,FALSE),"") -> 
A16: FA Asset PPE Categories | B16: 160035_Buildings - Substation | C16: 1131_Building Stn substructure | D16: 1131 | E16: 01 | F16: Equip. & Buildings acquired after 1987 (4%) | G16: ZDB1 | H16: TH Tax Declining Balance - 4%, Half Year Rule | I16: 0.04 | J16: =IFERROR(MATCH(C16,APP_E!B:B,0)>0,FALSE) -> TRUE | K16: =IF(J16,VLOOKUP(C16,APP_E!B:D,3,FALSE),"") -> 1808_Buildings and Fixtures - Stn Substructure
A17: FA Asset PPE Categories | B17: 160035_Buildings - Substation | C17: 1132_Building Stn shell site | D17: 1132 | E17: 01 | F17: Equip. & Buildings acquired after 1987 (4%) | G17: ZDB1 | H17: TH Tax Declining Balance - 4%, Half Year Rule | I17: 0.04 | J17: =IFERROR(MATCH(C17,APP_E!B:B,0)>0,FALSE) -> TRUE | K17: =IF(J17,VLOOKUP(C17,APP_E!B:D,3,FALSE),"") -> 1808_Buildings and Fixtures - Stn Shell Site
A18: FA Asset PPE Categories | B18: 160035_Buildings - Substation | C18: 1133_Building Stn interior | D18: 1133 | E18: 01 | F18: Equip. & Buildings acquired after 1987 (4%) | G18: ZDB1 | H18: TH Tax Declining Balance - 4%, Half Year Rule | I18: 0.04 | J18: =IFERROR(MATCH(C18,APP_E!B:B,0)>0,FALSE) -> TRUE | K18: =IF(J18,VLOOKUP(C18,APP_E!B:D,3,FALSE),"") -> 1808_Buildings and Fixtures - Stn Interior
A19: FA Asset PPE Categories | B19: 160036_Buildings - Substation - ARO | C19: 1150_Building - Substations ARO | D19: 1150 | G19: 0000 | J19: =IFERROR(MATCH(C19,APP_E!B:B,0)>0,FALSE) -> FALSE | K19: =IF(J19,VLOOKUP(C19,APP_E!B:D,3,FALSE),"") -> 
A20: FA Asset PPE Categories | B20: 160045_Leasehold Imp - Gen Plant | C20: 1200_Leasehold Improvements - Admin | D20: 1200 | E20: 13 | F20: Leasehold(Straight Ln ovr lease term plus 1 renwl) | G20: ZSL3 | H20: TH: Straight Line Deprciatn(Tax - Half Year Rule ) | J20: =IFERROR(MATCH(C20,APP_E!B:B,0)>0,FALSE) -> FALSE | K20: =IF(J20,VLOOKUP(C20,APP_E!B:D,3,FALSE),"") -> 
A21: FA Asset PPE Categories | B21: 160045_Leasehold Imp - Gen Plant | C21: 1220_Leasehold Improvements - Service Centres | D21: 1220 | E21: 13 | F21: Leasehold(Straight Ln ovr lease term plus 1 renwl) | G21: ZSL3 | H21: TH: Straight Line Deprciatn(Tax - Half Year Rule ) | J21: =IFERROR(MATCH(C21,APP_E!B:B,0)>0,FALSE) -> FALSE | K21: =IF(J21,VLOOKUP(C21,APP_E!B:D,3,FALSE),"") -> 
A22: FA Asset PPE Categories | B22: 161051_Transformer Stn Equip > 50 Kv | C22: 2000_Transf Station Equip - Power Transformer | D22: 2000 | E22: 47 | F22: Tranmission and Distribution Equipment (8%) | G22: ZDB2 | H22: TH Tax Declining Balance - 8%, Half Year Rule | I22: 0.08 | J22: =IFERROR(MATCH(C22,APP_E!B:B,0)>0,FALSE) -> TRUE | K22: =IF(J22,VLOOKUP(C22,APP_E!B:D,3,FALSE),"") -> 1815_TS Equip - Normally Primary above 50 kV - Power Transformer
A23: FA Asset PPE Categories | B23: 161051_Transformer Stn Equip > 50 Kv | C23: 2001_Transf Station Equip-Steel Struct. and OH Bus | D23: 2001 | E23: 47 | F23: Tranmission and Distribution Equipment (8%) | G23: ZDB2 | H23: TH Tax Declining Balance - 8%, Half Year Rule | I23: 0.08 | J23: =IFERROR(MATCH(C23,APP_E!B:B,0)>0,FALSE) -> FALSE | K23: =IF(J23,VLOOKUP(C23,APP_E!B:D,3,FALSE),"") -> 
A24: FA Asset PPE Categories | B24: 161051_Transformer Stn Equip > 50 Kv | C24: 2002_Transf Station Equip - Disconnect Switch | D24: 2002 | E24: 47 | F24: Tranmission and Distribution Equipment (8%) | G24: ZDB2 | H24: TH Tax Declining Balance - 8%, Half Year Rule | I24: 0.08 | J24: =IFERROR(MATCH(C24,APP_E!B:B,0)>0,FALSE) -> TRUE | K24: =IF(J24,VLOOKUP(C24,APP_E!B:D,3,FALSE),"") -> 1815_TS Equip - Normally Primary above 50 kV - Disconnect Switch
A25: FA Asset PPE Categories | B25: 161051_Transformer Stn Equip > 50 Kv | C25: 2003_Transf Station Equip - Station Service | D25: 2003 | E25: 47 | F25: Tranmission and Distribution Equipment (8%) | G25: ZDB2 | H25: TH Tax Declining Balance - 8%, Half Year Rule | I25: 0.08 | J25: =IFERROR(MATCH(C25,APP_E!B:B,0)>0,FALSE) -> TRUE | K25: =IF(J25,VLOOKUP(C25,APP_E!B:D,3,FALSE),"") -> 1815_TS Equip - Normally Primary above 50 kV - Station Service
A26: FA Asset PPE Categories | B26: 161051_Transformer Stn Equip > 50 Kv | C26: 2004_Transf Station Equip-Power Transf TapChg | D26: 2004 | E26: 47 | F26: Tranmission and Distribution Equipment (8%) | G26: ZDB2 | H26: TH Tax Declining Balance - 8%, Half Year Rule | I26: 0.08 | J26: =IFERROR(MATCH(C26,APP_E!B:B,0)>0,FALSE) -> FALSE | K26: =IF(J26,VLOOKUP(C26,APP_E!B:D,3,FALSE),"") -> 
A27: FA Asset PPE Categories | B27: 161061_Substation Equip < 50 Kv | C27: 2020_Substn Equip - Steel Structures and OH Bus | D27: 2020 | E27: 47 | F27: Tranmission and Distribution Equipment (8%) | G27: ZDB2 | H27: TH Tax Declining Balance - 8%, Half Year Rule | I27: 0.08 | J27: =IFERROR(MATCH(C27,APP_E!B:B,0)>0,FALSE) -> FALSE | K27: =IF(J27,VLOOKUP(C27,APP_E!B:D,3,FALSE),"") -> 
A28: FA Asset PPE Categories | B28: 161061_Substation Equip < 50 Kv | C28: 2021_Substn Equip - Disconnect Switch | D28: 2021 | E28: 47 | F28: Tranmission and Distribution Equipment (8%) | G28: ZDB2 | H28: TH Tax Declining Balance - 8%, Half Year Rule | I28: 0.08 | J28: =IFERROR(MATCH(C28,APP_E!B:B,0)>0,FALSE) -> FALSE | K28: =IF(J28,VLOOKUP(C28,APP_E!B:D,3,FALSE),"") -> 
A29: FA Asset PPE Categories | B29: 161061_Substation Equip < 50 Kv | C29: 2022_Substn Equip - MS Station Service | D29: 2022 | E29: 47 | F29: Tranmission and Distribution Equipment (8%) | G29: ZDB2 | H29: TH Tax Declining Balance - 8%, Half Year Rule | I29: 0.08 | J29: =IFERROR(MATCH(C29,APP_E!B:B,0)>0,FALSE) -> TRUE | K29: =IF(J29,VLOOKUP(C29,APP_E!B:D,3,FALSE),"") -> 1820_DS Equip - Normally Primary below 50 kV - Station Service
A30: FA Asset PPE Categories | B30: 161061_Substation Equip < 50 Kv | C30: 2023_Substn Equip - DC Stn Service Batteries | D30: 2023 | E30: 47 | F30: Tranmission and Distribution Equipment (8%) | G30: ZDB2 | H30: TH Tax Declining Balance - 8%, Half Year Rule | I30: 0.08 | J30: =IFERROR(MATCH(C30,APP_E!B:B,0)>0,FALSE) -> TRUE | K30: =IF(J30,VLOOKUP(C30,APP_E!B:D,3,FALSE),"") -> 1820_DS Equip - Normally Primary below 50 kV - Stn Service Batteries
A31: FA Asset PPE Categories | B31: 161061_Substation Equip < 50 Kv | C31: 2024_Substn Equip - DC Stn Service Chargers | D31: 2024 | E31: 47 | F31: Tranmission and Distribution Equipment (8%) | G31: ZDB2 | H31: TH Tax Declining Balance - 8%, Half Year Rule | I31: 0.08 | J31: =IFERROR(MATCH(C31,APP_E!B:B,0)>0,FALSE) -> TRUE | K31: =IF(J31,VLOOKUP(C31,APP_E!B:D,3,FALSE),"") -> 1820_DS Equip - Normally Primary below 50 kV - Stn Service Chargers
A32: FA Asset PPE Categories | B32: 161061_Substation Equip < 50 Kv | C32: 2025_Substn Equip - Outdoor Breaker | D32: 2025 | E32: 47 | F32: Tranmission and Distribution Equipment (8%) | G32: ZDB2 | H32: TH Tax Declining Balance - 8%, Half Year Rule | I32: 0.08 | J32: =IFERROR(MATCH(C32,APP_E!B:B,0)>0,FALSE) -> TRUE | K32: =IF(J32,VLOOKUP(C32,APP_E!B:D,3,FALSE),"") -> 1820_DS Equip - Normally Primary below 50 kV - Outdoor Breaker
A33: FA Asset PPE Categories | B33: 161061_Substation Equip < 50 Kv | C33: 2026_Substn Equip - Indoor Breaker | D33: 2026 | E33: 47 | F33: Tranmission and Distribution Equipment (8%) | G33: ZDB2 | H33: TH Tax Declining Balance - 8%, Half Year Rule | I33: 0.08 | J33: =IFERROR(MATCH(C33,APP_E!B:B,0)>0,FALSE) -> TRUE | K33: =IF(J33,VLOOKUP(C33,APP_E!B:D,3,FALSE),"") -> 1820_DS Equip - Normally Primary below 50 kV - Indoor Breaker
A34: FA Asset PPE Categories | B34: 161061_Substation Equip < 50 Kv | C34: 2040_Substn Equip Switchgear - Air | D34: 2040 | E34: 47 | F34: Tranmission and Distribution Equipment (8%) | G34: ZDB2 | H34: TH Tax Declining Balance - 8%, Half Year Rule | I34: 0.08 | J34: =IFERROR(MATCH(C34,APP_E!B:B,0)>0,FALSE) -> TRUE | K34: =IF(J34,VLOOKUP(C34,APP_E!B:D,3,FALSE),"") -> 1820_DS Equip - Normally Primary below 50 kV - Switchgear Air
A35: FA Asset PPE Categories | B35: 161061_Substation Equip < 50 Kv | C35: 2041_Substn Equip Switchgear - GIS | D35: 2041 | E35: 47 | F35: Tranmission and Distribution Equipment (8%) | G35: ZDB2 | H35: TH Tax Declining Balance - 8%, Half Year Rule | I35: 0.08 | J35: =IFERROR(MATCH(C35,APP_E!B:B,0)>0,FALSE) -> TRUE | K35: =IF(J35,VLOOKUP(C35,APP_E!B:D,3,FALSE),"") -> 1820_DS Equip - Normally Primary below 50 kV - Switchgear GIS
A36: FA Asset PPE Categories | B36: 161061_Substation Equip < 50 Kv | C36: 2060_Substn Equip - Power Transformers | D36: 2060 | E36: 47 | F36: Tranmission and Distribution Equipment (8%) | G36: ZDB2 | H36: TH Tax Declining Balance - 8%, Half Year Rule | I36: 0.08 | J36: =IFERROR(MATCH(C36,APP_E!B:B,0)>0,FALSE) -> TRUE | K36: =IF(J36,VLOOKUP(C36,APP_E!B:D,3,FALSE),"") -> 1820_DS Equip - Normally Primary below 50 kV - Power Transformer
A37: FA Asset PPE Categories | B37: 161061_Substation Equip < 50 Kv | C37: 2061_Substn Equip - Power Transformers Tap Chgr | D37: 2061 | E37: 47 | F37: Tranmission and Distribution Equipment (8%) | G37: ZDB2 | H37: TH Tax Declining Balance - 8%, Half Year Rule | I37: 0.08 | J37: =IFERROR(MATCH(C37,APP_E!B:B,0)>0,FALSE) -> FALSE | K37: =IF(J37,VLOOKUP(C37,APP_E!B:D,3,FALSE),"") -> 
A38: FA Asset PPE Categories | B38: 161061_Substation Equip < 50 Kv | C38: 2062_Substn Equip - Grounding System | D38: 2062 | E38: 47 | F38: Tranmission and Distribution Equipment (8%) | G38: ZDB2 | H38: TH Tax Declining Balance - 8%, Half Year Rule | I38: 0.08 | J38: =IFERROR(MATCH(C38,APP_E!B:B,0)>0,FALSE) -> FALSE | K38: =IF(J38,VLOOKUP(C38,APP_E!B:D,3,FALSE),"") -> 
A39: FA Asset PPE Categories | B39: 161061_Substation Equip < 50 Kv | C39: 2063_Substn Equip - Grounding Transformer | D39: 2063 | E39: 47 | F39: Tranmission and Distribution Equipment (8%) | G39: ZDB2 | H39: TH Tax Declining Balance - 8%, Half Year Rule | I39: 0.08 | J39: =IFERROR(MATCH(C39,APP_E!B:B,0)>0,FALSE) -> FALSE | K39: =IF(J39,VLOOKUP(C39,APP_E!B:D,3,FALSE),"") -> 
A40: FA Asset PPE Categories | B40: 161109_Oh Dist Lines - Poles ARO | C40: 2140_O/H Dist Lines And Feeders - Poles ARO | D40: 2140 | G40: 0000 | J40: =IFERROR(MATCH(C40,APP_E!B:B,0)>0,FALSE) -> FALSE | K40: =IF(J40,VLOOKUP(C40,APP_E!B:D,3,FALSE),"") -> 
A41: FA Asset PPE Categories | B41: 161111_Oh Dist Lines - Poles/Towers/Fixtures | C41: 2120_O/H Dist Lines And Feeders - Concrete Poles | D41: 2120 | E41: 47 | F41: Tranmission and Distribution Equipment (8%) | G41: ZDB2 | H41: TH Tax Declining Balance - 8%, Half Year Rule | I41: 0.08 | J41: =IFERROR(MATCH(C41,APP_E!B:B,0)>0,FALSE) -> FALSE | K41: =IF(J41,VLOOKUP(C41,APP_E!B:D,3,FALSE),"") -> 
A42: FA Asset PPE Categories | B42: 161111_Oh Dist Lines - Poles/Towers/Fixtures | C42: 2121_O/H Dist Lines And Feeders - Wooden Poles | D42: 2121 | E42: 47 | F42: Tranmission and Distribution Equipment (8%) | G42: ZDB2 | H42: TH Tax Declining Balance - 8%, Half Year Rule | I42: 0.08 | J42: =IFERROR(MATCH(C42,APP_E!B:B,0)>0,FALSE) -> TRUE | K42: =IF(J42,VLOOKUP(C42,APP_E!B:D,3,FALSE),"") -> 1830_Poles Towers and Fixtures
A43: FA Asset PPE Categories | B43: 161115_Oh Dist Lines - Conductors | C43: 2160_O/H Dist Lines And Feeders - Conductors | D43: 2160 | E43: 47 | F43: Tranmission and Distribution Equipment (8%) | G43: ZDB2 | H43: TH Tax Declining Balance - 8%, Half Year Rule | I43: 0.08 | J43: =IFERROR(MATCH(C43,APP_E!B:B,0)>0,FALSE) -> TRUE | K43: =IF(J43,VLOOKUP(C43,APP_E!B:D,3,FALSE),"") -> 1835_Overhead Conductors and Devices
A44: FA Asset PPE Categories | B44: 161115_Oh Dist Lines - Conductors | C44: 2165_O/H Secondary conductors | D44: 2165 | E44: 47 | F44: Tranmission and Distribution Equipment (8%) | G44: ZDB2 | H44: TH Tax Declining Balance - 8%, Half Year Rule | I44: 0.08 | J44: =IFERROR(MATCH(C44,APP_E!B:B,0)>0,FALSE) -> TRUE | K44: =IF(J44,VLOOKUP(C44,APP_E!B:D,3,FALSE),"") -> 1835_Overhead Conductors and Devices
A45: FA Asset PPE Categories | B45: 161115_Oh Dist Lines - Conductors | C45: 2180_O/H Dist Lines And Feeders - Switches | D45: 2180 | E45: 47 | F45: Tranmission and Distribution Equipment (8%) | G45: ZDB2 | H45: TH Tax Declining Balance - 8%, Half Year Rule | I45: 0.08 | J45: =IFERROR(MATCH(C45,APP_E!B:B,0)>0,FALSE) -> TRUE | K45: =IF(J45,VLOOKUP(C45,APP_E!B:D,3,FALSE),"") -> 1835_Overhead Conductors and Devices - Switches
A46: FA Asset PPE Categories | B46: 161118_Oh Dist Lines - Poles Contributed Cap | C46: 2200_O/H Dist Lines - Poles Contributed Cap | D46: 2200 | E46: 47 | F46: Tranmission and Distribution Equipment (8%) | G46: ZDB2 | H46: TH Tax Declining Balance - 8%, Half Year Rule | I46: 0.08 | J46: =IFERROR(MATCH(C46,APP_E!B:B,0)>0,FALSE) -> FALSE | K46: =IF(J46,VLOOKUP(C46,APP_E!B:D,3,FALSE),"") -> 
A47: FA Asset PPE Categories | B47: 161118_Oh Dist Lines - Poles Contributed Cap | C47: 2201_Concrete Poles Contributed Capital | D47: 2201 | E47: 47 | F47: Tranmission and Distribution Equipment (8%) | G47: ZDB2 | H47: TH Tax Declining Balance - 8%, Half Year Rule | I47: 0.08 | J47: =IFERROR(MATCH(C47,APP_E!B:B,0)>0,FALSE) -> TRUE | K47: =IF(J47,VLOOKUP(C47,APP_E!B:D,3,FALSE),"") -> 1995_Contributions and Grants - Concrete Poles Contributed Cap
A48: FA Asset PPE Categories | B48: 161118_Oh Dist Lines - Poles Contributed Cap | C48: 2202_Wood Poles Contributed Capital | D48: 2202 | E48: 47 | F48: Tranmission and Distribution Equipment (8%) | G48: ZDB2 | H48: TH Tax Declining Balance - 8%, Half Year Rule | I48: 0.08 | J48: =IFERROR(MATCH(C48,APP_E!B:B,0)>0,FALSE) -> TRUE | K48: =IF(J48,VLOOKUP(C48,APP_E!B:D,3,FALSE),"") -> 1995_Contributions and Grants - Wood Poles Contributed Cap
A49: FA Asset PPE Categories | B49: 161119_Oh Dist Lines - Lines Contributed Cap | C49: 2220_OH Dist Lines - Lines Contributed Cap | D49: 2220 | E49: 47 | F49: Tranmission and Distribution Equipment (8%) | G49: ZDB2 | H49: TH Tax Declining Balance - 8%, Half Year Rule | I49: 0.08 | J49: =IFERROR(MATCH(C49,APP_E!B:B,0)>0,FALSE) -> FALSE | K49: =IF(J49,VLOOKUP(C49,APP_E!B:D,3,FALSE),"") -> 
A50: FA Asset PPE Categories | B50: 161119_Oh Dist Lines - Lines Contributed Cap | C50: 2221_OH Lines conductors Contributed Cap | D50: 2221 | E50: 47 | F50: Tranmission and Distribution Equipment (8%) | G50: ZDB2 | H50: TH Tax Declining Balance - 8%, Half Year Rule | I50: 0.08 | J50: =IFERROR(MATCH(C50,APP_E!B:B,0)>0,FALSE) -> TRUE | K50: =IF(J50,VLOOKUP(C50,APP_E!B:D,3,FALSE),"") -> 1995_Contributions and Grants - OH Lines & Secondary Contributed Cap
A51: FA Asset PPE Categories | B51: 161119_Oh Dist Lines - Lines Contributed Cap | C51: 2222_OH Secondary Contributed Cap | D51: 2222 | E51: 47 | F51: Tranmission and Distribution Equipment (8%) | G51: ZDB2 | H51: TH Tax Declining Balance - 8%, Half Year Rule | I51: 0.08 | J51: =IFERROR(MATCH(C51,APP_E!B:B,0)>0,FALSE) -> TRUE | K51: =IF(J51,VLOOKUP(C51,APP_E!B:D,3,FALSE),"") -> 1995_Contributions and Grants - OH Lines & Secondary Contributed Cap
A52: FA Asset PPE Categories | B52: 161119_Oh Dist Lines - Lines Contributed Cap | C52: 2223_OH Switches Contribute Cap | D52: 2223 | E52: 47 | F52: Tranmission and Distribution Equipment (8%) | G52: ZDB2 | H52: TH Tax Declining Balance - 8%, Half Year Rule | I52: 0.08 | J52: =IFERROR(MATCH(C52,APP_E!B:B,0)>0,FALSE) -> TRUE | K52: =IF(J52,VLOOKUP(C52,APP_E!B:D,3,FALSE),"") -> 1995_Contributions and Grants - OH Switches Contribute Cap
A53: FA Asset PPE Categories | B53: 161211_Ug Dist Lines - Conduit | C53: 2240_U/G Conduit - Duct Bank | D53: 2240 | E53: 47 | F53: Tranmission and Distribution Equipment (8%) | G53: ZDB2 | H53: TH Tax Declining Balance - 8%, Half Year Rule | I53: 0.08 | J53: =IFERROR(MATCH(C53,APP_E!B:B,0)>0,FALSE) -> TRUE | K53: =IF(J53,VLOOKUP(C53,APP_E!B:D,3,FALSE),"") -> 1840_Underground Conduit - Duct Bank
A54: FA Asset PPE Categories | B54: 161211_Ug Dist Lines - Conduit | C54: 2241_U/G Conduit - Vault | D54: 2241 | E54: 47 | F54: Tranmission and Distribution Equipment (8%) | G54: ZDB2 | H54: TH Tax Declining Balance - 8%, Half Year Rule | I54: 0.08 | J54: =IFERROR(MATCH(C54,APP_E!B:B,0)>0,FALSE) -> TRUE | K54: =IF(J54,VLOOKUP(C54,APP_E!B:D,3,FALSE),"") -> 1840_Underground Conduit - Vault
A55: FA Asset PPE Categories | B55: 161211_Ug Dist Lines - Conduit | C55: 2242_U/G Conduit - Vault Roof | D55: 2242 | E55: 47 | F55: Tranmission and Distribution Equipment (8%) | G55: ZDB2 | H55: TH Tax Declining Balance - 8%, Half Year Rule | I55: 0.08 | J55: =IFERROR(MATCH(C55,APP_E!B:B,0)>0,FALSE) -> TRUE | K55: =IF(J55,VLOOKUP(C55,APP_E!B:D,3,FALSE),"") -> 1840_Underground Conduit - Vault Roof
A56: FA Asset PPE Categories | B56: 161211_Ug Dist Lines - Conduit | C56: 2243_U/G Conduit - Cable Chamber | D56: 2243 | E56: 47 | F56: Tranmission and Distribution Equipment (8%) | G56: ZDB2 | H56: TH Tax Declining Balance - 8%, Half Year Rule | I56: 0.08 | J56: =IFERROR(MATCH(C56,APP_E!B:B,0)>0,FALSE) -> TRUE | K56: =IF(J56,VLOOKUP(C56,APP_E!B:D,3,FALSE),"") -> 1840_Underground Conduit - Cable Chamber
A57: FA Asset PPE Categories | B57: 161211_Ug Dist Lines - Conduit | C57: 2244_U/G Conduit - Cable Chamber Roof | D57: 2244 | E57: 47 | F57: Tranmission and Distribution Equipment (8%) | G57: ZDB2 | H57: TH Tax Declining Balance - 8%, Half Year Rule | I57: 0.08 | J57: =IFERROR(MATCH(C57,APP_E!B:B,0)>0,FALSE) -> TRUE | K57: =IF(J57,VLOOKUP(C57,APP_E!B:D,3,FALSE),"") -> 1840_Underground Conduit - Cable Chamber Roof
A58: FA Asset PPE Categories | B58: 161215_Ug Dist Lines - Conductors | C58: 2260_UG Dist Lines-Primary Cable duct (xLPE) | D58: 2260 | E58: 47 | F58: Tranmission and Distribution Equipment (8%) | G58: ZDB2 | H58: TH Tax Declining Balance - 8%, Half Year Rule | I58: 0.08 | J58: =IFERROR(MATCH(C58,APP_E!B:B,0)>0,FALSE) -> TRUE | K58: =IF(J58,VLOOKUP(C58,APP_E!B:D,3,FALSE),"") -> 1845_Underground Conductors and Devices
A59: FA Asset PPE Categories | B59: 161215_Ug Dist Lines - Conductors | C59: 2261_UG Dist Lines-Prim Cable burried (xLPE) | D59: 2261 | E59: 47 | F59: Tranmission and Distribution Equipment (8%) | G59: ZDB2 | H59: TH Tax Declining Balance - 8%, Half Year Rule | I59: 0.08 | J59: =IFERROR(MATCH(C59,APP_E!B:B,0)>0,FALSE) -> TRUE | K59: =IF(J59,VLOOKUP(C59,APP_E!B:D,3,FALSE),"") -> 1845_Underground Conductors and Devices - Prim Cable burried (xLPE)
A60: FA Asset PPE Categories | B60: 161215_Ug Dist Lines - Conductors | C60: 2262_U/G Dist Lines And Feeders - Primary PILC cable | D60: 2262 | E60: 47 | F60: Tranmission and Distribution Equipment (8%) | G60: ZDB2 | H60: TH Tax Declining Balance - 8%, Half Year Rule | I60: 0.08 | J60: =IFERROR(MATCH(C60,APP_E!B:B,0)>0,FALSE) -> FALSE | K60: =IF(J60,VLOOKUP(C60,APP_E!B:D,3,FALSE),"") -> 
A61: FA Asset PPE Categories | B61: 161215_Ug Dist Lines - Conductors | C61: 2263_U/G Dist Lines And Feeders-Secondary Cable in duct | D61: 2263 | E61: 47 | F61: Tranmission and Distribution Equipment (8%) | G61: ZDB2 | H61: TH Tax Declining Balance - 8%, Half Year Rule | I61: 0.08 | J61: =IFERROR(MATCH(C61,APP_E!B:B,0)>0,FALSE) -> TRUE | K61: =IF(J61,VLOOKUP(C61,APP_E!B:D,3,FALSE),"") -> 1845_Underground Conductors and Devices
A62: FA Asset PPE Categories | B62: 161215_Ug Dist Lines - Conductors | C62: 2264_U/G Secondary Cable direct buried | D62: 2264 | E62: 47 | F62: Tranmission and Distribution Equipment (8%) | G62: ZDB2 | H62: TH Tax Declining Balance - 8%, Half Year Rule | I62: 0.08 | J62: =IFERROR(MATCH(C62,APP_E!B:B,0)>0,FALSE) -> FALSE | K62: =IF(J62,VLOOKUP(C62,APP_E!B:D,3,FALSE),"") -> 
A63: FA Asset PPE Categories | B63: 161215_Ug Dist Lines - Conductors | C63: 2280_UG Dist Lines - ATS Switches | D63: 2280 | E63: 47 | F63: Tranmission and Distribution Equipment (8%) | G63: ZDB2 | H63: TH Tax Declining Balance - 8%, Half Year Rule | I63: 0.08 | J63: =IFERROR(MATCH(C63,APP_E!B:B,0)>0,FALSE) -> TRUE | K63: =IF(J63,VLOOKUP(C63,APP_E!B:D,3,FALSE),"") -> 1845_Underground Conductors and Devices - ATS Switches
A64: FA Asset PPE Categories | B64: 161215_Ug Dist Lines - Conductors | C64: 2281_UG Dist Lines - Switch installation | D64: 2281 | E64: 47 | F64: Tranmission and Distribution Equipment (8%) | G64: ZDB2 | H64: TH Tax Declining Balance - 8%, Half Year Rule | I64: 0.08 | J64: =IFERROR(MATCH(C64,APP_E!B:B,0)>0,FALSE) -> TRUE | K64: =IF(J64,VLOOKUP(C64,APP_E!B:D,3,FALSE),"") -> 1845_Underground Conductors and Devices - Switch
A65: FA Asset PPE Categories | B65: 161216_Ug Dist Lines - Cable ARO | C65: 2300_UG Dist Lines - Cable ARO | D65: 2300 | G65: 0000 | J65: =IFERROR(MATCH(C65,APP_E!B:B,0)>0,FALSE) -> FALSE | K65: =IF(J65,VLOOKUP(C65,APP_E!B:D,3,FALSE),"") -> 
A66: FA Asset PPE Categories | B66: 161218_Ug Dist Lines - Conduit Contributed Cap | C66: 2320_Ug Dist Lines - Conduit Contributed Cap | D66: 2320 | E66: 47 | F66: Tranmission and Distribution Equipment (8%) | G66: ZDB2 | H66: TH Tax Declining Balance - 8%, Half Year Rule | I66: 0.08 | J66: =IFERROR(MATCH(C66,APP_E!B:B,0)>0,FALSE) -> FALSE | K66: =IF(J66,VLOOKUP(C66,APP_E!B:D,3,FALSE),"") -> 
A67: FA Asset PPE Categories | B67: 161218_Ug Dist Lines - Conduit Contributed Cap | C67: 2321_UG Duct Bank Contributed Cap | D67: 2321 | E67: 47 | F67: Tranmission and Distribution Equipment (8%) | G67: ZDB2 | H67: TH Tax Declining Balance - 8%, Half Year Rule | I67: 0.08 | J67: =IFERROR(MATCH(C67,APP_E!B:B,0)>0,FALSE) -> TRUE | K67: =IF(J67,VLOOKUP(C67,APP_E!B:D,3,FALSE),"") -> 1995_Contributions and Grants - UG Duct Bank Contributed Cap
A68: FA Asset PPE Categories | B68: 161218_Ug Dist Lines - Conduit Contributed Cap | C68: 2322_UG Vault Contributed Cap | D68: 2322 | E68: 47 | F68: Tranmission and Distribution Equipment (8%) | G68: ZDB2 | H68: TH Tax Declining Balance - 8%, Half Year Rule | I68: 0.08 | J68: =IFERROR(MATCH(C68,APP_E!B:B,0)>0,FALSE) -> FALSE | K68: =IF(J68,VLOOKUP(C68,APP_E!B:D,3,FALSE),"") -> 
A69: FA Asset PPE Categories | B69: 161218_Ug Dist Lines - Conduit Contributed Cap | C69: 2323_UG Vault Roof Contrib Cap | D69: 2323 | E69: 47 | F69: Tranmission and Distribution Equipment (8%) | G69: ZDB2 | H69: TH Tax Declining Balance - 8%, Half Year Rule | I69: 0.08 | J69: =IFERROR(MATCH(C69,APP_E!B:B,0)>0,FALSE) -> FALSE | K69: =IF(J69,VLOOKUP(C69,APP_E!B:D,3,FALSE),"") -> 
A70: FA Asset PPE Categories | B70: 161218_Ug Dist Lines - Conduit Contributed Cap | C70: 2324_UG Cable Chamber Contributed Cap | D70: 2324 | E70: 47 | F70: Tranmission and Distribution Equipment (8%) | G70: ZDB2 | H70: TH Tax Declining Balance - 8%, Half Year Rule | I70: 0.08 | J70: =IFERROR(MATCH(C70,APP_E!B:B,0)>0,FALSE) -> TRUE | K70: =IF(J70,VLOOKUP(C70,APP_E!B:D,3,FALSE),"") -> 1995_Contributions and Grants - UG Cable Chamber Contributed Cap
A71: FA Asset PPE Categories | B71: 161218_Ug Dist Lines - Conduit Contributed Cap | C71: 2325_Cable Chamber Contrib Cap | D71: 2325 | E71: 47 | F71: Tranmission and Distribution Equipment (8%) | G71: ZDB2 | H71: TH Tax Declining Balance - 8%, Half Year Rule | I71: 0.08 | J71: =IFERROR(MATCH(C71,APP_E!B:B,0)>0,FALSE) -> FALSE | K71: =IF(J71,VLOOKUP(C71,APP_E!B:D,3,FALSE),"") -> 
A72: FA Asset PPE Categories | B72: 161219_Ug Dist Lines - Fdr Contributed Cap | C72: 2340_UG Dist Lines - Fdr Contributed Cap | D72: 2340 | E72: 47 | F72: Tranmission and Distribution Equipment (8%) | G72: ZDB2 | H72: TH Tax Declining Balance - 8%, Half Year Rule | I72: 0.08 | J72: =IFERROR(MATCH(C72,APP_E!B:B,0)>0,FALSE) -> FALSE | K72: =IF(J72,VLOOKUP(C72,APP_E!B:D,3,FALSE),"") -> 
A73: FA Asset PPE Categories | B73: 161219_Ug Dist Lines - Fdr Contributed Cap | C73: 2341_UG Primary cable duct Contributed Cap | D73: 2341 | E73: 47 | F73: Tranmission and Distribution Equipment (8%) | G73: ZDB2 | H73: TH Tax Declining Balance - 8%, Half Year Rule | I73: 0.08 | J73: =IFERROR(MATCH(C73,APP_E!B:B,0)>0,FALSE) -> TRUE | K73: =IF(J73,VLOOKUP(C73,APP_E!B:D,3,FALSE),"") -> 1995_Contributions and Grants - UG Primary & Secondary duct Contributed Cap
A74: FA Asset PPE Categories | B74: 161219_Ug Dist Lines - Fdr Contributed Cap | C74: 2342_UG Primary cable buried Contributed Cap | D74: 2342 | E74: 47 | F74: Tranmission and Distribution Equipment (8%) | G74: ZDB2 | H74: TH Tax Declining Balance - 8%, Half Year Rule | I74: 0.08 | J74: =IFERROR(MATCH(C74,APP_E!B:B,0)>0,FALSE) -> TRUE | K74: =IF(J74,VLOOKUP(C74,APP_E!B:D,3,FALSE),"") -> 1995_Contributions and Grants - UG Primary & Secondary buried Contributed Cap
A75: FA Asset PPE Categories | B75: 161219_Ug Dist Lines - Fdr Contributed Cap | C75: 2343_UG Primary PILC Contributed Cap | D75: 2343 | E75: 47 | F75: Tranmission and Distribution Equipment (8%) | G75: ZDB2 | H75: TH Tax Declining Balance - 8%, Half Year Rule | I75: 0.08 | J75: =IFERROR(MATCH(C75,APP_E!B:B,0)>0,FALSE) -> TRUE | K75: =IF(J75,VLOOKUP(C75,APP_E!B:D,3,FALSE),"") -> 1995_Contributions and Grants - UG Primary PILC Contributed Cap
A76: FA Asset PPE Categories | B76: 161219_Ug Dist Lines - Fdr Contributed Cap | C76: 2344_UG Secondary duct Contributed Cap | D76: 2344 | E76: 47 | F76: Tranmission and Distribution Equipment (8%) | G76: ZDB2 | H76: TH Tax Declining Balance - 8%, Half Year Rule | I76: 0.08 | J76: =IFERROR(MATCH(C76,APP_E!B:B,0)>0,FALSE) -> TRUE | K76: =IF(J76,VLOOKUP(C76,APP_E!B:D,3,FALSE),"") -> 1995_Contributions and Grants - UG Primary & Secondary duct Contributed Cap
A77: FA Asset PPE Categories | B77: 161219_Ug Dist Lines - Fdr Contributed Cap | C77: 2345_UG Secondary DB Contributed Cap | D77: 2345 | E77: 47 | F77: Tranmission and Distribution Equipment (8%) | G77: ZDB2 | H77: TH Tax Declining Balance - 8%, Half Year Rule | I77: 0.08 | J77: =IFERROR(MATCH(C77,APP_E!B:B,0)>0,FALSE) -> TRUE | K77: =IF(J77,VLOOKUP(C77,APP_E!B:D,3,FALSE),"") -> 1995_Contributions and Grants - UG Primary & Secondary buried Contributed Cap
A78: FA Asset PPE Categories | B78: 161219_Ug Dist Lines - Fdr Contributed Cap | C78: 2346_UG ATS Switches Contributed Cap | D78: 2346 | E78: 47 | F78: Tranmission and Distribution Equipment (8%) | G78: ZDB2 | H78: TH Tax Declining Balance - 8%, Half Year Rule | I78: 0.08 | J78: =IFERROR(MATCH(C78,APP_E!B:B,0)>0,FALSE) -> FALSE | K78: =IF(J78,VLOOKUP(C78,APP_E!B:D,3,FALSE),"") -> 
A79: FA Asset PPE Categories | B79: 161219_Ug Dist Lines - Fdr Contributed Cap | C79: 2347_UG Padmount Switchgear Contributed Cap | D79: 2347 | E79: 47 | F79: Tranmission and Distribution Equipment (8%) | G79: ZDB2 | H79: TH Tax Declining Balance - 8%, Half Year Rule | I79: 0.08 | J79: =IFERROR(MATCH(C79,APP_E!B:B,0)>0,FALSE) -> TRUE | K79: =IF(J79,VLOOKUP(C79,APP_E!B:D,3,FALSE),"") -> 1995_Contributions and Grants - UG Padmount Switchgear Contributed Cap
A80: FA Asset PPE Categories | B80: 161311_Distribution Transformers | C80: 2360_Distribution Transformers - General Overhead | D80: 2360 | E80: 47 | F80: Tranmission and Distribution Equipment (8%) | G80: ZDB2 | H80: TH Tax Declining Balance - 8%, Half Year Rule | I80: 0.08 | J80: =IFERROR(MATCH(C80,APP_E!B:B,0)>0,FALSE) -> TRUE | K80: =IF(J80,VLOOKUP(C80,APP_E!B:D,3,FALSE),"") -> 1850_Line Transformers - OH
A81: FA Asset PPE Categories | B81: 161311_Distribution Transformers | C81: 2380_UG Distribution Transformers -Network w/ protector | D81: 2380 | E81: 47 | F81: Tranmission and Distribution Equipment (8%) | G81: ZDB2 | H81: TH Tax Declining Balance - 8%, Half Year Rule | I81: 0.08 | J81: =IFERROR(MATCH(C81,APP_E!B:B,0)>0,FALSE) -> TRUE | K81: =IF(J81,VLOOKUP(C81,APP_E!B:D,3,FALSE),"") -> 1850_Line Transformers - UG Network w/protector
A82: FA Asset PPE Categories | B82: 161311_Distribution Transformers | C82: 2400_UG Distribution Transformers | D82: 2400 | E82: 47 | F82: Tranmission and Distribution Equipment (8%) | G82: ZDB2 | H82: TH Tax Declining Balance - 8%, Half Year Rule | I82: 0.08 | J82: =IFERROR(MATCH(C82,APP_E!B:B,0)>0,FALSE) -> TRUE | K82: =IF(J82,VLOOKUP(C82,APP_E!B:D,3,FALSE),"") -> 1850_Line Transformers - UG
A83: FA Asset PPE Categories | B83: 161312_Distribution Transformers Aro | C83: 2460_Distribution Transformers - ARO | D83: 2460 | G83: 0000 | J83: =IFERROR(MATCH(C83,APP_E!B:B,0)>0,FALSE) -> FALSE | K83: =IF(J83,VLOOKUP(C83,APP_E!B:D,3,FALSE),"") -> 
A84: FA Asset PPE Categories | B84: 161319_Dist Transformers- Contributed Capital | C84: 2480_Distribution Transformers - Contributed Capital | D84: 2480 | E84: 47 | F84: Tranmission and Distribution Equipment (8%) | G84: ZDB2 | H84: TH Tax Declining Balance - 8%, Half Year Rule | I84: 0.08 | J84: =IFERROR(MATCH(C84,APP_E!B:B,0)>0,FALSE) -> FALSE | K84: =IF(J84,VLOOKUP(C84,APP_E!B:D,3,FALSE),"") -> 
A85: FA Asset PPE Categories | B85: 161319_Dist Transformers- Contributed Capital | C85: 2481_OH Transformer Contribued Cap | D85: 2481 | E85: 47 | F85: Tranmission and Distribution Equipment (8%) | G85: ZDB2 | H85: TH Tax Declining Balance - 8%, Half Year Rule | I85: 0.08 | J85: =IFERROR(MATCH(C85,APP_E!B:B,0)>0,FALSE) -> TRUE | K85: =IF(J85,VLOOKUP(C85,APP_E!B:D,3,FALSE),"") -> 1995_Contributions and Grants - Transformer Contributed Cap
A86: FA Asset PPE Categories | B86: 161319_Dist Transformers- Contributed Capital | C86: 2482_UG Transformer NetProt Contrib Cap | D86: 2482 | E86: 47 | F86: Tranmission and Distribution Equipment (8%) | G86: ZDB2 | H86: TH Tax Declining Balance - 8%, Half Year Rule | I86: 0.08 | J86: =IFERROR(MATCH(C86,APP_E!B:B,0)>0,FALSE) -> FALSE | K86: =IF(J86,VLOOKUP(C86,APP_E!B:D,3,FALSE),"") -> 
A87: FA Asset PPE Categories | B87: 161319_Dist Transformers- Contributed Capital | C87: 2483_UG Transformer Contrib Cap | D87: 2483 | E87: 47 | F87: Tranmission and Distribution Equipment (8%) | G87: ZDB2 | H87: TH Tax Declining Balance - 8%, Half Year Rule | I87: 0.08 | J87: =IFERROR(MATCH(C87,APP_E!B:B,0)>0,FALSE) -> TRUE | K87: =IF(J87,VLOOKUP(C87,APP_E!B:D,3,FALSE),"") -> 1995_Contributions and Grants - Transformer Contributed Cap
A88: FA Asset PPE Categories | B88: 161411_Services | C88: 2500_Services - Overhead | D88: 2500 | E88: 47 | F88: Tranmission and Distribution Equipment (8%) | G88: ZDB2 | H88: TH Tax Declining Balance - 8%, Half Year Rule | I88: 0.08 | J88: =IFERROR(MATCH(C88,APP_E!B:B,0)>0,FALSE) -> TRUE | K88: =IF(J88,VLOOKUP(C88,APP_E!B:D,3,FALSE),"") -> 1855_Services - OH
A89: FA Asset PPE Categories | B89: 161411_Services | C89: 2520_Services - Underground - in duct | D89: 2520 | E89: 47 | F89: Tranmission and Distribution Equipment (8%) | G89: ZDB2 | H89: TH Tax Declining Balance - 8%, Half Year Rule | I89: 0.08 | J89: =IFERROR(MATCH(C89,APP_E!B:B,0)>0,FALSE) -> TRUE | K89: =IF(J89,VLOOKUP(C89,APP_E!B:D,3,FALSE),"") -> 1855_Services - UG
A90: FA Asset PPE Categories | B90: 161411_Services | C90: 2521_Services - UG Secondary cable - direct buried | D90: 2521 | E90: 47 | F90: Tranmission and Distribution Equipment (8%) | G90: ZDB2 | H90: TH Tax Declining Balance - 8%, Half Year Rule | I90: 0.08 | J90: =IFERROR(MATCH(C90,APP_E!B:B,0)>0,FALSE) -> FALSE | K90: =IF(J90,VLOOKUP(C90,APP_E!B:D,3,FALSE),"") -> 
A91: FA Asset PPE Categories | B91: 161419_Service Connections Contrib Cap | C91: 2540_Service Connections Contributed Capital | D91: 2540 | E91: 47 | F91: Tranmission and Distribution Equipment (8%) | G91: ZDB2 | H91: TH Tax Declining Balance - 8%, Half Year Rule | I91: 0.08 | J91: =IFERROR(MATCH(C91,APP_E!B:B,0)>0,FALSE) -> FALSE | K91: =IF(J91,VLOOKUP(C91,APP_E!B:D,3,FALSE),"") -> 
A92: FA Asset PPE Categories | B92: 161419_Service Connections Contrib Cap | C92: 2541_OH Services Contrib Cap | D92: 2541 | E92: 47 | F92: Tranmission and Distribution Equipment (8%) | G92: ZDB2 | H92: TH Tax Declining Balance - 8%, Half Year Rule | I92: 0.08 | J92: =IFERROR(MATCH(C92,APP_E!B:B,0)>0,FALSE) -> TRUE | K92: =IF(J92,VLOOKUP(C92,APP_E!B:D,3,FALSE),"") -> 1995_Contributions and Grants - OH Services Contrib Cap
A93: FA Asset PPE Categories | B93: 161419_Service Connections Contrib Cap | C93: 2542_UG Services duct Contrib Cap | D93: 2542 | E93: 47 | F93: Tranmission and Distribution Equipment (8%) | G93: ZDB2 | H93: TH Tax Declining Balance - 8%, Half Year Rule | I93: 0.08 | J93: =IFERROR(MATCH(C93,APP_E!B:B,0)>0,FALSE) -> TRUE | K93: =IF(J93,VLOOKUP(C93,APP_E!B:D,3,FALSE),"") -> 1995_Contributions and Grants - UG Services duct Contrib Cap
A94: FA Asset PPE Categories | B94: 161419_Service Connections Contrib Cap | C94: 2543_UG Services DB Contrib Cap | D94: 2543 | E94: 47 | F94: Tranmission and Distribution Equipment (8%) | G94: ZDB2 | H94: TH Tax Declining Balance - 8%, Half Year Rule | I94: 0.08 | J94: =IFERROR(MATCH(C94,APP_E!B:B,0)>0,FALSE) -> TRUE | K94: =IF(J94,VLOOKUP(C94,APP_E!B:D,3,FALSE),"") -> 1995_Contributions and Grants - UG Services DB Contrib Cap
A95: FA Asset PPE Categories | B95: 161511_Dist Meters | C95: 2560_Dist Meters - Demand/Energy Meters | D95: 2560 | E95: 47 | F95: Tranmission and Distribution Equipment (8%) | G95: ZDB2 | H95: TH Tax Declining Balance - 8%, Half Year Rule | I95: 0.08 | J95: =IFERROR(MATCH(C95,APP_E!B:B,0)>0,FALSE) -> FALSE | K95: =IF(J95,VLOOKUP(C95,APP_E!B:D,3,FALSE),"") -> 
A96: FA Asset PPE Categories | B96: 161511_Dist Meters | C96: 2561_Dist Meters - Meters Transformers | D96: 2561 | E96: 47 | F96: Tranmission and Distribution Equipment (8%) | G96: ZDB2 | H96: TH Tax Declining Balance - 8%, Half Year Rule | I96: 0.08 | J96: =IFERROR(MATCH(C96,APP_E!B:B,0)>0,FALSE) -> FALSE | K96: =IF(J96,VLOOKUP(C96,APP_E!B:D,3,FALSE),"") -> 
A97: FA Asset PPE Categories | B97: 161511_Dist Meters | C97: 2600_Dist Meters - Suite Meters | D97: 2600 | E97: 47 | F97: Tranmission and Distribution Equipment (8%) | G97: ZDB2 | H97: TH Tax Declining Balance - 8%, Half Year Rule | I97: 0.08 | J97: =IFERROR(MATCH(C97,APP_E!B:B,0)>0,FALSE) -> TRUE | K97: =IF(J97,VLOOKUP(C97,APP_E!B:D,3,FALSE),"") -> 1860_Meters - Suite Meters
A98: FA Asset PPE Categories | B98: 161511_Grid Pt Meters | C98: 2580_Dist Meters - Grid Point Meters | D98: 2580 | E98: 47 | F98: Tranmission and Distribution Equipment (8%) | G98: ZDB2 | H98: TH Tax Declining Balance - 8%, Half Year Rule | I98: 0.08 | J98: =IFERROR(MATCH(C98,APP_E!B:B,0)>0,FALSE) -> TRUE | K98: =IF(J98,VLOOKUP(C98,APP_E!B:D,3,FALSE),"") -> 1820_DS Equip - Normally Primary below 50 kV - Grid Point Meters
A99: FA Asset PPE Categories | B99: 161512_Smart Meters | C99: 2620_Dist Meters - Smart Meters Residential | D99: 2620 | E99: 47 | F99: Tranmission and Distribution Equipment (8%) | G99: ZDB2 | H99: TH Tax Declining Balance - 8%, Half Year Rule | I99: 0.08 | J99: =IFERROR(MATCH(C99,APP_E!B:B,0)>0,FALSE) -> TRUE | K99: =IF(J99,VLOOKUP(C99,APP_E!B:D,3,FALSE),"") -> 1860_Meters - Smart Meters
A100: FA Asset PPE Categories | B100: 161512_Smart Meters | C100: 2640_Dist Meters - Smart Meters GS | D100: 2640 | E100: 47 | F100: Tranmission and Distribution Equipment (8%) | G100: ZDB2 | H100: TH Tax Declining Balance - 8%, Half Year Rule | I100: 0.08 | J100: =IFERROR(MATCH(C100,APP_E!B:B,0)>0,FALSE) -> TRUE | K100: =IF(J100,VLOOKUP(C100,APP_E!B:D,3,FALSE),"") -> 1860_Meters - Smart Meters
A101: FA Asset PPE Categories | B101: 161519_Dist Meters - Contributed Capital | C101: 2660_Dist Meters - Contributed Capital | D101: 2660 | E101: 47 | F101: Tranmission and Distribution Equipment (8%) | G101: ZDB2 | H101: TH Tax Declining Balance - 8%, Half Year Rule | I101: 0.08 | J101: =IFERROR(MATCH(C101,APP_E!B:B,0)>0,FALSE) -> FALSE | K101: =IF(J101,VLOOKUP(C101,APP_E!B:D,3,FALSE),"") -> 
A102: FA Asset PPE Categories | B102: 161519_Dist Meters - Contributed Capital | C102: 2661_Demand Energy Meter Contrib Cap | D102: 2661 | E102: 47 | F102: Tranmission and Distribution Equipment (8%) | G102: ZDB2 | H102: TH Tax Declining Balance - 8%, Half Year Rule | I102: 0.08 | J102: =IFERROR(MATCH(C102,APP_E!B:B,0)>0,FALSE) -> FALSE | K102: =IF(J102,VLOOKUP(C102,APP_E!B:D,3,FALSE),"") -> 
A103: FA Asset PPE Categories | B103: 161519_Dist Meters - Contributed Capital | C103: 2662_Meter Transformer Contrib Cap | D103: 2662 | E103: 47 | F103: Tranmission and Distribution Equipment (8%) | G103: ZDB2 | H103: TH Tax Declining Balance - 8%, Half Year Rule | I103: 0.08 | J103: =IFERROR(MATCH(C103,APP_E!B:B,0)>0,FALSE) -> FALSE | K103: =IF(J103,VLOOKUP(C103,APP_E!B:D,3,FALSE),"") -> 
A104: FA Asset PPE Categories | B104: 161519_Dist Meters - Contributed Capital | C104: 2663_Grid Point Meters Contrib Cap | D104: 2663 | E104: 47 | F104: Tranmission and Distribution Equipment (8%) | G104: ZDB2 | H104: TH Tax Declining Balance - 8%, Half Year Rule | I104: 0.08 | J104: =IFERROR(MATCH(C104,APP_E!B:B,0)>0,FALSE) -> FALSE | K104: =IF(J104,VLOOKUP(C104,APP_E!B:D,3,FALSE),"") -> 
A105: FA Asset PPE Categories | B105: 161519_Dist Meters - Contributed Capital | C105: 2664_Suite Meter Contrib Cap | D105: 2664 | E105: 47 | F105: Tranmission and Distribution Equipment (8%) | G105: ZDB2 | H105: TH Tax Declining Balance - 8%, Half Year Rule | I105: 0.08 | J105: =IFERROR(MATCH(C105,APP_E!B:B,0)>0,FALSE) -> TRUE | K105: =IF(J105,VLOOKUP(C105,APP_E!B:D,3,FALSE),"") -> 1995_Contributions and Grants - Suite Meter Contrib Cap
A106: FA Asset PPE Categories | B106: 161611_Fibre Optic - Interstaion Control Cable | C106: 3000_Fibre Optic Network - Control Cable | D106: 3000 | E106: 17 | F106: Fibre and Telecom Equipment (8%) | G106: ZDB2 | H106: TH Tax Declining Balance - 8%, Half Year Rule | I106: 0.08 | J106: =IFERROR(MATCH(C106,APP_E!B:B,0)>0,FALSE) -> FALSE | K106: =IF(J106,VLOOKUP(C106,APP_E!B:D,3,FALSE),"") -> 
A107: FA Asset PPE Categories | B107: 161614_Fibre Optic - Termination Equip | C107: 3020_Fibre Optic Network - Customer Term Equipment | D107: 3020 | E107: 17 | F107: Fibre and Telecom Equipment (8%) | G107: ZDB2 | H107: TH Tax Declining Balance - 8%, Half Year Rule | I107: 0.08 | J107: =IFERROR(MATCH(C107,APP_E!B:B,0)>0,FALSE) -> FALSE | K107: =IF(J107,VLOOKUP(C107,APP_E!B:D,3,FALSE),"") -> 
A108: FA Asset PPE Categories | B108: 161614_Fibre Optic - Termination Equip | C108: 3040_Fibre Optic Network - SubstationTerm Equipment | D108: 3040 | E108: 17 | F108: Fibre and Telecom Equipment (8%) | G108: ZDB2 | H108: TH Tax Declining Balance - 8%, Half Year Rule | I108: 0.08 | J108: =IFERROR(MATCH(C108,APP_E!B:B,0)>0,FALSE) -> FALSE | K108: =IF(J108,VLOOKUP(C108,APP_E!B:D,3,FALSE),"") -> 
A109: FA Asset PPE Categories | B109: 162011_Furniture Fixtures Bld systems | C109: 3060_General Office Furnishings & Equipment | D109: 3060 | E109: 08 | F109: Office Furniture and Equipment (20%) | G109: ZDB3 | H109: TH Tax Declining Balance - 20%, Half Year Rule | I109: 0.2 | J109: =IFERROR(MATCH(C109,APP_E!B:B,0)>0,FALSE) -> FALSE | K109: =IF(J109,VLOOKUP(C109,APP_E!B:D,3,FALSE),"") -> 
A110: FA Asset PPE Categories | B110: 162111_Computer Equip - Processing/Storage | C110: 3120_Computer Hardware - Client/Network equip | D110: 3120 | E110: 50 | F110: Computer Hardware and System Software (55%) | G110: ZDB5 | H110: TH Tax Declining Balance - 55%, Half Year Rule | I110: 0.55 | J110: =IFERROR(MATCH(C110,APP_E!B:B,0)>0,FALSE) -> FALSE | K110: =IF(J110,VLOOKUP(C110,APP_E!B:D,3,FALSE),"") -> 
A111: FA Asset PPE Categories | B111: 162111_Computer Equip - Processing/Storage | C111: 3127_Computer Hardware - Printers/Storage | D111: 3127 | E111: 50 | F111: Computer Hardware and System Software (55%) | G111: ZDB5 | H111: TH Tax Declining Balance - 55%, Half Year Rule | I111: 0.55 | J111: =IFERROR(MATCH(C111,APP_E!B:B,0)>0,FALSE) -> FALSE | K111: =IF(J111,VLOOKUP(C111,APP_E!B:D,3,FALSE),"") -> 
A112: FA Asset PPE Categories | B112: 162111_Computer Equip - Processing/Storage | C112: 3128_Computer Hardware - P series Servers | D112: 3128 | E112: 50 | F112: Computer Hardware and System Software (55%) | G112: ZDB5 | H112: TH Tax Declining Balance - 55%, Half Year Rule | I112: 0.55 | J112: =IFERROR(MATCH(C112,APP_E!B:B,0)>0,FALSE) -> FALSE | K112: =IF(J112,VLOOKUP(C112,APP_E!B:D,3,FALSE),"") -> 
A113: FA Asset PPE Categories | B113: 162115_Computer Equip - Scada | C113: 3160_Computer Hardware - Scada | D113: 3160 | E113: 50 | F113: Computer Hardware and System Software (55%) | G113: ZDB5 | H113: TH Tax Declining Balance - 55%, Half Year Rule | I113: 0.55 | J113: =IFERROR(MATCH(C113,APP_E!B:B,0)>0,FALSE) -> FALSE | K113: =IF(J113,VLOOKUP(C113,APP_E!B:D,3,FALSE),"") -> 
A114: FA Asset PPE Categories | B114: 162411_Rolling Stock - Passenger Cars | C114: 3180_Rolling Stock - Passenger Cars | D114: 3180 | E114: 10 | F114: Auto Equipment and Vehicles (30%) | G114: ZDB4 | H114: TH Tax Declining Balance - 30%, Half Year Rule | I114: 0.3 | J114: =IFERROR(MATCH(C114,APP_E!B:B,0)>0,FALSE) -> FALSE | K114: =IF(J114,VLOOKUP(C114,APP_E!B:D,3,FALSE),"") -> 
A115: FA Asset PPE Categories | B115: 162421_Rolling Stock - Trucks Vans | C115: 3200_Rolling Stock - Vehicles < 3 Tons | D115: 3200 | E115: 10 | F115: Auto Equipment and Vehicles (30%) | G115: ZDB4 | H115: TH Tax Declining Balance - 30%, Half Year Rule | I115: 0.3 | J115: =IFERROR(MATCH(C115,APP_E!B:B,0)>0,FALSE) -> FALSE | K115: =IF(J115,VLOOKUP(C115,APP_E!B:D,3,FALSE),"") -> 
A116: FA Asset PPE Categories | B116: 162431_Rolling Stock - Trucks > 3 Tons | C116: 3220_Rolling Stock - Vehicles > 3 Tons | D116: 3220 | E116: 10 | F116: Auto Equipment and Vehicles (30%) | G116: ZDB4 | H116: TH Tax Declining Balance - 30%, Half Year Rule | I116: 0.3 | J116: =IFERROR(MATCH(C116,APP_E!B:B,0)>0,FALSE) -> FALSE | K116: =IF(J116,VLOOKUP(C116,APP_E!B:D,3,FALSE),"") -> 
A117: FA Asset PPE Categories | B117: 162441_Rolling Stock - Service Equip | C117: 3240_Rolling Stock - Service Equipment | D117: 3240 | E117: 10 | F117: Auto Equipment and Vehicles (30%) | G117: ZDB4 | H117: TH Tax Declining Balance - 30%, Half Year Rule | I117: 0.3 | J117: =IFERROR(MATCH(C117,APP_E!B:B,0)>0,FALSE) -> FALSE | K117: =IF(J117,VLOOKUP(C117,APP_E!B:D,3,FALSE),"") -> 
A118: FA Asset PPE Categories | B118: 162511_Stores Warehouse Equip | C118: 3260_Stores Equipment - None | D118: 3260 | E118: 08 | F118: Office Furniture and Equipment (20%) | G118: ZDB3 | H118: TH Tax Declining Balance - 20%, Half Year Rule | I118: 0.2 | J118: =IFERROR(MATCH(C118,APP_E!B:B,0)>0,FALSE) -> FALSE | K118: =IF(J118,VLOOKUP(C118,APP_E!B:D,3,FALSE),"") -> 
A119: FA Asset PPE Categories | B119: 162521_Tools/Shop/Garage Equip | C119: 3280_Tools and Equipment - Tools and Misc Equipmnt | D119: 3280 | E119: 08 | F119: Office Furniture and Equipment (20%) | G119: ZDB3 | H119: TH Tax Declining Balance - 20%, Half Year Rule | I119: 0.2 | J119: =IFERROR(MATCH(C119,APP_E!B:B,0)>0,FALSE) -> TRUE | K119: =IF(J119,VLOOKUP(C119,APP_E!B:D,3,FALSE),"") -> 1940_Tools Shop and Garage Equipment
A120: FA Asset PPE Categories | B120: 162521_Tools/Shop/Garage Equip | C120: 3300_Tool Crib | D120: 3300 | E120: 08 | F120: Office Furniture and Equipment (20%) | G120: ZDB3 | H120: TH Tax Declining Balance - 20%, Half Year Rule | I120: 0.2 | J120: =IFERROR(MATCH(C120,APP_E!B:B,0)>0,FALSE) -> FALSE | K120: =IF(J120,VLOOKUP(C120,APP_E!B:D,3,FALSE),"") -> 
A121: FA Asset PPE Categories | B121: 162521_Tools/Shop/Garage Equip | C121: 3320_Linehose | D121: 3320 | E121: 08 | F121: Office Furniture and Equipment (20%) | G121: ZDB3 | H121: TH Tax Declining Balance - 20%, Half Year Rule | I121: 0.2 | J121: =IFERROR(MATCH(C121,APP_E!B:B,0)>0,FALSE) -> FALSE | K121: =IF(J121,VLOOKUP(C121,APP_E!B:D,3,FALSE),"") -> 
A122: FA Asset PPE Categories | B122: 162531_Testing Equip | C122: 3340_Testing Equipment - Instruments | D122: 3340 | E122: 08 | F122: Office Furniture and Equipment (20%) | G122: ZDB3 | H122: TH Tax Declining Balance - 20%, Half Year Rule | I122: 0.2 | J122: =IFERROR(MATCH(C122,APP_E!B:B,0)>0,FALSE) -> FALSE | K122: =IF(J122,VLOOKUP(C122,APP_E!B:D,3,FALSE),"") -> 
A123: FA Asset PPE Categories | B123: 162541_Communication Equip - Wireless | C123: 3360_Communication Equipment - Wireless | D123: 3360 | E123: 17 | F123: Fibre and Telecom Equipment (8%) | G123: ZDB2 | H123: TH Tax Declining Balance - 8%, Half Year Rule | I123: 0.08 | J123: =IFERROR(MATCH(C123,APP_E!B:B,0)>0,FALSE) -> FALSE | K123: =IF(J123,VLOOKUP(C123,APP_E!B:D,3,FALSE),"") -> 
A124: FA Asset PPE Categories | B124: 162545_Network Management Equip | C124: 3380_Communication Equipment - Network Mgment Equipmnt | D124: 3380 | E124: 17 | F124: Fibre and Telecom Equipment (8%) | G124: ZDB2 | H124: TH Tax Declining Balance - 8%, Half Year Rule | I124: 0.08 | J124: =IFERROR(MATCH(C124,APP_E!B:B,0)>0,FALSE) -> FALSE | K124: =IF(J124,VLOOKUP(C124,APP_E!B:D,3,FALSE),"") -> 
A125: FA Asset PPE Categories | B125: 162551_Telecommunications Equip | C125: 3400_Communication Equipment - Telephony | D125: 3400 | E125: 17 | F125: Fibre and Telecom Equipment (8%) | G125: ZDB2 | H125: TH Tax Declining Balance - 8%, Half Year Rule | I125: 0.08 | J125: =IFERROR(MATCH(C125,APP_E!B:B,0)>0,FALSE) -> FALSE | K125: =IF(J125,VLOOKUP(C125,APP_E!B:D,3,FALSE),"") -> 
A126: FA Asset PPE Categories | B126: 162561_Misc Equip | C126: 3420_Miscellaneous Equipment | D126: 3420 | E126: 08 | F126: Office Furniture and Equipment (20%) | G126: ZDB3 | H126: TH Tax Declining Balance - 20%, Half Year Rule | I126: 0.2 | J126: =IFERROR(MATCH(C126,APP_E!B:B,0)>0,FALSE) -> FALSE | K126: =IF(J126,VLOOKUP(C126,APP_E!B:D,3,FALSE),"") -> 
A127: FA Asset PPE Categories | B127: 162562_Wind Turbine ARO | C127: 5110_Wind Turbine ARO | D127: 5110 | G127: 0000 | J127: =IFERROR(MATCH(C127,APP_E!B:B,0)>0,FALSE) -> FALSE | K127: =IF(J127,VLOOKUP(C127,APP_E!B:D,3,FALSE),"") -> 
A128: FA Asset PPE Categories | B128: 162711_Load Mgmt Controls - Customer | C128: 3440_Load Management Controls - Customer Location | D128: 3440 | E128: 47 | F128: Tranmission and Distribution Equipment (8%) | G128: ZDB2 | H128: TH Tax Declining Balance - 8%, Half Year Rule | I128: 0.08 | J128: =IFERROR(MATCH(C128,APP_E!B:B,0)>0,FALSE) -> FALSE | K128: =IF(J128,VLOOKUP(C128,APP_E!B:D,3,FALSE),"") -> 
A129: FA Asset PPE Categories | B129: 162715_Load Mgmt Controls - Utility | C129: 3460_Load Management Controls - Utility Premises | D129: 3460 | E129: 47 | F129: Tranmission and Distribution Equipment (8%) | G129: ZDB2 | H129: TH Tax Declining Balance - 8%, Half Year Rule | I129: 0.08 | J129: =IFERROR(MATCH(C129,APP_E!B:B,0)>0,FALSE) -> FALSE | K129: =IF(J129,VLOOKUP(C129,APP_E!B:D,3,FALSE),"") -> 
A130: FA Asset PPE Categories | B130: 162811_System Supervisory Equip | C130: 3480_System Supervisory Equipment | D130: 3480 | E130: 08 | F130: Office Furniture and Equipment (20%) | G130: ZDB3 | H130: TH Tax Declining Balance - 20%, Half Year Rule | I130: 0.2 | J130: =IFERROR(MATCH(C130,APP_E!B:B,0)>0,FALSE) -> FALSE | K130: =IF(J130,VLOOKUP(C130,APP_E!B:D,3,FALSE),"") -> 
A131: FA Asset PPE Categories | B131: 162811_System Supervisory Equip | C131: 3481_System Supervisory - Scadamate Switches | D131: 3481 | E131: 08 | F131: Office Furniture and Equipment (20%) | G131: ZDB3 | H131: TH Tax Declining Balance - 20%, Half Year Rule | I131: 0.2 | J131: =IFERROR(MATCH(C131,APP_E!B:B,0)>0,FALSE) -> FALSE | K131: =IF(J131,VLOOKUP(C131,APP_E!B:D,3,FALSE),"") -> 
A132: FA Asset PPE Categories | B132: 162811_System Supervisory Equip | C132: 3482_System Supervisory - Scada RTU | D132: 3482 | E132: 08 | F132: Office Furniture and Equipment (20%) | G132: ZDB3 | H132: TH Tax Declining Balance - 20%, Half Year Rule | I132: 0.2 | J132: =IFERROR(MATCH(C132,APP_E!B:B,0)>0,FALSE) -> TRUE | K132: =IF(J132,VLOOKUP(C132,APP_E!B:D,3,FALSE),"") -> 1980_System Supervisory Equipment
A133: FA Asset PPE Categories | B133: 162911_Sentinel Lighting | C133: 3500_Sentinel Lighting - None | D133: 3500 | E133: 08 | F133: Office Furniture and Equipment (20%) | G133: ZDB3 | H133: TH Tax Declining Balance - 20%, Half Year Rule | I133: 0.2 | J133: =IFERROR(MATCH(C133,APP_E!B:B,0)>0,FALSE) -> FALSE | K133: =IF(J133,VLOOKUP(C133,APP_E!B:D,3,FALSE),"") -> 
A134: FA Asset PPE Categories | B134: 162912_Street Light Luminaires Fixtures | C134: 5020_Poles SL Conventional | D134: 5020 | E134: 01 | F134: Equip. & Buildings acquired after 1987 (4%) | G134: ZDB1 | H134: TH Tax Declining Balance - 4%, Half Year Rule | I134: 0.04 | J134: =IFERROR(MATCH(C134,APP_E!B:B,0)>0,FALSE) -> TRUE | K134: =IF(J134,VLOOKUP(C134,APP_E!B:D,3,FALSE),"") -> 1830_Poles Towers and Fixtures
A135: FA Asset PPE Categories | B135: 162912_Street Light Luminaires Fixtures | C135: 5021_Poles Highmast | D135: 5021 | E135: 01 | F135: Equip. & Buildings acquired after 1987 (4%) | G135: ZDB1 | H135: TH Tax Declining Balance - 4%, Half Year Rule | I135: 0.04 | J135: =IFERROR(MATCH(C135,APP_E!B:B,0)>0,FALSE) -> FALSE | K135: =IF(J135,VLOOKUP(C135,APP_E!B:D,3,FALSE),"") -> 
A136: FA Asset PPE Categories | B136: 162912_Street Light Luminaires Fixtures | C136: 5040_OH SL Cable | D136: 5040 | E136: 01 | F136: Equip. & Buildings acquired after 1987 (4%) | G136: ZDB1 | H136: TH Tax Declining Balance - 4%, Half Year Rule | I136: 0.04 | J136: =IFERROR(MATCH(C136,APP_E!B:B,0)>0,FALSE) -> FALSE | K136: =IF(J136,VLOOKUP(C136,APP_E!B:D,3,FALSE),"") -> 
A137: FA Asset PPE Categories | B137: 162912_Street Light Luminaires Fixtures | C137: 5060_UG Civil - SL | D137: 5060 | E137: 01 | F137: Equip. & Buildings acquired after 1987 (4%) | G137: ZDB1 | H137: TH Tax Declining Balance - 4%, Half Year Rule | I137: 0.04 | J137: =IFERROR(MATCH(C137,APP_E!B:B,0)>0,FALSE) -> FALSE | K137: =IF(J137,VLOOKUP(C137,APP_E!B:D,3,FALSE),"") -> 
A138: FA Asset PPE Categories | B138: 162912_Street Light Luminaires Fixtures | C138: 5120_SL Luminaires | D138: 5120 | E138: 01 | F138: Equip. & Buildings acquired after 1987 (4%) | G138: ZDB1 | H138: TH Tax Declining Balance - 4%, Half Year Rule | I138: 0.04 | J138: =IFERROR(MATCH(C138,APP_E!B:B,0)>0,FALSE) -> FALSE | K138: =IF(J138,VLOOKUP(C138,APP_E!B:D,3,FALSE),"") -> 
A139: FA Asset PPE Categories | B139: 162912_Street Light Luminaires Fixtures | C139: 5022_Pole Foundation | D139: 5022 | E139: 01 | F139: Equip. & Buildings acquired after 1987 (4%) | G139: ZDB1 | H139: TH Tax Declining Balance - 4%, Half Year Rule | I139: 0.04 | J139: =IFERROR(MATCH(C139,APP_E!B:B,0)>0,FALSE) -> TRUE | K139: =IF(J139,VLOOKUP(C139,APP_E!B:D,3,FALSE),"") -> 1830_Poles Towers and Fixtures
A140: FA Asset PPE Categories | B140: 162912_Street Light Luminaires Fixtures | C140: 5042_UG SL Cable | D140: 5042 | E140: 01 | F140: Equip. & Buildings acquired after 1987 (4%) | G140: ZDB1 | H140: TH Tax Declining Balance - 4%, Half Year Rule | I140: 0.04 | J140: =IFERROR(MATCH(C140,APP_E!B:B,0)>0,FALSE) -> FALSE | K140: =IF(J140,VLOOKUP(C140,APP_E!B:D,3,FALSE),"") -> 
A141: FA Asset PPE Categories | B141: 162921_Capital Allocation - Over/Under Applied | C141: 3520_Capital Allocations | D141: 3520 | E141: 47 | F141: Tranmission and Distribution Equipment (8%) | G141: ZDB2 | H141: TH Tax Declining Balance - 8%, Half Year Rule | I141: 0.08 | J141: =IFERROR(MATCH(C141,APP_E!B:B,0)>0,FALSE) -> FALSE | K141: =IF(J141,VLOOKUP(C141,APP_E!B:D,3,FALSE),"") -> 
A142: FA Asset Intangible Categories | B142: 165101_Software | C142: 4000_Enterprise Software | D142: 4000 | E142: 12 | F142: Applications Software (100%) | G142: ZDB6 | H142: TH Tax Declining Balance - 100%, Half Year Rule | I142: 1 | J142: =IFERROR(MATCH(C142,APP_E!B:B,0)>0,FALSE) -> FALSE | K142: =IF(J142,VLOOKUP(C142,APP_E!B:D,3,FALSE),"") -> 
A143: FA Asset Intangible Categories | B143: 165101_Software | C143: 4010_Client Software | D143: 4010 | E143: 12 | F143: Applications Software (100%) | G143: ZDB6 | H143: TH Tax Declining Balance - 100%, Half Year Rule | I143: 1 | J143: =IFERROR(MATCH(C143,APP_E!B:B,0)>0,FALSE) -> FALSE | K143: =IF(J143,VLOOKUP(C143,APP_E!B:D,3,FALSE),"") -> 
A144: FA Asset Intangible Categories | B144: 165101_Software | C144: 4020_Software General | D144: 4020 | E144: 12 | F144: Applications Software (100%) | G144: ZDB6 | H144: TH Tax Declining Balance - 100%, Half Year Rule | I144: 1 | J144: =IFERROR(MATCH(C144,APP_E!B:B,0)>0,FALSE) -> TRUE | K144: =IF(J144,VLOOKUP(C144,APP_E!B:D,3,FALSE),"") -> 1925_Computer Software
A145: FA Asset Intangible Categories | B145: 165201_Capital Contribution Transmission Sys | C145: 4060_Contribution to HONI Station | D145: 4060 | E145: CEC | F145: Cumulated Eligible Capital | G145: ZDB7 | H145: TH Tax Decl Balance-7%, No Half Year Rule,Only 75% | J145: =IFERROR(MATCH(C145,APP_E!B:B,0)>0,FALSE) -> TRUE | K145: =IF(J145,VLOOKUP(C145,APP_E!B:D,3,FALSE),"") -> 1815_TS Equip - Normally Primary above 50 kV - Contribution to HONI
A146: FA Asset Regulatory Categories | B146: 180511_Sm Cap Var-Capital Exp-Res | C146: 2680_Regulated Assets - Smart Meters Residential | D146: 2680 | G146: 0000 | J146: =IFERROR(MATCH(C146,APP_E!B:B,0)>0,FALSE) -> FALSE | K146: =IF(J146,VLOOKUP(C146,APP_E!B:D,3,FALSE),"") -> 
A147: FA Asset Regulatory Categories | B147: 180513_Sm Cap Var-Capital Exp-Gs | C147: 2700_Regulated Assets - Smart Meters GS | D147: 2700 | G147: 0000 | J147: =IFERROR(MATCH(C147,APP_E!B:B,0)>0,FALSE) -> FALSE | K147: =IF(J147,VLOOKUP(C147,APP_E!B:D,3,FALSE),"") -> 
A148: FA Asset Regulatory Categories | B148: 180519_Stranded Meter Costs | C148: 2570_Regulated Assets - Stranded Meters | D148: 2570 | E148: 47 | F148: Tranmission and Distribution Equipment (8%) | G148: ZDB2 | H148: TH Tax Declining Balance - 8%, Half Year Rule | I148: 0.08 | J148: =IFERROR(MATCH(C148,APP_E!B:B,0)>0,FALSE) -> FALSE | K148: =IF(J148,VLOOKUP(C148,APP_E!B:D,3,FALSE),"") -> 
A149: FA Asset Regulatory Categories | B149: 180525_SM-Hardware-Capex | C149: 3140_Smart Meters-Hardware-CAPEX | D149: 3140 | E149: 50 | F149: Computer Hardware and System Software (55%) | G149: ZDB5 | H149: TH Tax Declining Balance - 55%, Half Year Rule | I149: 0.55 | J149: =IFERROR(MATCH(C149,APP_E!B:B,0)>0,FALSE) -> FALSE | K149: =IF(J149,VLOOKUP(C149,APP_E!B:D,3,FALSE),"") -> 
A150: FA Asset Regulatory Categories | B150: 180527_SM-Software-Capex | C150: 4040_Smart Meters-Software-CAPEX | D150: 4040 | E150: 12 | F150: Applications Software (100%) | G150: ZDB6 | H150: TH Tax Declining Balance - 100%, Half Year Rule | I150: 1 | J150: =IFERROR(MATCH(C150,APP_E!B:B,0)>0,FALSE) -> FALSE | K150: =IF(J150,VLOOKUP(C150,APP_E!B:D,3,FALSE),"") -> 
A151: FA Asset Regulatory Categories | C151: 5XX1_Grid Intelligence Component | D151: 5xx1 | E151: 47 | F151: Tranmission and Distribution Equipment (8%) | G151: ZDB2 | H151: TH Tax Declining Balance - 8%, Half Year Rule | I151: 0.08 | J151: =IFERROR(MATCH(C151,APP_E!B:B,0)>0,FALSE) -> TRUE | K151: =IF(J151,VLOOKUP(C151,APP_E!B:D,3,FALSE),"") -> 5XX1_Grid Intelligence Component
A152: FA Asset Regulatory Categories | C152: 5XX2_Energy Storage | D152: 5XX2 | E152: 47 | F152: Tranmission and Distribution Equipment (8%) | G152: ZDB2 | H152: TH Tax Declining Balance - 8%, Half Year Rule | I152: 0.08 | J152: =IFERROR(MATCH(C152,APP_E!B:B,0)>0,FALSE) -> TRUE | K152: =IF(J152,VLOOKUP(C152,APP_E!B:D,3,FALSE),"") -> 5XX2 Energy Storage

Sheet APP_D (hidden)
B1: FA_AD
B2: Depn_Term
B3: BegBalance | C3: Jan | D3: Feb | E3: Mar | F3: Apr | G3: May | H3: Jun | I3: Jul | J3: Aug | K3: Sep | L3: Oct | M3: Nov | N3: Dec | O3: Found on APP_E | P3: Alias_Table
A4: 1000_Land - Administration | B4: 0 | C4: 0 | D4: 0 | E4: 0 | F4: 0 | G4: 0 | H4: 0 | I4: 0 | J4: 0 | K4: 0 | L4: 0 | M4: 0 | N4: 0 | O4: =IFERROR(MATCH(A4,APP_E!B:B,0)>0,FALSE) -> FALSE | P4: =IF(O4,VLOOKUP(A4,APP_E!B:D,3,FALSE),"") ->  | Q4: =IF(P4="","",MATCH(P4,P5:P152,0)) -> 
A5: 1020_Land - Service Centres | B5: 0 | C5: 0 | D5: 0 | E5: 0 | F5: 0 | G5: 0 | H5: 0 | I5: 0 | J5: 0 | K5: 0 | L5: 0 | M5: 0 | N5: 0 | O5: =IFERROR(MATCH(A5,APP_E!B:B,0)>0,FALSE) -> FALSE | P5: =IF(O5,VLOOKUP(A5,APP_E!B:D,3,FALSE),"") ->  | Q5: =IF(P5="","",MATCH(P5,P6:P153,0)) -> 
A6: 1040_Land - Substations | B6: 0 | C6: 0 | D6: 0 | E6: 0 | F6: 0 | G6: 0 | H6: 0 | I6: 0 | J6: 0 | K6: 0 | L6: 0 | M6: 0 | N6: 0 | O6: =IFERROR(MATCH(A6,APP_E!B:B,0)>0,FALSE) -> FALSE | P6: =IF(O6,VLOOKUP(A6,APP_E!B:D,3,FALSE),"") -> 
A7: 1060_Land - Transformer Stations | B7: 0 | C7: 0 | D7: 0 | E7: 0 | F7: 0 | G7: 0 | H7: 0 | I7: 0 | J7: 0 | K7: 0 | L7: 0 | M7: 0 | N7: 0 | O7: =IFERROR(MATCH(A7,APP_E!B:B,0)>0,FALSE) -> FALSE | P7: =IF(O7,VLOOKUP(A7,APP_E!B:D,3,FALSE),"") -> 
A8: 1065_Land Lease | B8: 99 | C8: 99 | D8: 99 | E8: 99 | F8: 99 | G8: 99 | H8: 99 | I8: 99 | J8: 99 | K8: 99 | L8: 99 | M8: 99 | N8: 99 | O8: =IFERROR(MATCH(A8,APP_E!B:B,0)>0,FALSE) -> FALSE | P8: =IF(O8,VLOOKUP(A8,APP_E!B:D,3,FALSE),"") -> 
A9: 1100_Buildings-Admin-Existing Structures | B9: 28 | C9: 28 | D9: 28 | E9: 28 | F9: 28 | G9: 28 | H9: 28 | I9: 28 | J9: 28 | K9: 28 | L9: 28 | M9: 28 | N9: 28 | O9: =IFERROR(MATCH(A9,APP_E!B:B,0)>0,FALSE) -> FALSE | P9: =IF(O9,VLOOKUP(A9,APP_E!B:D,3,FALSE),"") -> 
A10: 1101_Buildings Adm substructure | B10: 75 | C10: 75 | D10: 75 | E10: 75 | F10: 75 | G10: 75 | H10: 75 | I10: 75 | J10: 75 | K10: 75 | L10: 75 | M10: 75 | N10: 75 | O10: =IFERROR(MATCH(A10,APP_E!B:B,0)>0,FALSE) -> FALSE | P10: =IF(O10,VLOOKUP(A10,APP_E!B:D,3,FALSE),"") -> 
A11: 1102_Buildings Adm shell site | B11: 30 | C11: 30 | D11: 30 | E11: 30 | F11: 30 | G11: 30 | H11: 30 | I11: 30 | J11: 30 | K11: 30 | L11: 30 | M11: 30 | N11: 30 | O11: =IFERROR(MATCH(A11,APP_E!B:B,0)>0,FALSE) -> FALSE | P11: =IF(O11,VLOOKUP(A11,APP_E!B:D,3,FALSE),"") -> 
A12: 1103_Buildings Adm interior | B12: 20 | C12: 20 | D12: 20 | E12: 20 | F12: 20 | G12: 20 | H12: 20 | I12: 20 | J12: 20 | K12: 20 | L12: 20 | M12: 20 | N12: 20 | O12: =IFERROR(MATCH(A12,APP_E!B:B,0)>0,FALSE) -> FALSE | P12: =IF(O12,VLOOKUP(A12,APP_E!B:D,3,FALSE),"") -> 
A13: 1110_Buildings-Service Centres-Existing Structures | B13: 36 | C13: 36 | D13: 36 | E13: 36 | F13: 36 | G13: 36 | H13: 36 | I13: 36 | J13: 36 | K13: 36 | L13: 36 | M13: 36 | N13: 36 | O13: =IFERROR(MATCH(A13,APP_E!B:B,0)>0,FALSE) -> FALSE | P13: =IF(O13,VLOOKUP(A13,APP_E!B:D,3,FALSE),"") -> 
A14: 1111_Buildings Srv Ctr substructure | B14: 75 | C14: 75 | D14: 75 | E14: 75 | F14: 75 | G14: 75 | H14: 75 | I14: 75 | J14: 75 | K14: 75 | L14: 75 | M14: 75 | N14: 75 | O14: =IFERROR(MATCH(A14,APP_E!B:B,0)>0,FALSE) -> FALSE | P14: =IF(O14,VLOOKUP(A14,APP_E!B:D,3,FALSE),"") -> 
A15: 1112_Buildings Srv Ctr shell site | B15: 30 | C15: 30 | D15: 30 | E15: 30 | F15: 30 | G15: 30 | H15: 30 | I15: 30 | J15: 30 | K15: 30 | L15: 30 | M15: 30 | N15: 30 | O15: =IFERROR(MATCH(A15,APP_E!B:B,0)>0,FALSE) -> TRUE | P15: =IF(O15,VLOOKUP(A15,APP_E!B:D,3,FALSE),"") -> 1808_Buildings and Fixtures - Srv Ctr shell site
A16: 1113_Buildings Srv Ctr interior | B16: 20 | C16: 20 | D16: 20 | E16: 20 | F16: 20 | G16: 20 | H16: 20 | I16: 20 | J16: 20 | K16: 20 | L16: 20 | M16: 20 | N16: 20 | O16: =IFERROR(MATCH(A16,APP_E!B:B,0)>0,FALSE) -> FALSE | P16: =IF(O16,VLOOKUP(A16,APP_E!B:D,3,FALSE),"") -> 
A17: 1130_Buildings - Substations-Existing Structure | B17: 36 | C17: 36 | D17: 36 | E17: 36 | F17: 36 | G17: 36 | H17: 36 | I17: 36 | J17: 36 | K17: 36 | L17: 36 | M17: 36 | N17: 36 | O17: =IFERROR(MATCH(A17,APP_E!B:B,0)>0,FALSE) -> FALSE | P17: =IF(O17,VLOOKUP(A17,APP_E!B:D,3,FALSE),"") -> 
A18: 1131_Building Stn substructure | B18: 75 | C18: 75 | D18: 75 | E18: 75 | F18: 75 | G18: 75 | H18: 75 | I18: 75 | J18: 75 | K18: 75 | L18: 75 | M18: 75 | N18: 75 | O18: =IFERROR(MATCH(A18,APP_E!B:B,0)>0,FALSE) -> TRUE | P18: =IF(O18,VLOOKUP(A18,APP_E!B:D,3,FALSE),"") -> 1808_Buildings and Fixtures - Stn Substructure
A19: 1132_Building Stn shell site | B19: 30 | C19: 30 | D19: 30 | E19: 30 | F19: 30 | G19: 30 | H19: 30 | I19: 30 | J19: 30 | K19: 30 | L19: 30 | M19: 30 | N19: 30 | O19: =IFERROR(MATCH(A19,APP_E!B:B,0)>0,FALSE) -> TRUE | P19: =IF(O19,VLOOKUP(A19,APP_E!B:D,3,FALSE),"") -> 1808_Buildings and Fixtures - Stn Shell Site
A20: 1133_Building Stn interior | B20: 20 | C20: 20 | D20: 20 | E20: 20 | F20: 20 | G20: 20 | H20: 20 | I20: 20 | J20: 20 | K20: 20 | L20: 20 | M20: 20 | N20: 20 | O20: =IFERROR(MATCH(A20,APP_E!B:B,0)>0,FALSE) -> TRUE | P20: =IF(O20,VLOOKUP(A20,APP_E!B:D,3,FALSE),"") -> 1808_Buildings and Fixtures - Stn Interior
A21: 1150_Building - Substations ARO | B21: 36 | C21: 36 | D21: 36 | E21: 36 | F21: 36 | G21: 36 | H21: 36 | I21: 36 | J21: 36 | K21: 36 | L21: 36 | M21: 36 | N21: 36 | O21: =IFERROR(MATCH(A21,APP_E!B:B,0)>0,FALSE) -> FALSE | P21: =IF(O21,VLOOKUP(A21,APP_E!B:D,3,FALSE),"") -> 
A22: 1200_Leasehold Improvements - Admin | B22: 5 | C22: 5 | D22: 5 | E22: 5 | F22: 5 | G22: 5 | H22: 5 | I22: 5 | J22: 5 | K22: 5 | L22: 5 | M22: 5 | N22: 5 | O22: =IFERROR(MATCH(A22,APP_E!B:B,0)>0,FALSE) -> FALSE | P22: =IF(O22,VLOOKUP(A22,APP_E!B:D,3,FALSE),"") -> 
A23: 1220_Leasehold Improvements - Service Centres | B23: 5 | C23: 5 | D23: 5 | E23: 5 | F23: 5 | G23: 5 | H23: 5 | I23: 5 | J23: 5 | K23: 5 | L23: 5 | M23: 5 | N23: 5 | O23: =IFERROR(MATCH(A23,APP_E!B:B,0)>0,FALSE) -> FALSE | P23: =IF(O23,VLOOKUP(A23,APP_E!B:D,3,FALSE),"") -> 
A24: 2000_Transf Station Equip - Power Transformer | B24: 32 | C24: 32 | D24: 32 | E24: 32 | F24: 32 | G24: 32 | H24: 32 | I24: 32 | J24: 32 | K24: 32 | L24: 32 | M24: 32 | N24: 32 | O24: =IFERROR(MATCH(A24,APP_E!B:B,0)>0,FALSE) -> TRUE | P24: =IF(O24,VLOOKUP(A24,APP_E!B:D,3,FALSE),"") -> 1815_TS Equip - Normally Primary above 50 kV - Power Transformer
A25: 2001_Transf Station Equip-Steel Struct. and OH Bus | B25: 40 | C25: 40 | D25: 40 | E25: 40 | F25: 40 | G25: 40 | H25: 40 | I25: 40 | J25: 40 | K25: 40 | L25: 40 | M25: 40 | N25: 40 | O25: =IFERROR(MATCH(A25,APP_E!B:B,0)>0,FALSE) -> FALSE | P25: =IF(O25,VLOOKUP(A25,APP_E!B:D,3,FALSE),"") -> 
A26: 2002_Transf Station Equip - Disconnect Switch | B26: 30 | C26: 30 | D26: 30 | E26: 30 | F26: 30 | G26: 30 | H26: 30 | I26: 30 | J26: 30 | K26: 30 | L26: 30 | M26: 30 | N26: 30 | O26: =IFERROR(MATCH(A26,APP_E!B:B,0)>0,FALSE) -> TRUE | P26: =IF(O26,VLOOKUP(A26,APP_E!B:D,3,FALSE),"") -> 1815_TS Equip - Normally Primary above 50 kV - Disconnect Switch
A27: 2003_Transf Station Equip - Station Service | B27: 40 | C27: 40 | D27: 40 | E27: 40 | F27: 40 | G27: 40 | H27: 40 | I27: 40 | J27: 40 | K27: 40 | L27: 40 | M27: 40 | N27: 40 | O27: =IFERROR(MATCH(A27,APP_E!B:B,0)>0,FALSE) -> TRUE | P27: =IF(O27,VLOOKUP(A27,APP_E!B:D,3,FALSE),"") -> 1815_TS Equip - Normally Primary above 50 kV - Station Service
A28: 2004_Transf Station Equip-Power Transf TapChg | B28: 20 | C28: 20 | D28: 20 | E28: 20 | F28: 20 | G28: 20 | H28: 20 | I28: 20 | J28: 20 | K28: 20 | L28: 20 | M28: 20 | N28: 20 | O28: =IFERROR(MATCH(A28,APP_E!B:B,0)>0,FALSE) -> FALSE | P28: =IF(O28,VLOOKUP(A28,APP_E!B:D,3,FALSE),"") -> 
A29: 2020_Substn Equip - Steel Structures and OH Bus | B29: 35 | C29: 35 | D29: 35 | E29: 35 | F29: 35 | G29: 35 | H29: 35 | I29: 35 | J29: 35 | K29: 35 | L29: 35 | M29: 35 | N29: 35 | O29: =IFERROR(MATCH(A29,APP_E!B:B,0)>0,FALSE) -> FALSE | P29: =IF(O29,VLOOKUP(A29,APP_E!B:D,3,FALSE),"") -> 
A30: 2021_Substn Equip - Disconnect Switch | B30: 30 | C30: 30 | D30: 30 | E30: 30 | F30: 30 | G30: 30 | H30: 30 | I30: 30 | J30: 30 | K30: 30 | L30: 30 | M30: 30 | N30: 30 | O30: =IFERROR(MATCH(A30,APP_E!B:B,0)>0,FALSE) -> FALSE | P30: =IF(O30,VLOOKUP(A30,APP_E!B:D,3,FALSE),"") -> 
A31: 2022_Substn Equip - MS Station Service | B31: 32 | C31: 32 | D31: 32 | E31: 32 | F31: 32 | G31: 32 | H31: 32 | I31: 32 | J31: 32 | K31: 32 | L31: 32 | M31: 32 | N31: 32 | O31: =IFERROR(MATCH(A31,APP_E!B:B,0)>0,FALSE) -> TRUE | P31: =IF(O31,VLOOKUP(A31,APP_E!B:D,3,FALSE),"") -> 1820_DS Equip - Normally Primary below 50 kV - Station Service
A32: 2023_Substn Equip - DC Stn Service Batteries | B32: 10 | C32: 10 | D32: 10 | E32: 10 | F32: 10 | G32: 10 | H32: 10 | I32: 10 | J32: 10 | K32: 10 | L32: 10 | M32: 10 | N32: 10 | O32: =IFERROR(MATCH(A32,APP_E!B:B,0)>0,FALSE) -> TRUE | P32: =IF(O32,VLOOKUP(A32,APP_E!B:D,3,FALSE),"") -> 1820_DS Equip - Normally Primary below 50 kV - Stn Service Batteries
A33: 2024_Substn Equip - DC Stn Service Chargers | B33: 20 | C33: 20 | D33: 20 | E33: 20 | F33: 20 | G33: 20 | H33: 20 | I33: 20 | J33: 20 | K33: 20 | L33: 20 | M33: 20 | N33: 20 | O33: =IFERROR(MATCH(A33,APP_E!B:B,0)>0,FALSE) -> TRUE | P33: =IF(O33,VLOOKUP(A33,APP_E!B:D,3,FALSE),"") -> 1820_DS Equip - Normally Primary below 50 kV - Stn Service Chargers
A34: 2025_Substn Equip - Outdoor Breaker | B34: 30 | C34: 30 | D34: 30 | E34: 30 | F34: 30 | G34: 30 | H34: 30 | I34: 30 | J34: 30 | K34: 30 | L34: 30 | M34: 30 | N34: 30 | O34: =IFERROR(MATCH(A34,APP_E!B:B,0)>0,FALSE) -> TRUE | P34: =IF(O34,VLOOKUP(A34,APP_E!B:D,3,FALSE),"") -> 1820_DS Equip - Normally Primary below 50 kV - Outdoor Breaker
A35: 2026_Substn Equip - Indoor Breaker | B35: 30 | C35: 30 | D35: 30 | E35: 30 | F35: 30 | G35: 30 | H35: 30 | I35: 30 | J35: 30 | K35: 30 | L35: 30 | M35: 30 | N35: 30 | O35: =IFERROR(MATCH(A35,APP_E!B:B,0)>0,FALSE) -> TRUE | P35: =IF(O35,VLOOKUP(A35,APP_E!B:D,3,FALSE),"") -> 1820_DS Equip - Normally Primary below 50 kV - Indoor Breaker
A36: 2040_Substn Equip Switchgear - Air | B36: 40 | C36: 40 | D36: 40 | E36: 40 | F36: 40 | G36: 40 | H36: 40 | I36: 40 | J36: 40 | K36: 40 | L36: 40 | M36: 40 | N36: 40 | O36: =IFERROR(MATCH(A36,APP_E!B:B,0)>0,FALSE) -> TRUE | P36: =IF(O36,VLOOKUP(A36,APP_E!B:D,3,FALSE),"") -> 1820_DS Equip - Normally Primary below 50 kV - Switchgear Air
A37: 2041_Substn Equip Switchgear - GIS | B37: 40 | C37: 40 | D37: 40 | E37: 40 | F37: 40 | G37: 40 | H37: 40 | I37: 40 | J37: 40 | K37: 40 | L37: 40 | M37: 40 | N37: 40 | O37: =IFERROR(MATCH(A37,APP_E!B:B,0)>0,FALSE) -> TRUE | P37: =IF(O37,VLOOKUP(A37,APP_E!B:D,3,FALSE),"") -> 1820_DS Equip - Normally Primary below 50 kV - Switchgear GIS
A38: 2060_Substn Equip - Power Transformers | B38: 32 | C38: 32 | D38: 32 | E38: 32 | F38: 32 | G38: 32 | H38: 32 | I38: 32 | J38: 32 | K38: 32 | L38: 32 | M38: 32 | N38: 32 | O38: =IFERROR(MATCH(A38,APP_E!B:B,0)>0,FALSE) -> TRUE | P38: =IF(O38,VLOOKUP(A38,APP_E!B:D,3,FALSE),"") -> 1820_DS Equip - Normally Primary below 50 kV - Power Transformer
A39: 2061_Substn Equip - Power Transformers Tap Chgr | B39: 20 | C39: 20 | D39: 20 | E39: 20 | F39: 20 | G39: 20 | H39: 20 | I39: 20 | J39: 20 | K39: 20 | L39: 20 | M39: 20 | N39: 20 | O39: =IFERROR(MATCH(A39,APP_E!B:B,0)>0,FALSE) -> FALSE | P39: =IF(O39,VLOOKUP(A39,APP_E!B:D,3,FALSE),"") -> 
A40: 2062_Substn Equip - Grounding System | B40: 25 | C40: 25 | D40: 25 | E40: 25 | F40: 25 | G40: 25 | H40: 25 | I40: 25 | J40: 25 | K40: 25 | L40: 25 | M40: 25 | N40: 25 | O40: =IFERROR(MATCH(A40,APP_E!B:B,0)>0,FALSE) -> FALSE | P40: =IF(O40,VLOOKUP(A40,APP_E!B:D,3,FALSE),"") -> 
A41: 2063_Substn Equip - Grounding Transformer | B41: 30 | C41: 30 | D41: 30 | E41: 30 | F41: 30 | G41: 30 | H41: 30 | I41: 30 | J41: 30 | K41: 30 | L41: 30 | M41: 30 | N41: 30 | O41: =IFERROR(MATCH(A41,APP_E!B:B,0)>0,FALSE) -> FALSE | P41: =IF(O41,VLOOKUP(A41,APP_E!B:D,3,FALSE),"") -> 
A42: 2140_O/H Dist Lines And Feeders - Poles ARO | B42: 40 | C42: 40 | D42: 40 | E42: 40 | F42: 40 | G42: 40 | H42: 40 | I42: 40 | J42: 40 | K42: 40 | L42: 40 | M42: 40 | N42: 40 | O42: =IFERROR(MATCH(A42,APP_E!B:B,0)>0,FALSE) -> FALSE | P42: =IF(O42,VLOOKUP(A42,APP_E!B:D,3,FALSE),"") -> 
A43: 2120_O/H Dist Lines And Feeders - Concrete Poles | B43: 50 | C43: 50 | D43: 50 | E43: 50 | F43: 50 | G43: 50 | H43: 50 | I43: 50 | J43: 50 | K43: 50 | L43: 50 | M43: 50 | N43: 50 | O43: =IFERROR(MATCH(A43,APP_E!B:B,0)>0,FALSE) -> FALSE | P43: =IF(O43,VLOOKUP(A43,APP_E!B:D,3,FALSE),"") -> 
A44: 2121_O/H Dist Lines And Feeders - Wooden Poles | B44: 40 | C44: 40 | D44: 40 | E44: 40 | F44: 40 | G44: 40 | H44: 40 | I44: 40 | J44: 40 | K44: 40 | L44: 40 | M44: 40 | N44: 40 | O44: =IFERROR(MATCH(A44,APP_E!B:B,0)>0,FALSE) -> TRUE | P44: =IF(O44,VLOOKUP(A44,APP_E!B:D,3,FALSE),"") -> 1830_Poles Towers and Fixtures | Q44: 92
A45: 2160_O/H Dist Lines And Feeders - Conductors | B45: 50 | C45: 50 | D45: 50 | E45: 50 | F45: 50 | G45: 50 | H45: 50 | I45: 50 | J45: 50 | K45: 50 | L45: 50 | M45: 50 | N45: 50 | O45: =IFERROR(MATCH(A45,APP_E!B:B,0)>0,FALSE) -> TRUE | P45: =IF(O45,VLOOKUP(A45,APP_E!B:D,3,FALSE),"") -> 1835_Overhead Conductors and Devices | Q45: 1
A46: 2165_O/H Secondary conductors | B46: 50 | C46: 50 | D46: 50 | E46: 50 | F46: 50 | G46: 50 | H46: 50 | I46: 50 | J46: 50 | K46: 50 | L46: 50 | M46: 50 | N46: 50 | O46: =IFERROR(MATCH(A46,APP_E!B:B,0)>0,FALSE) -> TRUE | P46: =IF(O46,VLOOKUP(A46,APP_E!B:D,3,FALSE),"") -> 1835_Overhead Conductors and Devices
A47: 2180_O/H Dist Lines And Feeders - Switches | B47: 30 | C47: 30 | D47: 30 | E47: 30 | F47: 30 | G47: 30 | H47: 30 | I47: 30 | J47: 30 | K47: 30 | L47: 30 | M47: 30 | N47: 30 | O47: =IFERROR(MATCH(A47,APP_E!B:B,0)>0,FALSE) -> TRUE | P47: =IF(O47,VLOOKUP(A47,APP_E!B:D,3,FALSE),"") -> 1835_Overhead Conductors and Devices - Switches
A48: 2200_O/H Dist Lines - Poles Contributed Cap | B48: 25 | C48: 25 | D48: 25 | E48: 25 | F48: 25 | G48: 25 | H48: 25 | I48: 25 | J48: 25 | K48: 25 | L48: 25 | M48: 25 | N48: 25 | O48: =IFERROR(MATCH(A48,APP_E!B:B,0)>0,FALSE) -> FALSE | P48: =IF(O48,VLOOKUP(A48,APP_E!B:D,3,FALSE),"") -> 
A49: 2201_Concrete Poles Contributed Capital | B49: 50 | C49: 50 | D49: 50 | E49: 50 | F49: 50 | G49: 50 | H49: 50 | I49: 50 | J49: 50 | K49: 50 | L49: 50 | M49: 50 | N49: 50 | O49: =IFERROR(MATCH(A49,APP_E!B:B,0)>0,FALSE) -> TRUE | P49: =IF(O49,VLOOKUP(A49,APP_E!B:D,3,FALSE),"") -> 1995_Contributions and Grants - Concrete Poles Contributed Cap
A50: 2202_Wood Poles Contributed Capital | B50: 40 | C50: 40 | D50: 40 | E50: 40 | F50: 40 | G50: 40 | H50: 40 | I50: 40 | J50: 40 | K50: 40 | L50: 40 | M50: 40 | N50: 40 | O50: =IFERROR(MATCH(A50,APP_E!B:B,0)>0,FALSE) -> TRUE | P50: =IF(O50,VLOOKUP(A50,APP_E!B:D,3,FALSE),"") -> 1995_Contributions and Grants - Wood Poles Contributed Cap
A51: 2220_OH Dist Lines - Lines Contributed Cap | B51: 25 | C51: 25 | D51: 25 | E51: 25 | F51: 25 | G51: 25 | H51: 25 | I51: 25 | J51: 25 | K51: 25 | L51: 25 | M51: 25 | N51: 25 | O51: =IFERROR(MATCH(A51,APP_E!B:B,0)>0,FALSE) -> FALSE | P51: =IF(O51,VLOOKUP(A51,APP_E!B:D,3,FALSE),"") -> 
